Workbook

Sheet Start
F1: 1 | G1: 2 | I1: 0
A2: 1 | B2: Start
A3: 2 | B3: Start
A5: 0 | D5: 2 | E5: 0
C6: Start | F6: For many basic Excel techniques, which are used here in this file, there are detailed explanations in the file "Excel-Basics". Therefore - if here in this file it is said "Do this … and that …" and you don't know how to do it - please have a look into the file "Excel-Basics". Hopefully you will find the needed explanations there. If not - send me a short notice to stern@jade-hs.de! Before you start working with this file you should definitely work through the two sheets "How to make notes" and "Help ..." in the file "Excel-Basics"! If the buttons for language switching don't work, please click the following: File / Options / Trust Center / Trust Center Settings / Macro Settings / Enable All Macros Then close and re-open this file again. | G6: Zu vielen grundlegenen Excel-Techniken, die hier in dieser Datei benutzt werden, gibt es detaillierte Erläuterungen in der Datei "Excel-Basics". Wenn es daher in dieser Datei heißt "Machen Sie dieses … und jenes …" und Sie wissen nicht wie - sehen Sie bitte in der Datei "Excel-Basics" nach. Hoffentlich finden Sie dort die benötigten Erklärungen. Wenn nicht - schicken Sie mir bitte einen Hinweis an stern@jade-hs.de! Bevor Sie beginnen, mit dieser Datei zu arbeiten, sollten Sie aber auf jeden Fall zuerst die beiden Blätter "Notizen machen" und "Hilfe ..." in der Datei "Excel-Basics" durchgearbeitet haben! Wenn die Buttons zur Sprachumschaltung nicht funktionieren, klicken Sie bitte folgendes an: Datei / Optionen / Trust-Center / Einstellungen für das Trust-Center / Makroeinstellungen / Alle Makros aktivieren Dann diese Datei schließen und erneut öffnen.
C7: Vorlage
C8: Zufallszahlen
C9: Alles was Sie brauchen ist … | E9: 980.25
C10: 01 Sortieren | E10: 82.5
C11: 02 Filtern | E11: 0
C12: 03 Leer
C13: 04 SUMMEWENN
C14: 05 Daten für SUMMEWENNS
C15: 05 SUMMEWENNS
C16: 06 Teilergebnis
C17: 07 Pivot (Daten)
C18: 08 Pivot (Tabelle)
C19: 09 Pivot (Tipps&Tricks)
C20: 10 Pivot (Datenschnitte)
C21: 11 Pivot (Berechnetes Feld)
C22: 12 Pivot (Berechnetes Element)
C23: 13 Pivot (Diagramm)
C24: 14 Übungsdaten (1)
C25: 15 Übungsdaten (2)
C26: 16 Zahlen als Text
C27: 17 BEREICH.VERSCHIEBEN()
C28: 18 Liste fortschreiben (1)
C29: 19 Liste fortschreiben (2)
C30: 20 Liste fortschreiben (3)
C31: 21 Liste fortschreiben (4)
C32: 22 Liste fortschreiben (5)
C33: Firmen
C34: Waren

Sheet Vorlage
F1: 0
A2: 1 | B2: Template | F2: Back to Start
A3: 2 | B3: Vorlage | F3: Startseite
A6: 0

Sheet Vorlage_ (hidden)
B1: 2 | C1: 2 | D1: 2 | E1: 1 | F1: 1 | G1: 1 | H1: 0
A2: 1 | B2: Template_ | F2: =B2 -> Template_
A3: 2 | B3: Vorlage_
A4: 0
B5: 1 | C5: In meinen Übungsdateien können Sie nicht wie üblich durch Klick auf das Pluszeichen ein neues Arbeitsblatt anlegen. Wenn Sie ein neues Blatt brauchen, müssen Sie eine Kopie des Blattes "Vorlage" anlegen. ACHTUNG: Denken Sie daran, die Option "Kopie erstellen" zu aktivieren! | E5: 1 | F5: In my exercise files you cannot create a new worksheet by clicking on the plus sign as usual. If you need a new sheet, you have to create a copy of the sheet "Template". ATTENTION: Please remember to activate the option "Create copy"!
B6: =IF(C6<>"",B5+1,"") -> 2 | C6: Nachdem Sie eine Kopie dieses Blattes angelegt haben, ändern Sie dessen Namen NICHT wie üblich unten auf dem Register. Stattdessen schreiben Sie den Blattnamen in die Zelle B3 des kopierten Blattes. Anschließend wechseln Sie auf das "Start"-Blatt und klicken dort erneut auf den Sprachbutton. Dann müssen Sie evtl. etwas Geduld haben, weil Excel alle Blätter - auch die ausgeblendeten mit den Videotexten - durchgeht, um sie in's Inhaltsverzeichnis aufzunehmen. Der neue Name erscheint dann in der Liste der Blätter auf dem "Start"-Blatt und auf dem Register des kopierten Blattes. | E6: =IF(F6<>"",E5+1,"") -> 2 | F6: After you have created a copy of this sheet, DO NOT change its name as usual at the bottom of the tab. Instead, write the sheet name in cell B2 of the copied sheet. Then switch to the "Start" page and click on the language button again. Then you may have to have some patience, because Excel goes through all sheets - even the hidden ones with the video texts - to include them into the table of contents. The new name then appears in the list of sheets on the "Start" sheet and on the tab of the copied sheet.
B7: =IF(C7<>"",B6+1,"") -> 

Sheet Zufallszahlen
J1: 0
A2: 1 | B2: Random numbers | F2: Back to Start
A3: 2 | B3: Zufallszahlen | F3: Startseite
A5: 2 | B5: Achtung | C5: Wenn Sie nach dem Drücken von Strg-Umschalt-N eine Fehlermeldung bekommen, müssen Sie zunächst die Makros aktivieren: "Datei / Optionen / Trust Center / Einstellungen für das Trust Center / Makroeinstellungen" "Alle Makros aktivieren / OK / OK"
A6: 2
A7: 2
A8: 2
A9: 2
A10: 1 | B10: Attention | C10: If you see an error message after pressing Ctrl-Shift-N you have to activate the macros first: "File / Options / Trust Center / Trust Center Settings / Macro Settings" "Enable all macros / OK / OK"
A11: 1
A12: 1
A13: 1
A42: 1 | B42: Exercise | C42: Try it!
A43: 2 | B43: Übung | C43: Probieren Sie es aus!
A44: 0

Sheet Zufallszahlen_ (hidden)
B1: 2 | C1: 2 | D1: 2 | E1: 1 | F1: 1 | G1: 1 | H1: 0
A2: 1 | B2: Random numbers_ | F2: =B2 -> Random numbers_
A3: 2 | B3: Zufallszahlen_
A4: 0
B5: 1 | C5: Diese Excel-Datei enthält ein Formular zur Generierung von Zufallszahlen. Sie können es mit der Tastenkombination Strg-Umschalt-N öffnen. Dann können Sie es benutzen, um sich schnell beliebige Mengen von Übungsdaten zu generieren! | E5: 1 | F5: This Excel file contains a form for the generation of random numbers. You can open it with the shortcut Ctrl-Shift-N. Then you can use it to generate very quickly any number of trial data!
B6: =IF(C6<>"",B5+1,"") -> 2 | C6: Dazu müssen Sie zuerst einen Bereich markieren, der mit Zufallszahlen gefüllt werden soll. Dieser Bereich kann auch aus mehreren nicht zusammenhängenden Teilbereichen bestehen! (markieren mit gedrückter Strg-Taste) Dann geben Sie die Parameter für die Generierung der Zufallszahlen ein und drücken "Bereich(e) füllen". Sie können auswählen, ob - ein Teil der Zellen leer bleiben soll, - ein Teil der Zahlen negativ sein soll, - nur ganze Zahlen generiert werden sollen. Mit dem Button "Bereich(e) leeren" können Sie … ok … das muss ich wohl nicht beschreiben. | E6: =IF(F6<>"",E5+1,"") -> 2 | F6: To do this, you must first select a range to be filled with random numbers. This range can also consist of several non-contiguous sub ranges! (selected with pressed Ctrl key) Then enter the parameters for the generation of the random numbers and press "Fill range(s)". You can choose whether - some of the cells should remain empty, - some of the numbers should be negative, - only integer numbers should be generated. With the button "Clear range(s)" you can ... ok ... I don't have to describe that.
B7: =IF(C7<>"",B6+1,"") ->  | E7: =IF(F7<>"",E6+1,"") -> 

Sheet Alles was Sie brauchen ist …
G1: 1 | H1: 1 | I1: 1 | J1: 1 | K1: 2 | L1: 2 | M1: 2 | N1: 2 | O1: 0
A2: 1 | B2: All you need is … | F2: Back to Start
A3: 2 | B3: Alles was Sie brauchen ist … | F3: Startseite
A5: 0 | G5: Our main objective for the work with lists is to "squeeze" information from the data! | K5: Unser Hauptziel bei der Arbeit mit Listen ist, aus den Daten Informationen "heraus zu pressen"!
G10: Data are simply a collection of characters in a certain arrangement (letters, numbers, special characters). Example: A list with all the orders of our customers in the current year. | K10: Daten sind einfach eine Ansammlung von Zeichen in einer bestimmten Anordnung (Buchstaben, Ziffern, Sonderzeichen). Beispiel: Eine Liste aller Kundenaufträge des laufenden Jahres
G18: Information is a set of ordered and/or "sqeezed" data, which can be understood and interpreted by a person. Example: The percentage-wise share (=calculated!) of each single customer of the total turnover in the category "beverages" (=filtered!). | K18: Informationen sind geordnete bzw. komprimierte Daten, die ein Mensch erfassen und deuten kann. Beispiel: Der prozentuale Anteil (=berechnet!) jedes einzelnen Kunden am Gesamtumsatz in der Kategorie "Getränke" (=gefiltert!).
G28: All you need is … | K28: Alles was Sie brauchen ist …
G29: … Information! | K29: … Informationen!
G31: Managers make decisions! | K31: Führungskräfte fällen Entscheidungen!
G32: Decisions are based on information! | K32: Entscheidungen basieren auf Informationen!

Sheet 01 Sortieren
I1: 1 | J1: 1 | K1: 1 | L1: 2 | M1: 2 | N1: 2 | O1: 0
A2: 1 | B2: 01 Sort | F2: Back to Start
A3: 2 | B3: 01 Sortieren | F3: Startseite
A5: 2 | B5: Kriterienspalten | C5: Diese Spalten enthalten Kriterien, nach denen Sie die Daten sortieren, filtern oder in irgendeiner anderen Weise verdichten können.
A6: 2
A7: 2
A8: 2 | B8: Datenspalten | C8: Diese Spalten enthalten die eigentlichen Daten, die sortiert, gefiltert, oder in irgendeiner anderen Weise verdichtet werden sollen
A9: 2
A10: 2
A11: 1 | B11: criteria columns | C11: These columns contain criteria, which may be used to sort, to filter or to "squeeze" the data in any other way.
A12: 1
A13: 1
A14: 1 | B14: data columns | C14: These columns contain the data, which shall be sorted, filtered or "squeezed" in any other way.
A15: 1
A16: 1
C18: branch | D18: customer | E18: quarter | F18: sales | G18: orders | I18: Don't highlight any range of cells! Click only in one cell inside the list! Data / "Sort & Filter" / "A>Z" or "Z>A" or "Sort" With "Sort" several sorting levels are possible. Consider absolutely "My data has headers"! (must be "have" :-) This setting remains valid also for the click on "A->Z" and "Z->A", respectively. Then the header may disappear suddenly! | L18: Sie brauchen nichts zu markieren! Klicken Sie einfach irgendeine Zelle innerhalb der Liste an! Daten / "Sortieren und Filtern" / "A>Z" oder "Z>A" oder "Sortieren" Mit "Sortieren" sind mehrere Sortier-Ebenen möglich. Beachten Sie unbedingt "Daten haben Überschriften"! Diese Einstellung bleibt auch für den Klick auf "A->Z" bzw. "Z->A" erhalten. Dann ist u.U. die Überschrift plötzlich verschwunden!
C19: Bremen | D19: Shell | E19: 4 | F19: 66745 | G19: 138
C20: Bremen | D20: Shell | E20: 3 | F20: 72436 | G20: 127
C21: Bremen | D21: Shell | E21: 2 | F21: 78647 | G21: 120
C22: Bremen | D22: Shell | E22: 1 | F22: 80425 | G22: 111
C23: Bremen | D23: Esso | E23: 1 | F23: 112536 | G23: 92
C24: Bremen | D24: Esso | E24: 3 | F24: 111525 | G24: 89
C25: Bremen | D25: Esso | E25: 4 | F25: 124978 | G25: 96
C26: Bremen | D26: Esso | E26: 2 | F26: 131845 | G26: 90
C27: Hamburg | D27: Shell | E27: 1 | F27: 78176 | G27: 66
C28: Hamburg | D28: Shell | E28: 3 | F28: 88111 | G28: 68
C29: Hamburg | D29: Shell | E29: 2 | F29: 82789 | G29: 63
C30: Hamburg | D30: Shell | E30: 4 | F30: 94512 | G30: 59
C31: Hamburg | D31: Esso | E31: 3 | F31: 213999 | G31: 119
C32: Hamburg | D32: Esso | E32: 2 | F32: 224924 | G32: 122
C33: Hamburg | D33: Aral | E33: 3 | F33: 35712 | G33: 19
C34: Hamburg | D34: Esso | E34: 1 | F34: 243890 | G34: 123
C35: Hamburg | D35: Aral | E35: 1 | F35: 38523 | G35: 19
C36: Hamburg | D36: Aral | E36: 4 | F36: 32677 | G36: 15
C37: Hamburg | D37: Aral | E37: 2 | F37: 39467 | G37: 17
C38: Oldenburg | D38: Shell | E38: 2 | F38: 112967 | G38: 92
C39: Oldenburg | D39: Shell | E39: 3 | F39: 121210 | G39: 98
C40: Oldenburg | D40: Aral | E40: 1 | F40: 31243 | G40: 25
C41: Oldenburg | D41: Shell | E41: 4 | F41: 119891 | G41: 94
C42: Oldenburg | D42: Shell | E42: 1 | F42: 123124 | G42: 88
C43: Oldenburg | D43: Aral | E43: 2 | F43: 33756 | G43: 24
C44: Oldenburg | D44: Aral | E44: 3 | F44: 38299 | G44: 21
C45: Oldenburg | D45: Aral | E45: 4 | F45: 35900 | G45: 19
A48: 2 | B48: Achtung | C48: Wenn Sie vor dem Sortieren nichts markieren, erkennt Excel selber, welcher Bereich sortiert werden soll. Das klappt aber nur, wenn dieser Bereich links, rechts, oben und unten von Leerzeilen und -spalten begrenzt wird. Test: Tragen Sie mal in H17 eine Zahl ein (irgendeine!) und klicken Sie dann auf "Daten / Sortieren und Filtern / Sortieren". Dann werden Sie sehen, dass Excel den falschen Bereich markiert!
A49: 2
A50: 2
A51: 2
A52: 2
A53: 2
A54: 2
A55: 2
A56: 2
A57: 1 | B57: Attention | C57: If you do not select anything before sorting, Excel itself recognizes which area is to be sorted. However, this only works if the area on the left, right, top and bottom is bordered by blank rows and columns. Test: Enter a number in H17 (any one!) and click on "Data / Sort & Filter / Sort". Then you will see that Excel marks the wrong area!
A58: 1
A59: 1
A60: 1
A61: 1
A62: 1
A63: 1
A64: 1
A67: 0

Sheet 01 Sortieren_ (hidden)
B1: 2 | C1: 2 | D1: 2 | E1: 1 | F1: 1 | G1: 1 | H1: 0
A2: 1 | B2: 01 Sort_ | F2: =B2 -> 01 Sort_
A3: 2 | B3: 01 Sortieren_
A4: 0
B5: 1 | C5: Bei der Bearbeitung von Datenlisten geht es immer darum, eine große Anzahl von Daten übersichtlich darzustellen, so dass Sie daraus Informationen gewinnen können. Die erste und einfachste Technik ist das Sortieren der Liste. Sehen wir uns die Liste erst einmal an. Sie enthält zwei unterschiedliche Arten von Spalten: Kriterienspalten (=Spalten, nach denen man sortieren oder filtern kann) und Datenspalten (=die zu den Kriterien gehörigen Werte; i.A. Zahlen). | E5: 1 | F5: When processing data lists, it is always a question of presenting a large amount of data in a clear way so that you can gain information from it. The first and easiest technique is to sort the list. Let's take a look at the list first. It contains two different types of columns: Criteria columns (=columns by which you can sort or filter) and data columns (=the values belonging to the criteria; usually numbers).
B6: =IF(C6<>"",B5+1,"") -> 2 | C6: Das Sortieren können Sie auf zwei unterschiedliche Arten starten: - im Menü "Start" und - im Menü "Daten" Das Ergebnis ist dasselbe. In beiden Fällen gibt es zwei "Schnellbuttons" und einen "Komfortbutton" (meine eigene Bezeichnung ;-) Mit den "Schnellbuttons" können Sie die Liste auf- oder absteigend sortieren - und zwar nach der Spalte, in der Sie VORHER eine Zelle angeklickt haben. EINE ZELLE - nicht die ganze Spalte markieren!! | E6: =IF(F6<>"",E5+1,"") -> 2 | F6: You can start sorting in two different ways: - in the "Start" menu and - in the "Data" menu The result is the same. In both cases there are two "quick buttons" and one "comfort button" (my own name ;-) With the "quick buttons" you can sort the list in ascending or descending order - by the column in which you clicked on a cell BEFORE. ONE CELL - do not select the whole column!
B7: =IF(C7<>"",B6+1,"") -> 3 | C7: ACHTUNG: Das funktioniert nur, wenn die Liste rundherum durch Leerzeilen und -spalten vom übrigen Inhalt des Blattes abgegrenzt ist. Nur dann erkennt Excel anhand der angeklickten Zelle selber, wo sich die Liste befindet. Machen Sie mal folgendes Experiment: Schreiben Sie eine Zahl in Zelle H17. Jetzt funktioniert das nicht mehr! Jetzt müssen Sie tatsächlich die gesamte Liste mit der Maus markieren - oder Sie müssen Ihr Blatt so organisieren, dass rund um die Liste wieder Leerzeilen und -spalten sind. Beachten Sie: Wenn Sie die Liste markieren und dann auf "A>Z" bzw. "Z>A" klicken, wird nach der ERSTEN Spalte sortiert. Wenn Sie nach einer anderen Spalte sortieren wollen, müssen Sie den "Komfortbutton" benutzen. | E7: =IF(F7<>"",E6+1,"") -> 3 | F7: ATTENTION: This only works if the list is separated from the rest of the sheet by blank rows and columns. Only then Excel can recognize where the list is located by the clicked cell itself. Do the following experiment: Write a number in cell H17. Now this won't work anymore! Now you really have to select the entire list with the mouse - or you have to organize your sheet so that there are empty rows and columns around the list. Note: If you select the list and then click on "A>Z" or "Z>A", the list will be sorted by the FIRST column. If you want to sort by a different column, you have to use the "comfort button".
B8: =IF(C8<>"",B7+1,"") -> 4 | C8: Kommen wir jetzt zum "Komfortbutton". Um ihn zu benutzen, müssen Sie eine beliebige Zelle in der Liste anklicken. Dann können Sie detailliert festlegen, nach welcher Spalte wie sortiert werden soll. Beachten Sie die Option "Daten haben Überschriften"! Sie können auch mehrere Sortier-Ebenen definieren - es soll also z.B. ERST nach Niederlassung und DANN nach Kunde sortiert werden. ACHTUNG: Über "Optionen" können Sie auch HORIZONTALE LISTEN nach Spalten sortieren! | F8: Now let's get to the "comfort button". To use it, you must click on any cell in the list. Then you can specify in detail by which column and how it should be sorted. Note the option "My data has headers"! (should be "have" ;-) You can also define several sorting levels - e.g. it should be sorted FIRST by branch and THEN by customer. ATTENTION: With "Options" you can also sort HORIZONTAL LISTS by columns!
B9: 5 | C9: Jetzt kommt der Hinweis auf eine Gemeinheit des "Komfortbuttons": Excel merkt sich die Einstellung "Daten haben Überschriften" und wendet sie auch bei den "Schnellbuttons" an! Wenn Ihre Liste also Überschriften hat, sie aber die Option "Daten haben Überschriften" deaktivieren, werden diese beim Sortieren wie Daten behandelt und mit einsortiert. Bei einer sehr langen Liste kann es dann passieren, dass Ihre Überschriften ganz nach unten rutschen und damit verschwunden sind! | F9: Now comes the hint of a nastiness of the "comfort button": Excel remembers the setting "My data has headers" and applies it also to the "Quick buttons"! So if your data have headers, but you deactivate the option "My data has headers", they will be treated like data when sorting and will be sorted. If your list is very long, it can happen that your headers slide down to the bottom and disappear!

Sheet 02 Filtern
I1: 1 | J1: 1 | K1: 1 | L1: 2 | M1: 2 | N1: 2 | O1: 0
A2: 1 | B2: 02 Filter | F2: Back to Start
A3: 2 | B3: 02 Filtern | F3: Startseite
A5: 2 | B5: Textfilter | C5: z.B. "Enthält …" | E5: -> "Benutzerdefinierte Filter" -> "Und" / "Oder"
A6: 2
A7: 2 | B7: Zahlenfilter | C7: z.B. "Top 10" | E7: -> "Benutzerdefinierte Filter" -> "Und" / "Oder"
A8: 2
A9: 1 | B9: Text Filters | C9: e.g. "Contains …" | E9: -> "Custom Filter" -> "And" / "Or"
A10: 1
A11: 1 | B11: Number Filters | C11: e.g. "Top 10" | E11: -> "Custom Filter" -> "And" / "Or"
A12: 1
C13: branch | D13: customer | E13: quarter | F13: sales | G13: orders | I13: Don't highlight any range of cells! Click only in one cell inside the list! Data / "Sort & Filter" / "Filter" | L13: Sie brauchen nichts zu markieren! Klicken Sie einfach irgendeine Zelle innerhalb der Liste an! Daten / "Sortieren und Filtern" / "Filtern"
C14: Bremen | D14: Shell | E14: 4 | F14: 66745 | G14: 138
C15: Bremen | D15: Shell | E15: 3 | F15: 72436 | G15: 127
C16: Bremen | D16: Shell | E16: 2 | F16: 78647 | G16: 120
C17: Bremen | D17: Shell | E17: 1 | F17: 80425 | G17: 111
C18: Bremen | D18: Esso | E18: 1 | F18: 112536 | G18: 92
C19: Bremen | D19: Esso | E19: 3 | F19: 111525 | G19: 89
C20: Bremen | D20: Esso | E20: 4 | F20: 124978 | G20: 96
C21: Bremen | D21: Esso | E21: 2 | F21: 131845 | G21: 90
C22: Hamburg | D22: Shell | E22: 1 | F22: 78176 | G22: 66
C23: Hamburg | D23: Shell | E23: 3 | F23: 88111 | G23: 68
C24: Hamburg | D24: Shell | E24: 2 | F24: 82789 | G24: 63
C25: Hamburg | D25: Shell | E25: 4 | F25: 94512 | G25: 59
C26: Hamburg | D26: Esso | E26: 3 | F26: 213999 | G26: 119
C27: Hamburg | D27: Esso | E27: 2 | F27: 224924 | G27: 122
C28: Hamburg | D28: Aral | E28: 3 | F28: 35712 | G28: 19
C29: Hamburg | D29: Esso | E29: 1 | F29: 243890 | G29: 123
C30: Hamburg | D30: Aral | E30: 1 | F30: 38523 | G30: 19
C31: Hamburg | D31: Aral | E31: 4 | F31: 32677 | G31: 15
C32: Hamburg | D32: Aral | E32: 2 | F32: 39467 | G32: 17
C33: Oldenburg | D33: Shell | E33: 2 | F33: 112967 | G33: 92
C34: Oldenburg | D34: Shell | E34: 3 | F34: 121210 | G34: 98
C35: Oldenburg | D35: Aral | E35: 1 | F35: 31243 | G35: 25
C36: Oldenburg | D36: Shell | E36: 4 | F36: 119891 | G36: 94
C37: Oldenburg | D37: Shell | E37: 1 | F37: 123124 | G37: 88
C38: Oldenburg | D38: Aral | E38: 2 | F38: 33756 | G38: 24
A39: 0 | C39: Oldenburg | D39: Aral | E39: 3 | F39: 38299 | G39: 21
C40: Oldenburg | D40: Aral | E40: 4 | F40: 35900 | G40: 19

Sheet 02 Filtern_ (hidden)
B1: 2 | C1: 2 | D1: 2 | E1: 1 | F1: 1 | G1: 1 | H1: 0
A2: 1 | B2: 02 Filter_ | F2: =B2 -> 02 Filter_
A3: 2 | B3: 02 Filtern_
A4: 0
B5: 1 | C5: Neben dem Sortieren ist das Filtern eine einfache Technik, um Übersicht in eine lange und unübersichtliche Datenliste zu bringen. Die Wirkung des Filterns ist noch offensichtlicher, weil es die Menge der angezeigten Daten reduziert und alleine dadurch schon zur Übersichtlichkeit beiträgt. Das Filtern können Sie auf zwei unterschiedliche Arten einschalten: - im Menü "Start" und - im Menü "Daten" Das Ergebnis ist dasselbe. In beiden Fällen erscheinen neben den Spaltenüberschriften Buttons, mit denen sich die Filteroptionen aufklappen lassen. Hier können Sie übrigens auch nochmal sortieren - interessanterweise auch nach Farben! | E5: 1 | F5: In addition to sorting, filtering is a simple technique to bring clarity to a long and confusing data list. The effect of filtering is even more obvious, because it reduces the amount of data displayed, which in itself contributes to clarity. You can activate filtering in two different ways: - in the "Start" menu and - in the "Data" menu The result is the same. In both cases, buttons appear next to the column headers to expand the filter options. By the way, you can also sort again here - interestingly, also by color!
B6: =IF(C6<>"",B5+1,"") -> 2 | C6: Erste und einfachste Filterung: Sie wählen für eine oder mehrere Spalten die anzuzeigenden Werte aus. Wenn Sie gesetzte Filter löschen wollen, können Sie das für jeden Filter einzeln tun - oder über das Menü "Daten" für alle Filter gleichzeitig. | E6: =IF(F6<>"",E5+1,"") -> 2 | F6: First and easiest filtering: You select the values to be displayed for one or more columns. If you want to delete set filters, you can do this for each filter individually - or for all filters at once via the "Data" menu.
B7: =IF(C7<>"",B6+1,"") -> 3 | C7: Weitere Filtermöglichkeiten finden Sie unter "Textfilter" (für Spalten mit Texten) bzw. "Zahlenfilter" (für Spalten mit Zahlen). Es öffnet sich dann ein Fenster, in dem Sie eine oder zwei Filterregeln eingeben können. Diese können Sie mit "und" oder "oder" verbinden - also z.B. - "ist größer als 40.000 UND ist kleiner als 80.000" oder - "ist kleiner als 40.000 ODER ist größer als 100.000" Probieren Sie einfach mal verschiedene Text- und Zahlenfilter aus! | E7: =IF(F7<>"",E6+1,"") -> 3 | F7: Further filter options can be found under "Text filters" (for columns with text) or "Number filters" (for columns with numbers). A window then opens in which you can enter one or two filter rules. You can combine them with "and" or "or" - for example - "is greater than 40,000 AND is less than 80,000" or - "is less than 40,000 OR is greater than 100,000" Just try out different text and number filters!

Sheet 03 Leer
F1: 0
A2: 1 | B2: 03 Empty | F2: Back to Start
A3: 2 | B3: 03 Leer | F3: Startseite
A6: 2 | C6: Dieses Blatt ist leer.
A7: 1 | C7: This sheet is empty.
A10: 0

Sheet 04 SUMMEWENN
M1: 0
A2: 1 | B2: 03 SUMIF | F2: Back to Start
A3: 2 | B3: 04 SUMMEWENN | F3: Startseite
A5: 2 | B5: Kriterienspalten | C5: Diese Spalten enthalten Kriterien, nach denen Sie die Daten sortieren, filtern oder in irgendeiner anderen Weise verdichten können.
A6: 2
A7: 2
A8: 2 | B8: Datenspalten | C8: Diese Spalten enthalten die eigentlichen Daten, die sortiert, gefiltert, oder in irgendeiner anderen Weise verdichtet werden sollen
A9: 2
A10: 2
A11: 1 | B11: criteria columns | C11: These columns contain criteria, which may be used to sort, to filter or to "squeeze" the data in any other way.
A12: 1
A13: 1
A14: 1 | B14: data columns | C14: These columns contain the data, which shall be sorted, filtered or "squeezed" in any other way.
A15: 1
A16: 1
K17: total
C18: branch | D18: customer | E18: quarter | F18: sales | G18: orders | I18: branch = | J18: Bremen | K18: =SUMIF(C:C,J18,F:F) -> 779137 | M18: =_xlfn.FORMULATEXT(K18) -> =SUMIF(C:C,J18,F:F)
C19: Bremen | D19: Shell | E19: 4 | F19: 66745 | G19: 138
C20: Bremen | D20: Shell | E20: 3 | F20: 72436 | G20: 127 | I20: customer = | J20: Aral | K20: ? | M20: =IF(K20<>"?",_xlfn.FORMULATEXT(K20),"") -> 
C21: Bremen | D21: Shell | E21: 2 | F21: 78647 | G21: 120
C22: Bremen | D22: Shell | E22: 1 | F22: 80425 | G22: 111 | I22: quarter = | J22: 1 | K22: ? | M22: =IF(K22<>"?",_xlfn.FORMULATEXT(K22),"") -> 
C23: Bremen | D23: Esso | E23: 1 | F23: 112536 | G23: 92
C24: Bremen | D24: Esso | E24: 3 | F24: 111525 | G24: 89
C25: Bremen | D25: Esso | E25: 4 | F25: 124978 | G25: 96
C26: Bremen | D26: Esso | E26: 2 | F26: 131845 | G26: 90
C27: Hamburg | D27: Shell | E27: 1 | F27: 78176 | G27: 66
C28: Hamburg | D28: Shell | E28: 3 | F28: 88111 | G28: 68
C29: Hamburg | D29: Shell | E29: 2 | F29: 82789 | G29: 63
C30: Hamburg | D30: Shell | E30: 4 | F30: 94512 | G30: 59
C31: Hamburg | D31: Esso | E31: 3 | F31: 213999 | G31: 119
C32: Hamburg | D32: Esso | E32: 2 | F32: 224924 | G32: 122
C33: Hamburg | D33: Aral | E33: 3 | F33: 35712 | G33: 19
C34: Hamburg | D34: Esso | E34: 1 | F34: 243890 | G34: 123
C35: Hamburg | D35: Aral | E35: 1 | F35: 38523 | G35: 19
C36: Hamburg | D36: Aral | E36: 4 | F36: 32677 | G36: 15
C37: Hamburg | D37: Aral | E37: 2 | F37: 39467 | G37: 17
C38: Oldenburg | D38: Shell | E38: 2 | F38: 112967 | G38: 92
C39: Oldenburg | D39: Shell | E39: 3 | F39: 121210 | G39: 98
C40: Oldenburg | D40: Aral | E40: 1 | F40: 31243 | G40: 25
C41: Oldenburg | D41: Shell | E41: 4 | F41: 119891 | G41: 94
C42: Oldenburg | D42: Shell | E42: 1 | F42: 123124 | G42: 88
C43: Oldenburg | D43: Aral | E43: 2 | F43: 33756 | G43: 24
C44: Oldenburg | D44: Aral | E44: 3 | F44: 38299 | G44: 21
C45: Oldenburg | D45: Aral | E45: 4 | F45: 35900 | G45: 19
A48: 0

Sheet 04 SUMMEWENN_ (hidden)
B1: 2 | C1: 2 | D1: 2 | E1: 1 | F1: 1 | G1: 1 | H1: 0
A2: 1 | B2: 04 SUMIF_ | F2: =B2 -> 04 SUMIF_
A3: 2 | B3: 04 SUMMEWENN_
A4: 0
B5: 1 | C5: Eine weitere Möglichkeit zur Verdichtung einer unübersichtlich großen Datenmenge ist die Funktion SUMMEWENN(). Sie hat drei Argumente: - "Bereich": Das wird in einer Liste i.A. eine Spalte der Liste sein. Beachten Sie, dass im Beispiel einfach "C:C" steht statt "C19:C45" - also ohne Angabe der Zeilen. Damit ist dann die gesamte Spalte C gemeint. Das hat den Vorteil, dass Sie die Liste ggf. um weitere Zeilen ergänzen können, ohne die Formel ändern zu müssen. Es darf natürlich nicht passieren, dass der Suchwert noch irgendwo außerhalb der Liste in Spalte C auftaucht. | E5: 1 | F5: Another possibility for the compression of an unclearly large amount of data is the function SUMIF(). It has three arguments: - "range": In a list, this will generally be one column of the list. Note that the example simply says "C:C" instead of "C19:C45" - that is, without specifying the rows. This means that the entire column C is meant. This has the advantage that you can add more rows to the list without having to change the formula. Of course it must not happen that the search value appears somewhere outside the list in column C.
B6: =IF(C6<>"",B5+1,"") -> 2 | C6: - "Suchkriterien": Nach diesem Wert soll im "Bereich" gesucht werden. Das kann ein Wert sein ("Bremen", 32), ein Ausdruck (">30.000"), ein Zellbezug (J18) oder eine Formel (HEUTE()). Hier dürfen Sie auch die beiden Platzhalter (engl. "wildcards") * (für beliebig viele beliebige Zeichen) und ? (für ein beliebiges Zeichen) benutzen. | E6: =IF(F6<>"",E5+1,"") -> 2 | F6: - "search criteria": This value is to be searched for in the "range". This can be a value ("Bremen", 32), an expression (">30,000"), a cell reference (J18) or a formula (TODAY()). Here you can also use the two wildcards * (for any number of arbitrary characters) and ? (for one arbitrary character)
B7: =IF(C7<>"",B6+1,"") -> 3 | C7: - "[Summe_Bereich]": Wenn in "Bereich" das "Suchkriterium" gefunden wurde, sollen die Werte aus diesem Bereich aufaddiert werden. ACHTUNG: Dieses Argument ist optional! Wenn Sie es weglassen, werden die Werte aus "Bereich" aufaddiert! | E7: =IF(F7<>"",E6+1,"") -> 3 | F7: - "[sum_range]" If the "search criterion" was found in "range", the values from this range should be added up. ATTENTION: This argument is optional! If you omit it, the values from "range" are added up!
B8: =IF(C8<>"",B7+1,"") -> 4 | C8: Addieren Sie jetzt bitte als Übung alle Umsätze mit Aral bzw. alle Umsätze im ersten Quartal auf! | E8: =IF(F8<>"",E7+1,"") -> 4 | F8: As an exercise, please add up all sales with Aral or all sales in the first quarter!

Sheet 05 Daten für SUMMEWENNS
L1: 0
A2: 1 | B2: 05 Data for SUMIFS | F2: Back to Start
A3: 2 | B3: 05 Daten für SUMMEWENNS | F3: Startseite
A5: 2 | B5: Werk | C5: Liefer-menge | D5: Mengen-einheit | E5: Brutto-gewicht | F5: Gewichts-einheit | G5: PLZ | H5: PLZ zweistellig | I5: Ort | J5: Produktions-standort
A6: 1 | B6: factory | C6: quantity delivered | D6: quantity unit | E6: gross weight | F6: weight unit | G6: ZIP code | H6: ZIP code (2 digits) | I6: city | J6: production location
B7: 1400 | C7: 64 | D7: TR | E7: 817.92 | F7: KG | G7: 90411 | H7: 90 | I7: Nürnberg | J7: S
A8: 0 | B8: 1400 | C8: 64 | D8: TR | E8: 1562.4 | F8: KG | G8: 90411 | H8: 90 | I8: Nürnberg | J8: S
B9: 1400 | C9: 192 | D9: TR | E9: 2453.76 | F9: KG | G9: 90411 | H9: 90 | I9: Nürnberg | J9: S
B10: 1400 | C10: 60 | D10: TR | E10: 744.48 | F10: KG | G10: 90411 | H10: 90 | I10: Nürnberg | J10: S
B11: 1400 | C11: 120 | D11: TR | E11: 1488.96 | F11: KG | G11: 90411 | H11: 90 | I11: Nürnberg | J11: S
B12: 1400 | C12: 60 | D12: TR | E12: 744.48 | F12: KG | G12: 90411 | H12: 90 | I12: Nürnberg | J12: S
B13: 1400 | C13: 64 | D13: TR | E13: 817.92 | F13: KG | G13: 90411 | H13: 90 | I13: Nürnberg | J13: S
B14: 1400 | C14: 384 | D14: TR | E14: 4907.52 | F14: KG | G14: 90411 | H14: 90 | I14: Nürnberg | J14: S
B15: 1400 | C15: 64 | D15: TR | E15: 817.92 | F15: KG | G15: 90411 | H15: 90 | I15: Nürnberg | J15: S
B16: 1400 | C16: 60 | D16: TR | E16: 744.48 | F16: KG | G16: 90411 | H16: 90 | I16: Nürnberg | J16: S
B17: 1400 | C17: 240 | D17: TR | E17: 2977.92 | F17: KG | G17: 90411 | H17: 90 | I17: Nürnberg | J17: S
B18: 1400 | C18: 60 | D18: TR | E18: 744.48 | F18: KG | G18: 90411 | H18: 90 | I18: Nürnberg | J18: S
B19: 1400 | C19: 128 | D19: TR | E19: 1635.84 | F19: KG | G19: 90411 | H19: 90 | I19: Nürnberg | J19: S
B20: 1400 | C20: 120 | D20: TR | E20: 1488.96 | F20: KG | G20: 90411 | H20: 90 | I20: Nürnberg | J20: S
B21: 1400 | C21: 64 | D21: TR | E21: 817.92 | F21: KG | G21: 90411 | H21: 90 | I21: Nürnberg | J21: S
B22: 1400 | C22: 64 | D22: TR | E22: 817.92 | F22: KG | G22: 90411 | H22: 90 | I22: Nürnberg | J22: S
B23: 1400 | C23: 64 | D23: TR | E23: 817.92 | F23: KG | G23: 90411 | H23: 90 | I23: Nürnberg | J23: S
B24: 1400 | C24: 120 | D24: ST | E24: 1488.96 | F24: KG | G24: 90411 | H24: 90 | I24: Nürnberg | J24: S
B25: 1400 | C25: 60 | D25: ST | E25: 744.48 | F25: KG | G25: 90411 | H25: 90 | I25: Nürnberg | J25: S
B26: 1400 | C26: 64 | D26: TR | E26: 817.92 | F26: KG | G26: 90411 | H26: 90 | I26: Nürnberg | J26: S
B27: 1400 | C27: 128 | D27: TR | E27: 1635.84 | F27: KG | G27: 90411 | H27: 90 | I27: Nürnberg | J27: S
B28: 1400 | C28: 64 | D28: TR | E28: 817.92 | F28: KG | G28: 90411 | H28: 90 | I28: Nürnberg | J28: S
B29: 1400 | C29: 120 | D29: ST | E29: 1488.96 | F29: KG | G29: 90411 | H29: 90 | I29: Nürnberg | J29: S
B30: 1400 | C30: 120 | D30: ST | E30: 1488.96 | F30: KG | G30: 90411 | H30: 90 | I30: Nürnberg | J30: S
B31: 1400 | C31: 60 | D31: ST | E31: 744.48 | F31: KG | G31: 90411 | H31: 90 | I31: Nürnberg | J31: S
B32: 1400 | C32: 64 | D32: TR | E32: 1562.4 | F32: KG | G32: 90411 | H32: 90 | I32: Nürnberg | J32: S
B33: 1400 | C33: 128 | D33: TR | E33: 1635.84 | F33: KG | G33: 90411 | H33: 90 | I33: Nürnberg | J33: S
B34: 1400 | C34: 64 | D34: TR | E34: 817.92 | F34: KG | G34: 90411 | H34: 90 | I34: Nürnberg | J34: S
B35: 1400 | C35: 64 | D35: TR | E35: 817.92 | F35: KG | G35: 90411 | H35: 90 | I35: Nürnberg | J35: S
B36: 1400 | C36: 128 | D36: TR | E36: 1635.84 | F36: KG | G36: 90411 | H36: 90 | I36: Nürnberg | J36: S
B37: 1400 | C37: 2 | D37: KA | E37: 17.296 | F37: KG | G37: 59423 | H37: 59 | I37: Unna | J37: B
B38: 1400 | C38: 5 | D38: KA | E38: 36.68 | F38: KG | G38: 59423 | H38: 59 | I38: Unna | J38: B
B39: 1400 | C39: 140 | D39: ST | E39: 1456 | F39: KG | G39: 59423 | H39: 59 | I39: Unna | J39: S
B40: 1400 | C40: 5 | D40: ST | E40: 52 | F40: KG | G40: 59423 | H40: 59 | I40: Unna | J40: S
B41: 1400 | C41: 5 | D41: KA | E41: 35.56 | F41: KG | G41: 59423 | H41: 59 | I41: Unna | J41: ST
B42: 1400 | C42: 3 | D42: ST | E42: 31.5 | F42: KG | G42: 59423 | H42: 59 | I42: Unna | J42: ST
B43: 1400 | C43: 5 | D43: KA | E43: 51.1 | F43: KG | G43: 59423 | H43: 59 | I43: Unna | J43: ST
B44: 1400 | C44: 1 | D44: TR | E44: 2.904 | F44: KG | G44: 59423 | H44: 59 | I44: Unna | J44: B
B45: 1400 | C45: 2 | D45: TR | E45: 5.556 | F45: KG | G45: 59423 | H45: 59 | I45: Unna | J45: B
B46: 1400 | C46: 1 | D46: TR | E46: 2.916 | F46: KG | G46: 59423 | H46: 59 | I46: Unna | J46: B
B47: 1400 | C47: 1 | D47: TR | E47: 2.922 | F47: KG | G47: 59423 | H47: 59 | I47: Unna | J47: B
B48: 1400 | C48: 2 | D48: TR | E48: 5.844 | F48: KG | G48: 59423 | H48: 59 | I48: Unna | J48: B
B49: 1400 | C49: 2 | D49: TR | E49: 5.46 | F49: KG | G49: 59423 | H49: 59 | I49: Unna | J49: B
B50: 1400 | C50: 2 | D50: TR | E50: 5.388 | F50: KG | G50: 59423 | H50: 59 | I50: Unna | J50: B
B51: 1400 | C51: 2 | D51: TR | E51: 5.508 | F51: KG | G51: 59423 | H51: 59 | I51: Unna | J51: B
B52: 1400 | C52: 3 | D52: TR | E52: 25.632 | F52: KG | G52: 59423 | H52: 59 | I52: Unna | J52: B
B53: 1400 | C53: 3 | D53: TR | E53: 25.632 | F53: KG | G53: 59423 | H53: 59 | I53: Unna | J53: B
B54: 1400 | C54: 20 | D54: ST | E54: 208 | F54: KG | G54: 59423 | H54: 59 | I54: Unna | J54: S
B55: 1400 | C55: 5 | D55: KA | E55: 35.64 | F55: KG | G55: 59423 | H55: 59 | I55: Unna | J55: ST
B56: 1400 | C56: 10 | D56: ST | E56: 53 | F56: KG | G56: 59423 | H56: 59 | I56: Unna | J56: ST
B57: 1400 | C57: 1 | D57: KA | E57: 14.1 | F57: KG | G57: 59423 | H57: 59 | I57: Unna | J57: ST
B58: 1400 | C58: 5 | D58: KA | E58: 34.32 | F58: KG | G58: 59423 | H58: 59 | I58: Unna | J58: ST
B59: 1400 | C59: 6 | D59: TR | E59: 87.96 | F59: KG | G59: 59423 | H59: 59 | I59: Unna | J59: ST
B60: 1400 | C60: 3 | D60: TR | E60: 25.2 | F60: KG | G60: 59423 | H60: 59 | I60: Unna | J60: ST
B61: 1400 | C61: 5 | D61: KA | E61: 43.24 | F61: KG | G61: 59423 | H61: 59 | I61: Unna | J61: B
B62: 1400 | C62: 15 | D62: KA | E62: 110.04 | F62: KG | G62: 59423 | H62: 59 | I62: Unna | J62: B
B63: 1400 | C63: 8 | D63: ST | E63: 83.2 | F63: KG | G63: 59423 | H63: 59 | I63: Unna | J63: S
B64: 1400 | C64: 60 | D64: ST | E64: 624 | F64: KG | G64: 59423 | H64: 59 | I64: Unna | J64: S
B65: 1400 | C65: 5 | D65: ST | E65: 52 | F65: KG | G65: 59423 | H65: 59 | I65: Unna | J65: S
B66: 1400 | C66: 1 | D66: TR | E66: 12.432 | F66: KG | G66: 59423 | H66: 59 | I66: Unna | J66: ST
B67: 1400 | C67: 6 | D67: KA | E67: 42.672 | F67: KG | G67: 59423 | H67: 59 | I67: Unna | J67: ST
B68: 1400 | C68: 12 | D68: ST | E68: 126 | F68: KG | G68: 59423 | H68: 59 | I68: Unna | J68: ST
B69: 1400 | C69: 10 | D69: KA | E69: 102.2 | F69: KG | G69: 59423 | H69: 59 | I69: Unna | J69: ST
B70: 1400 | C70: 12 | D70: ST | E70: 125.4 | F70: KG | G70: 59423 | H70: 59 | I70: Unna | J70: B
B71: 1400 | C71: 1 | D71: KA | E71: 10.5 | F71: KG | G71: 59423 | H71: 59 | I71: Unna | J71: B
B72: 1400 | C72: 2 | D72: TR | E72: 5.832 | F72: KG | G72: 59423 | H72: 59 | I72: Unna | J72: B
B73: 1400 | C73: 1 | D73: TR | E73: 2.922 | F73: KG | G73: 59423 | H73: 59 | I73: Unna | J73: B
B74: 1400 | C74: 2 | D74: TR | E74: 5.46 | F74: KG | G74: 59423 | H74: 59 | I74: Unna | J74: B
B75: 1400 | C75: 2 | D75: TR | E75: 5.508 | F75: KG | G75: 59423 | H75: 59 | I75: Unna | J75: B
B76: 1400 | C76: 1 | D76: TR | E76: 8.544 | F76: KG | G76: 59423 | H76: 59 | I76: Unna | J76: B
B77: 1400 | C77: 1 | D77: KA | E77: 6.594 | F77: KG | G77: 59423 | H77: 59 | I77: Unna | J77: F
B78: 1400 | C78: 2 | D78: TR | E78: 13.56 | F78: KG | G78: 59423 | H78: 59 | I78: Unna | J78: F
B79: 1400 | C79: 1 | D79: TR | E79: 12.588 | F79: KG | G79: 59423 | H79: 59 | I79: Unna | J79: F
B80: 1400 | C80: 2 | D80: TR | E80: 29.32 | F80: KG | G80: 59423 | H80: 59 | I80: Unna | J80: F
B81: 1400 | C81: 2 | D81: TR | E81: 11.84 | F81: KG | G81: 59423 | H81: 59 | I81: Unna | J81: F
B82: 1400 | C82: 2 | D82: TR | E82: 27.72 | F82: KG | G82: 59423 | H82: 59 | I82: Unna | J82: S
B83: 1400 | C83: 3 | D83: TR | E83: 17.262 | F83: KG | G83: 59423 | H83: 59 | I83: Unna | J83: S
B84: 1400 | C84: 1 | D84: TR | E84: 12.408 | F84: KG | G84: 59423 | H84: 59 | I84: Unna | J84: S
B85: 1400 | C85: 5 | D85: ST | E85: 17.5 | F85: KG | G85: 59423 | H85: 59 | I85: Unna | J85: S
B86: 1400 | C86: 4 | D86: ST | E86: 14 | F86: KG | G86: 59423 | H86: 59 | I86: Unna | J86: S
B87: 1400 | C87: 1 | D87: TR | E87: 13.704 | F87: KG | G87: 59423 | H87: 59 | I87: Unna | J87: S
B88: 1400 | C88: 1 | D88: TR | E88: 12.96 | F88: KG | G88: 59423 | H88: 59 | I88: Unna | J88: S
B89: 1400 | C89: 3 | D89: TR | E89: 43.98 | F89: KG | G89: 59423 | H89: 59 | I89: Unna | J89: S
B90: 1400 | C90: 1 | D90: TR | E90: 10.284 | F90: KG | G90: 59423 | H90: 59 | I90: Unna | J90: S
B91: 1400 | C91: 1 | D91: TR | E91: 14.66 | F91: KG | G91: 59423 | H91: 59 | I91: Unna | J91: S
B92: 1400 | C92: 3 | D92: TR | E92: 45.204 | F92: KG | G92: 59423 | H92: 59 | I92: Unna | J92: S
B93: 1400 | C93: 6 | D93: KA | E93: 42.768 | F93: KG | G93: 59423 | H93: 59 | I93: Unna | J93: ST
B94: 1400 | C94: 2 | D94: KA | E94: 5.088 | F94: KG | G94: 59423 | H94: 59 | I94: Unna | J94: ST
B95: 1400 | C95: 5 | D95: KA | E95: 34.32 | F95: KG | G95: 59423 | H95: 59 | I95: Unna | J95: ST
B96: 1400 | C96: 2 | D96: TR | E96: 29.32 | F96: KG | G96: 59423 | H96: 59 | I96: Unna | J96: ST
B97: 1400 | C97: 1 | D97: TR | E97: 14.66 | F97: KG | G97: 59423 | H97: 59 | I97: Unna | J97: ST
B98: 1400 | C98: 10 | D98: KA | E98: 73.36 | F98: KG | G98: 59423 | H98: 59 | I98: Unna | J98: B
B99: 1400 | C99: 4 | D99: ST | E99: 41.6 | F99: KG | G99: 59423 | H99: 59 | I99: Unna | J99: S
B100: 1400 | C100: 4 | D100: ST | E100: 41.6 | F100: KG | G100: 59423 | H100: 59 | I100: Unna | J100: S
B101: 1400 | C101: 10 | D101: ST | E101: 104 | F101: KG | G101: 59423 | H101: 59 | I101: Unna | J101: S
B102: 1400 | C102: 60 | D102: ST | E102: 624 | F102: KG | G102: 59423 | H102: 59 | I102: Unna | J102: S
B103: 1400 | C103: 2 | D103: KA | E103: 14.224 | F103: KG | G103: 59423 | H103: 59 | I103: Unna | J103: ST
B104: 1400 | C104: 16 | D104: KA | E104: 163.52 | F104: KG | G104: 59423 | H104: 59 | I104: Unna | J104: ST
B105: 1400 | C105: 15 | D105: ST | E105: 79.5 | F105: KG | G105: 59423 | H105: 59 | I105: Unna | J105: B
B106: 1400 | C106: 4 | D106: TR | E106: 11.112 | F106: KG | G106: 59423 | H106: 59 | I106: Unna | J106: B
B107: 1400 | C107: 4 | D107: TR | E107: 34.176 | F107: KG | G107: 59423 | H107: 59 | I107: Unna | J107: B
B108: 1400 | C108: 1 | D108: TR | E108: 8.544 | F108: KG | G108: 59423 | H108: 59 | I108: Unna | J108: B
B109: 1400 | C109: 2 | D109: TR | E109: 17.088 | F109: KG | G109: 59423 | H109: 59 | I109: Unna | J109: B
B110: 1400 | C110: 2 | D110: TR | E110: 29.32 | F110: KG | G110: 59423 | H110: 59 | I110: Unna | J110: F
B111: 1400 | C111: 1 | D111: TR | E111: 5.92 | F111: KG | G111: 59423 | H111: 59 | I111: Unna | J111: F
B112: 1400 | C112: 1 | D112: TR | E112: 12.408 | F112: KG | G112: 59423 | H112: 59 | I112: Unna | J112: S
B113: 1400 | C113: 4 | D113: ST | E113: 41.6 | F113: KG | G113: 59423 | H113: 59 | I113: Unna | J113: S
B114: 1400 | C114: 45 | D114: ST | E114: 738 | F114: KG | G114: 59423 | H114: 59 | I114: Unna | J114: S
B115: 1400 | C115: 10 | D115: ST | E115: 104 | F115: KG | G115: 59423 | H115: 59 | I115: Unna | J115: S
B116: 1400 | C116: 10 | D116: ST | E116: 53.26 | F116: KG | G116: 59423 | H116: 59 | I116: Unna | J116: S
B117: 1400 | C117: 5 | D117: TR | E117: 75.34 | F117: KG | G117: 59423 | H117: 59 | I117: Unna | J117: S
B118: 1400 | C118: 2 | D118: KA | E118: 20.44 | F118: KG | G118: 59423 | H118: 59 | I118: Unna | J118: ST
B119: 1400 | C119: 2 | D119: TR | E119: 30.136 | F119: KG | G119: 59423 | H119: 59 | I119: Unna | J119: ST
B120: 1400 | C120: 1 | D120: KA | E120: 8.648 | F120: KG | G120: 59423 | H120: 59 | I120: Unna | J120: B
B121: 1400 | C121: 4 | D121: KA | E121: 29.344 | F121: KG | G121: 59423 | H121: 59 | I121: Unna | J121: B
B122: 1400 | C122: 10 | D122: ST | E122: 104 | F122: KG | G122: 59423 | H122: 59 | I122: Unna | J122: S
B123: 1400 | C123: 10 | D123: ST | E123: 104 | F123: KG | G123: 59423 | H123: 59 | I123: Unna | J123: S
B124: 1400 | C124: 3 | D124: KA | E124: 21.336 | F124: KG | G124: 59423 | H124: 59 | I124: Unna | J124: ST
B125: 1400 | C125: 4 | D125: ST | E125: 42 | F125: KG | G125: 59423 | H125: 59 | I125: Unna | J125: ST
B126: 1400 | C126: 2 | D126: KA | E126: 20.44 | F126: KG | G126: 59423 | H126: 59 | I126: Unna | J126: ST
B127: 1400 | C127: 1 | D127: TR | E127: 8.37 | F127: KG | G127: 59423 | H127: 59 | I127: Unna | J127: ST
B128: 1400 | C128: 1 | D128: TR | E128: 2.904 | F128: KG | G128: 59423 | H128: 59 | I128: Unna | J128: B
B129: 1400 | C129: 2 | D129: TR | E129: 5.844 | F129: KG | G129: 59423 | H129: 59 | I129: Unna | J129: B
B130: 1400 | C130: 1 | D130: TR | E130: 2.694 | F130: KG | G130: 59423 | H130: 59 | I130: Unna | J130: B
B131: 1400 | C131: 1 | D131: TR | E131: 2.754 | F131: KG | G131: 59423 | H131: 59 | I131: Unna | J131: B
B132: 1400 | C132: 1 | D132: TR | E132: 2.904 | F132: KG | G132: 59423 | H132: 59 | I132: Unna | J132: B
B133: 1400 | C133: 1 | D133: TR | E133: 2.7 | F133: KG | G133: 59423 | H133: 59 | I133: Unna | J133: B
B134: 1400 | C134: 1 | D134: TR | E134: 8.544 | F134: KG | G134: 59423 | H134: 59 | I134: Unna | J134: B
B135: 1400 | C135: 1 | D135: TR | E135: 8.544 | F135: KG | G135: 59423 | H135: 59 | I135: Unna | J135: B
B136: 1400 | C136: 1 | D136: TR | E136: 8.544 | F136: KG | G136: 59423 | H136: 59 | I136: Unna | J136: B
B137: 1400 | C137: 1 | D137: TR | E137: 8.544 | F137: KG | G137: 59423 | H137: 59 | I137: Unna | J137: B
B138: 1400 | C138: 2 | D138: TR | E138: 17.088 | F138: KG | G138: 59423 | H138: 59 | I138: Unna | J138: B
B139: 1400 | C139: 2 | D139: TR | E139: 29.32 | F139: KG | G139: 59423 | H139: 59 | I139: Unna | J139: F
B140: 1400 | C140: 2 | D140: ST | E140: 7 | F140: KG | G140: 59423 | H140: 59 | I140: Unna | J140: S
B141: 1400 | C141: 2 | D141: ST | E141: 7 | F141: KG | G141: 59423 | H141: 59 | I141: Unna | J141: S
B142: 1400 | C142: 1 | D142: TR | E142: 14.66 | F142: KG | G142: 59423 | H142: 59 | I142: Unna | J142: S
B143: 1400 | C143: 1 | D143: TR | E143: 14.66 | F143: KG | G143: 59423 | H143: 59 | I143: Unna | J143: S
B144: 1400 | C144: 4 | D144: ST | E144: 44 | F144: KG | G144: 59423 | H144: 59 | I144: Unna | J144: S
B145: 1400 | C145: 25 | D145: ST | E145: 115 | F145: KG | G145: 59423 | H145: 59 | I145: Unna | J145: S
B146: 1400 | C146: 3 | D146: TR | E146: 38.34 | F146: KG | G146: 59423 | H146: 59 | I146: Unna | J146: S
B147: 1400 | C147: 1 | D147: TR | E147: 4.72 | F147: KG | G147: 59423 | H147: 59 | I147: Unna | J147: ST
B148: 1400 | C148: 1 | D148: TR | E148: 14.66 | F148: KG | G148: 59423 | H148: 59 | I148: Unna | J148: ST
B149: 1400 | C149: 1 | D149: TR | E149: 2.904 | F149: KG | G149: 59423 | H149: 59 | I149: Unna | J149: B
B150: 1400 | C150: 4 | D150: TR | E150: 10.92 | F150: KG | G150: 59423 | H150: 59 | I150: Unna | J150: B
B151: 1400 | C151: 50 | D151: KA | E151: 107.5 | F151: KG | G151: 59423 | H151: 59 | I151: Unna | J151: B
B152: 1400 | C152: 30 | D152: KA | E152: 64.5 | F152: KG | G152: 59423 | H152: 59 | I152: Unna | J152: B
B153: 1400 | C153: 4 | D153: TR | E153: 58.64 | F153: KG | G153: 59423 | H153: 59 | I153: Unna | J153: F
B154: 1400 | C154: 1 | D154: TR | E154: 14.66 | F154: KG | G154: 59423 | H154: 59 | I154: Unna | J154: S
B155: 1400 | C155: 1 | D155: TR | E155: 14.66 | F155: KG | G155: 59423 | H155: 59 | I155: Unna | J155: ST
B156: 1400 | C156: 216 | D156: TR | E156: 1362.312 | F156: KG | G156: 4639 | H156: 4 | I156: Ponitz | J156: B
B157: 1400 | C157: 432 | D157: TR | E157: 2724.624 | F157: KG | G157: 4639 | H157: 4 | I157: Ponitz | J157: B
B158: 1400 | C158: 72 | D158: TR | E158: 454.104 | F158: KG | G158: 4639 | H158: 4 | I158: Ponitz | J158: B
B159: 1400 | C159: 720 | D159: TR | E159: 4541.04 | F159: KG | G159: 4639 | H159: 4 | I159: Ponitz | J159: B
B160: 1400 | C160: 180 | D160: TR | E160: 495.72 | F160: KG | G160: 4639 | H160: 4 | I160: Ponitz | J160: B
B161: 1400 | C161: 180 | D161: TR | E161: 525.96 | F161: KG | G161: 4639 | H161: 4 | I161: Ponitz | J161: B
B162: 1400 | C162: 180 | D162: TR | E162: 495.72 | F162: KG | G162: 4639 | H162: 4 | I162: Ponitz | J162: B
B163: 1400 | C163: 75 | D163: TR | E163: 431.55 | F163: KG | G163: 4639 | H163: 4 | I163: Ponitz | J163: S
B164: 1400 | C164: 75 | D164: TR | E164: 431.55 | F164: KG | G164: 4639 | H164: 4 | I164: Ponitz | J164: S
B165: 1400 | C165: 360 | D165: TR | E165: 3127.68 | F165: KG | G165: 4639 | H165: 4 | I165: Ponitz | J165: S
B166: 1400 | C166: 432 | D166: TR | E166: 3753.216 | F166: KG | G166: 4639 | H166: 4 | I166: Ponitz | J166: S
B167: 1400 | C167: 96 | D167: TR | E167: 1011.456 | F167: KG | G167: 4639 | H167: 4 | I167: Ponitz | J167: ST
B168: 1400 | C168: 315 | D168: TR | E168: 1782.9 | F168: KG | G168: 4639 | H168: 4 | I168: Ponitz | J168: ST
B169: 1400 | C169: 504 | D169: TR | E169: 3417.12 | F169: KG | G169: 4639 | H169: 4 | I169: Ponitz | J169: ST
B170: 1400 | C170: 504 | D170: ST | E170: 0 | F170: KG | G170: 55411 | H170: 55 | I170: Bingen | J170: B
B171: 1400 | C171: 1152 | D171: ST | E171: 0 | F171: KG | G171: 55411 | H171: 55 | I171: Bingen | J171: B
B172: 1400 | C172: 504 | D172: ST | E172: 0 | F172: KG | G172: 55411 | H172: 55 | I172: Bingen | J172: B
B173: 1400 | C173: 504 | D173: ST | E173: 0 | F173: KG | G173: 55411 | H173: 55 | I173: Bingen | J173: B
B174: 1400 | C174: 864 | D174: ST | E174: 0 | F174: KG | G174: 55411 | H174: 55 | I174: Bingen | J174: B
B175: 1400 | C175: 672 | D175: ST | E175: 0 | F175: KG | G175: 55411 | H175: 55 | I175: Bingen | J175: B
B176: 1400 | C176: 1152 | D176: ST | E176: 0 | F176: KG | G176: 55411 | H176: 55 | I176: Bingen | J176: B
B177: 1400 | C177: 864 | D177: ST | E177: 0 | F177: KG | G177: 55411 | H177: 55 | I177: Bingen | J177: B
B178: 1400 | C178: 1176 | D178: ST | E178: 0 | F178: KG | G178: 55411 | H178: 55 | I178: Bingen | J178: B
B179: 1400 | C179: 1728 | D179: ST | E179: 0 | F179: KG | G179: 55411 | H179: 55 | I179: Bingen | J179: B
B180: 1400 | C180: 864 | D180: ST | E180: 0 | F180: KG | G180: 55411 | H180: 55 | I180: Bingen | J180: B
B181: 1400 | C181: 504 | D181: ST | E181: 0 | F181: KG | G181: 55411 | H181: 55 | I181: Bingen | J181: B
B182: 1400 | C182: 864 | D182: ST | E182: 0 | F182: KG | G182: 55411 | H182: 55 | I182: Bingen | J182: B
B183: 1400 | C183: 1152 | D183: ST | E183: 0 | F183: KG | G183: 55411 | H183: 55 | I183: Bingen | J183: B
B184: 1400 | C184: 864 | D184: ST | E184: 0 | F184: KG | G184: 55411 | H184: 55 | I184: Bingen | J184: B
B185: 1400 | C185: 864 | D185: ST | E185: 0 | F185: KG | G185: 55411 | H185: 55 | I185: Bingen | J185: B
B186: 1400 | C186: 672 | D186: ST | E186: 0 | F186: KG | G186: 55411 | H186: 55 | I186: Bingen | J186: B
B187: 1400 | C187: 1728 | D187: ST | E187: 0 | F187: KG | G187: 55411 | H187: 55 | I187: Bingen | J187: B
B188: 1400 | C188: 28 | D188: ST | E188: 2356.368 | F188: KG | G188: 55411 | H188: 55 | I188: Bingen | J188: B
B189: 1400 | C189: 16 | D189: ST | E189: 5721.6 | F189: KG | G189: 55411 | H189: 55 | I189: Bingen | J189: B
B190: 1400 | C190: 24 | D190: ST | E190: 0 | F190: KG | G190: 55411 | H190: 55 | I190: Bingen | J190: F
B191: 1400 | C191: 16 | D191: ST | E191: 0 | F191: KG | G191: 55411 | H191: 55 | I191: Bingen | J191: F
B192: 1400 | C192: 12 | D192: ST | E192: 0 | F192: KG | G192: 55411 | H192: 55 | I192: Bingen | J192: F
B193: 1400 | C193: 28 | D193: ST | E193: 0 | F193: KG | G193: 55411 | H193: 55 | I193: Bingen | J193: F
B194: 1400 | C194: 2880 | D194: ST | E194: 0 | F194: KG | G194: 55411 | H194: 55 | I194: Bingen | J194: S
B195: 1400 | C195: 9216 | D195: ST | E195: 0 | F195: KG | G195: 55411 | H195: 55 | I195: Bingen | J195: S
B196: 1400 | C196: 24 | D196: ST | E196: 10500 | F196: KG | G196: 55411 | H196: 55 | I196: Bingen | J196: S
B197: 1400 | C197: 12 | D197: ST | E197: 3270 | F197: KG | G197: 55411 | H197: 55 | I197: Bingen | J197: S
B198: 1400 | C198: 200 | D198: TR | E198: 547.2 | F198: KG | G198: 55411 | H198: 55 | I198: Bingen | J198: B
B199: 1400 | C199: 128 | D199: TR | E199: 500.736 | F199: KG | G199: 55411 | H199: 55 | I199: Bingen | J199: B
B200: 1400 | C200: 64 | D200: TR | E200: 250.368 | F200: KG | G200: 55411 | H200: 55 | I200: Bingen | J200: B
B201: 1400 | C201: 72 | D201: TR | E201: 439.992 | F201: KG | G201: 55411 | H201: 55 | I201: Bingen | J201: B
... 212 more rows

Sheet 05 SUMMEWENNS
K1: 2 | L1: 2 | M1: 2 | N1: 2 | O1: 1 | P1: 1 | Q1: 1 | R1: 1 | S1: 0
A2: 1 | B2: 05 SUMIFS | F2: Back to Start
A3: 2 | B3: 05 SUMMEWENNS | F3: Startseite
A5: 2 | B5: PLZ | C5: B | D5: ST | E5: H | F5: S | G5: F | H5: C
A6: 1 | B6: ZIP | C6: B | D6: ST | E6: H | F6: S | G6: F | H6: C
B7: 1 | C7: =SUMIFS('05 Daten für SUMMEWENNS'!$E$5:$E$505,'05 Daten für SUMMEWENNS'!$H$5:$H$505,$B7,'05 Daten für SUMMEWENNS'!$J$5:$J$505,C$5) -> 1468.4 | D7: =SUMIFS('05 Daten für SUMMEWENNS'!$E$5:$E$505,'05 Daten für SUMMEWENNS'!$H$5:$H$505,$B7,'05 Daten für SUMMEWENNS'!$J$5:$J$505,D$5) -> 0 | E7: =SUMIFS('05 Daten für SUMMEWENNS'!$E$5:$E$505,'05 Daten für SUMMEWENNS'!$H$5:$H$505,$B7,'05 Daten für SUMMEWENNS'!$J$5:$J$505,E$5) -> 0 | F7: =SUMIFS('05 Daten für SUMMEWENNS'!$E$5:$E$505,'05 Daten für SUMMEWENNS'!$H$5:$H$505,$B7,'05 Daten für SUMMEWENNS'!$J$5:$J$505,F$5) -> 785 | G7: =SUMIFS('05 Daten für SUMMEWENNS'!$E$5:$E$505,'05 Daten für SUMMEWENNS'!$H$5:$H$505,$B7,'05 Daten für SUMMEWENNS'!$J$5:$J$505,G$5) -> 0 | H7: =SUMIFS('05 Daten für SUMMEWENNS'!$E$5:$E$505,'05 Daten für SUMMEWENNS'!$H$5:$H$505,$B7,'05 Daten für SUMMEWENNS'!$J$5:$J$505,H$5) -> 0
B8: 2 | C8: =SUMIFS('05 Daten für SUMMEWENNS'!$E$5:$E$505,'05 Daten für SUMMEWENNS'!$H$5:$H$505,$B8,'05 Daten für SUMMEWENNS'!$J$5:$J$505,C$5) -> 0 | D8: =SUMIFS('05 Daten für SUMMEWENNS'!$E$5:$E$505,'05 Daten für SUMMEWENNS'!$H$5:$H$505,$B8,'05 Daten für SUMMEWENNS'!$J$5:$J$505,D$5) -> 0 | E8: =SUMIFS('05 Daten für SUMMEWENNS'!$E$5:$E$505,'05 Daten für SUMMEWENNS'!$H$5:$H$505,$B8,'05 Daten für SUMMEWENNS'!$J$5:$J$505,E$5) -> 0 | F8: =SUMIFS('05 Daten für SUMMEWENNS'!$E$5:$E$505,'05 Daten für SUMMEWENNS'!$H$5:$H$505,$B8,'05 Daten für SUMMEWENNS'!$J$5:$J$505,F$5) -> 0 | G8: =SUMIFS('05 Daten für SUMMEWENNS'!$E$5:$E$505,'05 Daten für SUMMEWENNS'!$H$5:$H$505,$B8,'05 Daten für SUMMEWENNS'!$J$5:$J$505,G$5) -> 0 | H8: =SUMIFS('05 Daten für SUMMEWENNS'!$E$5:$E$505,'05 Daten für SUMMEWENNS'!$H$5:$H$505,$B8,'05 Daten für SUMMEWENNS'!$J$5:$J$505,H$5) -> 0
A9: 0 | B9: 3 | C9: =SUMIFS('05 Daten für SUMMEWENNS'!$E$5:$E$505,'05 Daten für SUMMEWENNS'!$H$5:$H$505,$B9,'05 Daten für SUMMEWENNS'!$J$5:$J$505,C$5) -> 0 | D9: =SUMIFS('05 Daten für SUMMEWENNS'!$E$5:$E$505,'05 Daten für SUMMEWENNS'!$H$5:$H$505,$B9,'05 Daten für SUMMEWENNS'!$J$5:$J$505,D$5) -> 0 | E9: =SUMIFS('05 Daten für SUMMEWENNS'!$E$5:$E$505,'05 Daten für SUMMEWENNS'!$H$5:$H$505,$B9,'05 Daten für SUMMEWENNS'!$J$5:$J$505,E$5) -> 0 | F9: =SUMIFS('05 Daten für SUMMEWENNS'!$E$5:$E$505,'05 Daten für SUMMEWENNS'!$H$5:$H$505,$B9,'05 Daten für SUMMEWENNS'!$J$5:$J$505,F$5) -> 0 | G9: =SUMIFS('05 Daten für SUMMEWENNS'!$E$5:$E$505,'05 Daten für SUMMEWENNS'!$H$5:$H$505,$B9,'05 Daten für SUMMEWENNS'!$J$5:$J$505,G$5) -> 0 | H9: =SUMIFS('05 Daten für SUMMEWENNS'!$E$5:$E$505,'05 Daten für SUMMEWENNS'!$H$5:$H$505,$B9,'05 Daten für SUMMEWENNS'!$J$5:$J$505,H$5) -> 0
B10: 4 | C10: =SUMIFS('05 Daten für SUMMEWENNS'!$E$5:$E$505,'05 Daten für SUMMEWENNS'!$H$5:$H$505,$B10,'05 Daten für SUMMEWENNS'!$J$5:$J$505,C$5) -> 10599.48 | D10: =SUMIFS('05 Daten für SUMMEWENNS'!$E$5:$E$505,'05 Daten für SUMMEWENNS'!$H$5:$H$505,$B10,'05 Daten für SUMMEWENNS'!$J$5:$J$505,D$5) -> 6211.476 | E10: =SUMIFS('05 Daten für SUMMEWENNS'!$E$5:$E$505,'05 Daten für SUMMEWENNS'!$H$5:$H$505,$B10,'05 Daten für SUMMEWENNS'!$J$5:$J$505,E$5) -> 0 | F10: =SUMIFS('05 Daten für SUMMEWENNS'!$E$5:$E$505,'05 Daten für SUMMEWENNS'!$H$5:$H$505,$B10,'05 Daten für SUMMEWENNS'!$J$5:$J$505,F$5) -> 7743.996 | G10: =SUMIFS('05 Daten für SUMMEWENNS'!$E$5:$E$505,'05 Daten für SUMMEWENNS'!$H$5:$H$505,$B10,'05 Daten für SUMMEWENNS'!$J$5:$J$505,G$5) -> 0 | H10: =SUMIFS('05 Daten für SUMMEWENNS'!$E$5:$E$505,'05 Daten für SUMMEWENNS'!$H$5:$H$505,$B10,'05 Daten für SUMMEWENNS'!$J$5:$J$505,H$5) -> 0 | K10: Summe aller Werte in Spalte E auf dem Blatt "Daten für SUMMEWENNS", für die in Spalte H eine "1" steht und in Spalte J ein "B" | O10: Sum of all values in column E on worksheet "Data for SUMIF", where there is a "1" in column H and a "B" in column J.
B11: 5 | C11: =SUMIFS('05 Daten für SUMMEWENNS'!$E$5:$E$505,'05 Daten für SUMMEWENNS'!$H$5:$H$505,$B11,'05 Daten für SUMMEWENNS'!$J$5:$J$505,C$5) -> 0 | D11: =SUMIFS('05 Daten für SUMMEWENNS'!$E$5:$E$505,'05 Daten für SUMMEWENNS'!$H$5:$H$505,$B11,'05 Daten für SUMMEWENNS'!$J$5:$J$505,D$5) -> 0 | E11: =SUMIFS('05 Daten für SUMMEWENNS'!$E$5:$E$505,'05 Daten für SUMMEWENNS'!$H$5:$H$505,$B11,'05 Daten für SUMMEWENNS'!$J$5:$J$505,E$5) -> 0 | F11: =SUMIFS('05 Daten für SUMMEWENNS'!$E$5:$E$505,'05 Daten für SUMMEWENNS'!$H$5:$H$505,$B11,'05 Daten für SUMMEWENNS'!$J$5:$J$505,F$5) -> 0 | G11: =SUMIFS('05 Daten für SUMMEWENNS'!$E$5:$E$505,'05 Daten für SUMMEWENNS'!$H$5:$H$505,$B11,'05 Daten für SUMMEWENNS'!$J$5:$J$505,G$5) -> 0 | H11: =SUMIFS('05 Daten für SUMMEWENNS'!$E$5:$E$505,'05 Daten für SUMMEWENNS'!$H$5:$H$505,$B11,'05 Daten für SUMMEWENNS'!$J$5:$J$505,H$5) -> 0
B12: 6 | C12: =SUMIFS('05 Daten für SUMMEWENNS'!$E$5:$E$505,'05 Daten für SUMMEWENNS'!$H$5:$H$505,$B12,'05 Daten für SUMMEWENNS'!$J$5:$J$505,C$5) -> 0 | D12: =SUMIFS('05 Daten für SUMMEWENNS'!$E$5:$E$505,'05 Daten für SUMMEWENNS'!$H$5:$H$505,$B12,'05 Daten für SUMMEWENNS'!$J$5:$J$505,D$5) -> 0 | E12: =SUMIFS('05 Daten für SUMMEWENNS'!$E$5:$E$505,'05 Daten für SUMMEWENNS'!$H$5:$H$505,$B12,'05 Daten für SUMMEWENNS'!$J$5:$J$505,E$5) -> 0 | F12: =SUMIFS('05 Daten für SUMMEWENNS'!$E$5:$E$505,'05 Daten für SUMMEWENNS'!$H$5:$H$505,$B12,'05 Daten für SUMMEWENNS'!$J$5:$J$505,F$5) -> 0 | G12: =SUMIFS('05 Daten für SUMMEWENNS'!$E$5:$E$505,'05 Daten für SUMMEWENNS'!$H$5:$H$505,$B12,'05 Daten für SUMMEWENNS'!$J$5:$J$505,G$5) -> 0 | H12: =SUMIFS('05 Daten für SUMMEWENNS'!$E$5:$E$505,'05 Daten für SUMMEWENNS'!$H$5:$H$505,$B12,'05 Daten für SUMMEWENNS'!$J$5:$J$505,H$5) -> 0
B13: 7 | C13: =SUMIFS('05 Daten für SUMMEWENNS'!$E$5:$E$505,'05 Daten für SUMMEWENNS'!$H$5:$H$505,$B13,'05 Daten für SUMMEWENNS'!$J$5:$J$505,C$5) -> 0 | D13: =SUMIFS('05 Daten für SUMMEWENNS'!$E$5:$E$505,'05 Daten für SUMMEWENNS'!$H$5:$H$505,$B13,'05 Daten für SUMMEWENNS'!$J$5:$J$505,D$5) -> 0 | E13: =SUMIFS('05 Daten für SUMMEWENNS'!$E$5:$E$505,'05 Daten für SUMMEWENNS'!$H$5:$H$505,$B13,'05 Daten für SUMMEWENNS'!$J$5:$J$505,E$5) -> 0 | F13: =SUMIFS('05 Daten für SUMMEWENNS'!$E$5:$E$505,'05 Daten für SUMMEWENNS'!$H$5:$H$505,$B13,'05 Daten für SUMMEWENNS'!$J$5:$J$505,F$5) -> 0 | G13: =SUMIFS('05 Daten für SUMMEWENNS'!$E$5:$E$505,'05 Daten für SUMMEWENNS'!$H$5:$H$505,$B13,'05 Daten für SUMMEWENNS'!$J$5:$J$505,G$5) -> 0 | H13: =SUMIFS('05 Daten für SUMMEWENNS'!$E$5:$E$505,'05 Daten für SUMMEWENNS'!$H$5:$H$505,$B13,'05 Daten für SUMMEWENNS'!$J$5:$J$505,H$5) -> 0
B14: 8 | C14: =SUMIFS('05 Daten für SUMMEWENNS'!$E$5:$E$505,'05 Daten für SUMMEWENNS'!$H$5:$H$505,$B14,'05 Daten für SUMMEWENNS'!$J$5:$J$505,C$5) -> 0 | D14: =SUMIFS('05 Daten für SUMMEWENNS'!$E$5:$E$505,'05 Daten für SUMMEWENNS'!$H$5:$H$505,$B14,'05 Daten für SUMMEWENNS'!$J$5:$J$505,D$5) -> 0 | E14: =SUMIFS('05 Daten für SUMMEWENNS'!$E$5:$E$505,'05 Daten für SUMMEWENNS'!$H$5:$H$505,$B14,'05 Daten für SUMMEWENNS'!$J$5:$J$505,E$5) -> 0 | F14: =SUMIFS('05 Daten für SUMMEWENNS'!$E$5:$E$505,'05 Daten für SUMMEWENNS'!$H$5:$H$505,$B14,'05 Daten für SUMMEWENNS'!$J$5:$J$505,F$5) -> 0 | G14: =SUMIFS('05 Daten für SUMMEWENNS'!$E$5:$E$505,'05 Daten für SUMMEWENNS'!$H$5:$H$505,$B14,'05 Daten für SUMMEWENNS'!$J$5:$J$505,G$5) -> 0 | H14: =SUMIFS('05 Daten für SUMMEWENNS'!$E$5:$E$505,'05 Daten für SUMMEWENNS'!$H$5:$H$505,$B14,'05 Daten für SUMMEWENNS'!$J$5:$J$505,H$5) -> 0
B15: 9 | C15: =SUMIFS('05 Daten für SUMMEWENNS'!$E$5:$E$505,'05 Daten für SUMMEWENNS'!$H$5:$H$505,$B15,'05 Daten für SUMMEWENNS'!$J$5:$J$505,C$5) -> 0 | D15: =SUMIFS('05 Daten für SUMMEWENNS'!$E$5:$E$505,'05 Daten für SUMMEWENNS'!$H$5:$H$505,$B15,'05 Daten für SUMMEWENNS'!$J$5:$J$505,D$5) -> 0 | E15: =SUMIFS('05 Daten für SUMMEWENNS'!$E$5:$E$505,'05 Daten für SUMMEWENNS'!$H$5:$H$505,$B15,'05 Daten für SUMMEWENNS'!$J$5:$J$505,E$5) -> 0 | F15: =SUMIFS('05 Daten für SUMMEWENNS'!$E$5:$E$505,'05 Daten für SUMMEWENNS'!$H$5:$H$505,$B15,'05 Daten für SUMMEWENNS'!$J$5:$J$505,F$5) -> 2174.4 | G15: =SUMIFS('05 Daten für SUMMEWENNS'!$E$5:$E$505,'05 Daten für SUMMEWENNS'!$H$5:$H$505,$B15,'05 Daten für SUMMEWENNS'!$J$5:$J$505,G$5) -> 0 | H15: =SUMIFS('05 Daten für SUMMEWENNS'!$E$5:$E$505,'05 Daten für SUMMEWENNS'!$H$5:$H$505,$B15,'05 Daten für SUMMEWENNS'!$J$5:$J$505,H$5) -> 0
B16: 10 | C16: =SUMIFS('05 Daten für SUMMEWENNS'!$E$5:$E$505,'05 Daten für SUMMEWENNS'!$H$5:$H$505,$B16,'05 Daten für SUMMEWENNS'!$J$5:$J$505,C$5) -> 0 | D16: =SUMIFS('05 Daten für SUMMEWENNS'!$E$5:$E$505,'05 Daten für SUMMEWENNS'!$H$5:$H$505,$B16,'05 Daten für SUMMEWENNS'!$J$5:$J$505,D$5) -> 0 | E16: =SUMIFS('05 Daten für SUMMEWENNS'!$E$5:$E$505,'05 Daten für SUMMEWENNS'!$H$5:$H$505,$B16,'05 Daten für SUMMEWENNS'!$J$5:$J$505,E$5) -> 0 | F16: =SUMIFS('05 Daten für SUMMEWENNS'!$E$5:$E$505,'05 Daten für SUMMEWENNS'!$H$5:$H$505,$B16,'05 Daten für SUMMEWENNS'!$J$5:$J$505,F$5) -> 0 | G16: =SUMIFS('05 Daten für SUMMEWENNS'!$E$5:$E$505,'05 Daten für SUMMEWENNS'!$H$5:$H$505,$B16,'05 Daten für SUMMEWENNS'!$J$5:$J$505,G$5) -> 0 | H16: =SUMIFS('05 Daten für SUMMEWENNS'!$E$5:$E$505,'05 Daten für SUMMEWENNS'!$H$5:$H$505,$B16,'05 Daten für SUMMEWENNS'!$J$5:$J$505,H$5) -> 0
B17: 11 | C17: =SUMIFS('05 Daten für SUMMEWENNS'!$E$5:$E$505,'05 Daten für SUMMEWENNS'!$H$5:$H$505,$B17,'05 Daten für SUMMEWENNS'!$J$5:$J$505,C$5) -> 0 | D17: =SUMIFS('05 Daten für SUMMEWENNS'!$E$5:$E$505,'05 Daten für SUMMEWENNS'!$H$5:$H$505,$B17,'05 Daten für SUMMEWENNS'!$J$5:$J$505,D$5) -> 0 | E17: =SUMIFS('05 Daten für SUMMEWENNS'!$E$5:$E$505,'05 Daten für SUMMEWENNS'!$H$5:$H$505,$B17,'05 Daten für SUMMEWENNS'!$J$5:$J$505,E$5) -> 0 | F17: =SUMIFS('05 Daten für SUMMEWENNS'!$E$5:$E$505,'05 Daten für SUMMEWENNS'!$H$5:$H$505,$B17,'05 Daten für SUMMEWENNS'!$J$5:$J$505,F$5) -> 0 | G17: =SUMIFS('05 Daten für SUMMEWENNS'!$E$5:$E$505,'05 Daten für SUMMEWENNS'!$H$5:$H$505,$B17,'05 Daten für SUMMEWENNS'!$J$5:$J$505,G$5) -> 0 | H17: =SUMIFS('05 Daten für SUMMEWENNS'!$E$5:$E$505,'05 Daten für SUMMEWENNS'!$H$5:$H$505,$B17,'05 Daten für SUMMEWENNS'!$J$5:$J$505,H$5) -> 0 | J17: =_xlfn.FORMULATEXT(C7) -> =SUMIFS('05 Daten für SUMMEWENNS'!$E$5:$E$505,'05 Daten für SUMMEWENNS'!$H$5:$H$505,$B7,'05 Daten für SUMMEWENNS'!$J$5:$J$505,C$5)
B18: 12 | C18: =SUMIFS('05 Daten für SUMMEWENNS'!$E$5:$E$505,'05 Daten für SUMMEWENNS'!$H$5:$H$505,$B18,'05 Daten für SUMMEWENNS'!$J$5:$J$505,C$5) -> 0 | D18: =SUMIFS('05 Daten für SUMMEWENNS'!$E$5:$E$505,'05 Daten für SUMMEWENNS'!$H$5:$H$505,$B18,'05 Daten für SUMMEWENNS'!$J$5:$J$505,D$5) -> 0 | E18: =SUMIFS('05 Daten für SUMMEWENNS'!$E$5:$E$505,'05 Daten für SUMMEWENNS'!$H$5:$H$505,$B18,'05 Daten für SUMMEWENNS'!$J$5:$J$505,E$5) -> 0 | F18: =SUMIFS('05 Daten für SUMMEWENNS'!$E$5:$E$505,'05 Daten für SUMMEWENNS'!$H$5:$H$505,$B18,'05 Daten für SUMMEWENNS'!$J$5:$J$505,F$5) -> 0 | G18: =SUMIFS('05 Daten für SUMMEWENNS'!$E$5:$E$505,'05 Daten für SUMMEWENNS'!$H$5:$H$505,$B18,'05 Daten für SUMMEWENNS'!$J$5:$J$505,G$5) -> 0 | H18: =SUMIFS('05 Daten für SUMMEWENNS'!$E$5:$E$505,'05 Daten für SUMMEWENNS'!$H$5:$H$505,$B18,'05 Daten für SUMMEWENNS'!$J$5:$J$505,H$5) -> 0
B19: 13 | C19: =SUMIFS('05 Daten für SUMMEWENNS'!$E$5:$E$505,'05 Daten für SUMMEWENNS'!$H$5:$H$505,$B19,'05 Daten für SUMMEWENNS'!$J$5:$J$505,C$5) -> 0 | D19: =SUMIFS('05 Daten für SUMMEWENNS'!$E$5:$E$505,'05 Daten für SUMMEWENNS'!$H$5:$H$505,$B19,'05 Daten für SUMMEWENNS'!$J$5:$J$505,D$5) -> 0 | E19: =SUMIFS('05 Daten für SUMMEWENNS'!$E$5:$E$505,'05 Daten für SUMMEWENNS'!$H$5:$H$505,$B19,'05 Daten für SUMMEWENNS'!$J$5:$J$505,E$5) -> 0 | F19: =SUMIFS('05 Daten für SUMMEWENNS'!$E$5:$E$505,'05 Daten für SUMMEWENNS'!$H$5:$H$505,$B19,'05 Daten für SUMMEWENNS'!$J$5:$J$505,F$5) -> 0 | G19: =SUMIFS('05 Daten für SUMMEWENNS'!$E$5:$E$505,'05 Daten für SUMMEWENNS'!$H$5:$H$505,$B19,'05 Daten für SUMMEWENNS'!$J$5:$J$505,G$5) -> 0 | H19: =SUMIFS('05 Daten für SUMMEWENNS'!$E$5:$E$505,'05 Daten für SUMMEWENNS'!$H$5:$H$505,$B19,'05 Daten für SUMMEWENNS'!$J$5:$J$505,H$5) -> 0
B20: 14 | C20: =SUMIFS('05 Daten für SUMMEWENNS'!$E$5:$E$505,'05 Daten für SUMMEWENNS'!$H$5:$H$505,$B20,'05 Daten für SUMMEWENNS'!$J$5:$J$505,C$5) -> 0 | D20: =SUMIFS('05 Daten für SUMMEWENNS'!$E$5:$E$505,'05 Daten für SUMMEWENNS'!$H$5:$H$505,$B20,'05 Daten für SUMMEWENNS'!$J$5:$J$505,D$5) -> 0 | E20: =SUMIFS('05 Daten für SUMMEWENNS'!$E$5:$E$505,'05 Daten für SUMMEWENNS'!$H$5:$H$505,$B20,'05 Daten für SUMMEWENNS'!$J$5:$J$505,E$5) -> 0 | F20: =SUMIFS('05 Daten für SUMMEWENNS'!$E$5:$E$505,'05 Daten für SUMMEWENNS'!$H$5:$H$505,$B20,'05 Daten für SUMMEWENNS'!$J$5:$J$505,F$5) -> 0 | G20: =SUMIFS('05 Daten für SUMMEWENNS'!$E$5:$E$505,'05 Daten für SUMMEWENNS'!$H$5:$H$505,$B20,'05 Daten für SUMMEWENNS'!$J$5:$J$505,G$5) -> 0 | H20: =SUMIFS('05 Daten für SUMMEWENNS'!$E$5:$E$505,'05 Daten für SUMMEWENNS'!$H$5:$H$505,$B20,'05 Daten für SUMMEWENNS'!$J$5:$J$505,H$5) -> 0
B21: 15 | C21: =SUMIFS('05 Daten für SUMMEWENNS'!$E$5:$E$505,'05 Daten für SUMMEWENNS'!$H$5:$H$505,$B21,'05 Daten für SUMMEWENNS'!$J$5:$J$505,C$5) -> 0 | D21: =SUMIFS('05 Daten für SUMMEWENNS'!$E$5:$E$505,'05 Daten für SUMMEWENNS'!$H$5:$H$505,$B21,'05 Daten für SUMMEWENNS'!$J$5:$J$505,D$5) -> 0 | E21: =SUMIFS('05 Daten für SUMMEWENNS'!$E$5:$E$505,'05 Daten für SUMMEWENNS'!$H$5:$H$505,$B21,'05 Daten für SUMMEWENNS'!$J$5:$J$505,E$5) -> 0 | F21: =SUMIFS('05 Daten für SUMMEWENNS'!$E$5:$E$505,'05 Daten für SUMMEWENNS'!$H$5:$H$505,$B21,'05 Daten für SUMMEWENNS'!$J$5:$J$505,F$5) -> 0 | G21: =SUMIFS('05 Daten für SUMMEWENNS'!$E$5:$E$505,'05 Daten für SUMMEWENNS'!$H$5:$H$505,$B21,'05 Daten für SUMMEWENNS'!$J$5:$J$505,G$5) -> 0 | H21: =SUMIFS('05 Daten für SUMMEWENNS'!$E$5:$E$505,'05 Daten für SUMMEWENNS'!$H$5:$H$505,$B21,'05 Daten für SUMMEWENNS'!$J$5:$J$505,H$5) -> 0
B22: 16 | C22: =SUMIFS('05 Daten für SUMMEWENNS'!$E$5:$E$505,'05 Daten für SUMMEWENNS'!$H$5:$H$505,$B22,'05 Daten für SUMMEWENNS'!$J$5:$J$505,C$5) -> 0 | D22: =SUMIFS('05 Daten für SUMMEWENNS'!$E$5:$E$505,'05 Daten für SUMMEWENNS'!$H$5:$H$505,$B22,'05 Daten für SUMMEWENNS'!$J$5:$J$505,D$5) -> 0 | E22: =SUMIFS('05 Daten für SUMMEWENNS'!$E$5:$E$505,'05 Daten für SUMMEWENNS'!$H$5:$H$505,$B22,'05 Daten für SUMMEWENNS'!$J$5:$J$505,E$5) -> 0 | F22: =SUMIFS('05 Daten für SUMMEWENNS'!$E$5:$E$505,'05 Daten für SUMMEWENNS'!$H$5:$H$505,$B22,'05 Daten für SUMMEWENNS'!$J$5:$J$505,F$5) -> 0 | G22: =SUMIFS('05 Daten für SUMMEWENNS'!$E$5:$E$505,'05 Daten für SUMMEWENNS'!$H$5:$H$505,$B22,'05 Daten für SUMMEWENNS'!$J$5:$J$505,G$5) -> 0 | H22: =SUMIFS('05 Daten für SUMMEWENNS'!$E$5:$E$505,'05 Daten für SUMMEWENNS'!$H$5:$H$505,$B22,'05 Daten für SUMMEWENNS'!$J$5:$J$505,H$5) -> 0
B23: 17 | C23: =SUMIFS('05 Daten für SUMMEWENNS'!$E$5:$E$505,'05 Daten für SUMMEWENNS'!$H$5:$H$505,$B23,'05 Daten für SUMMEWENNS'!$J$5:$J$505,C$5) -> 0 | D23: =SUMIFS('05 Daten für SUMMEWENNS'!$E$5:$E$505,'05 Daten für SUMMEWENNS'!$H$5:$H$505,$B23,'05 Daten für SUMMEWENNS'!$J$5:$J$505,D$5) -> 0 | E23: =SUMIFS('05 Daten für SUMMEWENNS'!$E$5:$E$505,'05 Daten für SUMMEWENNS'!$H$5:$H$505,$B23,'05 Daten für SUMMEWENNS'!$J$5:$J$505,E$5) -> 0 | F23: =SUMIFS('05 Daten für SUMMEWENNS'!$E$5:$E$505,'05 Daten für SUMMEWENNS'!$H$5:$H$505,$B23,'05 Daten für SUMMEWENNS'!$J$5:$J$505,F$5) -> 0 | G23: =SUMIFS('05 Daten für SUMMEWENNS'!$E$5:$E$505,'05 Daten für SUMMEWENNS'!$H$5:$H$505,$B23,'05 Daten für SUMMEWENNS'!$J$5:$J$505,G$5) -> 0 | H23: =SUMIFS('05 Daten für SUMMEWENNS'!$E$5:$E$505,'05 Daten für SUMMEWENNS'!$H$5:$H$505,$B23,'05 Daten für SUMMEWENNS'!$J$5:$J$505,H$5) -> 0
B24: 18 | C24: =SUMIFS('05 Daten für SUMMEWENNS'!$E$5:$E$505,'05 Daten für SUMMEWENNS'!$H$5:$H$505,$B24,'05 Daten für SUMMEWENNS'!$J$5:$J$505,C$5) -> 0 | D24: =SUMIFS('05 Daten für SUMMEWENNS'!$E$5:$E$505,'05 Daten für SUMMEWENNS'!$H$5:$H$505,$B24,'05 Daten für SUMMEWENNS'!$J$5:$J$505,D$5) -> 0 | E24: =SUMIFS('05 Daten für SUMMEWENNS'!$E$5:$E$505,'05 Daten für SUMMEWENNS'!$H$5:$H$505,$B24,'05 Daten für SUMMEWENNS'!$J$5:$J$505,E$5) -> 0 | F24: =SUMIFS('05 Daten für SUMMEWENNS'!$E$5:$E$505,'05 Daten für SUMMEWENNS'!$H$5:$H$505,$B24,'05 Daten für SUMMEWENNS'!$J$5:$J$505,F$5) -> 0 | G24: =SUMIFS('05 Daten für SUMMEWENNS'!$E$5:$E$505,'05 Daten für SUMMEWENNS'!$H$5:$H$505,$B24,'05 Daten für SUMMEWENNS'!$J$5:$J$505,G$5) -> 0 | H24: =SUMIFS('05 Daten für SUMMEWENNS'!$E$5:$E$505,'05 Daten für SUMMEWENNS'!$H$5:$H$505,$B24,'05 Daten für SUMMEWENNS'!$J$5:$J$505,H$5) -> 0
B25: 19 | C25: =SUMIFS('05 Daten für SUMMEWENNS'!$E$5:$E$505,'05 Daten für SUMMEWENNS'!$H$5:$H$505,$B25,'05 Daten für SUMMEWENNS'!$J$5:$J$505,C$5) -> 0 | D25: =SUMIFS('05 Daten für SUMMEWENNS'!$E$5:$E$505,'05 Daten für SUMMEWENNS'!$H$5:$H$505,$B25,'05 Daten für SUMMEWENNS'!$J$5:$J$505,D$5) -> 0 | E25: =SUMIFS('05 Daten für SUMMEWENNS'!$E$5:$E$505,'05 Daten für SUMMEWENNS'!$H$5:$H$505,$B25,'05 Daten für SUMMEWENNS'!$J$5:$J$505,E$5) -> 0 | F25: =SUMIFS('05 Daten für SUMMEWENNS'!$E$5:$E$505,'05 Daten für SUMMEWENNS'!$H$5:$H$505,$B25,'05 Daten für SUMMEWENNS'!$J$5:$J$505,F$5) -> 0 | G25: =SUMIFS('05 Daten für SUMMEWENNS'!$E$5:$E$505,'05 Daten für SUMMEWENNS'!$H$5:$H$505,$B25,'05 Daten für SUMMEWENNS'!$J$5:$J$505,G$5) -> 0 | H25: =SUMIFS('05 Daten für SUMMEWENNS'!$E$5:$E$505,'05 Daten für SUMMEWENNS'!$H$5:$H$505,$B25,'05 Daten für SUMMEWENNS'!$J$5:$J$505,H$5) -> 0
B26: 20 | C26: =SUMIFS('05 Daten für SUMMEWENNS'!$E$5:$E$505,'05 Daten für SUMMEWENNS'!$H$5:$H$505,$B26,'05 Daten für SUMMEWENNS'!$J$5:$J$505,C$5) -> 0 | D26: =SUMIFS('05 Daten für SUMMEWENNS'!$E$5:$E$505,'05 Daten für SUMMEWENNS'!$H$5:$H$505,$B26,'05 Daten für SUMMEWENNS'!$J$5:$J$505,D$5) -> 0 | E26: =SUMIFS('05 Daten für SUMMEWENNS'!$E$5:$E$505,'05 Daten für SUMMEWENNS'!$H$5:$H$505,$B26,'05 Daten für SUMMEWENNS'!$J$5:$J$505,E$5) -> 0 | F26: =SUMIFS('05 Daten für SUMMEWENNS'!$E$5:$E$505,'05 Daten für SUMMEWENNS'!$H$5:$H$505,$B26,'05 Daten für SUMMEWENNS'!$J$5:$J$505,F$5) -> 0 | G26: =SUMIFS('05 Daten für SUMMEWENNS'!$E$5:$E$505,'05 Daten für SUMMEWENNS'!$H$5:$H$505,$B26,'05 Daten für SUMMEWENNS'!$J$5:$J$505,G$5) -> 0 | H26: =SUMIFS('05 Daten für SUMMEWENNS'!$E$5:$E$505,'05 Daten für SUMMEWENNS'!$H$5:$H$505,$B26,'05 Daten für SUMMEWENNS'!$J$5:$J$505,H$5) -> 0
B27: 21 | C27: =SUMIFS('05 Daten für SUMMEWENNS'!$E$5:$E$505,'05 Daten für SUMMEWENNS'!$H$5:$H$505,$B27,'05 Daten für SUMMEWENNS'!$J$5:$J$505,C$5) -> 0 | D27: =SUMIFS('05 Daten für SUMMEWENNS'!$E$5:$E$505,'05 Daten für SUMMEWENNS'!$H$5:$H$505,$B27,'05 Daten für SUMMEWENNS'!$J$5:$J$505,D$5) -> 0 | E27: =SUMIFS('05 Daten für SUMMEWENNS'!$E$5:$E$505,'05 Daten für SUMMEWENNS'!$H$5:$H$505,$B27,'05 Daten für SUMMEWENNS'!$J$5:$J$505,E$5) -> 0 | F27: =SUMIFS('05 Daten für SUMMEWENNS'!$E$5:$E$505,'05 Daten für SUMMEWENNS'!$H$5:$H$505,$B27,'05 Daten für SUMMEWENNS'!$J$5:$J$505,F$5) -> 0 | G27: =SUMIFS('05 Daten für SUMMEWENNS'!$E$5:$E$505,'05 Daten für SUMMEWENNS'!$H$5:$H$505,$B27,'05 Daten für SUMMEWENNS'!$J$5:$J$505,G$5) -> 0 | H27: =SUMIFS('05 Daten für SUMMEWENNS'!$E$5:$E$505,'05 Daten für SUMMEWENNS'!$H$5:$H$505,$B27,'05 Daten für SUMMEWENNS'!$J$5:$J$505,H$5) -> 0
B28: 22 | C28: =SUMIFS('05 Daten für SUMMEWENNS'!$E$5:$E$505,'05 Daten für SUMMEWENNS'!$H$5:$H$505,$B28,'05 Daten für SUMMEWENNS'!$J$5:$J$505,C$5) -> 0 | D28: =SUMIFS('05 Daten für SUMMEWENNS'!$E$5:$E$505,'05 Daten für SUMMEWENNS'!$H$5:$H$505,$B28,'05 Daten für SUMMEWENNS'!$J$5:$J$505,D$5) -> 0 | E28: =SUMIFS('05 Daten für SUMMEWENNS'!$E$5:$E$505,'05 Daten für SUMMEWENNS'!$H$5:$H$505,$B28,'05 Daten für SUMMEWENNS'!$J$5:$J$505,E$5) -> 0 | F28: =SUMIFS('05 Daten für SUMMEWENNS'!$E$5:$E$505,'05 Daten für SUMMEWENNS'!$H$5:$H$505,$B28,'05 Daten für SUMMEWENNS'!$J$5:$J$505,F$5) -> 0 | G28: =SUMIFS('05 Daten für SUMMEWENNS'!$E$5:$E$505,'05 Daten für SUMMEWENNS'!$H$5:$H$505,$B28,'05 Daten für SUMMEWENNS'!$J$5:$J$505,G$5) -> 0 | H28: =SUMIFS('05 Daten für SUMMEWENNS'!$E$5:$E$505,'05 Daten für SUMMEWENNS'!$H$5:$H$505,$B28,'05 Daten für SUMMEWENNS'!$J$5:$J$505,H$5) -> 0
B29: 23 | C29: =SUMIFS('05 Daten für SUMMEWENNS'!$E$5:$E$505,'05 Daten für SUMMEWENNS'!$H$5:$H$505,$B29,'05 Daten für SUMMEWENNS'!$J$5:$J$505,C$5) -> 0 | D29: =SUMIFS('05 Daten für SUMMEWENNS'!$E$5:$E$505,'05 Daten für SUMMEWENNS'!$H$5:$H$505,$B29,'05 Daten für SUMMEWENNS'!$J$5:$J$505,D$5) -> 0 | E29: =SUMIFS('05 Daten für SUMMEWENNS'!$E$5:$E$505,'05 Daten für SUMMEWENNS'!$H$5:$H$505,$B29,'05 Daten für SUMMEWENNS'!$J$5:$J$505,E$5) -> 0 | F29: =SUMIFS('05 Daten für SUMMEWENNS'!$E$5:$E$505,'05 Daten für SUMMEWENNS'!$H$5:$H$505,$B29,'05 Daten für SUMMEWENNS'!$J$5:$J$505,F$5) -> 0 | G29: =SUMIFS('05 Daten für SUMMEWENNS'!$E$5:$E$505,'05 Daten für SUMMEWENNS'!$H$5:$H$505,$B29,'05 Daten für SUMMEWENNS'!$J$5:$J$505,G$5) -> 0 | H29: =SUMIFS('05 Daten für SUMMEWENNS'!$E$5:$E$505,'05 Daten für SUMMEWENNS'!$H$5:$H$505,$B29,'05 Daten für SUMMEWENNS'!$J$5:$J$505,H$5) -> 0
B30: 24 | C30: =SUMIFS('05 Daten für SUMMEWENNS'!$E$5:$E$505,'05 Daten für SUMMEWENNS'!$H$5:$H$505,$B30,'05 Daten für SUMMEWENNS'!$J$5:$J$505,C$5) -> 0 | D30: =SUMIFS('05 Daten für SUMMEWENNS'!$E$5:$E$505,'05 Daten für SUMMEWENNS'!$H$5:$H$505,$B30,'05 Daten für SUMMEWENNS'!$J$5:$J$505,D$5) -> 0 | E30: =SUMIFS('05 Daten für SUMMEWENNS'!$E$5:$E$505,'05 Daten für SUMMEWENNS'!$H$5:$H$505,$B30,'05 Daten für SUMMEWENNS'!$J$5:$J$505,E$5) -> 0 | F30: =SUMIFS('05 Daten für SUMMEWENNS'!$E$5:$E$505,'05 Daten für SUMMEWENNS'!$H$5:$H$505,$B30,'05 Daten für SUMMEWENNS'!$J$5:$J$505,F$5) -> 0 | G30: =SUMIFS('05 Daten für SUMMEWENNS'!$E$5:$E$505,'05 Daten für SUMMEWENNS'!$H$5:$H$505,$B30,'05 Daten für SUMMEWENNS'!$J$5:$J$505,G$5) -> 0 | H30: =SUMIFS('05 Daten für SUMMEWENNS'!$E$5:$E$505,'05 Daten für SUMMEWENNS'!$H$5:$H$505,$B30,'05 Daten für SUMMEWENNS'!$J$5:$J$505,H$5) -> 0
B31: 25 | C31: =SUMIFS('05 Daten für SUMMEWENNS'!$E$5:$E$505,'05 Daten für SUMMEWENNS'!$H$5:$H$505,$B31,'05 Daten für SUMMEWENNS'!$J$5:$J$505,C$5) -> 0 | D31: =SUMIFS('05 Daten für SUMMEWENNS'!$E$5:$E$505,'05 Daten für SUMMEWENNS'!$H$5:$H$505,$B31,'05 Daten für SUMMEWENNS'!$J$5:$J$505,D$5) -> 0 | E31: =SUMIFS('05 Daten für SUMMEWENNS'!$E$5:$E$505,'05 Daten für SUMMEWENNS'!$H$5:$H$505,$B31,'05 Daten für SUMMEWENNS'!$J$5:$J$505,E$5) -> 0 | F31: =SUMIFS('05 Daten für SUMMEWENNS'!$E$5:$E$505,'05 Daten für SUMMEWENNS'!$H$5:$H$505,$B31,'05 Daten für SUMMEWENNS'!$J$5:$J$505,F$5) -> 0 | G31: =SUMIFS('05 Daten für SUMMEWENNS'!$E$5:$E$505,'05 Daten für SUMMEWENNS'!$H$5:$H$505,$B31,'05 Daten für SUMMEWENNS'!$J$5:$J$505,G$5) -> 0 | H31: =SUMIFS('05 Daten für SUMMEWENNS'!$E$5:$E$505,'05 Daten für SUMMEWENNS'!$H$5:$H$505,$B31,'05 Daten für SUMMEWENNS'!$J$5:$J$505,H$5) -> 0
B32: 26 | C32: =SUMIFS('05 Daten für SUMMEWENNS'!$E$5:$E$505,'05 Daten für SUMMEWENNS'!$H$5:$H$505,$B32,'05 Daten für SUMMEWENNS'!$J$5:$J$505,C$5) -> 0 | D32: =SUMIFS('05 Daten für SUMMEWENNS'!$E$5:$E$505,'05 Daten für SUMMEWENNS'!$H$5:$H$505,$B32,'05 Daten für SUMMEWENNS'!$J$5:$J$505,D$5) -> 0 | E32: =SUMIFS('05 Daten für SUMMEWENNS'!$E$5:$E$505,'05 Daten für SUMMEWENNS'!$H$5:$H$505,$B32,'05 Daten für SUMMEWENNS'!$J$5:$J$505,E$5) -> 0 | F32: =SUMIFS('05 Daten für SUMMEWENNS'!$E$5:$E$505,'05 Daten für SUMMEWENNS'!$H$5:$H$505,$B32,'05 Daten für SUMMEWENNS'!$J$5:$J$505,F$5) -> 0 | G32: =SUMIFS('05 Daten für SUMMEWENNS'!$E$5:$E$505,'05 Daten für SUMMEWENNS'!$H$5:$H$505,$B32,'05 Daten für SUMMEWENNS'!$J$5:$J$505,G$5) -> 0 | H32: =SUMIFS('05 Daten für SUMMEWENNS'!$E$5:$E$505,'05 Daten für SUMMEWENNS'!$H$5:$H$505,$B32,'05 Daten für SUMMEWENNS'!$J$5:$J$505,H$5) -> 0
B33: 27 | C33: =SUMIFS('05 Daten für SUMMEWENNS'!$E$5:$E$505,'05 Daten für SUMMEWENNS'!$H$5:$H$505,$B33,'05 Daten für SUMMEWENNS'!$J$5:$J$505,C$5) -> 0 | D33: =SUMIFS('05 Daten für SUMMEWENNS'!$E$5:$E$505,'05 Daten für SUMMEWENNS'!$H$5:$H$505,$B33,'05 Daten für SUMMEWENNS'!$J$5:$J$505,D$5) -> 0 | E33: =SUMIFS('05 Daten für SUMMEWENNS'!$E$5:$E$505,'05 Daten für SUMMEWENNS'!$H$5:$H$505,$B33,'05 Daten für SUMMEWENNS'!$J$5:$J$505,E$5) -> 0 | F33: =SUMIFS('05 Daten für SUMMEWENNS'!$E$5:$E$505,'05 Daten für SUMMEWENNS'!$H$5:$H$505,$B33,'05 Daten für SUMMEWENNS'!$J$5:$J$505,F$5) -> 0 | G33: =SUMIFS('05 Daten für SUMMEWENNS'!$E$5:$E$505,'05 Daten für SUMMEWENNS'!$H$5:$H$505,$B33,'05 Daten für SUMMEWENNS'!$J$5:$J$505,G$5) -> 0 | H33: =SUMIFS('05 Daten für SUMMEWENNS'!$E$5:$E$505,'05 Daten für SUMMEWENNS'!$H$5:$H$505,$B33,'05 Daten für SUMMEWENNS'!$J$5:$J$505,H$5) -> 0
B34: 28 | C34: =SUMIFS('05 Daten für SUMMEWENNS'!$E$5:$E$505,'05 Daten für SUMMEWENNS'!$H$5:$H$505,$B34,'05 Daten für SUMMEWENNS'!$J$5:$J$505,C$5) -> 0 | D34: =SUMIFS('05 Daten für SUMMEWENNS'!$E$5:$E$505,'05 Daten für SUMMEWENNS'!$H$5:$H$505,$B34,'05 Daten für SUMMEWENNS'!$J$5:$J$505,D$5) -> 0 | E34: =SUMIFS('05 Daten für SUMMEWENNS'!$E$5:$E$505,'05 Daten für SUMMEWENNS'!$H$5:$H$505,$B34,'05 Daten für SUMMEWENNS'!$J$5:$J$505,E$5) -> 0 | F34: =SUMIFS('05 Daten für SUMMEWENNS'!$E$5:$E$505,'05 Daten für SUMMEWENNS'!$H$5:$H$505,$B34,'05 Daten für SUMMEWENNS'!$J$5:$J$505,F$5) -> 0 | G34: =SUMIFS('05 Daten für SUMMEWENNS'!$E$5:$E$505,'05 Daten für SUMMEWENNS'!$H$5:$H$505,$B34,'05 Daten für SUMMEWENNS'!$J$5:$J$505,G$5) -> 0 | H34: =SUMIFS('05 Daten für SUMMEWENNS'!$E$5:$E$505,'05 Daten für SUMMEWENNS'!$H$5:$H$505,$B34,'05 Daten für SUMMEWENNS'!$J$5:$J$505,H$5) -> 0
B35: 29 | C35: =SUMIFS('05 Daten für SUMMEWENNS'!$E$5:$E$505,'05 Daten für SUMMEWENNS'!$H$5:$H$505,$B35,'05 Daten für SUMMEWENNS'!$J$5:$J$505,C$5) -> 0 | D35: =SUMIFS('05 Daten für SUMMEWENNS'!$E$5:$E$505,'05 Daten für SUMMEWENNS'!$H$5:$H$505,$B35,'05 Daten für SUMMEWENNS'!$J$5:$J$505,D$5) -> 0 | E35: =SUMIFS('05 Daten für SUMMEWENNS'!$E$5:$E$505,'05 Daten für SUMMEWENNS'!$H$5:$H$505,$B35,'05 Daten für SUMMEWENNS'!$J$5:$J$505,E$5) -> 0 | F35: =SUMIFS('05 Daten für SUMMEWENNS'!$E$5:$E$505,'05 Daten für SUMMEWENNS'!$H$5:$H$505,$B35,'05 Daten für SUMMEWENNS'!$J$5:$J$505,F$5) -> 0 | G35: =SUMIFS('05 Daten für SUMMEWENNS'!$E$5:$E$505,'05 Daten für SUMMEWENNS'!$H$5:$H$505,$B35,'05 Daten für SUMMEWENNS'!$J$5:$J$505,G$5) -> 0 | H35: =SUMIFS('05 Daten für SUMMEWENNS'!$E$5:$E$505,'05 Daten für SUMMEWENNS'!$H$5:$H$505,$B35,'05 Daten für SUMMEWENNS'!$J$5:$J$505,H$5) -> 0
B36: 30 | C36: =SUMIFS('05 Daten für SUMMEWENNS'!$E$5:$E$505,'05 Daten für SUMMEWENNS'!$H$5:$H$505,$B36,'05 Daten für SUMMEWENNS'!$J$5:$J$505,C$5) -> 0 | D36: =SUMIFS('05 Daten für SUMMEWENNS'!$E$5:$E$505,'05 Daten für SUMMEWENNS'!$H$5:$H$505,$B36,'05 Daten für SUMMEWENNS'!$J$5:$J$505,D$5) -> 0 | E36: =SUMIFS('05 Daten für SUMMEWENNS'!$E$5:$E$505,'05 Daten für SUMMEWENNS'!$H$5:$H$505,$B36,'05 Daten für SUMMEWENNS'!$J$5:$J$505,E$5) -> 0 | F36: =SUMIFS('05 Daten für SUMMEWENNS'!$E$5:$E$505,'05 Daten für SUMMEWENNS'!$H$5:$H$505,$B36,'05 Daten für SUMMEWENNS'!$J$5:$J$505,F$5) -> 0 | G36: =SUMIFS('05 Daten für SUMMEWENNS'!$E$5:$E$505,'05 Daten für SUMMEWENNS'!$H$5:$H$505,$B36,'05 Daten für SUMMEWENNS'!$J$5:$J$505,G$5) -> 0 | H36: =SUMIFS('05 Daten für SUMMEWENNS'!$E$5:$E$505,'05 Daten für SUMMEWENNS'!$H$5:$H$505,$B36,'05 Daten für SUMMEWENNS'!$J$5:$J$505,H$5) -> 0
B37: 31 | C37: =SUMIFS('05 Daten für SUMMEWENNS'!$E$5:$E$505,'05 Daten für SUMMEWENNS'!$H$5:$H$505,$B37,'05 Daten für SUMMEWENNS'!$J$5:$J$505,C$5) -> 0 | D37: =SUMIFS('05 Daten für SUMMEWENNS'!$E$5:$E$505,'05 Daten für SUMMEWENNS'!$H$5:$H$505,$B37,'05 Daten für SUMMEWENNS'!$J$5:$J$505,D$5) -> 0 | E37: =SUMIFS('05 Daten für SUMMEWENNS'!$E$5:$E$505,'05 Daten für SUMMEWENNS'!$H$5:$H$505,$B37,'05 Daten für SUMMEWENNS'!$J$5:$J$505,E$5) -> 0 | F37: =SUMIFS('05 Daten für SUMMEWENNS'!$E$5:$E$505,'05 Daten für SUMMEWENNS'!$H$5:$H$505,$B37,'05 Daten für SUMMEWENNS'!$J$5:$J$505,F$5) -> 0 | G37: =SUMIFS('05 Daten für SUMMEWENNS'!$E$5:$E$505,'05 Daten für SUMMEWENNS'!$H$5:$H$505,$B37,'05 Daten für SUMMEWENNS'!$J$5:$J$505,G$5) -> 0 | H37: =SUMIFS('05 Daten für SUMMEWENNS'!$E$5:$E$505,'05 Daten für SUMMEWENNS'!$H$5:$H$505,$B37,'05 Daten für SUMMEWENNS'!$J$5:$J$505,H$5) -> 0
B38: 32 | C38: =SUMIFS('05 Daten für SUMMEWENNS'!$E$5:$E$505,'05 Daten für SUMMEWENNS'!$H$5:$H$505,$B38,'05 Daten für SUMMEWENNS'!$J$5:$J$505,C$5) -> 0 | D38: =SUMIFS('05 Daten für SUMMEWENNS'!$E$5:$E$505,'05 Daten für SUMMEWENNS'!$H$5:$H$505,$B38,'05 Daten für SUMMEWENNS'!$J$5:$J$505,D$5) -> 0 | E38: =SUMIFS('05 Daten für SUMMEWENNS'!$E$5:$E$505,'05 Daten für SUMMEWENNS'!$H$5:$H$505,$B38,'05 Daten für SUMMEWENNS'!$J$5:$J$505,E$5) -> 0 | F38: =SUMIFS('05 Daten für SUMMEWENNS'!$E$5:$E$505,'05 Daten für SUMMEWENNS'!$H$5:$H$505,$B38,'05 Daten für SUMMEWENNS'!$J$5:$J$505,F$5) -> 0 | G38: =SUMIFS('05 Daten für SUMMEWENNS'!$E$5:$E$505,'05 Daten für SUMMEWENNS'!$H$5:$H$505,$B38,'05 Daten für SUMMEWENNS'!$J$5:$J$505,G$5) -> 0 | H38: =SUMIFS('05 Daten für SUMMEWENNS'!$E$5:$E$505,'05 Daten für SUMMEWENNS'!$H$5:$H$505,$B38,'05 Daten für SUMMEWENNS'!$J$5:$J$505,H$5) -> 0
B39: 33 | C39: =SUMIFS('05 Daten für SUMMEWENNS'!$E$5:$E$505,'05 Daten für SUMMEWENNS'!$H$5:$H$505,$B39,'05 Daten für SUMMEWENNS'!$J$5:$J$505,C$5) -> 0 | D39: =SUMIFS('05 Daten für SUMMEWENNS'!$E$5:$E$505,'05 Daten für SUMMEWENNS'!$H$5:$H$505,$B39,'05 Daten für SUMMEWENNS'!$J$5:$J$505,D$5) -> 0 | E39: =SUMIFS('05 Daten für SUMMEWENNS'!$E$5:$E$505,'05 Daten für SUMMEWENNS'!$H$5:$H$505,$B39,'05 Daten für SUMMEWENNS'!$J$5:$J$505,E$5) -> 0 | F39: =SUMIFS('05 Daten für SUMMEWENNS'!$E$5:$E$505,'05 Daten für SUMMEWENNS'!$H$5:$H$505,$B39,'05 Daten für SUMMEWENNS'!$J$5:$J$505,F$5) -> 0 | G39: =SUMIFS('05 Daten für SUMMEWENNS'!$E$5:$E$505,'05 Daten für SUMMEWENNS'!$H$5:$H$505,$B39,'05 Daten für SUMMEWENNS'!$J$5:$J$505,G$5) -> 0 | H39: =SUMIFS('05 Daten für SUMMEWENNS'!$E$5:$E$505,'05 Daten für SUMMEWENNS'!$H$5:$H$505,$B39,'05 Daten für SUMMEWENNS'!$J$5:$J$505,H$5) -> 0
B40: 34 | C40: =SUMIFS('05 Daten für SUMMEWENNS'!$E$5:$E$505,'05 Daten für SUMMEWENNS'!$H$5:$H$505,$B40,'05 Daten für SUMMEWENNS'!$J$5:$J$505,C$5) -> 0 | D40: =SUMIFS('05 Daten für SUMMEWENNS'!$E$5:$E$505,'05 Daten für SUMMEWENNS'!$H$5:$H$505,$B40,'05 Daten für SUMMEWENNS'!$J$5:$J$505,D$5) -> 0 | E40: =SUMIFS('05 Daten für SUMMEWENNS'!$E$5:$E$505,'05 Daten für SUMMEWENNS'!$H$5:$H$505,$B40,'05 Daten für SUMMEWENNS'!$J$5:$J$505,E$5) -> 0 | F40: =SUMIFS('05 Daten für SUMMEWENNS'!$E$5:$E$505,'05 Daten für SUMMEWENNS'!$H$5:$H$505,$B40,'05 Daten für SUMMEWENNS'!$J$5:$J$505,F$5) -> 0 | G40: =SUMIFS('05 Daten für SUMMEWENNS'!$E$5:$E$505,'05 Daten für SUMMEWENNS'!$H$5:$H$505,$B40,'05 Daten für SUMMEWENNS'!$J$5:$J$505,G$5) -> 0 | H40: =SUMIFS('05 Daten für SUMMEWENNS'!$E$5:$E$505,'05 Daten für SUMMEWENNS'!$H$5:$H$505,$B40,'05 Daten für SUMMEWENNS'!$J$5:$J$505,H$5) -> 0
B41: 35 | C41: =SUMIFS('05 Daten für SUMMEWENNS'!$E$5:$E$505,'05 Daten für SUMMEWENNS'!$H$5:$H$505,$B41,'05 Daten für SUMMEWENNS'!$J$5:$J$505,C$5) -> 0 | D41: =SUMIFS('05 Daten für SUMMEWENNS'!$E$5:$E$505,'05 Daten für SUMMEWENNS'!$H$5:$H$505,$B41,'05 Daten für SUMMEWENNS'!$J$5:$J$505,D$5) -> 0 | E41: =SUMIFS('05 Daten für SUMMEWENNS'!$E$5:$E$505,'05 Daten für SUMMEWENNS'!$H$5:$H$505,$B41,'05 Daten für SUMMEWENNS'!$J$5:$J$505,E$5) -> 0 | F41: =SUMIFS('05 Daten für SUMMEWENNS'!$E$5:$E$505,'05 Daten für SUMMEWENNS'!$H$5:$H$505,$B41,'05 Daten für SUMMEWENNS'!$J$5:$J$505,F$5) -> 0 | G41: =SUMIFS('05 Daten für SUMMEWENNS'!$E$5:$E$505,'05 Daten für SUMMEWENNS'!$H$5:$H$505,$B41,'05 Daten für SUMMEWENNS'!$J$5:$J$505,G$5) -> 0 | H41: =SUMIFS('05 Daten für SUMMEWENNS'!$E$5:$E$505,'05 Daten für SUMMEWENNS'!$H$5:$H$505,$B41,'05 Daten für SUMMEWENNS'!$J$5:$J$505,H$5) -> 0
B42: 36 | C42: =SUMIFS('05 Daten für SUMMEWENNS'!$E$5:$E$505,'05 Daten für SUMMEWENNS'!$H$5:$H$505,$B42,'05 Daten für SUMMEWENNS'!$J$5:$J$505,C$5) -> 461.568 | D42: =SUMIFS('05 Daten für SUMMEWENNS'!$E$5:$E$505,'05 Daten für SUMMEWENNS'!$H$5:$H$505,$B42,'05 Daten für SUMMEWENNS'!$J$5:$J$505,D$5) -> 326.016 | E42: =SUMIFS('05 Daten für SUMMEWENNS'!$E$5:$E$505,'05 Daten für SUMMEWENNS'!$H$5:$H$505,$B42,'05 Daten für SUMMEWENNS'!$J$5:$J$505,E$5) -> 0 | F42: =SUMIFS('05 Daten für SUMMEWENNS'!$E$5:$E$505,'05 Daten für SUMMEWENNS'!$H$5:$H$505,$B42,'05 Daten für SUMMEWENNS'!$J$5:$J$505,F$5) -> 3743.674 | G42: =SUMIFS('05 Daten für SUMMEWENNS'!$E$5:$E$505,'05 Daten für SUMMEWENNS'!$H$5:$H$505,$B42,'05 Daten für SUMMEWENNS'!$J$5:$J$505,G$5) -> 218.34 | H42: =SUMIFS('05 Daten für SUMMEWENNS'!$E$5:$E$505,'05 Daten für SUMMEWENNS'!$H$5:$H$505,$B42,'05 Daten für SUMMEWENNS'!$J$5:$J$505,H$5) -> 0
B43: 37 | C43: =SUMIFS('05 Daten für SUMMEWENNS'!$E$5:$E$505,'05 Daten für SUMMEWENNS'!$H$5:$H$505,$B43,'05 Daten für SUMMEWENNS'!$J$5:$J$505,C$5) -> 0 | D43: =SUMIFS('05 Daten für SUMMEWENNS'!$E$5:$E$505,'05 Daten für SUMMEWENNS'!$H$5:$H$505,$B43,'05 Daten für SUMMEWENNS'!$J$5:$J$505,D$5) -> 0 | E43: =SUMIFS('05 Daten für SUMMEWENNS'!$E$5:$E$505,'05 Daten für SUMMEWENNS'!$H$5:$H$505,$B43,'05 Daten für SUMMEWENNS'!$J$5:$J$505,E$5) -> 0 | F43: =SUMIFS('05 Daten für SUMMEWENNS'!$E$5:$E$505,'05 Daten für SUMMEWENNS'!$H$5:$H$505,$B43,'05 Daten für SUMMEWENNS'!$J$5:$J$505,F$5) -> 0 | G43: =SUMIFS('05 Daten für SUMMEWENNS'!$E$5:$E$505,'05 Daten für SUMMEWENNS'!$H$5:$H$505,$B43,'05 Daten für SUMMEWENNS'!$J$5:$J$505,G$5) -> 0 | H43: =SUMIFS('05 Daten für SUMMEWENNS'!$E$5:$E$505,'05 Daten für SUMMEWENNS'!$H$5:$H$505,$B43,'05 Daten für SUMMEWENNS'!$J$5:$J$505,H$5) -> 0
B44: 38 | C44: =SUMIFS('05 Daten für SUMMEWENNS'!$E$5:$E$505,'05 Daten für SUMMEWENNS'!$H$5:$H$505,$B44,'05 Daten für SUMMEWENNS'!$J$5:$J$505,C$5) -> 0 | D44: =SUMIFS('05 Daten für SUMMEWENNS'!$E$5:$E$505,'05 Daten für SUMMEWENNS'!$H$5:$H$505,$B44,'05 Daten für SUMMEWENNS'!$J$5:$J$505,D$5) -> 0 | E44: =SUMIFS('05 Daten für SUMMEWENNS'!$E$5:$E$505,'05 Daten für SUMMEWENNS'!$H$5:$H$505,$B44,'05 Daten für SUMMEWENNS'!$J$5:$J$505,E$5) -> 0 | F44: =SUMIFS('05 Daten für SUMMEWENNS'!$E$5:$E$505,'05 Daten für SUMMEWENNS'!$H$5:$H$505,$B44,'05 Daten für SUMMEWENNS'!$J$5:$J$505,F$5) -> 0 | G44: =SUMIFS('05 Daten für SUMMEWENNS'!$E$5:$E$505,'05 Daten für SUMMEWENNS'!$H$5:$H$505,$B44,'05 Daten für SUMMEWENNS'!$J$5:$J$505,G$5) -> 0 | H44: =SUMIFS('05 Daten für SUMMEWENNS'!$E$5:$E$505,'05 Daten für SUMMEWENNS'!$H$5:$H$505,$B44,'05 Daten für SUMMEWENNS'!$J$5:$J$505,H$5) -> 0
B45: 39 | C45: =SUMIFS('05 Daten für SUMMEWENNS'!$E$5:$E$505,'05 Daten für SUMMEWENNS'!$H$5:$H$505,$B45,'05 Daten für SUMMEWENNS'!$J$5:$J$505,C$5) -> 0 | D45: =SUMIFS('05 Daten für SUMMEWENNS'!$E$5:$E$505,'05 Daten für SUMMEWENNS'!$H$5:$H$505,$B45,'05 Daten für SUMMEWENNS'!$J$5:$J$505,D$5) -> 0 | E45: =SUMIFS('05 Daten für SUMMEWENNS'!$E$5:$E$505,'05 Daten für SUMMEWENNS'!$H$5:$H$505,$B45,'05 Daten für SUMMEWENNS'!$J$5:$J$505,E$5) -> 0 | F45: =SUMIFS('05 Daten für SUMMEWENNS'!$E$5:$E$505,'05 Daten für SUMMEWENNS'!$H$5:$H$505,$B45,'05 Daten für SUMMEWENNS'!$J$5:$J$505,F$5) -> 0 | G45: =SUMIFS('05 Daten für SUMMEWENNS'!$E$5:$E$505,'05 Daten für SUMMEWENNS'!$H$5:$H$505,$B45,'05 Daten für SUMMEWENNS'!$J$5:$J$505,G$5) -> 0 | H45: =SUMIFS('05 Daten für SUMMEWENNS'!$E$5:$E$505,'05 Daten für SUMMEWENNS'!$H$5:$H$505,$B45,'05 Daten für SUMMEWENNS'!$J$5:$J$505,H$5) -> 0
B46: 40 | C46: =SUMIFS('05 Daten für SUMMEWENNS'!$E$5:$E$505,'05 Daten für SUMMEWENNS'!$H$5:$H$505,$B46,'05 Daten für SUMMEWENNS'!$J$5:$J$505,C$5) -> 0 | D46: =SUMIFS('05 Daten für SUMMEWENNS'!$E$5:$E$505,'05 Daten für SUMMEWENNS'!$H$5:$H$505,$B46,'05 Daten für SUMMEWENNS'!$J$5:$J$505,D$5) -> 0 | E46: =SUMIFS('05 Daten für SUMMEWENNS'!$E$5:$E$505,'05 Daten für SUMMEWENNS'!$H$5:$H$505,$B46,'05 Daten für SUMMEWENNS'!$J$5:$J$505,E$5) -> 0 | F46: =SUMIFS('05 Daten für SUMMEWENNS'!$E$5:$E$505,'05 Daten für SUMMEWENNS'!$H$5:$H$505,$B46,'05 Daten für SUMMEWENNS'!$J$5:$J$505,F$5) -> 0 | G46: =SUMIFS('05 Daten für SUMMEWENNS'!$E$5:$E$505,'05 Daten für SUMMEWENNS'!$H$5:$H$505,$B46,'05 Daten für SUMMEWENNS'!$J$5:$J$505,G$5) -> 0 | H46: =SUMIFS('05 Daten für SUMMEWENNS'!$E$5:$E$505,'05 Daten für SUMMEWENNS'!$H$5:$H$505,$B46,'05 Daten für SUMMEWENNS'!$J$5:$J$505,H$5) -> 0
B47: 41 | C47: =SUMIFS('05 Daten für SUMMEWENNS'!$E$5:$E$505,'05 Daten für SUMMEWENNS'!$H$5:$H$505,$B47,'05 Daten für SUMMEWENNS'!$J$5:$J$505,C$5) -> 0 | D47: =SUMIFS('05 Daten für SUMMEWENNS'!$E$5:$E$505,'05 Daten für SUMMEWENNS'!$H$5:$H$505,$B47,'05 Daten für SUMMEWENNS'!$J$5:$J$505,D$5) -> 0 | E47: =SUMIFS('05 Daten für SUMMEWENNS'!$E$5:$E$505,'05 Daten für SUMMEWENNS'!$H$5:$H$505,$B47,'05 Daten für SUMMEWENNS'!$J$5:$J$505,E$5) -> 0 | F47: =SUMIFS('05 Daten für SUMMEWENNS'!$E$5:$E$505,'05 Daten für SUMMEWENNS'!$H$5:$H$505,$B47,'05 Daten für SUMMEWENNS'!$J$5:$J$505,F$5) -> 0 | G47: =SUMIFS('05 Daten für SUMMEWENNS'!$E$5:$E$505,'05 Daten für SUMMEWENNS'!$H$5:$H$505,$B47,'05 Daten für SUMMEWENNS'!$J$5:$J$505,G$5) -> 0 | H47: =SUMIFS('05 Daten für SUMMEWENNS'!$E$5:$E$505,'05 Daten für SUMMEWENNS'!$H$5:$H$505,$B47,'05 Daten für SUMMEWENNS'!$J$5:$J$505,H$5) -> 0
B48: 42 | C48: =SUMIFS('05 Daten für SUMMEWENNS'!$E$5:$E$505,'05 Daten für SUMMEWENNS'!$H$5:$H$505,$B48,'05 Daten für SUMMEWENNS'!$J$5:$J$505,C$5) -> 0 | D48: =SUMIFS('05 Daten für SUMMEWENNS'!$E$5:$E$505,'05 Daten für SUMMEWENNS'!$H$5:$H$505,$B48,'05 Daten für SUMMEWENNS'!$J$5:$J$505,D$5) -> 0 | E48: =SUMIFS('05 Daten für SUMMEWENNS'!$E$5:$E$505,'05 Daten für SUMMEWENNS'!$H$5:$H$505,$B48,'05 Daten für SUMMEWENNS'!$J$5:$J$505,E$5) -> 0 | F48: =SUMIFS('05 Daten für SUMMEWENNS'!$E$5:$E$505,'05 Daten für SUMMEWENNS'!$H$5:$H$505,$B48,'05 Daten für SUMMEWENNS'!$J$5:$J$505,F$5) -> 0 | G48: =SUMIFS('05 Daten für SUMMEWENNS'!$E$5:$E$505,'05 Daten für SUMMEWENNS'!$H$5:$H$505,$B48,'05 Daten für SUMMEWENNS'!$J$5:$J$505,G$5) -> 0 | H48: =SUMIFS('05 Daten für SUMMEWENNS'!$E$5:$E$505,'05 Daten für SUMMEWENNS'!$H$5:$H$505,$B48,'05 Daten für SUMMEWENNS'!$J$5:$J$505,H$5) -> 0
B49: 43 | C49: =SUMIFS('05 Daten für SUMMEWENNS'!$E$5:$E$505,'05 Daten für SUMMEWENNS'!$H$5:$H$505,$B49,'05 Daten für SUMMEWENNS'!$J$5:$J$505,C$5) -> 0 | D49: =SUMIFS('05 Daten für SUMMEWENNS'!$E$5:$E$505,'05 Daten für SUMMEWENNS'!$H$5:$H$505,$B49,'05 Daten für SUMMEWENNS'!$J$5:$J$505,D$5) -> 0 | E49: =SUMIFS('05 Daten für SUMMEWENNS'!$E$5:$E$505,'05 Daten für SUMMEWENNS'!$H$5:$H$505,$B49,'05 Daten für SUMMEWENNS'!$J$5:$J$505,E$5) -> 0 | F49: =SUMIFS('05 Daten für SUMMEWENNS'!$E$5:$E$505,'05 Daten für SUMMEWENNS'!$H$5:$H$505,$B49,'05 Daten für SUMMEWENNS'!$J$5:$J$505,F$5) -> 0 | G49: =SUMIFS('05 Daten für SUMMEWENNS'!$E$5:$E$505,'05 Daten für SUMMEWENNS'!$H$5:$H$505,$B49,'05 Daten für SUMMEWENNS'!$J$5:$J$505,G$5) -> 0 | H49: =SUMIFS('05 Daten für SUMMEWENNS'!$E$5:$E$505,'05 Daten für SUMMEWENNS'!$H$5:$H$505,$B49,'05 Daten für SUMMEWENNS'!$J$5:$J$505,H$5) -> 0
B50: 44 | C50: =SUMIFS('05 Daten für SUMMEWENNS'!$E$5:$E$505,'05 Daten für SUMMEWENNS'!$H$5:$H$505,$B50,'05 Daten für SUMMEWENNS'!$J$5:$J$505,C$5) -> 0 | D50: =SUMIFS('05 Daten für SUMMEWENNS'!$E$5:$E$505,'05 Daten für SUMMEWENNS'!$H$5:$H$505,$B50,'05 Daten für SUMMEWENNS'!$J$5:$J$505,D$5) -> 0 | E50: =SUMIFS('05 Daten für SUMMEWENNS'!$E$5:$E$505,'05 Daten für SUMMEWENNS'!$H$5:$H$505,$B50,'05 Daten für SUMMEWENNS'!$J$5:$J$505,E$5) -> 0 | F50: =SUMIFS('05 Daten für SUMMEWENNS'!$E$5:$E$505,'05 Daten für SUMMEWENNS'!$H$5:$H$505,$B50,'05 Daten für SUMMEWENNS'!$J$5:$J$505,F$5) -> 0 | G50: =SUMIFS('05 Daten für SUMMEWENNS'!$E$5:$E$505,'05 Daten für SUMMEWENNS'!$H$5:$H$505,$B50,'05 Daten für SUMMEWENNS'!$J$5:$J$505,G$5) -> 0 | H50: =SUMIFS('05 Daten für SUMMEWENNS'!$E$5:$E$505,'05 Daten für SUMMEWENNS'!$H$5:$H$505,$B50,'05 Daten für SUMMEWENNS'!$J$5:$J$505,H$5) -> 0
B51: 45 | C51: =SUMIFS('05 Daten für SUMMEWENNS'!$E$5:$E$505,'05 Daten für SUMMEWENNS'!$H$5:$H$505,$B51,'05 Daten für SUMMEWENNS'!$J$5:$J$505,C$5) -> 0 | D51: =SUMIFS('05 Daten für SUMMEWENNS'!$E$5:$E$505,'05 Daten für SUMMEWENNS'!$H$5:$H$505,$B51,'05 Daten für SUMMEWENNS'!$J$5:$J$505,D$5) -> 0 | E51: =SUMIFS('05 Daten für SUMMEWENNS'!$E$5:$E$505,'05 Daten für SUMMEWENNS'!$H$5:$H$505,$B51,'05 Daten für SUMMEWENNS'!$J$5:$J$505,E$5) -> 0 | F51: =SUMIFS('05 Daten für SUMMEWENNS'!$E$5:$E$505,'05 Daten für SUMMEWENNS'!$H$5:$H$505,$B51,'05 Daten für SUMMEWENNS'!$J$5:$J$505,F$5) -> 0 | G51: =SUMIFS('05 Daten für SUMMEWENNS'!$E$5:$E$505,'05 Daten für SUMMEWENNS'!$H$5:$H$505,$B51,'05 Daten für SUMMEWENNS'!$J$5:$J$505,G$5) -> 0 | H51: =SUMIFS('05 Daten für SUMMEWENNS'!$E$5:$E$505,'05 Daten für SUMMEWENNS'!$H$5:$H$505,$B51,'05 Daten für SUMMEWENNS'!$J$5:$J$505,H$5) -> 0
B52: 46 | C52: =SUMIFS('05 Daten für SUMMEWENNS'!$E$5:$E$505,'05 Daten für SUMMEWENNS'!$H$5:$H$505,$B52,'05 Daten für SUMMEWENNS'!$J$5:$J$505,C$5) -> 0 | D52: =SUMIFS('05 Daten für SUMMEWENNS'!$E$5:$E$505,'05 Daten für SUMMEWENNS'!$H$5:$H$505,$B52,'05 Daten für SUMMEWENNS'!$J$5:$J$505,D$5) -> 0 | E52: =SUMIFS('05 Daten für SUMMEWENNS'!$E$5:$E$505,'05 Daten für SUMMEWENNS'!$H$5:$H$505,$B52,'05 Daten für SUMMEWENNS'!$J$5:$J$505,E$5) -> 0 | F52: =SUMIFS('05 Daten für SUMMEWENNS'!$E$5:$E$505,'05 Daten für SUMMEWENNS'!$H$5:$H$505,$B52,'05 Daten für SUMMEWENNS'!$J$5:$J$505,F$5) -> 0 | G52: =SUMIFS('05 Daten für SUMMEWENNS'!$E$5:$E$505,'05 Daten für SUMMEWENNS'!$H$5:$H$505,$B52,'05 Daten für SUMMEWENNS'!$J$5:$J$505,G$5) -> 0 | H52: =SUMIFS('05 Daten für SUMMEWENNS'!$E$5:$E$505,'05 Daten für SUMMEWENNS'!$H$5:$H$505,$B52,'05 Daten für SUMMEWENNS'!$J$5:$J$505,H$5) -> 0
B53: 47 | C53: =SUMIFS('05 Daten für SUMMEWENNS'!$E$5:$E$505,'05 Daten für SUMMEWENNS'!$H$5:$H$505,$B53,'05 Daten für SUMMEWENNS'!$J$5:$J$505,C$5) -> 0 | D53: =SUMIFS('05 Daten für SUMMEWENNS'!$E$5:$E$505,'05 Daten für SUMMEWENNS'!$H$5:$H$505,$B53,'05 Daten für SUMMEWENNS'!$J$5:$J$505,D$5) -> 0 | E53: =SUMIFS('05 Daten für SUMMEWENNS'!$E$5:$E$505,'05 Daten für SUMMEWENNS'!$H$5:$H$505,$B53,'05 Daten für SUMMEWENNS'!$J$5:$J$505,E$5) -> 0 | F53: =SUMIFS('05 Daten für SUMMEWENNS'!$E$5:$E$505,'05 Daten für SUMMEWENNS'!$H$5:$H$505,$B53,'05 Daten für SUMMEWENNS'!$J$5:$J$505,F$5) -> 0 | G53: =SUMIFS('05 Daten für SUMMEWENNS'!$E$5:$E$505,'05 Daten für SUMMEWENNS'!$H$5:$H$505,$B53,'05 Daten für SUMMEWENNS'!$J$5:$J$505,G$5) -> 0 | H53: =SUMIFS('05 Daten für SUMMEWENNS'!$E$5:$E$505,'05 Daten für SUMMEWENNS'!$H$5:$H$505,$B53,'05 Daten für SUMMEWENNS'!$J$5:$J$505,H$5) -> 0
B54: 48 | C54: =SUMIFS('05 Daten für SUMMEWENNS'!$E$5:$E$505,'05 Daten für SUMMEWENNS'!$H$5:$H$505,$B54,'05 Daten für SUMMEWENNS'!$J$5:$J$505,C$5) -> 0 | D54: =SUMIFS('05 Daten für SUMMEWENNS'!$E$5:$E$505,'05 Daten für SUMMEWENNS'!$H$5:$H$505,$B54,'05 Daten für SUMMEWENNS'!$J$5:$J$505,D$5) -> 0 | E54: =SUMIFS('05 Daten für SUMMEWENNS'!$E$5:$E$505,'05 Daten für SUMMEWENNS'!$H$5:$H$505,$B54,'05 Daten für SUMMEWENNS'!$J$5:$J$505,E$5) -> 0 | F54: =SUMIFS('05 Daten für SUMMEWENNS'!$E$5:$E$505,'05 Daten für SUMMEWENNS'!$H$5:$H$505,$B54,'05 Daten für SUMMEWENNS'!$J$5:$J$505,F$5) -> 0 | G54: =SUMIFS('05 Daten für SUMMEWENNS'!$E$5:$E$505,'05 Daten für SUMMEWENNS'!$H$5:$H$505,$B54,'05 Daten für SUMMEWENNS'!$J$5:$J$505,G$5) -> 0 | H54: =SUMIFS('05 Daten für SUMMEWENNS'!$E$5:$E$505,'05 Daten für SUMMEWENNS'!$H$5:$H$505,$B54,'05 Daten für SUMMEWENNS'!$J$5:$J$505,H$5) -> 0
B55: 49 | C55: =SUMIFS('05 Daten für SUMMEWENNS'!$E$5:$E$505,'05 Daten für SUMMEWENNS'!$H$5:$H$505,$B55,'05 Daten für SUMMEWENNS'!$J$5:$J$505,C$5) -> 0 | D55: =SUMIFS('05 Daten für SUMMEWENNS'!$E$5:$E$505,'05 Daten für SUMMEWENNS'!$H$5:$H$505,$B55,'05 Daten für SUMMEWENNS'!$J$5:$J$505,D$5) -> 0 | E55: =SUMIFS('05 Daten für SUMMEWENNS'!$E$5:$E$505,'05 Daten für SUMMEWENNS'!$H$5:$H$505,$B55,'05 Daten für SUMMEWENNS'!$J$5:$J$505,E$5) -> 0 | F55: =SUMIFS('05 Daten für SUMMEWENNS'!$E$5:$E$505,'05 Daten für SUMMEWENNS'!$H$5:$H$505,$B55,'05 Daten für SUMMEWENNS'!$J$5:$J$505,F$5) -> 0 | G55: =SUMIFS('05 Daten für SUMMEWENNS'!$E$5:$E$505,'05 Daten für SUMMEWENNS'!$H$5:$H$505,$B55,'05 Daten für SUMMEWENNS'!$J$5:$J$505,G$5) -> 0 | H55: =SUMIFS('05 Daten für SUMMEWENNS'!$E$5:$E$505,'05 Daten für SUMMEWENNS'!$H$5:$H$505,$B55,'05 Daten für SUMMEWENNS'!$J$5:$J$505,H$5) -> 0
B56: 50 | C56: =SUMIFS('05 Daten für SUMMEWENNS'!$E$5:$E$505,'05 Daten für SUMMEWENNS'!$H$5:$H$505,$B56,'05 Daten für SUMMEWENNS'!$J$5:$J$505,C$5) -> 0 | D56: =SUMIFS('05 Daten für SUMMEWENNS'!$E$5:$E$505,'05 Daten für SUMMEWENNS'!$H$5:$H$505,$B56,'05 Daten für SUMMEWENNS'!$J$5:$J$505,D$5) -> 0 | E56: =SUMIFS('05 Daten für SUMMEWENNS'!$E$5:$E$505,'05 Daten für SUMMEWENNS'!$H$5:$H$505,$B56,'05 Daten für SUMMEWENNS'!$J$5:$J$505,E$5) -> 0 | F56: =SUMIFS('05 Daten für SUMMEWENNS'!$E$5:$E$505,'05 Daten für SUMMEWENNS'!$H$5:$H$505,$B56,'05 Daten für SUMMEWENNS'!$J$5:$J$505,F$5) -> 0 | G56: =SUMIFS('05 Daten für SUMMEWENNS'!$E$5:$E$505,'05 Daten für SUMMEWENNS'!$H$5:$H$505,$B56,'05 Daten für SUMMEWENNS'!$J$5:$J$505,G$5) -> 0 | H56: =SUMIFS('05 Daten für SUMMEWENNS'!$E$5:$E$505,'05 Daten für SUMMEWENNS'!$H$5:$H$505,$B56,'05 Daten für SUMMEWENNS'!$J$5:$J$505,H$5) -> 0
B57: 51 | C57: =SUMIFS('05 Daten für SUMMEWENNS'!$E$5:$E$505,'05 Daten für SUMMEWENNS'!$H$5:$H$505,$B57,'05 Daten für SUMMEWENNS'!$J$5:$J$505,C$5) -> 0 | D57: =SUMIFS('05 Daten für SUMMEWENNS'!$E$5:$E$505,'05 Daten für SUMMEWENNS'!$H$5:$H$505,$B57,'05 Daten für SUMMEWENNS'!$J$5:$J$505,D$5) -> 0 | E57: =SUMIFS('05 Daten für SUMMEWENNS'!$E$5:$E$505,'05 Daten für SUMMEWENNS'!$H$5:$H$505,$B57,'05 Daten für SUMMEWENNS'!$J$5:$J$505,E$5) -> 0 | F57: =SUMIFS('05 Daten für SUMMEWENNS'!$E$5:$E$505,'05 Daten für SUMMEWENNS'!$H$5:$H$505,$B57,'05 Daten für SUMMEWENNS'!$J$5:$J$505,F$5) -> 0 | G57: =SUMIFS('05 Daten für SUMMEWENNS'!$E$5:$E$505,'05 Daten für SUMMEWENNS'!$H$5:$H$505,$B57,'05 Daten für SUMMEWENNS'!$J$5:$J$505,G$5) -> 0 | H57: =SUMIFS('05 Daten für SUMMEWENNS'!$E$5:$E$505,'05 Daten für SUMMEWENNS'!$H$5:$H$505,$B57,'05 Daten für SUMMEWENNS'!$J$5:$J$505,H$5) -> 0
B58: 52 | C58: =SUMIFS('05 Daten für SUMMEWENNS'!$E$5:$E$505,'05 Daten für SUMMEWENNS'!$H$5:$H$505,$B58,'05 Daten für SUMMEWENNS'!$J$5:$J$505,C$5) -> 0 | D58: =SUMIFS('05 Daten für SUMMEWENNS'!$E$5:$E$505,'05 Daten für SUMMEWENNS'!$H$5:$H$505,$B58,'05 Daten für SUMMEWENNS'!$J$5:$J$505,D$5) -> 0 | E58: =SUMIFS('05 Daten für SUMMEWENNS'!$E$5:$E$505,'05 Daten für SUMMEWENNS'!$H$5:$H$505,$B58,'05 Daten für SUMMEWENNS'!$J$5:$J$505,E$5) -> 0 | F58: =SUMIFS('05 Daten für SUMMEWENNS'!$E$5:$E$505,'05 Daten für SUMMEWENNS'!$H$5:$H$505,$B58,'05 Daten für SUMMEWENNS'!$J$5:$J$505,F$5) -> 0 | G58: =SUMIFS('05 Daten für SUMMEWENNS'!$E$5:$E$505,'05 Daten für SUMMEWENNS'!$H$5:$H$505,$B58,'05 Daten für SUMMEWENNS'!$J$5:$J$505,G$5) -> 0 | H58: =SUMIFS('05 Daten für SUMMEWENNS'!$E$5:$E$505,'05 Daten für SUMMEWENNS'!$H$5:$H$505,$B58,'05 Daten für SUMMEWENNS'!$J$5:$J$505,H$5) -> 0
B59: 53 | C59: =SUMIFS('05 Daten für SUMMEWENNS'!$E$5:$E$505,'05 Daten für SUMMEWENNS'!$H$5:$H$505,$B59,'05 Daten für SUMMEWENNS'!$J$5:$J$505,C$5) -> 0 | D59: =SUMIFS('05 Daten für SUMMEWENNS'!$E$5:$E$505,'05 Daten für SUMMEWENNS'!$H$5:$H$505,$B59,'05 Daten für SUMMEWENNS'!$J$5:$J$505,D$5) -> 0 | E59: =SUMIFS('05 Daten für SUMMEWENNS'!$E$5:$E$505,'05 Daten für SUMMEWENNS'!$H$5:$H$505,$B59,'05 Daten für SUMMEWENNS'!$J$5:$J$505,E$5) -> 0 | F59: =SUMIFS('05 Daten für SUMMEWENNS'!$E$5:$E$505,'05 Daten für SUMMEWENNS'!$H$5:$H$505,$B59,'05 Daten für SUMMEWENNS'!$J$5:$J$505,F$5) -> 0 | G59: =SUMIFS('05 Daten für SUMMEWENNS'!$E$5:$E$505,'05 Daten für SUMMEWENNS'!$H$5:$H$505,$B59,'05 Daten für SUMMEWENNS'!$J$5:$J$505,G$5) -> 0 | H59: =SUMIFS('05 Daten für SUMMEWENNS'!$E$5:$E$505,'05 Daten für SUMMEWENNS'!$H$5:$H$505,$B59,'05 Daten für SUMMEWENNS'!$J$5:$J$505,H$5) -> 0
B60: 54 | C60: =SUMIFS('05 Daten für SUMMEWENNS'!$E$5:$E$505,'05 Daten für SUMMEWENNS'!$H$5:$H$505,$B60,'05 Daten für SUMMEWENNS'!$J$5:$J$505,C$5) -> 0 | D60: =SUMIFS('05 Daten für SUMMEWENNS'!$E$5:$E$505,'05 Daten für SUMMEWENNS'!$H$5:$H$505,$B60,'05 Daten für SUMMEWENNS'!$J$5:$J$505,D$5) -> 0 | E60: =SUMIFS('05 Daten für SUMMEWENNS'!$E$5:$E$505,'05 Daten für SUMMEWENNS'!$H$5:$H$505,$B60,'05 Daten für SUMMEWENNS'!$J$5:$J$505,E$5) -> 0 | F60: =SUMIFS('05 Daten für SUMMEWENNS'!$E$5:$E$505,'05 Daten für SUMMEWENNS'!$H$5:$H$505,$B60,'05 Daten für SUMMEWENNS'!$J$5:$J$505,F$5) -> 0 | G60: =SUMIFS('05 Daten für SUMMEWENNS'!$E$5:$E$505,'05 Daten für SUMMEWENNS'!$H$5:$H$505,$B60,'05 Daten für SUMMEWENNS'!$J$5:$J$505,G$5) -> 0 | H60: =SUMIFS('05 Daten für SUMMEWENNS'!$E$5:$E$505,'05 Daten für SUMMEWENNS'!$H$5:$H$505,$B60,'05 Daten für SUMMEWENNS'!$J$5:$J$505,H$5) -> 0
B61: 55 | C61: =SUMIFS('05 Daten für SUMMEWENNS'!$E$5:$E$505,'05 Daten für SUMMEWENNS'!$H$5:$H$505,$B61,'05 Daten für SUMMEWENNS'!$J$5:$J$505,C$5) -> 9816.264 | D61: =SUMIFS('05 Daten für SUMMEWENNS'!$E$5:$E$505,'05 Daten für SUMMEWENNS'!$H$5:$H$505,$B61,'05 Daten für SUMMEWENNS'!$J$5:$J$505,D$5) -> 3728.088 | E61: =SUMIFS('05 Daten für SUMMEWENNS'!$E$5:$E$505,'05 Daten für SUMMEWENNS'!$H$5:$H$505,$B61,'05 Daten für SUMMEWENNS'!$J$5:$J$505,E$5) -> 0 | F61: =SUMIFS('05 Daten für SUMMEWENNS'!$E$5:$E$505,'05 Daten für SUMMEWENNS'!$H$5:$H$505,$B61,'05 Daten für SUMMEWENNS'!$J$5:$J$505,F$5) -> 22710.378 | G61: =SUMIFS('05 Daten für SUMMEWENNS'!$E$5:$E$505,'05 Daten für SUMMEWENNS'!$H$5:$H$505,$B61,'05 Daten für SUMMEWENNS'!$J$5:$J$505,G$5) -> 10377.708 | H61: =SUMIFS('05 Daten für SUMMEWENNS'!$E$5:$E$505,'05 Daten für SUMMEWENNS'!$H$5:$H$505,$B61,'05 Daten für SUMMEWENNS'!$J$5:$J$505,H$5) -> 0
B62: 56 | C62: =SUMIFS('05 Daten für SUMMEWENNS'!$E$5:$E$505,'05 Daten für SUMMEWENNS'!$H$5:$H$505,$B62,'05 Daten für SUMMEWENNS'!$J$5:$J$505,C$5) -> 0 | D62: =SUMIFS('05 Daten für SUMMEWENNS'!$E$5:$E$505,'05 Daten für SUMMEWENNS'!$H$5:$H$505,$B62,'05 Daten für SUMMEWENNS'!$J$5:$J$505,D$5) -> 0 | E62: =SUMIFS('05 Daten für SUMMEWENNS'!$E$5:$E$505,'05 Daten für SUMMEWENNS'!$H$5:$H$505,$B62,'05 Daten für SUMMEWENNS'!$J$5:$J$505,E$5) -> 0 | F62: =SUMIFS('05 Daten für SUMMEWENNS'!$E$5:$E$505,'05 Daten für SUMMEWENNS'!$H$5:$H$505,$B62,'05 Daten für SUMMEWENNS'!$J$5:$J$505,F$5) -> 0 | G62: =SUMIFS('05 Daten für SUMMEWENNS'!$E$5:$E$505,'05 Daten für SUMMEWENNS'!$H$5:$H$505,$B62,'05 Daten für SUMMEWENNS'!$J$5:$J$505,G$5) -> 0 | H62: =SUMIFS('05 Daten für SUMMEWENNS'!$E$5:$E$505,'05 Daten für SUMMEWENNS'!$H$5:$H$505,$B62,'05 Daten für SUMMEWENNS'!$J$5:$J$505,H$5) -> 0
B63: 57 | C63: =SUMIFS('05 Daten für SUMMEWENNS'!$E$5:$E$505,'05 Daten für SUMMEWENNS'!$H$5:$H$505,$B63,'05 Daten für SUMMEWENNS'!$J$5:$J$505,C$5) -> 0 | D63: =SUMIFS('05 Daten für SUMMEWENNS'!$E$5:$E$505,'05 Daten für SUMMEWENNS'!$H$5:$H$505,$B63,'05 Daten für SUMMEWENNS'!$J$5:$J$505,D$5) -> 0 | E63: =SUMIFS('05 Daten für SUMMEWENNS'!$E$5:$E$505,'05 Daten für SUMMEWENNS'!$H$5:$H$505,$B63,'05 Daten für SUMMEWENNS'!$J$5:$J$505,E$5) -> 0 | F63: =SUMIFS('05 Daten für SUMMEWENNS'!$E$5:$E$505,'05 Daten für SUMMEWENNS'!$H$5:$H$505,$B63,'05 Daten für SUMMEWENNS'!$J$5:$J$505,F$5) -> 0 | G63: =SUMIFS('05 Daten für SUMMEWENNS'!$E$5:$E$505,'05 Daten für SUMMEWENNS'!$H$5:$H$505,$B63,'05 Daten für SUMMEWENNS'!$J$5:$J$505,G$5) -> 0 | H63: =SUMIFS('05 Daten für SUMMEWENNS'!$E$5:$E$505,'05 Daten für SUMMEWENNS'!$H$5:$H$505,$B63,'05 Daten für SUMMEWENNS'!$J$5:$J$505,H$5) -> 0
B64: 58 | C64: =SUMIFS('05 Daten für SUMMEWENNS'!$E$5:$E$505,'05 Daten für SUMMEWENNS'!$H$5:$H$505,$B64,'05 Daten für SUMMEWENNS'!$J$5:$J$505,C$5) -> 0 | D64: =SUMIFS('05 Daten für SUMMEWENNS'!$E$5:$E$505,'05 Daten für SUMMEWENNS'!$H$5:$H$505,$B64,'05 Daten für SUMMEWENNS'!$J$5:$J$505,D$5) -> 0 | E64: =SUMIFS('05 Daten für SUMMEWENNS'!$E$5:$E$505,'05 Daten für SUMMEWENNS'!$H$5:$H$505,$B64,'05 Daten für SUMMEWENNS'!$J$5:$J$505,E$5) -> 0 | F64: =SUMIFS('05 Daten für SUMMEWENNS'!$E$5:$E$505,'05 Daten für SUMMEWENNS'!$H$5:$H$505,$B64,'05 Daten für SUMMEWENNS'!$J$5:$J$505,F$5) -> 0 | G64: =SUMIFS('05 Daten für SUMMEWENNS'!$E$5:$E$505,'05 Daten für SUMMEWENNS'!$H$5:$H$505,$B64,'05 Daten für SUMMEWENNS'!$J$5:$J$505,G$5) -> 0 | H64: =SUMIFS('05 Daten für SUMMEWENNS'!$E$5:$E$505,'05 Daten für SUMMEWENNS'!$H$5:$H$505,$B64,'05 Daten für SUMMEWENNS'!$J$5:$J$505,H$5) -> 0
B65: 59 | C65: =SUMIFS('05 Daten für SUMMEWENNS'!$E$5:$E$505,'05 Daten für SUMMEWENNS'!$H$5:$H$505,$B65,'05 Daten für SUMMEWENNS'!$J$5:$J$505,C$5) -> 977.844 | D65: =SUMIFS('05 Daten für SUMMEWENNS'!$E$5:$E$505,'05 Daten für SUMMEWENNS'!$H$5:$H$505,$B65,'05 Daten für SUMMEWENNS'!$J$5:$J$505,D$5) -> 1132.346 | E65: =SUMIFS('05 Daten für SUMMEWENNS'!$E$5:$E$505,'05 Daten für SUMMEWENNS'!$H$5:$H$505,$B65,'05 Daten für SUMMEWENNS'!$J$5:$J$505,E$5) -> 0 | F65: =SUMIFS('05 Daten für SUMMEWENNS'!$E$5:$E$505,'05 Daten für SUMMEWENNS'!$H$5:$H$505,$B65,'05 Daten für SUMMEWENNS'!$J$5:$J$505,F$5) -> 5004.01 | G65: =SUMIFS('05 Daten für SUMMEWENNS'!$E$5:$E$505,'05 Daten für SUMMEWENNS'!$H$5:$H$505,$B65,'05 Daten für SUMMEWENNS'!$J$5:$J$505,G$5) -> 197.102 | H65: =SUMIFS('05 Daten für SUMMEWENNS'!$E$5:$E$505,'05 Daten für SUMMEWENNS'!$H$5:$H$505,$B65,'05 Daten für SUMMEWENNS'!$J$5:$J$505,H$5) -> 0
B66: 60 | C66: =SUMIFS('05 Daten für SUMMEWENNS'!$E$5:$E$505,'05 Daten für SUMMEWENNS'!$H$5:$H$505,$B66,'05 Daten für SUMMEWENNS'!$J$5:$J$505,C$5) -> 0 | D66: =SUMIFS('05 Daten für SUMMEWENNS'!$E$5:$E$505,'05 Daten für SUMMEWENNS'!$H$5:$H$505,$B66,'05 Daten für SUMMEWENNS'!$J$5:$J$505,D$5) -> 0 | E66: =SUMIFS('05 Daten für SUMMEWENNS'!$E$5:$E$505,'05 Daten für SUMMEWENNS'!$H$5:$H$505,$B66,'05 Daten für SUMMEWENNS'!$J$5:$J$505,E$5) -> 0 | F66: =SUMIFS('05 Daten für SUMMEWENNS'!$E$5:$E$505,'05 Daten für SUMMEWENNS'!$H$5:$H$505,$B66,'05 Daten für SUMMEWENNS'!$J$5:$J$505,F$5) -> 0 | G66: =SUMIFS('05 Daten für SUMMEWENNS'!$E$5:$E$505,'05 Daten für SUMMEWENNS'!$H$5:$H$505,$B66,'05 Daten für SUMMEWENNS'!$J$5:$J$505,G$5) -> 0 | H66: =SUMIFS('05 Daten für SUMMEWENNS'!$E$5:$E$505,'05 Daten für SUMMEWENNS'!$H$5:$H$505,$B66,'05 Daten für SUMMEWENNS'!$J$5:$J$505,H$5) -> 0
B67: 61 | C67: =SUMIFS('05 Daten für SUMMEWENNS'!$E$5:$E$505,'05 Daten für SUMMEWENNS'!$H$5:$H$505,$B67,'05 Daten für SUMMEWENNS'!$J$5:$J$505,C$5) -> 0 | D67: =SUMIFS('05 Daten für SUMMEWENNS'!$E$5:$E$505,'05 Daten für SUMMEWENNS'!$H$5:$H$505,$B67,'05 Daten für SUMMEWENNS'!$J$5:$J$505,D$5) -> 0 | E67: =SUMIFS('05 Daten für SUMMEWENNS'!$E$5:$E$505,'05 Daten für SUMMEWENNS'!$H$5:$H$505,$B67,'05 Daten für SUMMEWENNS'!$J$5:$J$505,E$5) -> 0 | F67: =SUMIFS('05 Daten für SUMMEWENNS'!$E$5:$E$505,'05 Daten für SUMMEWENNS'!$H$5:$H$505,$B67,'05 Daten für SUMMEWENNS'!$J$5:$J$505,F$5) -> 0 | G67: =SUMIFS('05 Daten für SUMMEWENNS'!$E$5:$E$505,'05 Daten für SUMMEWENNS'!$H$5:$H$505,$B67,'05 Daten für SUMMEWENNS'!$J$5:$J$505,G$5) -> 0 | H67: =SUMIFS('05 Daten für SUMMEWENNS'!$E$5:$E$505,'05 Daten für SUMMEWENNS'!$H$5:$H$505,$B67,'05 Daten für SUMMEWENNS'!$J$5:$J$505,H$5) -> 0
B68: 62 | C68: =SUMIFS('05 Daten für SUMMEWENNS'!$E$5:$E$505,'05 Daten für SUMMEWENNS'!$H$5:$H$505,$B68,'05 Daten für SUMMEWENNS'!$J$5:$J$505,C$5) -> 0 | D68: =SUMIFS('05 Daten für SUMMEWENNS'!$E$5:$E$505,'05 Daten für SUMMEWENNS'!$H$5:$H$505,$B68,'05 Daten für SUMMEWENNS'!$J$5:$J$505,D$5) -> 0 | E68: =SUMIFS('05 Daten für SUMMEWENNS'!$E$5:$E$505,'05 Daten für SUMMEWENNS'!$H$5:$H$505,$B68,'05 Daten für SUMMEWENNS'!$J$5:$J$505,E$5) -> 0 | F68: =SUMIFS('05 Daten für SUMMEWENNS'!$E$5:$E$505,'05 Daten für SUMMEWENNS'!$H$5:$H$505,$B68,'05 Daten für SUMMEWENNS'!$J$5:$J$505,F$5) -> 0 | G68: =SUMIFS('05 Daten für SUMMEWENNS'!$E$5:$E$505,'05 Daten für SUMMEWENNS'!$H$5:$H$505,$B68,'05 Daten für SUMMEWENNS'!$J$5:$J$505,G$5) -> 0 | H68: =SUMIFS('05 Daten für SUMMEWENNS'!$E$5:$E$505,'05 Daten für SUMMEWENNS'!$H$5:$H$505,$B68,'05 Daten für SUMMEWENNS'!$J$5:$J$505,H$5) -> 0
B69: 63 | C69: =SUMIFS('05 Daten für SUMMEWENNS'!$E$5:$E$505,'05 Daten für SUMMEWENNS'!$H$5:$H$505,$B69,'05 Daten für SUMMEWENNS'!$J$5:$J$505,C$5) -> 482.894 | D69: =SUMIFS('05 Daten für SUMMEWENNS'!$E$5:$E$505,'05 Daten für SUMMEWENNS'!$H$5:$H$505,$B69,'05 Daten für SUMMEWENNS'!$J$5:$J$505,D$5) -> 239.042 | E69: =SUMIFS('05 Daten für SUMMEWENNS'!$E$5:$E$505,'05 Daten für SUMMEWENNS'!$H$5:$H$505,$B69,'05 Daten für SUMMEWENNS'!$J$5:$J$505,E$5) -> 0 | F69: =SUMIFS('05 Daten für SUMMEWENNS'!$E$5:$E$505,'05 Daten für SUMMEWENNS'!$H$5:$H$505,$B69,'05 Daten für SUMMEWENNS'!$J$5:$J$505,F$5) -> 573.94 | G69: =SUMIFS('05 Daten für SUMMEWENNS'!$E$5:$E$505,'05 Daten für SUMMEWENNS'!$H$5:$H$505,$B69,'05 Daten für SUMMEWENNS'!$J$5:$J$505,G$5) -> 282.07 | H69: =SUMIFS('05 Daten für SUMMEWENNS'!$E$5:$E$505,'05 Daten für SUMMEWENNS'!$H$5:$H$505,$B69,'05 Daten für SUMMEWENNS'!$J$5:$J$505,H$5) -> 0
B70: 64 | C70: =SUMIFS('05 Daten für SUMMEWENNS'!$E$5:$E$505,'05 Daten für SUMMEWENNS'!$H$5:$H$505,$B70,'05 Daten für SUMMEWENNS'!$J$5:$J$505,C$5) -> 0 | D70: =SUMIFS('05 Daten für SUMMEWENNS'!$E$5:$E$505,'05 Daten für SUMMEWENNS'!$H$5:$H$505,$B70,'05 Daten für SUMMEWENNS'!$J$5:$J$505,D$5) -> 0 | E70: =SUMIFS('05 Daten für SUMMEWENNS'!$E$5:$E$505,'05 Daten für SUMMEWENNS'!$H$5:$H$505,$B70,'05 Daten für SUMMEWENNS'!$J$5:$J$505,E$5) -> 0 | F70: =SUMIFS('05 Daten für SUMMEWENNS'!$E$5:$E$505,'05 Daten für SUMMEWENNS'!$H$5:$H$505,$B70,'05 Daten für SUMMEWENNS'!$J$5:$J$505,F$5) -> 0 | G70: =SUMIFS('05 Daten für SUMMEWENNS'!$E$5:$E$505,'05 Daten für SUMMEWENNS'!$H$5:$H$505,$B70,'05 Daten für SUMMEWENNS'!$J$5:$J$505,G$5) -> 0 | H70: =SUMIFS('05 Daten für SUMMEWENNS'!$E$5:$E$505,'05 Daten für SUMMEWENNS'!$H$5:$H$505,$B70,'05 Daten für SUMMEWENNS'!$J$5:$J$505,H$5) -> 0
B71: 65 | C71: =SUMIFS('05 Daten für SUMMEWENNS'!$E$5:$E$505,'05 Daten für SUMMEWENNS'!$H$5:$H$505,$B71,'05 Daten für SUMMEWENNS'!$J$5:$J$505,C$5) -> 0 | D71: =SUMIFS('05 Daten für SUMMEWENNS'!$E$5:$E$505,'05 Daten für SUMMEWENNS'!$H$5:$H$505,$B71,'05 Daten für SUMMEWENNS'!$J$5:$J$505,D$5) -> 0 | E71: =SUMIFS('05 Daten für SUMMEWENNS'!$E$5:$E$505,'05 Daten für SUMMEWENNS'!$H$5:$H$505,$B71,'05 Daten für SUMMEWENNS'!$J$5:$J$505,E$5) -> 0 | F71: =SUMIFS('05 Daten für SUMMEWENNS'!$E$5:$E$505,'05 Daten für SUMMEWENNS'!$H$5:$H$505,$B71,'05 Daten für SUMMEWENNS'!$J$5:$J$505,F$5) -> 1247.28 | G71: =SUMIFS('05 Daten für SUMMEWENNS'!$E$5:$E$505,'05 Daten für SUMMEWENNS'!$H$5:$H$505,$B71,'05 Daten für SUMMEWENNS'!$J$5:$J$505,G$5) -> 0 | H71: =SUMIFS('05 Daten für SUMMEWENNS'!$E$5:$E$505,'05 Daten für SUMMEWENNS'!$H$5:$H$505,$B71,'05 Daten für SUMMEWENNS'!$J$5:$J$505,H$5) -> 0
B72: 66 | C72: =SUMIFS('05 Daten für SUMMEWENNS'!$E$5:$E$505,'05 Daten für SUMMEWENNS'!$H$5:$H$505,$B72,'05 Daten für SUMMEWENNS'!$J$5:$J$505,C$5) -> 0 | D72: =SUMIFS('05 Daten für SUMMEWENNS'!$E$5:$E$505,'05 Daten für SUMMEWENNS'!$H$5:$H$505,$B72,'05 Daten für SUMMEWENNS'!$J$5:$J$505,D$5) -> 0 | E72: =SUMIFS('05 Daten für SUMMEWENNS'!$E$5:$E$505,'05 Daten für SUMMEWENNS'!$H$5:$H$505,$B72,'05 Daten für SUMMEWENNS'!$J$5:$J$505,E$5) -> 0 | F72: =SUMIFS('05 Daten für SUMMEWENNS'!$E$5:$E$505,'05 Daten für SUMMEWENNS'!$H$5:$H$505,$B72,'05 Daten für SUMMEWENNS'!$J$5:$J$505,F$5) -> 0 | G72: =SUMIFS('05 Daten für SUMMEWENNS'!$E$5:$E$505,'05 Daten für SUMMEWENNS'!$H$5:$H$505,$B72,'05 Daten für SUMMEWENNS'!$J$5:$J$505,G$5) -> 0 | H72: =SUMIFS('05 Daten für SUMMEWENNS'!$E$5:$E$505,'05 Daten für SUMMEWENNS'!$H$5:$H$505,$B72,'05 Daten für SUMMEWENNS'!$J$5:$J$505,H$5) -> 0
B73: 67 | C73: =SUMIFS('05 Daten für SUMMEWENNS'!$E$5:$E$505,'05 Daten für SUMMEWENNS'!$H$5:$H$505,$B73,'05 Daten für SUMMEWENNS'!$J$5:$J$505,C$5) -> 1291.68 | D73: =SUMIFS('05 Daten für SUMMEWENNS'!$E$5:$E$505,'05 Daten für SUMMEWENNS'!$H$5:$H$505,$B73,'05 Daten für SUMMEWENNS'!$J$5:$J$505,D$5) -> 548.352 | E73: =SUMIFS('05 Daten für SUMMEWENNS'!$E$5:$E$505,'05 Daten für SUMMEWENNS'!$H$5:$H$505,$B73,'05 Daten für SUMMEWENNS'!$J$5:$J$505,E$5) -> 0 | F73: =SUMIFS('05 Daten für SUMMEWENNS'!$E$5:$E$505,'05 Daten für SUMMEWENNS'!$H$5:$H$505,$B73,'05 Daten für SUMMEWENNS'!$J$5:$J$505,F$5) -> 0 | G73: =SUMIFS('05 Daten für SUMMEWENNS'!$E$5:$E$505,'05 Daten für SUMMEWENNS'!$H$5:$H$505,$B73,'05 Daten für SUMMEWENNS'!$J$5:$J$505,G$5) -> 0 | H73: =SUMIFS('05 Daten für SUMMEWENNS'!$E$5:$E$505,'05 Daten für SUMMEWENNS'!$H$5:$H$505,$B73,'05 Daten für SUMMEWENNS'!$J$5:$J$505,H$5) -> 0
B74: 68 | C74: =SUMIFS('05 Daten für SUMMEWENNS'!$E$5:$E$505,'05 Daten für SUMMEWENNS'!$H$5:$H$505,$B74,'05 Daten für SUMMEWENNS'!$J$5:$J$505,C$5) -> 0 | D74: =SUMIFS('05 Daten für SUMMEWENNS'!$E$5:$E$505,'05 Daten für SUMMEWENNS'!$H$5:$H$505,$B74,'05 Daten für SUMMEWENNS'!$J$5:$J$505,D$5) -> 0 | E74: =SUMIFS('05 Daten für SUMMEWENNS'!$E$5:$E$505,'05 Daten für SUMMEWENNS'!$H$5:$H$505,$B74,'05 Daten für SUMMEWENNS'!$J$5:$J$505,E$5) -> 0 | F74: =SUMIFS('05 Daten für SUMMEWENNS'!$E$5:$E$505,'05 Daten für SUMMEWENNS'!$H$5:$H$505,$B74,'05 Daten für SUMMEWENNS'!$J$5:$J$505,F$5) -> 0 | G74: =SUMIFS('05 Daten für SUMMEWENNS'!$E$5:$E$505,'05 Daten für SUMMEWENNS'!$H$5:$H$505,$B74,'05 Daten für SUMMEWENNS'!$J$5:$J$505,G$5) -> 0 | H74: =SUMIFS('05 Daten für SUMMEWENNS'!$E$5:$E$505,'05 Daten für SUMMEWENNS'!$H$5:$H$505,$B74,'05 Daten für SUMMEWENNS'!$J$5:$J$505,H$5) -> 0
B75: 69 | C75: =SUMIFS('05 Daten für SUMMEWENNS'!$E$5:$E$505,'05 Daten für SUMMEWENNS'!$H$5:$H$505,$B75,'05 Daten für SUMMEWENNS'!$J$5:$J$505,C$5) -> 0 | D75: =SUMIFS('05 Daten für SUMMEWENNS'!$E$5:$E$505,'05 Daten für SUMMEWENNS'!$H$5:$H$505,$B75,'05 Daten für SUMMEWENNS'!$J$5:$J$505,D$5) -> 0 | E75: =SUMIFS('05 Daten für SUMMEWENNS'!$E$5:$E$505,'05 Daten für SUMMEWENNS'!$H$5:$H$505,$B75,'05 Daten für SUMMEWENNS'!$J$5:$J$505,E$5) -> 0 | F75: =SUMIFS('05 Daten für SUMMEWENNS'!$E$5:$E$505,'05 Daten für SUMMEWENNS'!$H$5:$H$505,$B75,'05 Daten für SUMMEWENNS'!$J$5:$J$505,F$5) -> 0 | G75: =SUMIFS('05 Daten für SUMMEWENNS'!$E$5:$E$505,'05 Daten für SUMMEWENNS'!$H$5:$H$505,$B75,'05 Daten für SUMMEWENNS'!$J$5:$J$505,G$5) -> 0 | H75: =SUMIFS('05 Daten für SUMMEWENNS'!$E$5:$E$505,'05 Daten für SUMMEWENNS'!$H$5:$H$505,$B75,'05 Daten für SUMMEWENNS'!$J$5:$J$505,H$5) -> 0
B76: 70 | C76: =SUMIFS('05 Daten für SUMMEWENNS'!$E$5:$E$505,'05 Daten für SUMMEWENNS'!$H$5:$H$505,$B76,'05 Daten für SUMMEWENNS'!$J$5:$J$505,C$5) -> 0 | D76: =SUMIFS('05 Daten für SUMMEWENNS'!$E$5:$E$505,'05 Daten für SUMMEWENNS'!$H$5:$H$505,$B76,'05 Daten für SUMMEWENNS'!$J$5:$J$505,D$5) -> 0 | E76: =SUMIFS('05 Daten für SUMMEWENNS'!$E$5:$E$505,'05 Daten für SUMMEWENNS'!$H$5:$H$505,$B76,'05 Daten für SUMMEWENNS'!$J$5:$J$505,E$5) -> 0 | F76: =SUMIFS('05 Daten für SUMMEWENNS'!$E$5:$E$505,'05 Daten für SUMMEWENNS'!$H$5:$H$505,$B76,'05 Daten für SUMMEWENNS'!$J$5:$J$505,F$5) -> 0 | G76: =SUMIFS('05 Daten für SUMMEWENNS'!$E$5:$E$505,'05 Daten für SUMMEWENNS'!$H$5:$H$505,$B76,'05 Daten für SUMMEWENNS'!$J$5:$J$505,G$5) -> 0 | H76: =SUMIFS('05 Daten für SUMMEWENNS'!$E$5:$E$505,'05 Daten für SUMMEWENNS'!$H$5:$H$505,$B76,'05 Daten für SUMMEWENNS'!$J$5:$J$505,H$5) -> 0
B77: 71 | C77: =SUMIFS('05 Daten für SUMMEWENNS'!$E$5:$E$505,'05 Daten für SUMMEWENNS'!$H$5:$H$505,$B77,'05 Daten für SUMMEWENNS'!$J$5:$J$505,C$5) -> 0 | D77: =SUMIFS('05 Daten für SUMMEWENNS'!$E$5:$E$505,'05 Daten für SUMMEWENNS'!$H$5:$H$505,$B77,'05 Daten für SUMMEWENNS'!$J$5:$J$505,D$5) -> 0 | E77: =SUMIFS('05 Daten für SUMMEWENNS'!$E$5:$E$505,'05 Daten für SUMMEWENNS'!$H$5:$H$505,$B77,'05 Daten für SUMMEWENNS'!$J$5:$J$505,E$5) -> 0 | F77: =SUMIFS('05 Daten für SUMMEWENNS'!$E$5:$E$505,'05 Daten für SUMMEWENNS'!$H$5:$H$505,$B77,'05 Daten für SUMMEWENNS'!$J$5:$J$505,F$5) -> 0 | G77: =SUMIFS('05 Daten für SUMMEWENNS'!$E$5:$E$505,'05 Daten für SUMMEWENNS'!$H$5:$H$505,$B77,'05 Daten für SUMMEWENNS'!$J$5:$J$505,G$5) -> 0 | H77: =SUMIFS('05 Daten für SUMMEWENNS'!$E$5:$E$505,'05 Daten für SUMMEWENNS'!$H$5:$H$505,$B77,'05 Daten für SUMMEWENNS'!$J$5:$J$505,H$5) -> 0
B78: 72 | C78: =SUMIFS('05 Daten für SUMMEWENNS'!$E$5:$E$505,'05 Daten für SUMMEWENNS'!$H$5:$H$505,$B78,'05 Daten für SUMMEWENNS'!$J$5:$J$505,C$5) -> 0 | D78: =SUMIFS('05 Daten für SUMMEWENNS'!$E$5:$E$505,'05 Daten für SUMMEWENNS'!$H$5:$H$505,$B78,'05 Daten für SUMMEWENNS'!$J$5:$J$505,D$5) -> 0 | E78: =SUMIFS('05 Daten für SUMMEWENNS'!$E$5:$E$505,'05 Daten für SUMMEWENNS'!$H$5:$H$505,$B78,'05 Daten für SUMMEWENNS'!$J$5:$J$505,E$5) -> 0 | F78: =SUMIFS('05 Daten für SUMMEWENNS'!$E$5:$E$505,'05 Daten für SUMMEWENNS'!$H$5:$H$505,$B78,'05 Daten für SUMMEWENNS'!$J$5:$J$505,F$5) -> 0 | G78: =SUMIFS('05 Daten für SUMMEWENNS'!$E$5:$E$505,'05 Daten für SUMMEWENNS'!$H$5:$H$505,$B78,'05 Daten für SUMMEWENNS'!$J$5:$J$505,G$5) -> 0 | H78: =SUMIFS('05 Daten für SUMMEWENNS'!$E$5:$E$505,'05 Daten für SUMMEWENNS'!$H$5:$H$505,$B78,'05 Daten für SUMMEWENNS'!$J$5:$J$505,H$5) -> 0
B79: 73 | C79: =SUMIFS('05 Daten für SUMMEWENNS'!$E$5:$E$505,'05 Daten für SUMMEWENNS'!$H$5:$H$505,$B79,'05 Daten für SUMMEWENNS'!$J$5:$J$505,C$5) -> 407.55 | D79: =SUMIFS('05 Daten für SUMMEWENNS'!$E$5:$E$505,'05 Daten für SUMMEWENNS'!$H$5:$H$505,$B79,'05 Daten für SUMMEWENNS'!$J$5:$J$505,D$5) -> 339.144 | E79: =SUMIFS('05 Daten für SUMMEWENNS'!$E$5:$E$505,'05 Daten für SUMMEWENNS'!$H$5:$H$505,$B79,'05 Daten für SUMMEWENNS'!$J$5:$J$505,E$5) -> 0 | F79: =SUMIFS('05 Daten für SUMMEWENNS'!$E$5:$E$505,'05 Daten für SUMMEWENNS'!$H$5:$H$505,$B79,'05 Daten für SUMMEWENNS'!$J$5:$J$505,F$5) -> 789.748 | G79: =SUMIFS('05 Daten für SUMMEWENNS'!$E$5:$E$505,'05 Daten für SUMMEWENNS'!$H$5:$H$505,$B79,'05 Daten für SUMMEWENNS'!$J$5:$J$505,G$5) -> 51.444 | H79: =SUMIFS('05 Daten für SUMMEWENNS'!$E$5:$E$505,'05 Daten für SUMMEWENNS'!$H$5:$H$505,$B79,'05 Daten für SUMMEWENNS'!$J$5:$J$505,H$5) -> 0
B80: 74 | C80: =SUMIFS('05 Daten für SUMMEWENNS'!$E$5:$E$505,'05 Daten für SUMMEWENNS'!$H$5:$H$505,$B80,'05 Daten für SUMMEWENNS'!$J$5:$J$505,C$5) -> 0 | D80: =SUMIFS('05 Daten für SUMMEWENNS'!$E$5:$E$505,'05 Daten für SUMMEWENNS'!$H$5:$H$505,$B80,'05 Daten für SUMMEWENNS'!$J$5:$J$505,D$5) -> 0 | E80: =SUMIFS('05 Daten für SUMMEWENNS'!$E$5:$E$505,'05 Daten für SUMMEWENNS'!$H$5:$H$505,$B80,'05 Daten für SUMMEWENNS'!$J$5:$J$505,E$5) -> 0 | F80: =SUMIFS('05 Daten für SUMMEWENNS'!$E$5:$E$505,'05 Daten für SUMMEWENNS'!$H$5:$H$505,$B80,'05 Daten für SUMMEWENNS'!$J$5:$J$505,F$5) -> 0 | G80: =SUMIFS('05 Daten für SUMMEWENNS'!$E$5:$E$505,'05 Daten für SUMMEWENNS'!$H$5:$H$505,$B80,'05 Daten für SUMMEWENNS'!$J$5:$J$505,G$5) -> 0 | H80: =SUMIFS('05 Daten für SUMMEWENNS'!$E$5:$E$505,'05 Daten für SUMMEWENNS'!$H$5:$H$505,$B80,'05 Daten für SUMMEWENNS'!$J$5:$J$505,H$5) -> 0
B81: 75 | C81: =SUMIFS('05 Daten für SUMMEWENNS'!$E$5:$E$505,'05 Daten für SUMMEWENNS'!$H$5:$H$505,$B81,'05 Daten für SUMMEWENNS'!$J$5:$J$505,C$5) -> 0 | D81: =SUMIFS('05 Daten für SUMMEWENNS'!$E$5:$E$505,'05 Daten für SUMMEWENNS'!$H$5:$H$505,$B81,'05 Daten für SUMMEWENNS'!$J$5:$J$505,D$5) -> 0 | E81: =SUMIFS('05 Daten für SUMMEWENNS'!$E$5:$E$505,'05 Daten für SUMMEWENNS'!$H$5:$H$505,$B81,'05 Daten für SUMMEWENNS'!$J$5:$J$505,E$5) -> 0 | F81: =SUMIFS('05 Daten für SUMMEWENNS'!$E$5:$E$505,'05 Daten für SUMMEWENNS'!$H$5:$H$505,$B81,'05 Daten für SUMMEWENNS'!$J$5:$J$505,F$5) -> 0 | G81: =SUMIFS('05 Daten für SUMMEWENNS'!$E$5:$E$505,'05 Daten für SUMMEWENNS'!$H$5:$H$505,$B81,'05 Daten für SUMMEWENNS'!$J$5:$J$505,G$5) -> 0 | H81: =SUMIFS('05 Daten für SUMMEWENNS'!$E$5:$E$505,'05 Daten für SUMMEWENNS'!$H$5:$H$505,$B81,'05 Daten für SUMMEWENNS'!$J$5:$J$505,H$5) -> 0
B82: 76 | C82: =SUMIFS('05 Daten für SUMMEWENNS'!$E$5:$E$505,'05 Daten für SUMMEWENNS'!$H$5:$H$505,$B82,'05 Daten für SUMMEWENNS'!$J$5:$J$505,C$5) -> 289.176 | D82: =SUMIFS('05 Daten für SUMMEWENNS'!$E$5:$E$505,'05 Daten für SUMMEWENNS'!$H$5:$H$505,$B82,'05 Daten für SUMMEWENNS'!$J$5:$J$505,D$5) -> 0 | E82: =SUMIFS('05 Daten für SUMMEWENNS'!$E$5:$E$505,'05 Daten für SUMMEWENNS'!$H$5:$H$505,$B82,'05 Daten für SUMMEWENNS'!$J$5:$J$505,E$5) -> 0 | F82: =SUMIFS('05 Daten für SUMMEWENNS'!$E$5:$E$505,'05 Daten für SUMMEWENNS'!$H$5:$H$505,$B82,'05 Daten für SUMMEWENNS'!$J$5:$J$505,F$5) -> 29.46 | G82: =SUMIFS('05 Daten für SUMMEWENNS'!$E$5:$E$505,'05 Daten für SUMMEWENNS'!$H$5:$H$505,$B82,'05 Daten für SUMMEWENNS'!$J$5:$J$505,G$5) -> 121.464 | H82: =SUMIFS('05 Daten für SUMMEWENNS'!$E$5:$E$505,'05 Daten für SUMMEWENNS'!$H$5:$H$505,$B82,'05 Daten für SUMMEWENNS'!$J$5:$J$505,H$5) -> 0
B83: 77 | C83: =SUMIFS('05 Daten für SUMMEWENNS'!$E$5:$E$505,'05 Daten für SUMMEWENNS'!$H$5:$H$505,$B83,'05 Daten für SUMMEWENNS'!$J$5:$J$505,C$5) -> 0 | D83: =SUMIFS('05 Daten für SUMMEWENNS'!$E$5:$E$505,'05 Daten für SUMMEWENNS'!$H$5:$H$505,$B83,'05 Daten für SUMMEWENNS'!$J$5:$J$505,D$5) -> 0 | E83: =SUMIFS('05 Daten für SUMMEWENNS'!$E$5:$E$505,'05 Daten für SUMMEWENNS'!$H$5:$H$505,$B83,'05 Daten für SUMMEWENNS'!$J$5:$J$505,E$5) -> 0 | F83: =SUMIFS('05 Daten für SUMMEWENNS'!$E$5:$E$505,'05 Daten für SUMMEWENNS'!$H$5:$H$505,$B83,'05 Daten für SUMMEWENNS'!$J$5:$J$505,F$5) -> 0 | G83: =SUMIFS('05 Daten für SUMMEWENNS'!$E$5:$E$505,'05 Daten für SUMMEWENNS'!$H$5:$H$505,$B83,'05 Daten für SUMMEWENNS'!$J$5:$J$505,G$5) -> 0 | H83: =SUMIFS('05 Daten für SUMMEWENNS'!$E$5:$E$505,'05 Daten für SUMMEWENNS'!$H$5:$H$505,$B83,'05 Daten für SUMMEWENNS'!$J$5:$J$505,H$5) -> 0
B84: 78 | C84: =SUMIFS('05 Daten für SUMMEWENNS'!$E$5:$E$505,'05 Daten für SUMMEWENNS'!$H$5:$H$505,$B84,'05 Daten für SUMMEWENNS'!$J$5:$J$505,C$5) -> 0 | D84: =SUMIFS('05 Daten für SUMMEWENNS'!$E$5:$E$505,'05 Daten für SUMMEWENNS'!$H$5:$H$505,$B84,'05 Daten für SUMMEWENNS'!$J$5:$J$505,D$5) -> 0 | E84: =SUMIFS('05 Daten für SUMMEWENNS'!$E$5:$E$505,'05 Daten für SUMMEWENNS'!$H$5:$H$505,$B84,'05 Daten für SUMMEWENNS'!$J$5:$J$505,E$5) -> 0 | F84: =SUMIFS('05 Daten für SUMMEWENNS'!$E$5:$E$505,'05 Daten für SUMMEWENNS'!$H$5:$H$505,$B84,'05 Daten für SUMMEWENNS'!$J$5:$J$505,F$5) -> 0 | G84: =SUMIFS('05 Daten für SUMMEWENNS'!$E$5:$E$505,'05 Daten für SUMMEWENNS'!$H$5:$H$505,$B84,'05 Daten für SUMMEWENNS'!$J$5:$J$505,G$5) -> 0 | H84: =SUMIFS('05 Daten für SUMMEWENNS'!$E$5:$E$505,'05 Daten für SUMMEWENNS'!$H$5:$H$505,$B84,'05 Daten für SUMMEWENNS'!$J$5:$J$505,H$5) -> 0
B85: 79 | C85: =SUMIFS('05 Daten für SUMMEWENNS'!$E$5:$E$505,'05 Daten für SUMMEWENNS'!$H$5:$H$505,$B85,'05 Daten für SUMMEWENNS'!$J$5:$J$505,C$5) -> 0 | D85: =SUMIFS('05 Daten für SUMMEWENNS'!$E$5:$E$505,'05 Daten für SUMMEWENNS'!$H$5:$H$505,$B85,'05 Daten für SUMMEWENNS'!$J$5:$J$505,D$5) -> 0 | E85: =SUMIFS('05 Daten für SUMMEWENNS'!$E$5:$E$505,'05 Daten für SUMMEWENNS'!$H$5:$H$505,$B85,'05 Daten für SUMMEWENNS'!$J$5:$J$505,E$5) -> 0 | F85: =SUMIFS('05 Daten für SUMMEWENNS'!$E$5:$E$505,'05 Daten für SUMMEWENNS'!$H$5:$H$505,$B85,'05 Daten für SUMMEWENNS'!$J$5:$J$505,F$5) -> 0 | G85: =SUMIFS('05 Daten für SUMMEWENNS'!$E$5:$E$505,'05 Daten für SUMMEWENNS'!$H$5:$H$505,$B85,'05 Daten für SUMMEWENNS'!$J$5:$J$505,G$5) -> 0 | H85: =SUMIFS('05 Daten für SUMMEWENNS'!$E$5:$E$505,'05 Daten für SUMMEWENNS'!$H$5:$H$505,$B85,'05 Daten für SUMMEWENNS'!$J$5:$J$505,H$5) -> 0
B86: 80 | C86: =SUMIFS('05 Daten für SUMMEWENNS'!$E$5:$E$505,'05 Daten für SUMMEWENNS'!$H$5:$H$505,$B86,'05 Daten für SUMMEWENNS'!$J$5:$J$505,C$5) -> 0 | D86: =SUMIFS('05 Daten für SUMMEWENNS'!$E$5:$E$505,'05 Daten für SUMMEWENNS'!$H$5:$H$505,$B86,'05 Daten für SUMMEWENNS'!$J$5:$J$505,D$5) -> 0 | E86: =SUMIFS('05 Daten für SUMMEWENNS'!$E$5:$E$505,'05 Daten für SUMMEWENNS'!$H$5:$H$505,$B86,'05 Daten für SUMMEWENNS'!$J$5:$J$505,E$5) -> 0 | F86: =SUMIFS('05 Daten für SUMMEWENNS'!$E$5:$E$505,'05 Daten für SUMMEWENNS'!$H$5:$H$505,$B86,'05 Daten für SUMMEWENNS'!$J$5:$J$505,F$5) -> 0 | G86: =SUMIFS('05 Daten für SUMMEWENNS'!$E$5:$E$505,'05 Daten für SUMMEWENNS'!$H$5:$H$505,$B86,'05 Daten für SUMMEWENNS'!$J$5:$J$505,G$5) -> 0 | H86: =SUMIFS('05 Daten für SUMMEWENNS'!$E$5:$E$505,'05 Daten für SUMMEWENNS'!$H$5:$H$505,$B86,'05 Daten für SUMMEWENNS'!$J$5:$J$505,H$5) -> 0
B87: 81 | C87: =SUMIFS('05 Daten für SUMMEWENNS'!$E$5:$E$505,'05 Daten für SUMMEWENNS'!$H$5:$H$505,$B87,'05 Daten für SUMMEWENNS'!$J$5:$J$505,C$5) -> 0 | D87: =SUMIFS('05 Daten für SUMMEWENNS'!$E$5:$E$505,'05 Daten für SUMMEWENNS'!$H$5:$H$505,$B87,'05 Daten für SUMMEWENNS'!$J$5:$J$505,D$5) -> 0 | E87: =SUMIFS('05 Daten für SUMMEWENNS'!$E$5:$E$505,'05 Daten für SUMMEWENNS'!$H$5:$H$505,$B87,'05 Daten für SUMMEWENNS'!$J$5:$J$505,E$5) -> 0 | F87: =SUMIFS('05 Daten für SUMMEWENNS'!$E$5:$E$505,'05 Daten für SUMMEWENNS'!$H$5:$H$505,$B87,'05 Daten für SUMMEWENNS'!$J$5:$J$505,F$5) -> 0 | G87: =SUMIFS('05 Daten für SUMMEWENNS'!$E$5:$E$505,'05 Daten für SUMMEWENNS'!$H$5:$H$505,$B87,'05 Daten für SUMMEWENNS'!$J$5:$J$505,G$5) -> 0 | H87: =SUMIFS('05 Daten für SUMMEWENNS'!$E$5:$E$505,'05 Daten für SUMMEWENNS'!$H$5:$H$505,$B87,'05 Daten für SUMMEWENNS'!$J$5:$J$505,H$5) -> 0
B88: 82 | C88: =SUMIFS('05 Daten für SUMMEWENNS'!$E$5:$E$505,'05 Daten für SUMMEWENNS'!$H$5:$H$505,$B88,'05 Daten für SUMMEWENNS'!$J$5:$J$505,C$5) -> 0 | D88: =SUMIFS('05 Daten für SUMMEWENNS'!$E$5:$E$505,'05 Daten für SUMMEWENNS'!$H$5:$H$505,$B88,'05 Daten für SUMMEWENNS'!$J$5:$J$505,D$5) -> 0 | E88: =SUMIFS('05 Daten für SUMMEWENNS'!$E$5:$E$505,'05 Daten für SUMMEWENNS'!$H$5:$H$505,$B88,'05 Daten für SUMMEWENNS'!$J$5:$J$505,E$5) -> 0 | F88: =SUMIFS('05 Daten für SUMMEWENNS'!$E$5:$E$505,'05 Daten für SUMMEWENNS'!$H$5:$H$505,$B88,'05 Daten für SUMMEWENNS'!$J$5:$J$505,F$5) -> 0 | G88: =SUMIFS('05 Daten für SUMMEWENNS'!$E$5:$E$505,'05 Daten für SUMMEWENNS'!$H$5:$H$505,$B88,'05 Daten für SUMMEWENNS'!$J$5:$J$505,G$5) -> 0 | H88: =SUMIFS('05 Daten für SUMMEWENNS'!$E$5:$E$505,'05 Daten für SUMMEWENNS'!$H$5:$H$505,$B88,'05 Daten für SUMMEWENNS'!$J$5:$J$505,H$5) -> 0
B89: 83 | C89: =SUMIFS('05 Daten für SUMMEWENNS'!$E$5:$E$505,'05 Daten für SUMMEWENNS'!$H$5:$H$505,$B89,'05 Daten für SUMMEWENNS'!$J$5:$J$505,C$5) -> 0 | D89: =SUMIFS('05 Daten für SUMMEWENNS'!$E$5:$E$505,'05 Daten für SUMMEWENNS'!$H$5:$H$505,$B89,'05 Daten für SUMMEWENNS'!$J$5:$J$505,D$5) -> 0 | E89: =SUMIFS('05 Daten für SUMMEWENNS'!$E$5:$E$505,'05 Daten für SUMMEWENNS'!$H$5:$H$505,$B89,'05 Daten für SUMMEWENNS'!$J$5:$J$505,E$5) -> 0 | F89: =SUMIFS('05 Daten für SUMMEWENNS'!$E$5:$E$505,'05 Daten für SUMMEWENNS'!$H$5:$H$505,$B89,'05 Daten für SUMMEWENNS'!$J$5:$J$505,F$5) -> 0 | G89: =SUMIFS('05 Daten für SUMMEWENNS'!$E$5:$E$505,'05 Daten für SUMMEWENNS'!$H$5:$H$505,$B89,'05 Daten für SUMMEWENNS'!$J$5:$J$505,G$5) -> 0 | H89: =SUMIFS('05 Daten für SUMMEWENNS'!$E$5:$E$505,'05 Daten für SUMMEWENNS'!$H$5:$H$505,$B89,'05 Daten für SUMMEWENNS'!$J$5:$J$505,H$5) -> 0
B90: 84 | C90: =SUMIFS('05 Daten für SUMMEWENNS'!$E$5:$E$505,'05 Daten für SUMMEWENNS'!$H$5:$H$505,$B90,'05 Daten für SUMMEWENNS'!$J$5:$J$505,C$5) -> 0 | D90: =SUMIFS('05 Daten für SUMMEWENNS'!$E$5:$E$505,'05 Daten für SUMMEWENNS'!$H$5:$H$505,$B90,'05 Daten für SUMMEWENNS'!$J$5:$J$505,D$5) -> 0 | E90: =SUMIFS('05 Daten für SUMMEWENNS'!$E$5:$E$505,'05 Daten für SUMMEWENNS'!$H$5:$H$505,$B90,'05 Daten für SUMMEWENNS'!$J$5:$J$505,E$5) -> 0 | F90: =SUMIFS('05 Daten für SUMMEWENNS'!$E$5:$E$505,'05 Daten für SUMMEWENNS'!$H$5:$H$505,$B90,'05 Daten für SUMMEWENNS'!$J$5:$J$505,F$5) -> 0 | G90: =SUMIFS('05 Daten für SUMMEWENNS'!$E$5:$E$505,'05 Daten für SUMMEWENNS'!$H$5:$H$505,$B90,'05 Daten für SUMMEWENNS'!$J$5:$J$505,G$5) -> 0 | H90: =SUMIFS('05 Daten für SUMMEWENNS'!$E$5:$E$505,'05 Daten für SUMMEWENNS'!$H$5:$H$505,$B90,'05 Daten für SUMMEWENNS'!$J$5:$J$505,H$5) -> 0
B91: 85 | C91: =SUMIFS('05 Daten für SUMMEWENNS'!$E$5:$E$505,'05 Daten für SUMMEWENNS'!$H$5:$H$505,$B91,'05 Daten für SUMMEWENNS'!$J$5:$J$505,C$5) -> 0 | D91: =SUMIFS('05 Daten für SUMMEWENNS'!$E$5:$E$505,'05 Daten für SUMMEWENNS'!$H$5:$H$505,$B91,'05 Daten für SUMMEWENNS'!$J$5:$J$505,D$5) -> 0 | E91: =SUMIFS('05 Daten für SUMMEWENNS'!$E$5:$E$505,'05 Daten für SUMMEWENNS'!$H$5:$H$505,$B91,'05 Daten für SUMMEWENNS'!$J$5:$J$505,E$5) -> 0 | F91: =SUMIFS('05 Daten für SUMMEWENNS'!$E$5:$E$505,'05 Daten für SUMMEWENNS'!$H$5:$H$505,$B91,'05 Daten für SUMMEWENNS'!$J$5:$J$505,F$5) -> 0 | G91: =SUMIFS('05 Daten für SUMMEWENNS'!$E$5:$E$505,'05 Daten für SUMMEWENNS'!$H$5:$H$505,$B91,'05 Daten für SUMMEWENNS'!$J$5:$J$505,G$5) -> 0 | H91: =SUMIFS('05 Daten für SUMMEWENNS'!$E$5:$E$505,'05 Daten für SUMMEWENNS'!$H$5:$H$505,$B91,'05 Daten für SUMMEWENNS'!$J$5:$J$505,H$5) -> 0
B92: 86 | C92: =SUMIFS('05 Daten für SUMMEWENNS'!$E$5:$E$505,'05 Daten für SUMMEWENNS'!$H$5:$H$505,$B92,'05 Daten für SUMMEWENNS'!$J$5:$J$505,C$5) -> 0 | D92: =SUMIFS('05 Daten für SUMMEWENNS'!$E$5:$E$505,'05 Daten für SUMMEWENNS'!$H$5:$H$505,$B92,'05 Daten für SUMMEWENNS'!$J$5:$J$505,D$5) -> 0 | E92: =SUMIFS('05 Daten für SUMMEWENNS'!$E$5:$E$505,'05 Daten für SUMMEWENNS'!$H$5:$H$505,$B92,'05 Daten für SUMMEWENNS'!$J$5:$J$505,E$5) -> 0 | F92: =SUMIFS('05 Daten für SUMMEWENNS'!$E$5:$E$505,'05 Daten für SUMMEWENNS'!$H$5:$H$505,$B92,'05 Daten für SUMMEWENNS'!$J$5:$J$505,F$5) -> 0 | G92: =SUMIFS('05 Daten für SUMMEWENNS'!$E$5:$E$505,'05 Daten für SUMMEWENNS'!$H$5:$H$505,$B92,'05 Daten für SUMMEWENNS'!$J$5:$J$505,G$5) -> 0 | H92: =SUMIFS('05 Daten für SUMMEWENNS'!$E$5:$E$505,'05 Daten für SUMMEWENNS'!$H$5:$H$505,$B92,'05 Daten für SUMMEWENNS'!$J$5:$J$505,H$5) -> 0
B93: 87 | C93: =SUMIFS('05 Daten für SUMMEWENNS'!$E$5:$E$505,'05 Daten für SUMMEWENNS'!$H$5:$H$505,$B93,'05 Daten für SUMMEWENNS'!$J$5:$J$505,C$5) -> 0 | D93: =SUMIFS('05 Daten für SUMMEWENNS'!$E$5:$E$505,'05 Daten für SUMMEWENNS'!$H$5:$H$505,$B93,'05 Daten für SUMMEWENNS'!$J$5:$J$505,D$5) -> 0 | E93: =SUMIFS('05 Daten für SUMMEWENNS'!$E$5:$E$505,'05 Daten für SUMMEWENNS'!$H$5:$H$505,$B93,'05 Daten für SUMMEWENNS'!$J$5:$J$505,E$5) -> 0 | F93: =SUMIFS('05 Daten für SUMMEWENNS'!$E$5:$E$505,'05 Daten für SUMMEWENNS'!$H$5:$H$505,$B93,'05 Daten für SUMMEWENNS'!$J$5:$J$505,F$5) -> 0 | G93: =SUMIFS('05 Daten für SUMMEWENNS'!$E$5:$E$505,'05 Daten für SUMMEWENNS'!$H$5:$H$505,$B93,'05 Daten für SUMMEWENNS'!$J$5:$J$505,G$5) -> 0 | H93: =SUMIFS('05 Daten für SUMMEWENNS'!$E$5:$E$505,'05 Daten für SUMMEWENNS'!$H$5:$H$505,$B93,'05 Daten für SUMMEWENNS'!$J$5:$J$505,H$5) -> 0
B94: 88 | C94: =SUMIFS('05 Daten für SUMMEWENNS'!$E$5:$E$505,'05 Daten für SUMMEWENNS'!$H$5:$H$505,$B94,'05 Daten für SUMMEWENNS'!$J$5:$J$505,C$5) -> 0 | D94: =SUMIFS('05 Daten für SUMMEWENNS'!$E$5:$E$505,'05 Daten für SUMMEWENNS'!$H$5:$H$505,$B94,'05 Daten für SUMMEWENNS'!$J$5:$J$505,D$5) -> 0 | E94: =SUMIFS('05 Daten für SUMMEWENNS'!$E$5:$E$505,'05 Daten für SUMMEWENNS'!$H$5:$H$505,$B94,'05 Daten für SUMMEWENNS'!$J$5:$J$505,E$5) -> 0 | F94: =SUMIFS('05 Daten für SUMMEWENNS'!$E$5:$E$505,'05 Daten für SUMMEWENNS'!$H$5:$H$505,$B94,'05 Daten für SUMMEWENNS'!$J$5:$J$505,F$5) -> 0 | G94: =SUMIFS('05 Daten für SUMMEWENNS'!$E$5:$E$505,'05 Daten für SUMMEWENNS'!$H$5:$H$505,$B94,'05 Daten für SUMMEWENNS'!$J$5:$J$505,G$5) -> 0 | H94: =SUMIFS('05 Daten für SUMMEWENNS'!$E$5:$E$505,'05 Daten für SUMMEWENNS'!$H$5:$H$505,$B94,'05 Daten für SUMMEWENNS'!$J$5:$J$505,H$5) -> 0
B95: 89 | C95: =SUMIFS('05 Daten für SUMMEWENNS'!$E$5:$E$505,'05 Daten für SUMMEWENNS'!$H$5:$H$505,$B95,'05 Daten für SUMMEWENNS'!$J$5:$J$505,C$5) -> 0 | D95: =SUMIFS('05 Daten für SUMMEWENNS'!$E$5:$E$505,'05 Daten für SUMMEWENNS'!$H$5:$H$505,$B95,'05 Daten für SUMMEWENNS'!$J$5:$J$505,D$5) -> 0 | E95: =SUMIFS('05 Daten für SUMMEWENNS'!$E$5:$E$505,'05 Daten für SUMMEWENNS'!$H$5:$H$505,$B95,'05 Daten für SUMMEWENNS'!$J$5:$J$505,E$5) -> 0 | F95: =SUMIFS('05 Daten für SUMMEWENNS'!$E$5:$E$505,'05 Daten für SUMMEWENNS'!$H$5:$H$505,$B95,'05 Daten für SUMMEWENNS'!$J$5:$J$505,F$5) -> 0 | G95: =SUMIFS('05 Daten für SUMMEWENNS'!$E$5:$E$505,'05 Daten für SUMMEWENNS'!$H$5:$H$505,$B95,'05 Daten für SUMMEWENNS'!$J$5:$J$505,G$5) -> 0 | H95: =SUMIFS('05 Daten für SUMMEWENNS'!$E$5:$E$505,'05 Daten für SUMMEWENNS'!$H$5:$H$505,$B95,'05 Daten für SUMMEWENNS'!$J$5:$J$505,H$5) -> 0
B96: 90 | C96: =SUMIFS('05 Daten für SUMMEWENNS'!$E$5:$E$505,'05 Daten für SUMMEWENNS'!$H$5:$H$505,$B96,'05 Daten für SUMMEWENNS'!$J$5:$J$505,C$5) -> 0 | D96: =SUMIFS('05 Daten für SUMMEWENNS'!$E$5:$E$505,'05 Daten für SUMMEWENNS'!$H$5:$H$505,$B96,'05 Daten für SUMMEWENNS'!$J$5:$J$505,D$5) -> 0 | E96: =SUMIFS('05 Daten für SUMMEWENNS'!$E$5:$E$505,'05 Daten für SUMMEWENNS'!$H$5:$H$505,$B96,'05 Daten für SUMMEWENNS'!$J$5:$J$505,E$5) -> 0 | F96: =SUMIFS('05 Daten für SUMMEWENNS'!$E$5:$E$505,'05 Daten für SUMMEWENNS'!$H$5:$H$505,$B96,'05 Daten für SUMMEWENNS'!$J$5:$J$505,F$5) -> 40098.24 | G96: =SUMIFS('05 Daten für SUMMEWENNS'!$E$5:$E$505,'05 Daten für SUMMEWENNS'!$H$5:$H$505,$B96,'05 Daten für SUMMEWENNS'!$J$5:$J$505,G$5) -> 0 | H96: =SUMIFS('05 Daten für SUMMEWENNS'!$E$5:$E$505,'05 Daten für SUMMEWENNS'!$H$5:$H$505,$B96,'05 Daten für SUMMEWENNS'!$J$5:$J$505,H$5) -> 0
B97: 91 | C97: =SUMIFS('05 Daten für SUMMEWENNS'!$E$5:$E$505,'05 Daten für SUMMEWENNS'!$H$5:$H$505,$B97,'05 Daten für SUMMEWENNS'!$J$5:$J$505,C$5) -> 0 | D97: =SUMIFS('05 Daten für SUMMEWENNS'!$E$5:$E$505,'05 Daten für SUMMEWENNS'!$H$5:$H$505,$B97,'05 Daten für SUMMEWENNS'!$J$5:$J$505,D$5) -> 0 | E97: =SUMIFS('05 Daten für SUMMEWENNS'!$E$5:$E$505,'05 Daten für SUMMEWENNS'!$H$5:$H$505,$B97,'05 Daten für SUMMEWENNS'!$J$5:$J$505,E$5) -> 0 | F97: =SUMIFS('05 Daten für SUMMEWENNS'!$E$5:$E$505,'05 Daten für SUMMEWENNS'!$H$5:$H$505,$B97,'05 Daten für SUMMEWENNS'!$J$5:$J$505,F$5) -> 0 | G97: =SUMIFS('05 Daten für SUMMEWENNS'!$E$5:$E$505,'05 Daten für SUMMEWENNS'!$H$5:$H$505,$B97,'05 Daten für SUMMEWENNS'!$J$5:$J$505,G$5) -> 0 | H97: =SUMIFS('05 Daten für SUMMEWENNS'!$E$5:$E$505,'05 Daten für SUMMEWENNS'!$H$5:$H$505,$B97,'05 Daten für SUMMEWENNS'!$J$5:$J$505,H$5) -> 0
B98: 92 | C98: =SUMIFS('05 Daten für SUMMEWENNS'!$E$5:$E$505,'05 Daten für SUMMEWENNS'!$H$5:$H$505,$B98,'05 Daten für SUMMEWENNS'!$J$5:$J$505,C$5) -> 0 | D98: =SUMIFS('05 Daten für SUMMEWENNS'!$E$5:$E$505,'05 Daten für SUMMEWENNS'!$H$5:$H$505,$B98,'05 Daten für SUMMEWENNS'!$J$5:$J$505,D$5) -> 0 | E98: =SUMIFS('05 Daten für SUMMEWENNS'!$E$5:$E$505,'05 Daten für SUMMEWENNS'!$H$5:$H$505,$B98,'05 Daten für SUMMEWENNS'!$J$5:$J$505,E$5) -> 0 | F98: =SUMIFS('05 Daten für SUMMEWENNS'!$E$5:$E$505,'05 Daten für SUMMEWENNS'!$H$5:$H$505,$B98,'05 Daten für SUMMEWENNS'!$J$5:$J$505,F$5) -> 0 | G98: =SUMIFS('05 Daten für SUMMEWENNS'!$E$5:$E$505,'05 Daten für SUMMEWENNS'!$H$5:$H$505,$B98,'05 Daten für SUMMEWENNS'!$J$5:$J$505,G$5) -> 0 | H98: =SUMIFS('05 Daten für SUMMEWENNS'!$E$5:$E$505,'05 Daten für SUMMEWENNS'!$H$5:$H$505,$B98,'05 Daten für SUMMEWENNS'!$J$5:$J$505,H$5) -> 0
B99: 93 | C99: =SUMIFS('05 Daten für SUMMEWENNS'!$E$5:$E$505,'05 Daten für SUMMEWENNS'!$H$5:$H$505,$B99,'05 Daten für SUMMEWENNS'!$J$5:$J$505,C$5) -> 0 | D99: =SUMIFS('05 Daten für SUMMEWENNS'!$E$5:$E$505,'05 Daten für SUMMEWENNS'!$H$5:$H$505,$B99,'05 Daten für SUMMEWENNS'!$J$5:$J$505,D$5) -> 0 | E99: =SUMIFS('05 Daten für SUMMEWENNS'!$E$5:$E$505,'05 Daten für SUMMEWENNS'!$H$5:$H$505,$B99,'05 Daten für SUMMEWENNS'!$J$5:$J$505,E$5) -> 0 | F99: =SUMIFS('05 Daten für SUMMEWENNS'!$E$5:$E$505,'05 Daten für SUMMEWENNS'!$H$5:$H$505,$B99,'05 Daten für SUMMEWENNS'!$J$5:$J$505,F$5) -> 0 | G99: =SUMIFS('05 Daten für SUMMEWENNS'!$E$5:$E$505,'05 Daten für SUMMEWENNS'!$H$5:$H$505,$B99,'05 Daten für SUMMEWENNS'!$J$5:$J$505,G$5) -> 0 | H99: =SUMIFS('05 Daten für SUMMEWENNS'!$E$5:$E$505,'05 Daten für SUMMEWENNS'!$H$5:$H$505,$B99,'05 Daten für SUMMEWENNS'!$J$5:$J$505,H$5) -> 0
B100: 94 | C100: =SUMIFS('05 Daten für SUMMEWENNS'!$E$5:$E$505,'05 Daten für SUMMEWENNS'!$H$5:$H$505,$B100,'05 Daten für SUMMEWENNS'!$J$5:$J$505,C$5) -> 0 | D100: =SUMIFS('05 Daten für SUMMEWENNS'!$E$5:$E$505,'05 Daten für SUMMEWENNS'!$H$5:$H$505,$B100,'05 Daten für SUMMEWENNS'!$J$5:$J$505,D$5) -> 0 | E100: =SUMIFS('05 Daten für SUMMEWENNS'!$E$5:$E$505,'05 Daten für SUMMEWENNS'!$H$5:$H$505,$B100,'05 Daten für SUMMEWENNS'!$J$5:$J$505,E$5) -> 0 | F100: =SUMIFS('05 Daten für SUMMEWENNS'!$E$5:$E$505,'05 Daten für SUMMEWENNS'!$H$5:$H$505,$B100,'05 Daten für SUMMEWENNS'!$J$5:$J$505,F$5) -> 0 | G100: =SUMIFS('05 Daten für SUMMEWENNS'!$E$5:$E$505,'05 Daten für SUMMEWENNS'!$H$5:$H$505,$B100,'05 Daten für SUMMEWENNS'!$J$5:$J$505,G$5) -> 0 | H100: =SUMIFS('05 Daten für SUMMEWENNS'!$E$5:$E$505,'05 Daten für SUMMEWENNS'!$H$5:$H$505,$B100,'05 Daten für SUMMEWENNS'!$J$5:$J$505,H$5) -> 0
B101: 95 | C101: =SUMIFS('05 Daten für SUMMEWENNS'!$E$5:$E$505,'05 Daten für SUMMEWENNS'!$H$5:$H$505,$B101,'05 Daten für SUMMEWENNS'!$J$5:$J$505,C$5) -> 4182.08 | D101: =SUMIFS('05 Daten für SUMMEWENNS'!$E$5:$E$505,'05 Daten für SUMMEWENNS'!$H$5:$H$505,$B101,'05 Daten für SUMMEWENNS'!$J$5:$J$505,D$5) -> 2856.4 | E101: =SUMIFS('05 Daten für SUMMEWENNS'!$E$5:$E$505,'05 Daten für SUMMEWENNS'!$H$5:$H$505,$B101,'05 Daten für SUMMEWENNS'!$J$5:$J$505,E$5) -> 0 | F101: =SUMIFS('05 Daten für SUMMEWENNS'!$E$5:$E$505,'05 Daten für SUMMEWENNS'!$H$5:$H$505,$B101,'05 Daten für SUMMEWENNS'!$J$5:$J$505,F$5) -> 805 | G101: =SUMIFS('05 Daten für SUMMEWENNS'!$E$5:$E$505,'05 Daten für SUMMEWENNS'!$H$5:$H$505,$B101,'05 Daten für SUMMEWENNS'!$J$5:$J$505,G$5) -> 0 | H101: =SUMIFS('05 Daten für SUMMEWENNS'!$E$5:$E$505,'05 Daten für SUMMEWENNS'!$H$5:$H$505,$B101,'05 Daten für SUMMEWENNS'!$J$5:$J$505,H$5) -> 0
B102: 96 | C102: =SUMIFS('05 Daten für SUMMEWENNS'!$E$5:$E$505,'05 Daten für SUMMEWENNS'!$H$5:$H$505,$B102,'05 Daten für SUMMEWENNS'!$J$5:$J$505,C$5) -> 0 | D102: =SUMIFS('05 Daten für SUMMEWENNS'!$E$5:$E$505,'05 Daten für SUMMEWENNS'!$H$5:$H$505,$B102,'05 Daten für SUMMEWENNS'!$J$5:$J$505,D$5) -> 0 | E102: =SUMIFS('05 Daten für SUMMEWENNS'!$E$5:$E$505,'05 Daten für SUMMEWENNS'!$H$5:$H$505,$B102,'05 Daten für SUMMEWENNS'!$J$5:$J$505,E$5) -> 0 | F102: =SUMIFS('05 Daten für SUMMEWENNS'!$E$5:$E$505,'05 Daten für SUMMEWENNS'!$H$5:$H$505,$B102,'05 Daten für SUMMEWENNS'!$J$5:$J$505,F$5) -> 0 | G102: =SUMIFS('05 Daten für SUMMEWENNS'!$E$5:$E$505,'05 Daten für SUMMEWENNS'!$H$5:$H$505,$B102,'05 Daten für SUMMEWENNS'!$J$5:$J$505,G$5) -> 0 | H102: =SUMIFS('05 Daten für SUMMEWENNS'!$E$5:$E$505,'05 Daten für SUMMEWENNS'!$H$5:$H$505,$B102,'05 Daten für SUMMEWENNS'!$J$5:$J$505,H$5) -> 0
B103: 97 | C103: =SUMIFS('05 Daten für SUMMEWENNS'!$E$5:$E$505,'05 Daten für SUMMEWENNS'!$H$5:$H$505,$B103,'05 Daten für SUMMEWENNS'!$J$5:$J$505,C$5) -> 0 | D103: =SUMIFS('05 Daten für SUMMEWENNS'!$E$5:$E$505,'05 Daten für SUMMEWENNS'!$H$5:$H$505,$B103,'05 Daten für SUMMEWENNS'!$J$5:$J$505,D$5) -> 0 | E103: =SUMIFS('05 Daten für SUMMEWENNS'!$E$5:$E$505,'05 Daten für SUMMEWENNS'!$H$5:$H$505,$B103,'05 Daten für SUMMEWENNS'!$J$5:$J$505,E$5) -> 0 | F103: =SUMIFS('05 Daten für SUMMEWENNS'!$E$5:$E$505,'05 Daten für SUMMEWENNS'!$H$5:$H$505,$B103,'05 Daten für SUMMEWENNS'!$J$5:$J$505,F$5) -> 0 | G103: =SUMIFS('05 Daten für SUMMEWENNS'!$E$5:$E$505,'05 Daten für SUMMEWENNS'!$H$5:$H$505,$B103,'05 Daten für SUMMEWENNS'!$J$5:$J$505,G$5) -> 0 | H103: =SUMIFS('05 Daten für SUMMEWENNS'!$E$5:$E$505,'05 Daten für SUMMEWENNS'!$H$5:$H$505,$B103,'05 Daten für SUMMEWENNS'!$J$5:$J$505,H$5) -> 0
B104: 98 | C104: =SUMIFS('05 Daten für SUMMEWENNS'!$E$5:$E$505,'05 Daten für SUMMEWENNS'!$H$5:$H$505,$B104,'05 Daten für SUMMEWENNS'!$J$5:$J$505,C$5) -> 0 | D104: =SUMIFS('05 Daten für SUMMEWENNS'!$E$5:$E$505,'05 Daten für SUMMEWENNS'!$H$5:$H$505,$B104,'05 Daten für SUMMEWENNS'!$J$5:$J$505,D$5) -> 0 | E104: =SUMIFS('05 Daten für SUMMEWENNS'!$E$5:$E$505,'05 Daten für SUMMEWENNS'!$H$5:$H$505,$B104,'05 Daten für SUMMEWENNS'!$J$5:$J$505,E$5) -> 0 | F104: =SUMIFS('05 Daten für SUMMEWENNS'!$E$5:$E$505,'05 Daten für SUMMEWENNS'!$H$5:$H$505,$B104,'05 Daten für SUMMEWENNS'!$J$5:$J$505,F$5) -> 0 | G104: =SUMIFS('05 Daten für SUMMEWENNS'!$E$5:$E$505,'05 Daten für SUMMEWENNS'!$H$5:$H$505,$B104,'05 Daten für SUMMEWENNS'!$J$5:$J$505,G$5) -> 0 | H104: =SUMIFS('05 Daten für SUMMEWENNS'!$E$5:$E$505,'05 Daten für SUMMEWENNS'!$H$5:$H$505,$B104,'05 Daten für SUMMEWENNS'!$J$5:$J$505,H$5) -> 0
B105: 99 | C105: =SUMIFS('05 Daten für SUMMEWENNS'!$E$5:$E$505,'05 Daten für SUMMEWENNS'!$H$5:$H$505,$B105,'05 Daten für SUMMEWENNS'!$J$5:$J$505,C$5) -> 0 | D105: =SUMIFS('05 Daten für SUMMEWENNS'!$E$5:$E$505,'05 Daten für SUMMEWENNS'!$H$5:$H$505,$B105,'05 Daten für SUMMEWENNS'!$J$5:$J$505,D$5) -> 0 | E105: =SUMIFS('05 Daten für SUMMEWENNS'!$E$5:$E$505,'05 Daten für SUMMEWENNS'!$H$5:$H$505,$B105,'05 Daten für SUMMEWENNS'!$J$5:$J$505,E$5) -> 0 | F105: =SUMIFS('05 Daten für SUMMEWENNS'!$E$5:$E$505,'05 Daten für SUMMEWENNS'!$H$5:$H$505,$B105,'05 Daten für SUMMEWENNS'!$J$5:$J$505,F$5) -> 0 | G105: =SUMIFS('05 Daten für SUMMEWENNS'!$E$5:$E$505,'05 Daten für SUMMEWENNS'!$H$5:$H$505,$B105,'05 Daten für SUMMEWENNS'!$J$5:$J$505,G$5) -> 0 | H105: =SUMIFS('05 Daten für SUMMEWENNS'!$E$5:$E$505,'05 Daten für SUMMEWENNS'!$H$5:$H$505,$B105,'05 Daten für SUMMEWENNS'!$J$5:$J$505,H$5) -> 0

Sheet 05 SUMMEWENNS_ (hidden)
B1: 2 | C1: 2 | D1: 2 | E1: 1 | F1: 1 | G1: 1 | H1: 0
A2: 1 | B2: 05 SUMIFS_ | F2: =B2 -> 05 SUMIFS_
A3: 2 | B3: 05 SUMMEWENNS_
A4: 0
B5: 1 | C5: In der Formel SUMMEWENN() können Sie EIN Suchkriterium angeben. In SUMMEWENNS() können Sie MEHRERE Kriterien angeben. ACHTUNG: Die Reihenfolge der Argumente ist umgekehrt wie bei SUMMEWENN() - ERST der zu summierende Bereich, DANN die Suchbereiche und Kriterien. Im Beispiel geht es um Lieferungen von verschiedenen Produktionsstandorten an mehrere Kunden. Mit SUMMEWENNS() kann man dann schnell eine Matrix aufbauen, die zeigt, welche Mengen - von wo (erstes Suchkriterium) - nach wo (zweites Suchkriterium) geliefert wurden. | E5: 1 | F5: You can specify ONE search criterion in the SUMIF() formula. You can specify MULTIPLE criteria in SUMIFS(). ATTENTION: The order of the arguments is reverses as with SUMIF() - FIRST the range to be summed up, THEN the search ranges and criteria. The example deals with deliveries from different production sites to several customers. With SUMIFS() you can then quickly build a matrix showing which quantities were delivered - from where (first search criterion) - to where (second search criterion).
B6: =IF(C6<>"",B5+1,"") ->  | E6: =IF(F6<>"",E5+1,"") -> 
B7: =IF(C7<>"",B6+1,"") ->  | E7: =IF(F7<>"",E6+1,"") -> 

Sheet 06 Teilergebnis
R1: 0
A2: 1 | B2: 06 Subtotal | F2: Back to Start
A3: 2 | B3: 06 Teilergebnis | F3: Startseite
A5: 2
A6: 2 | B6: Achtung | C6: Sortieren Sie die Liste vor der Anwendung von DATEN / "Teilergebnis" nach der Spalte, die Sie unter "Gruppieren nach" auswählen!! Wenn Sie das vergessen, ist der Rechner bei einer langen Liste sehr lange beschäftigt! | G6: Kopieren der Teilergebnisse über die Office-Zwischenablage: Teilergebnisse mit Klick auf "2" zusammenklappen Office Zwischenablage mit Start / "Zwischenablage" Kopieren: mit Strg-C in die Office-Zwischenablage Zielzelle anklicken Einfügen: Klick in die Office-Zwischenablage dann: mit Suchen&Ersetzen " Ergebnis" entfernen | L6: --> | M6: Bremen Ergebnis | P6: 779137 | Q6: --> | R6: Bremen Ergebnis | S6: 779137 | T6: --> | U6: Bremen | V6: 779137 | W6: --> | AE6: Alles was Sie brauchen ist …
A7: 2 | M7: Hamburg Ergebnis | P7: 1172780 | R7: Hamburg Ergebnis | S7: 1172780 | U7: Hamburg | V7: 1172780 | AE7: … Informationen!
A8: 2 | M8: Oldenburg Ergebnis | P8: 616390 | Q8: leere | R8: Oldenburg Ergebnis | S8: 616390 | T8: " Ergebnis" | U8: Oldenburg | V8: 616390 | W8: Diagramm
A9: 2 | Q9: Spalten | T9: löschen | W9: einfügen | AE9: Führungskräfte fällen Entscheidungen!
A10: 2 | Q10: löschen | AE10: Entscheidungen basieren auf Informationen!
A11: 2
A12: 2
A13: 2
A14: 1 | B14: Attention | C14: Sort the list before you apply DATA / "Subtotal" according to the column, you will select under "At each change in"! If you have a long list and forget to sort it, the computer will be busy for a very long time!! | G14: Copy the subtotals using the Office clipboard: Collapse the subtotals with a click on "2" Open the Office clipboard Home / "Clipboard" Copy with Ctrl-C into the Office clipboard Click the target cell Paste: Click into the Office Clipboard then: Remove " Total" with Find&Replace | L14: --> | M14: Bremen Total | P14: 779137 | Q14: --> | R14: Bremen Total | S14: 779137 | T14: --> | U14: Bremen | V14: 779137 | W14: --> | AE14: All you need is …
A15: 1 | M15: Hamburg Total | P15: 1172780 | R15: Hamburg Total | S15: 1172780 | U15: Hamburg | V15: 1172780 | AE15: … Information!
A16: 1 | M16: Oldenburg Total | P16: 616390 | Q16: delete | R16: Oldenburg Total | S16: 616390 | T16: delete | U16: Oldenburg | V16: 616390 | W16: insert
A17: 1 | Q17: empty | T17: " Total" | W17: chart | AE17: Managers make decisions!
A18: 1 | Q18: columns | AE18: Decisions are based on information!
A19: 1
A20: 1
A21: 1
A22: 1
C24: branch | D24: customer | E24: quarter | F24: sales | G24: orders
C25: Bremen | D25: Shell | E25: 4 | F25: 66745 | G25: 138
C26: Bremen | D26: Shell | E26: 3 | F26: 72436 | G26: 127
C27: Bremen | D27: Shell | E27: 2 | F27: 78647 | G27: 120
C28: Bremen | D28: Shell | E28: 1 | F28: 80425 | G28: 111
C29: Bremen | D29: Esso | E29: 1 | F29: 112536 | G29: 92
C30: Bremen | D30: Esso | E30: 3 | F30: 111525 | G30: 89
C31: Bremen | D31: Esso | E31: 4 | F31: 124978 | G31: 96
C32: Bremen | D32: Esso | E32: 2 | F32: 131845 | G32: 90
C33: Bremen Ergebnis | G33: =SUBTOTAL(9,G25:G32) -> 863
C34: Hamburg | D34: Shell | E34: 1 | F34: 78176 | G34: 66
C35: Hamburg | D35: Shell | E35: 3 | F35: 88111 | G35: 68
C36: Hamburg | D36: Shell | E36: 2 | F36: 82789 | G36: 63
C37: Hamburg | D37: Shell | E37: 4 | F37: 94512 | G37: 59
C38: Hamburg | D38: Esso | E38: 3 | F38: 213999 | G38: 119
C39: Hamburg | D39: Esso | E39: 2 | F39: 224924 | G39: 122
C40: Hamburg | D40: Aral | E40: 3 | F40: 35712 | G40: 19
C41: Hamburg | D41: Esso | E41: 1 | F41: 243890 | G41: 123
C42: Hamburg | D42: Aral | E42: 1 | F42: 38523 | G42: 19
C43: Hamburg | D43: Aral | E43: 4 | F43: 32677 | G43: 15
C44: Hamburg | D44: Aral | E44: 2 | F44: 39467 | G44: 17
C45: Hamburg Ergebnis | G45: =SUBTOTAL(9,G34:G44) -> 690
C46: Oldenburg | D46: Shell | E46: 2 | F46: 112967 | G46: 92
C47: Oldenburg | D47: Shell | E47: 3 | F47: 121210 | G47: 98
C48: Oldenburg | D48: Aral | E48: 1 | F48: 31243 | G48: 25
C49: Oldenburg | D49: Shell | E49: 4 | F49: 119891 | G49: 94
C50: Oldenburg | D50: Shell | E50: 1 | F50: 123124 | G50: 88
C51: Oldenburg | D51: Aral | E51: 2 | F51: 33756 | G51: 24
C52: Oldenburg | D52: Aral | E52: 3 | F52: 38299 | G52: 21
C53: Oldenburg | D53: Aral | E53: 4 | F53: 35900 | G53: 19
C54: Oldenburg Ergebnis | G54: =SUBTOTAL(9,G46:G53) -> 461
C55: Gesamtergebnis | G55: =SUBTOTAL(9,G25:G53) -> 2014
A58: 1 | B58: Exercise | C58: Open the file "Excel-Orders", activate the sheet "Exercises" and answer the questions 1-6 using subtotals!
A59: 1
A60: 2 | B60: Übung | C60: Öffnen Sie die Datei "Excel-Orders", aktivieren Sie das Blatt "Übungen" und beantworten Sie die Fragen 1-6 unter Benutzung von Teilergebnissen!
A61: 2
A64: 0

Sheet 06 Teilergebnis_ (hidden)
B1: 2 | C1: 2 | D1: 2 | E1: 1 | F1: 1 | G1: 1 | H1: 0
A2: 1 | B2: 06 Subtotal_ | F2: =B2 -> 06 Subtotal_
A3: 2 | B3: 06 Teilergebnis_
A4: 0
B5: 1 | C5: Die Funktion "Teilergebnis" demonstriert sehr anschaulich die Verdichtung einer zu großen, zu unübersichtlichen Menge an Daten, indem sie die Menge der angezeigten Daten reduziert. Auf diesem Blatt sehen Sie zunächst das Ergebnis der Anwendung der Funktion "Teilergebnis". Anschließend zeige ich Ihnen, wie man dort hin kommt. Am linken Fensterrand sehen Sie ein neues Bedienelement - Kästchen mit "1", "2" und "3" und Linien mit "-" darin. Damit können Sie die Liste zu- und wieder aufklappen. Am wichtigsten ist der Button "2". Er klappt die Liste so zu, dass Sie nur noch die Teilergebnisse sehen. Mit "3" können Sie sie wieder aufklappen. Das ist ein sehr anschauliches Beispiel für die Verdichtung von Daten zu Informationen. | E5: 1 | F5: The "subtotal" function demonstrates very clearly the compression of a too large, too confusing amount of data by reducing the amount of data displayed. On this sheet, you first see the result of using the "subtotal" function. Then I show you how to get there. On the left edge of the window you see a new control element - boxes with "1", "2" and "3" and lines with "-" in them. With them you can expand and collapse the list. Most important is the button "2". It collapses the list so that you only see the subtotals. With "3" you can expand it again. This is a very clear example of how data are compressed into information.
B6: =IF(C6<>"",B5+1,"") -> 2 | C6: Diese Informationen wollen wir dann später noch weiter bearbeiten. Lassen Sie uns aber zuerst ansehen, wie Sie zu den Teilergebnissen kommen. Dafür gibt es im Menü "Daten" unter "Gliederung" die Funktion "Teilergebnis". Wir werden sie jetzt erst einmal benutzen, um die bereits vorhandenen Teilergebnisse wieder zu entfernen, um sie dann neu erzeugen zu können. ACHTUNG: Dafür muss vorher eine Zelle in der Liste angeklickt werden! Beachten Sie auch, dass die zusätzlichen Bedienelemente am linken Fensterrand jetzt wieder verschwunden sind! | E6: =IF(F6<>"",E5+1,"") -> 2 | F6: This information will be further processed later. But let us first look at how you get to the subtotals. For this purpose, there is a function "Subtotal" in the "Data" menu under "Outline". We will now use it to remove the existing subtotals in order to create new ones. ATTENTION: To do this you must first click on a cell in the list! Please also note that the additional controls on the left side of the window have now disappeared again!
B7: =IF(C7<>"",B6+1,"") -> 3 | C7: So, jetzt wollen wir also Teilergebnisse anlegen. Dazu öffnen wir wieder das entsprechende Fenster. Dort müssen wir drei Angaben machen: - "Gruppieren nach": Hier wählen wir aus, nach welcher Spalte wir die Daten zusammenfassen wollen - z.B. "branch". - "Unter Verwendung von": Hier wählen wir aus, welche mathematische Funktion wir anwenden wollen. Das muss nämlich gar nicht immer die Summe sein. - "Teilergebnis addieren zu": Hier wählen wir aus, auf welche Spalte wir die ausgewählte mathematische Funktion anwenden wollen. Also z.B. Summe der Umsätze. Und - Voila! Da sind die Teilergebnisse! | E7: =IF(F7<>"",E6+1,"") -> 3 | F7: Well, now we want to create Teilergebnisse. To do this, we open the corresponding window again. There we have to make three entries: - "At each change in": Here we select the column by which we want to group the data - e.g. "branch". - "Use function": Here we select which mathematical function we want to use. This does not always have to be the sum. - "Add subtotal to": Here we select to which column we want to apply the selected mathematical function. For example, sum of the sales. And - Voila! There are the subtotals!
B8: 4 | C8: ACHTUNG: Es ist ganz wichtig, dass die Liste VOR der Anwendung der Funktion "Teilergebnis" nach der Spalte SORTIERT wird, die in "Gruppieren nach" ausgewählt werden soll! Ich zeige Ihnen mal, was passiert, wenn Sie das nicht tun. Dann funktioniert zwar "Teilergebnis" trotzdem - das Ergebnis ist aber unbrauchbar. Hinzu kommt, dass die Erstellung von Teilergebnissen in einer unsortierten sehr langen Liste seeehr lange dauern kann. Im englischen heißt "Gruppieren nach" übrigens "At each change in". Das drückt es viel genauer aus! | E8: =IF(F8<>"",E7+1,"") -> 4 | F8: ATTENTION: It is very important that the list is SORTED BEFORE using the "subtotal" function according to the column to be selected in "At each change in"! Let me show you what happens if you do not do this. Then "subtotal" will still work - but the result will be unusable. In addition, creating partial results in an unsorted, very long list can take a veeeery long time.
B9: 5 | C9: So, jetzt wollen wir die erzeugten Teilergebnisse weiter verarbeiten. Am Ende soll ein Diagramm dabei herauskommen, denn ein Bild sagt bekanntlich mehr als tausend Worte (bzw. Zahlen). Dafür wollen wir die Teilergebnisse an eine andere Stelle auf unserem Blatt kopieren, um sie dort weiter zu bearbeiten. Das funktioniert aber leider nicht mit dem üblichen copy&paste. Warum nicht, zeigt Ihnen das Video. | E9: 5 | F9: Well, now we want to process the generated subtotals further. At the end we want to create a chart, because a picture says more than a thousand words (or numbers). For this purpose we want to copy the subtotals to another place on our sheet in order to process them there. Unfortunately, this does not work with the usual copy&paste. The video shows you, why not.
B10: 6 | C10: Beim üblichen copy&paste werden also die ausgeblendeten Zeilen mit kopiert. Das können wir verhindern, wenn wir die sog. "Office-Zwischenablage" benutzen. Ich wette, die kennen Sie noch nicht!? Sie wird unter "Start / Zwischenablage" geöffnet und hat drei Vorteile gegenüber der normalen Zwischenablage, die bei copy&paste benutzt wird: (1) Sie ist sichtbar. (2) Sie kann mehr als ein Objekt aufnehmen. (3) Sie ist in gewisser Weise "intelligent" - sie kopiert z.B. ausgeblendete Zeilen nicht mit. Wir benutzen sie also jetzt, um die Teilergebnisse an eine andere Stelle zu kopieren. | E10: 6 | F10: With the usual copy&paste, the hidden rows are also copied. We can prevent this by using the so-called "Office clipboard". I bet you haven't heard of it!? It is opened under "Start / Clipboard" and has three advantages compared to the normal clipboard, which is used with copy&paste (1) It is visible. (2) It can hold more than one object. (3) It is "intelligent" in a certain way - for example, it does not copy hidden lines. Now we use it to copy the subtotals to another place.
B11: 7 | C11: Jetzt stört uns noch das Wort "Ergebnis" hinter jedem Wert in der ersten Spalte. Ist es nur das Wort "Ergebnis"? Nein - es ist " Ergebnis"! Da ist nämlich noch ein Leerzeichen vor dem Wort "Ergebnis", das auch weg muss. Was sage ich immer? "Ein Leerzeichen ist nicht nichts!" Das machen wir einfach mit "Suchen und Ersetzen". Wir suchen nach " Ergebnis" und ersetzen es durch nichts. | E11: 7 | F11: Now the word "Total" after each value in the first column still bothers us. Is it just the word "Total"? No - it is " Total"! There is a space before the word "Total", which must be removed. What do I always say? "A space isn't nothing!" That's what we do with "find&replace". We search for " Total" and replace it with nothing.
B12: 8 | C12: Abschließend wollen wir aus den Teilergebnissen ein Diagramm erstellen. Dazu ist es zwar nicht zwingend erforderlich aber bequemer, wenn sich die x- und y-Werte in unmittelbar benachbarten Spalten befinden. Also schieben wir die y-Werte nach links. Was Sie auf keinen Fall machen sollten: Einfach den ganzen Bereich inkl. der Leerzellen markieren und damit ein Diagramm erstellen! Das sieht zwar normal aus - Sie haben dann aber zwei leere Datenreihen im Diagramm. | E12: 8 | F12: Finally, we want to create a chart from the subtotals. For this purpose, it is not absolutely necessary but more convenient if the x and y values are located in immediately adjacent columns. So we move the y-values to the left. What you should not do under any circumstances: Simply select the whole area including the empty cells and create a chart! This may look normal - but you will have two empty data series in the chart.
B13: 9 | C13: Übungen zu Teilergebnissen finden Sie in meiner Datei Excel-Orders! | E13: 9 | F13: You can find exercises for subtotals in my file Excel-Orders!

Sheet 07 Pivot (Daten)
I1: 0
A2: 1 | B2: 07 Pivot (Data) | F2: Back to Start
A3: 2 | B3: 07 Pivot (Daten) | F3: Startseite
A5: 1 | C5: List = Data (=many numbers) | J5: PivotTable = Information (=few structered numbers)
A6: 2 | C6: Liste = Daten (=viele Zahlen) | J6: Pivot-Tabelle = Informationen (=wenige strukturierte Zahlen)
C8: branch | D8: customer | E8: quarter | F8: sales | G8: orders
C9: Bremen | D9: Esso | E9: 1 | F9: 112536 | G9: 92 | J9: Summe von sales | K9: quarter
C10: Bremen | D10: Esso | E10: 3 | F10: 111525 | G10: 89 | J10: customer | K10: 1 | L10: 2 | M10: 3 | N10: 4 | O10: Gesamtergebnis
C11: Bremen | D11: Esso | E11: 4 | F11: 124978 | G11: 96 | J11: Aral | K11: 69766 | L11: 73223 | M11: 74011 | N11: 68577 | O11: 285577
C12: Bremen | D12: Esso | E12: 2 | F12: 131845 | G12: 90 | J12: Esso | K12: 356426 | L12: 356769 | M12: 325524 | N12: 124978 | O12: 1163697
C13: Bremen | D13: Shell | E13: 4 | F13: 66745 | G13: 138 | J13: Shell | K13: 281725 | L13: 274403 | M13: 281757 | N13: 281148 | O13: 1119033
C14: Bremen | D14: Shell | E14: 3 | F14: 72436 | G14: 127 | J14: Gesamtergebnis | K14: 707917 | L14: 704395 | M14: 681292 | N14: 474703 | O14: 2568307
C15: Bremen | D15: Shell | E15: 2 | F15: 78647 | G15: 120
C16: Bremen | D16: Shell | E16: 1 | F16: 80425 | G16: 111
C17: Hamburg | D17: Aral | E17: 3 | F17: 35712 | G17: 19
C18: Hamburg | D18: Aral | E18: 1 | F18: 38523 | G18: 19 | J18: All you need is …
C19: Hamburg | D19: Aral | E19: 4 | F19: 32677 | G19: 15 | J19: … Information!
C20: Hamburg | D20: Aral | E20: 2 | F20: 39467 | G20: 17
C21: Hamburg | D21: Esso | E21: 3 | F21: 213999 | G21: 119 | J21: Managers make decisions!
C22: Hamburg | D22: Esso | E22: 2 | F22: 224924 | G22: 122 | J22: Decisions are based on information!
C23: Hamburg | D23: Esso | E23: 1 | F23: 243890 | G23: 123
C24: Hamburg | D24: Shell | E24: 1 | F24: 78176 | G24: 66
C25: Hamburg | D25: Shell | E25: 3 | F25: 88111 | G25: 68
C26: Hamburg | D26: Shell | E26: 2 | F26: 82789 | G26: 63
C27: Hamburg | D27: Shell | E27: 4 | F27: 94512 | G27: 59 | J27: Alles was Sie brauchen ist …
C28: Oldenburg | D28: Aral | E28: 1 | F28: 31243 | G28: 25 | J28: … Informationen!
C29: Oldenburg | D29: Aral | E29: 2 | F29: 33756 | G29: 24
C30: Oldenburg | D30: Aral | E30: 3 | F30: 38299 | G30: 21 | J30: Führungskräfte fällen Entscheidungen!
C31: Oldenburg | D31: Aral | E31: 4 | F31: 35900 | G31: 19 | J31: Entscheidungen basieren auf Informationen!
C32: Oldenburg | D32: Shell | E32: 2 | F32: 112967 | G32: 92
C33: Oldenburg | D33: Shell | E33: 3 | F33: 121210 | G33: 98
C34: Oldenburg | D34: Shell | E34: 4 | F34: 119891 | G34: 94
C35: Oldenburg | D35: Shell | E35: 1 | F35: 123124 | G35: 88
A38: 0

Sheet 07 Pivot (Daten)_ (hidden)
B1: 2 | C1: 2 | D1: 2 | E1: 1 | F1: 1 | G1: 1 | H1: 0
A2: 1 | B2: 07 Pivot (Data)_ | F2: =B2 -> 07 Pivot (Data)_
A3: 2 | B3: 07 Pivot (Daten)_
A4: 0
B5: 1 | C5: So, jetzt kommen wir also zu dem wichtigsten Inhalt dieser Übungsdatei - den Pivot-Tabellen. Falls Sie davon noch nie etwas gehört haben sollten, zeige ich Ihnen erste einmal eine solche. Wie sie erstellt wird, sehen wir später. Hier auf diesem Blatt sehen Sie rechts neben der Originaltabelle, die Sie schon kennen, eine Pivot-Tabelle. Sie enthält dieselben Daten wie die Originaltabelle - nur in einem rechteckigen Schema zusammengefasst. Sie erinnern sich, dass ich mal gesagt hatte, dass es in der Originaltabelle Kriterien- und Datenspalten gibt? Die Kriterienspalten finden Sie in der Pivot-Tabelle in den Zeilen und Spalten, die Daten aus den Datenspalten im Inneren der Pivot-Tabelle. | E5: 1 | F5: Well, now we come to the most important content of this exercise file - the PivotTables. If you have never heard of them before, I will show you one of them for the first time. Later we will see, how it is created. Here on this sheet, you can see a PivotTable to the right of the original table that you already know. It contains the same data as the original table - only in a rectangular scheme. Do you remember that I once said that there are criteria and data columns in the original table? The criteria columns are located in the rows and columns of the PivotTable, the data from the data columns are located inside the PivotTable.
B6: =IF(C6<>"",B5+1,"") -> 2 | C6: In der Originaltabelle gibt es drei Kriterienspalten (branch, customer, quarter) - in der Pivot-Tabelle aber nur Zeilen (customer) und Spalten (quarter). Wo ist das dritte Kriterium (branch)? Über das dritte Kriterium wird kumuliert (addiert). Mit Shell wurden im 3. Quartal 281.148€ Umsatz gemacht. Das setzt sich zusammen aus 72.436€ in Bremen, 88.111€ in Hamburg und 121.210€ in Oldenburg. Um das zu überprüfen, machen Sie einfach einen Doppelklick in der entsprechenden Zelle der Pivot-Tabelle. Daraufhin legt Excel ein neues Blatt an und zeigt Ihnen dort, welche Daten zu dem Ergebnis in dieser Zelle geführt haben. Wenn Sie später mit Pivot-Tabellen arbeiten, sollten Sie dieses Blatt löschen, wenn Sie es nicht mehr benötigen, um sich nicht mit solchen Blättern "zuzumüllen". Hier in dieser Datei gibt es eine Besonderheit: Ich habe durch entsprechende VBA-Programmierung verhindert, dass neue Blätter angelegt werden. Die Blätter müssen nämlich wegen der Zweisprachigkeit ein bestimmtes Format haben. Daher sollen Sie neue Blätter nur als Kopien des Blattes "Vorlage" anlegen. Zum Anschauen der Datenherkunft in der Pivot-Tabelle reicht es aber. | E6: =IF(F6<>"",E5+1,"") -> 2 | F6: In the original table there are three criteria columns (branch, customer, quarter) - but in the PivotTable there are only rows (customer) and columns (quarter). Where is the third criterion (branch)? The third criterion is used to cumulate (add). In the 3rd quarter 281,148€ turnover was made with Shell. This is made up of 72,436€ in Bremen, 88,111€ in Hamburg and 121,210€ in Oldenburg. To check this, simply double-click in the corresponding cell of the PivotTable. Excel will then create a new sheet and show you which data led to the result in this cell. If you work with PivotTables later on, you should delete this sheet when you no longer need it in order to avoid getting "cluttered" with such sheets. Here in this file there is a special feature: I have prevented new sheets from being created by appropriate VBA programming. The sheets must have a certain format because of the bilingualism. Therefore you should only create new sheets as copies of the sheet "Template". But it is sufficient to view the data origin in the PivotTable.
B7: =IF(C7<>"",B6+1,"") -> 3 | C7: Die Pivot-Tabelle zeigt einmal mehr, was ich mit dem Unterschied zwischen Daten und Informationen meine. Daten sind eine große, unstrukturierte Menge an Werten, die uns unverarbeitet nichts sagen. Informationen sind wenige, strukturierte Werte, aus denen wir eine Aussage entnehmen aus der wir wiederum Handlungsempfehlungen ableiten können: "Der Umsatz mit Esso ist im 4. Quartal dramatisch eingebrochen. Wir müssen herauskriegen, warum das passiert ist." Ein Doppelklick in der entsprechenden Zelle zeigt uns: Da gab es in Hamburg und Oldenburg gar keinen Umsatz! Dem müssen wir nachgehen! Wurden die Daten nur nicht erhoben? War die Filiale geschlossen? | E7: =IF(F7<>"",E6+1,"") -> 3 | F7: The PivotTable shows once again what I mean by the difference between data and information. Data is a large, unstructured set of values that tells us nothing if it remains unprocessed. Information is a set of few, structured values, from which we take a statement from which we can derive recommendations for action: "Sales with Esso fell dramatically in the fourth quarter. We have to find out why this happened." A double-click in the corresponding cell shows us: There was no sales at all in Hamburg and Oldenburg! We have to look into this! Was the data just not collected? Was the branche closed?

Sheet 08 Pivot (Tabelle)
I1: 0
A2: 1 | B2: 08 Pivot (Table) | F2: Back to Start
A3: 2 | B3: 08 Pivot (Tabelle) | F3: Startseite
A5: 2 | B5: Voraussetzung
A6: 2 | B6: Erstellen
A7: 1 | B7: Precondition
A8: 1 | B8: Create
A32: 2 | B32: Klass. Layout
A33: 1 | B33: Class. Layout
A71: 2 | B71: PivotTable-Felder
A72: 1 | B72: PivotTable Fields
A96: 2 | C96: Jetzt sehen Sie, worin die große Stärke einer Pivot-Tabelle besteht: Sie bringt Übersichtlichkeit in Ihre Daten! Sie macht mit wenigen Mausklicks aus Daten (=viele Zahlen!) Informationen (=wenige Zahlen!).
A97: 2
A98: 2
A99: 1 | C99: Now you can see the big strength of a PivotTable: It brings clearness to your data! With only some mouse clicks it transforms data (=many numbers) into information (=few numbers).
A100: 1
A101: 1
A104: 2 | B104: 3. Dimension
A105: 1 | B105: 3rd Dimension
C107: Summe von sales | E107: quarter
C108: branch | D108: customer | E108: 1 | F108: 2 | G108: 3 | H108: 4 | I108: Gesamtergebnis
C109: Bremen | D109: Esso | E109: 112536 | F109: 131845 | G109: 111525 | H109: 124978 | I109: 480884
D110: Shell | E110: 80425 | F110: 78647 | G110: 72436 | H110: 66745 | I110: 298253
C111: Bremen Ergebnis | E111: 192961 | F111: 210492 | G111: 183961 | H111: 191723 | I111: 779137
C113: Hamburg | D113: Aral | E113: 38523 | F113: 39467 | G113: 35712 | H113: 32677 | I113: 146379
D114: Esso | E114: 243890 | F114: 224924 | G114: 213999 | I114: 682813
D115: Shell | E115: 78176 | F115: 82789 | G115: 88111 | H115: 94512 | I115: 343588
C116: Hamburg Ergebnis | E116: 360589 | F116: 347180 | G116: 337822 | H116: 127189 | I116: 1172780
C118: Oldenburg | D118: Aral | E118: 31243 | F118: 33756 | G118: 38299 | H118: 35900 | I118: 139198
D119: Shell | E119: 123124 | F119: 112967 | G119: 121210 | H119: 119891 | I119: 477192
C120: Oldenburg Ergebnis | E120: 154367 | F120: 146723 | G120: 159509 | H120: 155791 | I120: 616390
C122: Gesamtergebnis | E122: 707917 | F122: 704395 | G122: 681292 | H122: 474703 | I122: 2568307
A124: 2 | B124: Übung 1 | C124: Probieren Sie verschiedene Möglichkeiten aus, mit den Daten vom Blatt "Pivot (Daten)" eine Pivot-Tabelle zu erzeugen!
A125: 2
A126: 1 | B126: Exercise 1 | C126: Try out different possibilities to generate a PivotTable with the data list from the worksheet "Pivot (Data)"!
A127: 1
A130: 2 | B130: Analysieren
A131: 2 | B131: Entwurf
A132: 2 | B132: Doppelklick
A133: 1 | B133: Analyse
A134: 1 | B134: Design
A135: 1 | B135: Double click
A137: 2 | B137: Übung 2 | C137: Probieren Sie diese Techniken mit Ihrer Pivot-Tabelle aus!
A138: 1 | B138: Exercise 2 | C138: Try out these techniques with your PivotTable!
A141: 1 | B141: Exercise 3 | C141: Open the file "Excel-Orders", activate the sheet "Exercises" and answer the questions 7-9 using PivotTables!
A142: 1
A143: 2 | B143: Übung 3 | C143: Öffnen Sie die Datei "Excel-Orders", aktivieren Sie das Blatt "Übungen" und beantworten Sie die Fragen 7-9 unter Benutzung von Pivot-Tabellen!
A144: 2
A147: 0

Sheet 08 Pivot (Tabelle)_ (hidden)
B1: 2 | C1: 2 | D1: 2 | E1: 1 | F1: 1 | G1: 1 | H1: 0
A2: 1 | B2: 08 Pivot (Table)_ | F2: =B2 -> 08 Pivot (Table)_
A3: 2 | B3: 08 Pivot (Tabelle)_
A4: 0
B5: 1 | C5: Eine Pivot-Tabelle zu erstellen ist sehr einfach. Voraussetzung ist, dass Sie eine Liste mit Daten haben und dass die Spalten der Liste Überschriften haben. Wir verwenden die Liste vom Blatt "Pivot (Daten)". Klicken Sie eine einzelne Zelle innerhalb der Liste an! ACHTUNG: Die Liste muss rundherum durch Leerzeilen und -spalten von anderen Daten abgegrenzt sein! Dann erkennt Excel selber, welche Daten für die Pivot-Tabelle benutzt werden sollen. Sie sollten sich angewöhnen, NICHT die gesamte Liste zu markieren. Das führt u.U. zu Fehlern. Es reicht, eine einzelne Zelle anzuklicken! | E5: 1 | F5: It is very easy to create a PivotTable. All you need is a list of data with a header for each column. We will use the list from the worksheet "Pivot (Data)". Click into one cell within the list! ATTENTION: The list must be surrounded by empty rows and columns! Then Excel recognizes automatically, which data shall be used for the PivotTable. Please don't mark the whole list! That may cause errors. It's enough, if you click into one single cell!
B6: =IF(C6<>"",B5+1,"") -> 2 | C6: Dann wählen Sie "Einfügen / Tabellen / PivotTable". Daraufhin passiert zweierlei: (1) Der Datenbereich wird durch eine farbige Linie markiert. Überprüfen Sie, ob Excel den Datenbereich richtig erkannt hat! Falls das nicht der Fall ist, kann die Ursache nur sein, dass sich links, rechts, über oder unter dem Datenbereich nicht-leere Zellen befinden. (2) Das Fenster "PivotTable erstellen" öffnet sich. Darin können Sie wählen, ob Sie die Pivot-Tabelle auf dem vorhandenen Blatt oder auf einem neuen Blatt anlegen wollen. Wir wählen "Vorhandenes Arbeitsblatt" und klicken auf "OK". Jetzt sehen Sie ein Bild mit der symbolischen Darstellung einer Pivot-Tabelle. | E6: =IF(F6<>"",E5+1,"") -> 2 | F6: Then select "Insert / Tables / PivotTable". Then two things will happen: (1) The range of data is marked with a colored line. Please check, if Excel has recognized the right range! If that is not the case, the only reason can be, that there are non-empty cells left, right, above or below the list. (2) The windows "Create PivotTable" opens. There you can select, if you want to create the PivotTable on the existing sheet or on a new sheet. We select "Existing worksheet" and click "OK". Now you can see picture with the symbolic presentation of a PivotTable.
B7: =IF(C7<>"",B6+1,"") -> 3 | C7: Das ist die "moderne" Ansicht, die ich aber für schlechter halte als die alte ("klassische") Ansicht. Dankenswerterweise bietet Excel aber die Möglichkeit, dorthin zurück zu kehren. Dazu klicken Sie mit der rechten Maustaste auf den Bereich mit dem Bild und wählen "PivotTable-Optionen / Anzeige / Klassisches PivotTable-Layout". Daraufhin sehen Sie eine Art virtuelle Pivot-Tabelle mit bisher noch leeren Bereichen, die Sie mit Drag&Drop sehr einfach füllen können. | E7: =IF(F7<>"",E6+1,"") -> 3 | F7: This is the "modern" view, but I think it is worse than the old ("classical") view. Thankfully, Excel offers the possibility to return to this view. To do so, right-click on the area with the image and select "PivotTable Options / Display / Classic PivotTable Layout". You will then see a kind of a virtual PivotTable with preliminary empty areas that can be filled very easily using drag and drop.
B8: =IF(C8<>"",B7+1,"") -> 4 | C8: Wenn Sie in den Bereich der Pivot-Tabelle hineinklicken, sehen Sie am rechten Fensterrand den Bereich "PivotTable-Felder". Sollte das nicht funktionieren, müssen Sie mit der rechten Maustaste in die Pivot-Tabelle klicken und "Feldliste anzeigen" auswählen. Dort sehen Sie dann die Spaltenüberschriften der Liste, auf der Ihre Pivot-Tabelle beruht. Sie werden hier als "PivotTable-Felder" bezeichnet und Sie können sie jetzt einfach per Drag&Drop in die farblich umrandeten Bereiche der Pivot-Tabelle hineinziehen: Kriterienspalten in die Zeilen- und Spaltenfelder, Datenspalten in die Mitte ("Wertfelder"). Fertig! | E8: =IF(F8<>"",E7+1,"") -> 4 | F8: If you click into the PivotTable area, you will see the "PivotTable Fields" side bar on the right side of the window. If this does not work, you must right-click in the pivot table and select "Show field list". There you will see the column headings of the list which your PivotTable is based upon. They are called "PivotTable Fields" here and you can now simply drag and drop them into the color-coded areas of the PivotTable: Criteria columns into the row and column fields, data columns into the middle ("value fields"). Done!
B9: =IF(C9<>"",B8+1,"") -> 5 | C9: In derselben Art und Weise können Sie auch mit den Listen rechts unten in der Feldliste arbeiten. Diese gehören zu der bereits erwähnten "modernen" Ansicht der Pivot-Tabelle. Ich denke, jetzt sehen Sie deutlich, worin die große Stärke einer Pivot-Tabelle besteht: Sie bringt Übersichtlichkeit in Ihre Daten! Sie macht mit wenigen Mausklicks aus Daten (=viele Zahlen!) Informationen (=wenige Zahlen!). | E9: =IF(F9<>"",E8+1,"") -> 5 | F9: In the same way, you can also work with the lists at the bottom right of the field list. They belong to the "modern" view of the PivotTable mentioned above. I think now you can clearly see what the great strength of a PivotTable is: It brings clarity to your data! It turns data (=many numbers!) into information (=few numbers!) with a few mouse clicks.
B10: 6 | C10: Die Pivot-Tabelle ist zunächst eine zweidimensionale Darstellung von Daten. Damit kann z.B. die Frage beantwortet werden: "Welchen Umsatz haben wir pro Kunde und Quartal gemacht?". Es kann aber auch dreidimensionale Fragen geben: "Welchen Umsatz haben wir pro Kunde, Quartal und Niederlassung gemacht?". Die dritte Dimension der Fragestellung kann man ENTWEDER per Drag&Drop ins Berichtsfilterfeld (zwei Zeilen über der Pivot-Tabelle) ODER rechts neben ein bereits vorhandenes Zeilenfeld ziehen (Untergruppierung der Zeilen). Eine Untergruppierung der Spalten ist auch möglich - aber selten sinnvoll, da die Pivot-Tabelle dann sehr breit und damit unübersichtlich wird. | E10: 6 | F10: First of all the PivotTable is a two-dimensional presentation of data. Then you can answer questions like "Which turnover did we made per customer and quarter?" But also three-dimensional questions are possible: "Which turnover did we made per customer, quarter and branch?" The third dimension of the question may be dragged EITHER into the report filter field (two rows above the PivotTable) OR right to an existing row field (as a sub-group of the row). A sub-grouping of the columns is also possible, but rarely useful, because the PivotTable becomes very boad and confusing then.
B11: 7 | C11: Sie können die Pivot-Tabelle auch nach ihrer Erstellung noch beliebig umsortieren. Bitte probieren Sie jetzt verschiedene Möglichkeiten aus, mit den Daten vom Blatt "Pivot (Daten)" eine Pivot-Tabelle zu erzeugen! Umfangreichere Datenlisten und Übungen finden Sie in der Datei "Excel-Orders"! | E11: 7 | F11: You can re-sort the PivotTable as you wish even after its creation. Please try out different ways to create a PivotTable with the data from the "Pivot (Data)" sheet! More extensive data lists and exercises can be found in the file "Excel-Orders"!
B12: 8 | C12: Wenn Sie in die Pivot-Tabelle hinein klicken, erscheint ein neues Menü "PivotTable-Tools" mit zwei Untermenüs: "Analysieren" und "Entwurf". Dort gibt es zahlreiche Möglichekeiten, weiter mit der Pivot-Tabelle zu arbeiten. Einige der wichtigsten sollen hier kurz erläutert werden. "PivotTable-Tools / Analysieren": -------------------------------------------- "Aktives Feld" / "Feldeinstellungen" / "Wertfeld zusammenfassen nach" ACHTUNG: Was man hier tun kann, hängt davon ab, welches Feld man vorher in der Pivot-Tabelle angeklickt hat! ("Aktives Feld"!) "Daten" / "Aktualisieren" ACHTUNG: Wenn Sie Daten in der Liste verändern, die der Pivot-Tabelle zugrunde liegt, müssen Sie die Pivot-Tabelle hinterher aktualisieren! "Daten" / "Datenquelle ändern" ACHTUNG: Wenn Sie Zeilen oder Spalten zu der Liste hinzufügen oder entfernen, müssen Sie hinterher die Datenquelle ändern! "Aktionen" / "PivotTable verschieben" ... klar! | E12: 8 | F12: When you click inside the PivotTable, a new menu "PivotTable-Tools" appears with two submenus: "Analyse" and "Design". There are many ways to continue working with the PivotTable. Some of the most important ones will be briefly explained here. "PivotTable-Tools / Analyze": -------------------------------------- "Active Field" / "Field Settings" / "Summarize values field by" ATTENTION: What you can do now, depends on which filed you have clicked in the PivotTable before! ("Active Field"!) "Data" / "Refresh" ATTENTION: If you change the data in the list which the PivotTable is based on, you have to refresh it afterwards! "Data" / "Change Data Source" ATTENTION: If you add or remove columns or rows from the list, you have to change the data source afterwards! "Actions" / "Move PivotTable" ... obvious!
B13: 9 | C13: "PivotTable-Tools / Entwurf": --------------------------------------- "Layout" / "Teilergebnisse" … einfach ausprobieren! "Layout" / "Gesamtergebnisse" … einfach ausprobieren! "PivotTable-Formate" … einfach ausprobieren! | E13: 9 | F13: "PivotTable-Tools" / Design": --------------------------------------- "Design" / "Subtotals" … simply try it! "Design" / "Grand Totals" … simply try it! "PivotTable Styles" … simply try it!
B14: 10 | C14: Zu guter Letzt nochmal der Hinweis: Wenn Sie doppelt auf eine Zelle in der Pivot-Tabelle klicken, wird ein neues Blatt angelegt, das Ihnen zeigt, wie der Wert in der angeklickten Zelle zustande gekommen ist. Hier in dieser Datei gibt es eine Besonderheit: Ich habe durch entsprechende VBA-Programmierung verhindert, dass neue Blätter angelegt werden. Die Blätter müssen nämlich wegen der Zweisprachigkeit ein bestimmtes Format haben. Daher sollen Sie neue Blätter nur als Kopien des Blattes "Vorlage" anlegen. Zum Anschauen der Datenherkunft in der Pivot-Tabelle reicht es aber. | E14: 10 | F14: Last but not least, let me remind you: If you double-click on a cell in the PivotTable, a new sheet is created showing you how the value in the clicked cell was calculated. Here in this file there is a special feature: I have prevented new sheets from being created by appropriate VBA programming. The sheets must have a certain format because of the bilingualism. Therefore you should only create new sheets as copies of the sheet "Template". However, it is sufficient to look at the data origin in the PivotTable.
B15: 11 | C15: Übungen: (1) Probieren Sie diese Techniken hier mit dieser kleinen Pivot-Tabelle aus! (2) Öffnen Sie die Datei "Excel-Orders", aktivieren Sie das Blatt "Übungen" und beantworten Sie die Fragen 7-9 unter Benutzung von Pivot-Tabellen! | E15: 11 | F15: Exercises: (1) Try out these techniques here with this little PivotTable! (2) Open the file "Excel-Orders", activate the sheet "Exercises" and answer questions 7-9 using PivotTables!

Sheet 09 Pivot (Tipps&Tricks)
F1: 0
A2: 1 | B2: 09 Pivot (Tipps&Tricks) | F2: Back to Start
A3: 2 | B3: 09 Pivot (Tipps&Tricks) | F3: Startseite
A5: 2 | B5: Elemente ohne Daten
A6: 2 | C6: In unserem Beispiel wurde in Bremen kein Umsatz mit Aral erzielt. Infolgedessen erscheint in der Pivot-Tabelle unter "Bremen" keine Zeile "Aral":
A7: 2
A9: 1 | B9: Items with no data
A10: 1 | C10: In our example there are no sales in Bremen with Aral. Therefore, there is no row "Aral" at "Bremen":
A11: 1
A32: 2 | C32: Falls trotzdem unter "branch" immer alle "customer" angezeigt werden sollen, so können Sie das folgendermaßen einstellen: Doppelklick auf die Spaltenüberschrift "customer" und "Layout & Drucken / Elemente ohne Daten anzeigen"
A33: 2
A34: 2
A35: 2
A37: 1 | C37: If you want to see always all the customers for each of the branches, you can do this as follows: double click on the column heading "customer" and "Layout & Print / Show items with no data"
A38: 1
A39: 1
C42: Summe von sales | E42: quarter
C43: branch | D43: customer | E43: 1 | F43: 2 | G43: 3 | H43: 4 | I43: Gesamtergebnis
C44: Bremen | D44: Aral
D45: Esso | E45: 112536 | F45: 131845 | G45: 111525 | H45: 124978 | I45: 480884
D46: Shell | E46: 80425 | F46: 78647 | G46: 72436 | H46: 66745 | I46: 298253
C47: Bremen Ergebnis | E47: 192961 | F47: 210492 | G47: 183961 | H47: 191723 | I47: 779137
C48: Hamburg | D48: Aral | E48: 38523 | F48: 39467 | G48: 35712 | H48: 32677 | I48: 146379
D49: Esso | E49: 243890 | F49: 224924 | G49: 213999 | I49: 682813
D50: Shell | E50: 78176 | F50: 82789 | G50: 88111 | H50: 94512 | I50: 343588
C51: Hamburg Ergebnis | E51: 360589 | F51: 347180 | G51: 337822 | H51: 127189 | I51: 1172780
C52: Oldenburg | D52: Aral | E52: 31243 | F52: 33756 | G52: 38299 | H52: 35900 | I52: 139198
D53: Esso
D54: Shell | E54: 123124 | F54: 112967 | G54: 121210 | H54: 119891 | I54: 477192
C55: Oldenburg Ergebnis | E55: 154367 | F55: 146723 | G55: 159509 | H55: 155791 | I55: 616390
C56: Gesamtergebnis | E56: 707917 | F56: 704395 | G56: 681292 | H56: 474703 | I56: 2568307
A61: 0

Sheet 10 Pivot (Datenschnitte)
R1: 0
A2: 1 | B2: 10 Pivot (Slicer) | F2: Back to Start
A3: 2 | B3: 10 Pivot (Datenschnitte) | F3: Startseite
C5: branch | D5: customer | E5: quarter | F5: sales | G5: orders
C6: Bremen | D6: Esso | E6: 1 | F6: 112536 | G6: 92
C7: Bremen | D7: Esso | E7: 3 | F7: 111525 | G7: 89
C8: Bremen | D8: Esso | E8: 4 | F8: 124978 | G8: 96
C9: Bremen | D9: Esso | E9: 2 | F9: 131845 | G9: 90
C10: Bremen | D10: Shell | E10: 4 | F10: 66745 | G10: 138
C11: Bremen | D11: Shell | E11: 3 | F11: 72436 | G11: 127
C12: Bremen | D12: Shell | E12: 2 | F12: 78647 | G12: 120
C13: Bremen | D13: Shell | E13: 1 | F13: 80425 | G13: 111
C14: Hamburg | D14: Aral | E14: 3 | F14: 35712 | G14: 19
C15: Hamburg | D15: Aral | E15: 1 | F15: 38523 | G15: 19
C16: Hamburg | D16: Aral | E16: 4 | F16: 32677 | G16: 15
C17: Hamburg | D17: Aral | E17: 2 | F17: 39467 | G17: 17
C18: Hamburg | D18: Esso | E18: 3 | F18: 213999 | G18: 119
C19: Hamburg | D19: Esso | E19: 2 | F19: 224924 | G19: 122
C20: Hamburg | D20: Esso | E20: 1 | F20: 243890 | G20: 123
C21: Hamburg | D21: Shell | E21: 1 | F21: 78176 | G21: 66
C22: Hamburg | D22: Shell | E22: 3 | F22: 88111 | G22: 68
C23: Hamburg | D23: Shell | E23: 2 | F23: 82789 | G23: 63
C24: Hamburg | D24: Shell | E24: 4 | F24: 94512 | G24: 59
C25: Oldenburg | D25: Aral | E25: 1 | F25: 31243 | G25: 25
C26: Oldenburg | D26: Aral | E26: 2 | F26: 33756 | G26: 24
C27: Oldenburg | D27: Aral | E27: 3 | F27: 38299 | G27: 21
C28: Oldenburg | D28: Aral | E28: 4 | F28: 35900 | G28: 19
C29: Oldenburg | D29: Shell | E29: 2 | F29: 112967 | G29: 92
C30: Oldenburg | D30: Shell | E30: 3 | F30: 121210 | G30: 98
C31: Oldenburg | D31: Shell | E31: 4 | F31: 119891 | G31: 94
C32: Oldenburg | D32: Shell | E32: 1 | F32: 123124 | G32: 88
C35: Summe von sales | E35: quarter
C36: branch | D36: customer | E36: 1 | F36: 2 | G36: 3 | H36: 4
C37: Bremen | D37: Esso | E37: 112536 | F37: 131845 | G37: 111525 | H37: 124978
D38: Shell | E38: 80425 | F38: 78647 | G38: 72436 | H38: 66745
C39: Hamburg | D39: Aral | E39: 38523 | F39: 39467 | G39: 35712 | H39: 32677
D40: Esso | E40: 243890 | F40: 224924 | G40: 213999
D41: Shell | E41: 78176 | F41: 82789 | G41: 88111 | H41: 94512
C42: Oldenburg | D42: Aral | E42: 31243 | F42: 33756 | G42: 38299 | H42: 35900
D43: Shell | E43: 123124 | F43: 112967 | G43: 121210 | H43: 119891
A45: 2 | B45: Einfügen
A46: 1 | B46: Insert
A62: 2 | B62: Ziel
A63: 1 | B63: Objective
A66: 0

Sheet 10 Pivot (Datenschnitte)_ (hidden)
B1: 2 | C1: 2 | D1: 2 | E1: 1 | F1: 1 | G1: 1 | H1: 0
A2: 1 | B2: 10 Pivot (Slicer)_ | F2: =B2 -> 10 Pivot (Slicer)_
A3: 2 | B3: 10 Pivot (Datenschnitte)_
A4: 0
B5: 1 | C5: Datenschnitte sind eine schicke Ergänzung der Pivot-Tabellen. Sie haben eine qualitative und eine quantitative Aussage. Lassen Sie uns zunächst Datenschnitte einfügen und dann schauen, was wir damit machen können. Klick in die Pivottabelle und "Pivottable-Tools / Analysieren / Filtern / Datenschnitt einfügen" dann: - "branch", "customer" und "quarter" auswählen - Rechtsklick in einen Datenschnitt / "Datenschnitteinstellungen" | E5: 1 | F5: Slicers are a fancy addition to the PivotTables. They have a qualitative and a quantitative message. Let's first insert data slicers and then see what we can do with them. Click into the PivotTable and "PivotTable-Tools / Analyze / Filter / Insert Slicer" then - select "branch", "customer" and "quarter" - right click into a slicer /"Slicer Settings"
B6: =IF(C6<>"",B5+1,"") -> 2 | C6: Zur QUANTITATIVEN Aussage der Datenschnitte: Sie dienen quasi der "intuitiven Filterung" der Pivot-Tabelle. Mit jedem Klick in einen Datenschnitt verändert sich die Pivot-Tabelle. Dabei addieren sich die Filter. Wenn Sie also in "branch" Bremen anklicken und in "customer" Shell, zeigt die Pivot-Tabelle alle Umsätze mit Shell in Bremen. Mit den Buttons rechts oben im Datenschnitt können Sie eine Mehrfachauswahl treffen bzw. den Filter wieder löschen. | E6: =IF(F6<>"",E5+1,"") -> 2 | F6: Concerning the QUANTITATIVE message of the slicers: They serve quasi as "intuitive filtering" of the PivotTable. With each click in a slicer the PivotTable changes. The filters add up in the process. So if you click on Bremen in "branch" and Shell in "customer", the PivotTable shows all sales with Shell in Bremen. With the buttons at the top right of the slicers you can make a multiple selection or delete the filter.
B7: =IF(C7<>"",B6+1,"") -> 3 | C7: Zur QUALITATIVEN Aussage der Datenschnitte: Sie können auch ohne die Pivot-Tabelle eine qualitative Aussage aus den Datenschnitten gewinnen. Wenn Sie nämlich - auf "Bremen" klicken, sehen Sie, dass es dort keinen Umsatz mit Aral gibt - auf "Hamburg" und "Esso" klicken, sehen Sie, dass es dort keinen Umsatz im 4. Quartal gibt - auf "Oldenburg" klicken, sehen Sie, dass es dort keinen Umsatz mit Esso gibt. Sie bekommen also eine Antwort auf die Frage "Zu welchen Daten in Spalte X gibt es Daten in Spalte Y?". Das ist in unserer kleinen Beispieltabelle natürlich banal - kann aber in einer komplexeren Tabelle sehr interessant sein - z.B.: "In welcher Region wird Produkt X verkauft?" "Welche Mitarbeiter bedienen den Kunden Y?" "Welche Häfen fährt Schiff Z an?" | E7: =IF(F7<>"",E6+1,"") -> 3 | F7: Concerning the QUALITATIVE message of the slicers: You can obtain a qualitative message from the slicers even without the PivotTable. If you - click on "Bremen", you will see that there is no turnover with Aral - click on "Hamburg" and "Esso", you will see that there is no turnover in the 4th quarter - click on "Oldenburg", you will see that there are no Esso sales. So you get an answer to the question "For which data in column X there are data in column Y?" This is of course banal in our small example table - but can be very interesting in a more complex table - e.g: "In which region product X is sold?" "Which employees serve customer Y?" "Which ports does ship Z call at?"

Sheet 11 Pivot (Berechnetes Feld)
J1: 0
A2: 1 | B2: 11 Pivot (Calculated Field) | F2: Back to Start
A3: 2 | B3: 11 Pivot (Berechnetes Feld) | F3: Startseite
C5: branch | D5: customer | E5: quarter | F5: sales | G5: orders
C6: Bremen | D6: Esso | E6: 1 | F6: 112536 | G6: 92
C7: Bremen | D7: Esso | E7: 3 | F7: 111525 | G7: 89
C8: Bremen | D8: Esso | E8: 4 | F8: 124978 | G8: 96
C9: Bremen | D9: Esso | E9: 2 | F9: 131845 | G9: 90
C10: Bremen | D10: Shell | E10: 4 | F10: 66745 | G10: 138
C11: Bremen | D11: Shell | E11: 3 | F11: 72436 | G11: 127
C12: Bremen | D12: Shell | E12: 2 | F12: 78647 | G12: 120
C13: Bremen | D13: Shell | E13: 1 | F13: 80425 | G13: 111
C14: Hamburg | D14: Aral | E14: 3 | F14: 35712 | G14: 19
C15: Hamburg | D15: Aral | E15: 1 | F15: 38523 | G15: 19
C16: Hamburg | D16: Aral | E16: 4 | F16: 32677 | G16: 15
C17: Hamburg | D17: Aral | E17: 2 | F17: 39467 | G17: 17
C18: Hamburg | D18: Esso | E18: 3 | F18: 213999 | G18: 119
C19: Hamburg | D19: Esso | E19: 2 | F19: 224924 | G19: 122
C20: Hamburg | D20: Esso | E20: 1 | F20: 243890 | G20: 123
C21: Hamburg | D21: Shell | E21: 1 | F21: 78176 | G21: 66
C22: Hamburg | D22: Shell | E22: 3 | F22: 88111 | G22: 68
C23: Hamburg | D23: Shell | E23: 2 | F23: 82789 | G23: 63
C24: Hamburg | D24: Shell | E24: 4 | F24: 94512 | G24: 59
C25: Oldenburg | D25: Aral | E25: 1 | F25: 31243 | G25: 25
C26: Oldenburg | D26: Aral | E26: 2 | F26: 33756 | G26: 24
C27: Oldenburg | D27: Aral | E27: 3 | F27: 38299 | G27: 21
C28: Oldenburg | D28: Aral | E28: 4 | F28: 35900 | G28: 19
C29: Oldenburg | D29: Shell | E29: 2 | F29: 112967 | G29: 92
C30: Oldenburg | D30: Shell | E30: 3 | F30: 121210 | G30: 98
C31: Oldenburg | D31: Shell | E31: 4 | F31: 119891 | G31: 94
C32: Oldenburg | D32: Shell | E32: 1 | F32: 123124 | G32: 88
C34: customer | D34: (Alle)
E36: branch
C37: quarter | D37: Werte | E37: Bremen | F37: Hamburg | G37: Oldenburg | H37: Gesamtergebnis
C38: 1 | D38: Total Sales | E38: 192961 | F38: 360589 | G38: 154367 | H38: 707917
D39: Summe von sales per order | E39: 950.546798 | F39: 1733.600962 | G39: 1366.079646 | H39: 1350.986641
C40: 2 | D40: Total Sales | E40: 210492 | F40: 347180 | G40: 146723 | H40: 704395
D41: Summe von sales per order | E41: 1002.342857 | F41: 1718.712871 | G41: 1264.853448 | H41: 1334.081439
C42: 3 | D42: Total Sales | E42: 183961 | F42: 337822 | G42: 159509 | H42: 681292
D43: Summe von sales per order | E43: 851.6712963 | F43: 1639.912621 | G43: 1340.411765 | H43: 1259.319778
C44: 4 | D44: Total Sales | E44: 191723 | F44: 127189 | G44: 155791 | H44: 474703
D45: Summe von sales per order | E45: 819.3290598 | F45: 1718.77027 | G45: 1378.681416 | H45: 1127.56057
C46: Gesamt: Total Sales | E46: 779137 | F46: 1172780 | G46: 616390 | H46: 2568307
C47: Gesamt: Summe von sales per order | E47: 902.8238702 | F47: 1699.681159 | G47: 1337.071584 | H47: 1275.226912
A50: 2 | B50: Einfügen
A51: 1 | B51: Insert
A88: 0

Sheet 11 Pivot (Berechnetes Feld)_ (hidden)
B1: 2 | C1: 2 | D1: 2 | E1: 1 | F1: 1 | G1: 1 | H1: 0
A2: 1 | B2: 11 Pivot (Calculated Field)_ | F2: =B2 -> 11 Pivot (Calculated Field)_
A3: 2 | B3: 11 Pivot (Berechnetes Feld)_
A4: 0
B5: 1 | C5: Sie hatten bei der Erstellung der Pivot-Tabelle schon gesehen, dass aus den Spaltenüberschriften der Originaltabelle PivotTable-Felder werden, die man per Drag&Drop in die Pivot-Tabelle hinein ziehen kann. Andere Felder kann es also nicht geben? Doch! Sie können sich aus den vorhandenen Feldern neue Felder berechnen - im vorliegenden Fall z.B., indem Sie "sales" durch "orders" teilen und sich so den mittleren Wert einer Bestellung ausrechnen. | E5: 1 | F5: When you created the PivotTable, you had already seen that the column headings of the original table become PivotTable fields that you can drag and drop into the PivotTable. So there can be no other fields? Yes, there are! You can calculate new fields from the existing fields - in this case, for example, by dividing "sales" by "orders" and thus calculating the average value of an order.
B6: =IF(C6<>"",B5+1,"") -> 2 | C6: Dazu machen Sie folgendes: Klick in die Pivottabelle und "Pivottable-Tools / Analysieren / Berechnungen / Felder, Elemente und Gruppen / Berechnetes Feld" Hier geben Sie die Berechnungsformel ein. ACHTUNG: Die Formel für die Feldberechnung kann nur - Bezüge auf Felder der Pivot-Tabelle (hier: branch, customer und quarter) und - konstante Werte enthalten, aber keine Bezüge auf andere Zellen des Arbeitsblattes! Das berechnete Feld taucht anschließend in der Feldliste auf und kann in den Wertebereich gezogen werden. Dessen Beschriftung "Summe von sales per order" ist irreführend und sollte geändert werden (Rechtsklick + "Wertfeldeinstellungen"). | E6: =IF(F6<>"",E5+1,"") -> 2 | F6: To do this, you need to do the following: Click into the PivotTable + "Pivottable-Tools / Analyze / Calculations / Fields, Items & Sets / Calculated Field" Here you enter the calculation formula. ATTENTION: The formula for the field calculation can only contain - references to fields in the PivotTable (here: branch, customer and quarter) and - constant values but no references to other cells of the worksheet! The calculated field then appears in the field list and can be dragged into the value range. Its label "Sum of sales per order" is misleading and should be changed (right click + "Value field settings").
B7: =IF(C7<>"",B6+1,"") -> 3 | C7: Da die Pivot-Tabelle jetzt etwas unübersichtlich geworden ist, greifen wir in die Trickkiste und färben die Zeilen unterschiedlich. Zum Markieren müssen Sie nur an den linken Rand einer Zelle klicken. Beachten Sie dabei die Veränderung der Cursorform! | E7: =IF(F7<>"",E6+1,"") -> 3 | F7: Since the PivotTable has now become a bit confusing, we'll use our bag of tricks and color the rows differently. To select, you only need to click on the left edge of a cell. Note the change of the cursor shape!
B8: =IF(C8<>"",B7+1,"") ->  | E8: =IF(F8<>"",E7+1,"") -> 

Sheet 12 Pivot (Berechnetes Element)
A2: 1 | B2: 12 Pivot (Calculated Item) | F2: Back to Start
A3: 2 | B3: 12 Pivot (Berechnetes Element) | F3: Startseite
C6: branch | D6: customer | E6: quarter | F6: sales | G6: orders
C7: Bremen | D7: Shell | E7: 4 | F7: 66745 | G7: 138
C8: Bremen | D8: Shell | E8: 3 | F8: 72436 | G8: 127
C9: Bremen | D9: Shell | E9: 2 | F9: 78647 | G9: 120
C10: Bremen | D10: Shell | E10: 1 | F10: 80425 | G10: 111
C11: Bremen | D11: Esso | E11: 1 | F11: 112536 | G11: 92
C12: Bremen | D12: Esso | E12: 3 | F12: 111525 | G12: 89
C13: Bremen | D13: Esso | E13: 4 | F13: 124978 | G13: 96
C14: Bremen | D14: Esso | E14: 2 | F14: 131845 | G14: 90
C15: Hamburg | D15: Shell | E15: 1 | F15: 78176 | G15: 66
C16: Hamburg | D16: Shell | E16: 3 | F16: 88111 | G16: 68
C17: Hamburg | D17: Shell | E17: 2 | F17: 82789 | G17: 63
C18: Hamburg | D18: Shell | E18: 4 | F18: 94512 | G18: 59
C19: Hamburg | D19: Esso | E19: 3 | F19: 213999 | G19: 119
C20: Hamburg | D20: Esso | E20: 2 | F20: 224924 | G20: 122
C21: Hamburg | D21: Aral | E21: 3 | F21: 35712 | G21: 19
C22: Hamburg | D22: Esso | E22: 1 | F22: 243890 | G22: 123
C23: Hamburg | D23: Aral | E23: 1 | F23: 38523 | G23: 19
C24: Hamburg | D24: Aral | E24: 4 | F24: 32677 | G24: 15
C25: Hamburg | D25: Aral | E25: 2 | F25: 39467 | G25: 17
C26: Oldenburg | D26: Shell | E26: 2 | F26: 112967 | G26: 92
C27: Oldenburg | D27: Shell | E27: 3 | F27: 121210 | G27: 98
C28: Oldenburg | D28: Aral | E28: 1 | F28: 31243 | G28: 25
C29: Oldenburg | D29: Shell | E29: 4 | F29: 119891 | G29: 94
C30: Oldenburg | D30: Shell | E30: 1 | F30: 123124 | G30: 88
C31: Oldenburg | D31: Aral | E31: 2 | F31: 33756 | G31: 24
C32: Oldenburg | D32: Aral | E32: 3 | F32: 38299 | G32: 21
C33: Oldenburg | D33: Aral | E33: 4 | F33: 35900 | G33: 19
C39: total sales | D39: quarter
C40: branch | D40: 1 | E40: 2 | F40: 3 | G40: 4 | H40: increase 2nd half | I40: Gesamtergebnis
C41: Bremen | D41: 192961 | E41: 210492 | F41: 183961 | G41: 191723 | H41: 0.9311716606 | I41: 779137.9312
C42: Hamburg | D42: 360589 | E42: 347180 | F42: 337822 | G42: 127189 | H42: 0.657009561 | I42: 1172780.657
C43: Oldenburg | D43: 154367 | E43: 146723 | F43: 159509 | G43: 155791 | H43: 1.047195191 | I43: 616391.0472
C44: Gesamtergebnis | D44: 707917 | E44: 704395 | F44: 681292 | G44: 474703 | H44: 2.635376412 | I44: 2568309.635
A46: 2 | H46: Achtung: "Gesamtergebnis" ist sinnlos!
A47: 1 | H47: Attention: "Grand total" is nonsense!
A49: 2 | B49: Einfügen
A50: 1 | B50: Insert
A57: 0

Sheet 12 Pivot (Berechnetes Element)_ (hidden)
B1: 2 | C1: 2 | D1: 2 | E1: 1 | F1: 1 | G1: 1 | H1: 0
A2: 1 | B2: 12 Pivot (Calculated Item)_ | F2: =B2 -> 12 Pivot (Calculated Item)_
A3: 2 | B3: 12 Pivot (Berechnetes Element)_
A4: 0
B5: 1 | C5: Neben dem berechneten Feld gibt es auch noch das berechnete Element. Warum sich Microsoft das ausgedacht hat, ist mir ehrlich gesagt, auch nicht ganz klar. Im Endeffekt sieht es dann nämlich genauso aus wie das berechnete Feld. Dazu machen Sie folgendes: Klick auf "quarter" in der Pivot-Tabelle + "Pivottable-Tools / Analysieren / Berechnungen / Felder, Elemente und Gruppen / Berechnetes Element" ACHTUNG: Wenn Sie vorher die falsche Zelle angeklickt haben (also nicht "quarter"), ist "Berechnetes Feld" deaktiviert! | E5: 1 | F5: Besides the calculated field there is also the calculated element. Why Microsoft came up with this is, to be honest, not quite clear to me either. In the end it looks exactly like the calculated field. You can do the following: Click on "quarter" in the PivotTable + "Pivottable-Tools / Analyze / Calculations / Fields, Items & Sets / Calculated Item" ATTENTION: If you have previously clicked on the wrong cell (i.e. not "quarter"), "Calculated Item" is disabled!
B6: =IF(C6<>"",B5+1,"") -> 2 | C6: Im Beispiel wollen wir mal berechnen, wie sich der Umsatz des zweiten Halbjahres zum Umsatz des ersten Halbjahres verhält: ('3'+'4')/('1'+'2') Das berechnete Element ist anschließend ein weiteres Element desjenigen Feldes, für das es berechnet wurde - z.B. ist "increase 2nd half" ein Element von "quarter" zusätzlich zu "1", "2", "3" und "4", weil wir "quarter" angeklickt hatten, bevor wir die Funktion "Berechnetes Element" aufgerufen haben. Es erscheint in der Pivottabelle, wenn das entsprechende Feld (z.B. "quarter") hineingezogen wird. ACHTUNG: Alle Zeilensummen und die ganz rechte Spaltensumme sind jetzt sinnlos, denn man kann nicht Euros und Prozent addieren! | E6: =IF(F6<>"",E5+1,"") -> 2 | F6: In the example we want to calculate how the sales of the second half of the year relate to the sales of the first half of the year: ('3'+'4')/('1'+'2') The calculated element is then another element of the field for which it was calculated - e.g. "increase 2nd half" is an element of "quarter" in addition to "1", "2", "3" and "4" because we clicked "quarter" before we called the "Calculated Item" function. It appears in the PivotTable when the corresponding field (e.g. "quarter") is dragged in. ATTENTION: All row sums and the rightmost column sum are now useless, because you cannot add Euros and percent!
B7: =IF(C7<>"",B6+1,"") ->  | E7: =IF(F7<>"",E6+1,"") -> 

Sheet 13 Pivot (Diagramm)
A2: 1 | B2: 13 Pivot (Chart) | F2: Back to Start
A3: 2 | B3: 13 Pivot (Diagramm) | F3: Startseite
C6: branch | D6: customer | E6: quarter | F6: sales | G6: orders
C7: Bremen | D7: Shell | E7: 4 | F7: 66745 | G7: 138
C8: Bremen | D8: Shell | E8: 3 | F8: 72436 | G8: 127
C9: Bremen | D9: Shell | E9: 2 | F9: 78647 | G9: 120
C10: Bremen | D10: Shell | E10: 1 | F10: 80425 | G10: 111
C11: Bremen | D11: Esso | E11: 1 | F11: 112536 | G11: 92
C12: Bremen | D12: Esso | E12: 3 | F12: 111525 | G12: 89
C13: Bremen | D13: Esso | E13: 4 | F13: 124978 | G13: 96
C14: Bremen | D14: Esso | E14: 2 | F14: 131845 | G14: 90
C15: Hamburg | D15: Shell | E15: 1 | F15: 78176 | G15: 66
C16: Hamburg | D16: Shell | E16: 3 | F16: 88111 | G16: 68
C17: Hamburg | D17: Shell | E17: 2 | F17: 82789 | G17: 63
C18: Hamburg | D18: Shell | E18: 4 | F18: 94512 | G18: 59
C19: Hamburg | D19: Esso | E19: 3 | F19: 213999 | G19: 119
C20: Hamburg | D20: Esso | E20: 2 | F20: 224924 | G20: 122
C21: Hamburg | D21: Aral | E21: 3 | F21: 35712 | G21: 19
C22: Hamburg | D22: Esso | E22: 1 | F22: 243890 | G22: 123
C23: Hamburg | D23: Aral | E23: 1 | F23: 38523 | G23: 19
C24: Hamburg | D24: Aral | E24: 4 | F24: 32677 | G24: 15
C25: Hamburg | D25: Aral | E25: 2 | F25: 39467 | G25: 17
C26: Oldenburg | D26: Shell | E26: 2 | F26: 112967 | G26: 92
C27: Oldenburg | D27: Shell | E27: 3 | F27: 121210 | G27: 98
C28: Oldenburg | D28: Aral | E28: 1 | F28: 31243 | G28: 25
C29: Oldenburg | D29: Shell | E29: 4 | F29: 119891 | G29: 94
C30: Oldenburg | D30: Shell | E30: 1 | F30: 123124 | G30: 88
C31: Oldenburg | D31: Aral | E31: 2 | F31: 33756 | G31: 24
C32: Oldenburg | D32: Aral | E32: 3 | F32: 38299 | G32: 21
C33: Oldenburg | D33: Aral | E33: 4 | F33: 35900 | G33: 19
C37: total sales | E37: customer
C38: branch | D38: quarter | E38: Aral | F38: Esso | G38: Shell | H38: Gesamtergebnis
C39: Bremen | D39: 1 | F39: 112536 | G39: 80425 | H39: 192961
D40: 2 | F40: 131845 | G40: 78647 | H40: 210492
D41: 3 | F41: 111525 | G41: 72436 | H41: 183961
D42: 4 | F42: 124978 | G42: 66745 | H42: 191723
C43: Bremen Ergebnis | F43: 480884 | G43: 298253 | H43: 779137
C44: Hamburg | D44: 1 | E44: 38523 | F44: 243890 | G44: 78176 | H44: 360589
D45: 2 | E45: 39467 | F45: 224924 | G45: 82789 | H45: 347180
D46: 3 | E46: 35712 | F46: 213999 | G46: 88111 | H46: 337822
D47: 4 | E47: 32677 | G47: 94512 | H47: 127189
C48: Hamburg Ergebnis | E48: 146379 | F48: 682813 | G48: 343588 | H48: 1172780
C49: Oldenburg | D49: 1 | E49: 31243 | G49: 123124 | H49: 154367
D50: 2 | E50: 33756 | G50: 112967 | H50: 146723
D51: 3 | E51: 38299 | G51: 121210 | H51: 159509
D52: 4 | E52: 35900 | G52: 119891 | H52: 155791
C53: Oldenburg Ergebnis | E53: 139198 | G53: 477192 | H53: 616390
C54: Gesamtergebnis | E54: 285577 | F54: 1163697 | G54: 1119033 | H54: 2568307
A57: 2 | B57: Einfügen: | C57: Klick in die Pivot-Tabelle / Pivottable-Tools / Analysieren / "Tools" / "PivotChart"
A58: 2
A59: 2 | D59: Änderungen der Pivot-Tabelle wirken sich im Diagramm aus und umgekehrt. Das Layout des Pivot-Diagramms ist nicht besonders vorbildlich und daher eher zur "visuellen Selbstinformation" geeignet als zur Präsentation. Man kann es auch als Hilfsmittel bei der Diskussion in Meetings einsetzen ("Sehen wir uns doch mal ... an!")
A60: 2
A61: 2
A62: 2
A63: 2
A64: 2
A65: 2
A66: 1 | B66: Insert: | C66: Click into the PivotTable / Pivottable-Tools / Analyze / "Tools" / "PivotChart"
A67: 1
A68: 1 | D68: Changes in the PivotTable influence the chart and vice versa. The layout of the chart is not ideal and therefore it is more suitable for a "visual self-information" than for a presentation. It may also be used as a tool for discussions in meetings ("Let's have a look at ... !")
A69: 1
A70: 1
A71: 1
A72: 1
A73: 1
A74: 1
A99: 0

Sheet 13 Pivot (Diagramm)_ (hidden)
B1: 2 | C1: 2 | D1: 2 | E1: 1 | F1: 1 | G1: 1 | H1: 0
A2: 1 | B2: 13 Pivot (Chart)_ | F2: =B2 -> 13 Pivot (Chart)_
A3: 2 | B3: 13 Pivot (Diagramm)_
A4: 0
B5: 1 | C5: Die Zahlen einer Pivot-Tabelle können mit wenigen Mausklicks schnell in ein Diagramm umgewandelt werden. Klicken Sie dazu in die Pivot-Tabelle (NUR eine Zelle anklicken - NICHT die gesamte Tabelle markieren!) und wählen Sie "Pivottable-Tools / Analysieren / Tools / PivotChart" Als Diagrammtyp sollten Sie im Allgemeinen "Gruppierte Säulen" benutzen. | E5: 1 | F5: The numbers of a PivotTable can be quickly converted into a chart with a few mouse clicks. To do this, click in the PivotTable (ONLY click on a cell - do NOT select the entire table!) and choose "Pivottable tools / Analyze / Tools / PivotChart" In general, you should use "Grouped columns" as the chart type.
B6: =IF(C6<>"",B5+1,"") -> 2 | C6: Daraufhin wird ein entsprechendes Diagramm erstellt, das Bedienelemente zur Steuerung der Anzeige enthält. Das bedeutet, Sie können auf diese Buttons klicken und auswählen, welche Daten im Diagramm angezeigt werden sollen. Diese Aktion wirkt sich ebenfalls auf die Pivot-Tabelle aus. Auch dort werden jetzt die ausgewählten Daten angezeigt. Das funktioniert auch umgekehrt: Sie können die Datenauswahl in der Pivot-Tabelle ändern - woraufhin sich ebenfalls das Diagramm ändert. | E6: =IF(F6<>"",E5+1,"") -> 2 | F6: A corresponding chart is then created, which contains operating elements for controlling the display. This means that you can click on these buttons and select which data should be displayed in the chart. This action also affects the PivotTable. The selected data is now also displayed there. This also works the other way around: You can change the data selection in the PivotTable - which also changes the chart.
B7: =IF(C7<>"",B6+1,"") -> 3 | C7: Das Layout des Pivot-Diagramms entspricht in keiner Weise den Regeln für vorbildliche Formatierung (siehe meine Übungsdatei "Charts"!) und ist daher eher zur "schnellen visuellen Selbstinformation" geeignet als zur Präsentation. Dafür müsste es erst noch komplett überarbeitet werden (Titel / Achsenbeschriftung und -skalierung / Schriftart, -farbe und -größe / Farbgestaltung). | E7: =IF(F7<>"",E6+1,"") -> 3 | F7: The layout of the PivotChart does not follow the rules of commendable formatting in any way (see my exercise file "Charts"!) and is therefore more suitable for "quick visual self-information" than for presentation. For this it would have to be completely reworked (title / axes labeling and scaling / font, color and size / color scheme).
B8: =IF(C8<>"",B7+1,"") -> 4 | C8: Man kann es auch als schnelles Hilfsmittel bei der Diskussion in Meetings einsetzen ("Sehen wir uns doch mal ... an!"). | E8: =IF(F8<>"",E7+1,"") -> 4 | F8: It can also be used as a quick tool for discussion in meetings ("Let's have a look at ...!").

Sheet 14 Übungsdaten (1)
N1: 0
A2: 1 | B2: 14 Exercise data (1) | F2: Back to Start
A3: 2 | B3: 14 Übungsdaten (1) | F3: Startseite
A5: 2 | B5: Beleg-Nr. | C5: Kostenart | D5: Konto-Nr | E5: Kosten-kategorie | F5: Kosten-stelle | G5: Monat | H5: Buchungs-datum | I5: MwSt-Satz | J5: Netto | K5: Mwst | L5: Brutto
A6: 1 | B6: voucher nr. | C6: cost type | D6: account nr. | E6: cost category | F6: cost center | G6: month | H6: booking date | I6: VAT % | J6: net | K6: VAT | L6: gross
B7: 1 | C7: material (Material) | D7: 4101 | E7: P | F7: 100 | G7: January | H7: 2015-01-06 | I7: 0.19 | J7: 2234 | K7: 424.46 | L7: 2658.46
A8: 0 | B8: 2 | C8: interests (Zinsen) | D8: 4191 | E8: P | F8: 190 | G8: January | H8: 2015-01-07 | J8: 2548 | K8: 0 | L8: 2548
B9: 3 | C9: salaries (Gehälter) | D9: 4101 | E9: P | F9: 100 | G9: January | H9: 2015-01-08 | J9: 250 | K9: 0 | L9: 250
B10: 4 | C10: energy (Energie) | D10: 4201 | E10: S | F10: 200 | G10: January | H10: 2015-01-09 | I10: 0.19 | J10: 569 | K10: 108.11 | L10: 677.11
B11: 5 | C11: depreciation of fixed assets (AFA) | D11: 4121 | E11: P | F11: 120 | G11: January | H11: 2015-01-10 | J11: 250 | K11: 0 | L11: 250
B12: 6 | C12: interests (Zinsen) | D12: 4121 | E12: P | F12: 120 | G12: January | H12: 2015-01-11 | J12: 3545 | K12: 0 | L12: 3545
B13: 7 | C13: wages (Löhne) | D13: 4191 | E13: P | F13: 190 | G13: January | H13: 2015-01-12 | J13: 2500 | K13: 0 | L13: 2500
B14: 8 | C14: salaries (Gehälter) | D14: 4101 | E14: P | F14: 100 | G14: January | H14: 2015-01-13 | J14: 6224 | K14: 0 | L14: 6224
B15: 9 | C15: rents (Mieten) | D15: 4101 | E15: S | F15: 100 | G15: January | H15: 2015-01-14 | J15: 9022 | K15: 0 | L15: 9022
B16: 10 | C16: depreciation of fixed assets (AFA) | D16: 4131 | E16: P | F16: 130 | G16: February | H16: 2015-02-05 | J16: 250 | K16: 0 | L16: 250
B17: 11 | C17: salaries (Gehälter) | D17: 4131 | E17: P | F17: 130 | G17: February | H17: 2015-02-06 | J17: 6224 | K17: 0 | L17: 6224
B18: 12 | C18: rents (Mieten) | D18: 4201 | E18: S | F18: 200 | G18: February | H18: 2015-02-07 | J18: 9022 | K18: 0 | L18: 9022
B19: 13 | C19: depreciation of fixed assets (AFA) | D19: 4131 | E19: P | F19: 130 | G19: February | H19: 2015-02-08 | J19: 250 | K19: 0 | L19: 250
B20: 14 | C20: other (Sonstiges) | D20: 4191 | E20: S | F20: 190 | G20: February | H20: 2015-02-09 | I20: 0.19 | J20: 2345 | K20: 445.55 | L20: 2790.55
B21: 15 | C21: wages (Löhne) | D21: 4101 | E21: P | F21: 100 | G21: February | H21: 2015-02-10 | J21: 250 | K21: 0 | L21: 250
B22: 16 | C22: rents (Mieten) | D22: 4101 | E22: P | F22: 100 | G22: February | H22: 2015-02-11 | J22: 2582 | K22: 0 | L22: 2582
B23: 17 | C23: social costs (Sozialkosten) | D23: 4101 | E23: P | F23: 100 | G23: February | H23: 2015-02-12 | J23: 250 | K23: 0 | L23: 250
B24: 18 | C24: depreciation of fixed assets (AFA) | D24: 4101 | E24: P | F24: 100 | G24: February | H24: 2015-02-13 | J24: 9022 | K24: 0 | L24: 9022
B25: 19 | C25: material (Material) | D25: 4191 | E25: P | F25: 190 | G25: February | H25: 2015-02-14 | I25: 0.19 | J25: 2489 | K25: 472.91 | L25: 2961.91
B26: 20 | C26: social costs (Sozialkosten) | D26: 4101 | E26: P | F26: 100 | G26: March | H26: 2015-03-16 | I26: 0 | J26: 2548 | K26: 0 | L26: 2548
B27: 21 | C27: energy (Energie) | D27: 4201 | E27: S | F27: 200 | G27: March | H27: 2015-03-17 | I27: 0.19 | J27: 1545 | K27: 293.55 | L27: 1838.55
B28: 22 | C28: material (Material) | D28: 4101 | E28: P | F28: 100 | G28: March | H28: 2015-03-18 | I28: 0.19 | J28: 2214 | K28: 420.66 | L28: 2634.66
B29: 23 | C29: interests (Zinsen) | D29: 4191 | E29: P | F29: 190 | G29: March | H29: 2015-03-19 | J29: 2548 | K29: 0 | L29: 2548
B30: 24 | C30: energy (Energie) | D30: 4201 | E30: S | F30: 200 | G30: March | H30: 2015-03-21 | I30: 0.19 | J30: 569 | K30: 108.11 | L30: 677.11
B31: 25 | C31: depreciation of fixed assets (AFA) | D31: 4121 | E31: P | F31: 120 | G31: March | H31: 2015-03-22 | J31: 250 | K31: 0 | L31: 250
B32: 26 | C32: salaries (Gehälter) | D32: 4101 | E32: P | F32: 100 | G32: March | H32: 2015-03-23 | J32: 250 | K32: 0 | L32: 250
B33: 27 | C33: interests (Zinsen) | D33: 4101 | E33: P | F33: 100 | G33: March | H33: 2015-03-23 | J33: 1545 | K33: 0 | L33: 1545
B34: 28 | C34: wages (Löhne) | D34: 4191 | E34: P | F34: 190 | G34: March | H34: 2015-03-24 | J34: 2500 | K34: 0 | L34: 2500
B35: 29 | C35: wages (Löhne) | D35: 4121 | E35: P | F35: 120 | G35: April | H35: 2015-04-07 | J35: 5145 | K35: 0 | L35: 5145
B36: 30 | C36: dues (Abgaben) | D36: 4181 | E36: S | F36: 180 | G36: April | H36: 2015-04-08 | J36: 2548 | K36: 0 | L36: 2548
B37: 31 | C37: social costs (Sozialkosten) | D37: 4121 | E37: P | F37: 120 | G37: April | H37: 2015-04-09 | J37: 3250 | K37: 0 | L37: 3250
B38: 32 | C38: Instandhaltung | D38: 4201 | E38: P | F38: 200 | G38: April | H38: 2015-04-10 | I38: 0.19 | J38: 974 | K38: 185.06 | L38: 1159.06
B39: 33 | C39: material (Material) | D39: 4131 | E39: P | F39: 130 | G39: April | H39: 2015-04-11 | I39: 0.19 | J39: 250 | K39: 47.5 | L39: 297.5
B40: 34 | C40: dues (Abgaben) | D40: 4131 | E40: P | F40: 130 | G40: April | H40: 2015-04-12 | J40: 2489 | K40: 0 | L40: 2489
B41: 35 | C41: salaries (Gehälter) | D41: 4181 | E41: P | F41: 180 | G41: April | H41: 2015-04-13 | J41: 1000 | K41: 0 | L41: 1000
B42: 36 | C42: social costs (Sozialkosten) | D42: 4101 | E42: P | F42: 100 | G42: April | H42: 2015-04-14 | J42: 2548 | K42: 0 | L42: 2548
B43: 37 | C43: energy (Energie) | D43: 4201 | E43: S | F43: 200 | G43: April | H43: 2015-04-15 | I43: 0.19 | J43: 1545 | K43: 293.55 | L43: 1838.55
B44: 38 | C44: depreciation of fixed assets (AFA) | D44: 4101 | E44: P | F44: 100 | G44: May | H44: 2015-05-21 | J44: 9022 | K44: 0 | L44: 9022
B45: 39 | C45: material (Material) | D45: 4191 | E45: P | F45: 190 | G45: May | H45: 2015-05-22 | I45: 0.19 | J45: 2489 | K45: 472.91 | L45: 2961.91
B46: 40 | C46: wages (Löhne) | D46: 4121 | E46: P | F46: 120 | G46: May | H46: 2015-05-23 | J46: 5145 | K46: 0 | L46: 5145
B47: 41 | C47: dues (Abgaben) | D47: 4181 | E47: P | F47: 180 | G47: May | H47: 2015-05-24 | J47: 2548 | K47: 0 | L47: 2548
B48: 42 | C48: social costs (Sozialkosten) | D48: 4121 | E48: P | F48: 120 | G48: May | H48: 2015-05-25 | J48: 250 | K48: 0 | L48: 250
B49: 43 | C49: Instandhaltung | D49: 4201 | E49: P | F49: 200 | G49: May | H49: 2015-05-26 | I49: 0.19 | J49: 974 | K49: 185.06 | L49: 1159.06
B50: 44 | C50: material (Material) | D50: 4131 | E50: P | F50: 130 | G50: May | H50: 2015-05-27 | I50: 0.19 | J50: 250 | K50: 47.5 | L50: 297.5
B51: 45 | C51: dues (Abgaben) | D51: 4101 | E51: P | F51: 100 | G51: May | H51: 2015-05-28 | J51: 2489 | K51: 0 | L51: 2489
B52: 46 | C52: salaries (Gehälter) | D52: 4181 | E52: P | F52: 180 | G52: May | H52: 2015-05-29 | J52: 1000 | K52: 0 | L52: 1000
B53: 47 | C53: interests (Zinsen) | D53: 4121 | E53: P | F53: 120 | G53: June | H53: 2015-06-10 | J53: 1545 | K53: 0 | L53: 1545
B54: 48 | C54: wages (Löhne) | D54: 4191 | E54: P | F54: 190 | G54: June | H54: 2015-06-11 | J54: 2500 | K54: 0 | L54: 2500
B55: 49 | C55: salaries (Gehälter) | D55: 4131 | E55: P | F55: 130 | G55: June | H55: 2015-06-12 | J55: 6224 | K55: 0 | L55: 6224
B56: 50 | C56: rents (Mieten) | D56: 4201 | E56: P | F56: 200 | G56: June | H56: 2015-06-13 | J56: 9022 | K56: 0 | L56: 9022
B57: 51 | C57: depreciation of fixed assets (AFA) | D57: 4131 | E57: P | F57: 130 | G57: June | H57: 2015-06-14 | J57: 250 | K57: 0 | L57: 250
B58: 52 | C58: other (Sonstiges) | D58: 4191 | E58: S | F58: 190 | G58: June | H58: 2015-06-15 | I58: 0.19 | J58: 2145 | K58: 407.55 | L58: 2552.55
B59: 53 | C59: wages (Löhne) | D59: 4101 | E59: P | F59: 100 | G59: June | H59: 2015-06-16 | J59: 250 | K59: 0 | L59: 250
B60: 54 | C60: rents (Mieten) | D60: 4101 | E60: P | F60: 100 | G60: June | H60: 2015-06-17 | J60: 2582 | K60: 0 | L60: 2582
B61: 55 | C61: social costs (Sozialkosten) | D61: 4101 | E61: P | F61: 100 | G61: June | H61: 2015-06-18 | J61: 250 | K61: 0 | L61: 250
B62: 56 | C62: dues (Abgaben) | D62: 4131 | E62: P | F62: 130 | G62: July | H62: 2015-07-12 | J62: 2489 | K62: 0 | L62: 2489
B63: 57 | C63: salaries (Gehälter) | D63: 4181 | E63: P | F63: 180 | G63: July | H63: 2015-07-13 | J63: 3000 | K63: 0 | L63: 3000
B64: 58 | C64: social costs (Sozialkosten) | D64: 4101 | E64: P | F64: 100 | G64: July | H64: 2015-07-14 | J64: 2548 | K64: 0 | L64: 2548
B65: 59 | C65: energy (Energie) | D65: 4201 | E65: P | F65: 200 | G65: July | H65: 2015-07-15 | I65: 0.19 | J65: 3545 | K65: 673.55 | L65: 4218.55
B66: 60 | C66: material (Material) | D66: 4101 | E66: P | F66: 100 | G66: July | H66: 2015-07-16 | I66: 0.19 | J66: 2234 | K66: 424.46 | L66: 2658.46
B67: 61 | C67: interests (Zinsen) | D67: 4191 | E67: P | F67: 190 | G67: July | H67: 2015-07-17 | J67: 2548 | K67: 0 | L67: 2548
B68: 62 | C68: salaries (Gehälter) | D68: 4101 | E68: P | F68: 100 | G68: July | H68: 2015-07-18 | J68: 250 | K68: 0 | L68: 250
B69: 63 | C69: energy (Energie) | D69: 4101 | E69: S | F69: 100 | G69: July | H69: 2015-07-19 | I69: 0.19 | J69: 569 | K69: 108.11 | L69: 677.11
B70: 64 | C70: depreciation of fixed assets (AFA) | D70: 4121 | E70: P | F70: 120 | G70: July | H70: 2015-07-23 | J70: 250 | K70: 0 | L70: 250
B71: 65 | C71: material (Material) | D71: 4101 | E71: P | F71: 100 | G71: August | H71: 2015-08-12 | I71: 0.19 | J71: 2234 | K71: 424.46 | L71: 2658.46
B72: 66 | C72: interests (Zinsen) | D72: 4191 | E72: P | F72: 190 | G72: August | H72: 2015-08-13 | J72: 2548 | K72: 0 | L72: 2548
B73: 67 | C73: salaries (Gehälter) | D73: 4101 | E73: P | F73: 100 | G73: August | H73: 2015-08-14 | J73: 250 | K73: 0 | L73: 250
B74: 68 | C74: energy (Energie) | D74: 4101 | E74: S | F74: 100 | G74: August | H74: 2015-08-15 | I74: 0.19 | J74: 569 | K74: 108.11 | L74: 677.11
B75: 69 | C75: depreciation of fixed assets (AFA) | D75: 4121 | E75: P | F75: 120 | G75: August | H75: 2015-08-16 | J75: 250 | K75: 0 | L75: 250
B76: 70 | C76: rents (Mieten) | D76: 4101 | E76: S | F76: 100 | G76: September | H76: 2015-09-14 | J76: 2582 | K76: 0 | L76: 2582
B77: 71 | C77: social costs (Sozialkosten) | D77: 4101 | E77: P | F77: 100 | G77: September | H77: 2015-09-15 | J77: 250 | K77: 0 | L77: 250
B78: 72 | C78: depreciation of fixed assets (AFA) | D78: 4101 | E78: P | F78: 100 | G78: September | H78: 2015-09-16 | J78: 9022 | K78: 0 | L78: 9022
B79: 73 | C79: material (Material) | D79: 4191 | E79: P | F79: 190 | G79: September | H79: 2015-09-17 | I79: 0.19 | J79: 2489 | K79: 472.91 | L79: 2961.91
B80: 74 | C80: wages (Löhne) | D80: 4121 | E80: P | F80: 120 | G80: September | H80: 2015-09-18 | J80: 5345 | K80: 0 | L80: 5345
B81: 75 | C81: dues (Abgaben) | D81: 4181 | E81: P | F81: 180 | G81: September | H81: 2015-09-19 | J81: 2548 | K81: 0 | L81: 2548
B82: 76 | C82: Instandhaltung | D82: 4101 | E82: P | F82: 100 | G82: September | H82: 2015-09-21 | I82: 0.19 | J82: 974 | K82: 185.06 | L82: 1159.06
B83: 77 | C83: material (Material) | D83: 4131 | E83: P | F83: 130 | G83: September | H83: 2015-09-22 | I83: 0.19 | J83: 250 | K83: 47.5 | L83: 297.5
B84: 78 | C84: social costs (Sozialkosten) | D84: 4121 | E84: P | F84: 120 | G84: September | H84: 2015-09-23 | J84: 250 | K84: 0 | L84: 250
B85: 79 | C85: energy (Energie) | D85: 4201 | E85: S | F85: 200 | G85: October | H85: 2015-10-31 | I85: 0.19 | J85: 569 | K85: 108.11 | L85: 677.11
B86: 80 | C86: wages (Löhne) | D86: 4191 | E86: P | F86: 190 | G86: October | H86: 2015-10-31 | J86: 2500 | K86: 0 | L86: 2500
B87: 81 | C87: other (Sonstiges) | D87: 4101 | E87: S | F87: 100 | G87: October | H87: 2015-10-31 | I87: 0.19 | J87: 2345 | K87: 445.55 | L87: 2790.55
B88: 82 | C88: depreciation of fixed assets (AFA) | D88: 4121 | E88: P | F88: 120 | G88: October | H88: 2015-11-01 | J88: 250 | K88: 0 | L88: 250
B89: 83 | C89: salaries (Gehälter) | D89: 4131 | E89: P | F89: 130 | G89: October | H89: 2015-11-01 | J89: 6224 | K89: 0 | L89: 6224
B90: 84 | C90: wages (Löhne) | D90: 4101 | E90: P | F90: 100 | G90: October | H90: 2015-11-01 | J90: 250 | K90: 0 | L90: 250
B91: 85 | C91: interests (Zinsen) | D91: 4121 | E91: P | F91: 120 | G91: October | H91: 2015-11-02 | J91: 3545 | K91: 0 | L91: 3545
B92: 86 | C92: rents (Mieten) | D92: 4201 | E92: S | F92: 200 | G92: October | H92: 2015-11-02 | J92: 9022 | K92: 0 | L92: 9022
B93: 87 | C93: depreciation of fixed assets (AFA) | D93: 4131 | E93: P | F93: 130 | G93: October | H93: 2015-11-03 | J93: 250 | K93: 0 | L93: 250
B94: 88 | C94: Instandhaltung | D94: 4201 | E94: P | F94: 200 | G94: November | H94: 2015-11-12 | I94: 0.19 | J94: 974 | K94: 185.06 | L94: 1159.06
B95: 89 | C95: material (Material) | D95: 4131 | E95: P | F95: 130 | G95: November | H95: 2015-11-13 | I95: 0.19 | J95: 250 | K95: 47.5 | L95: 297.5
B96: 90 | C96: dues (Abgaben) | D96: 4131 | E96: P | F96: 130 | G96: November | H96: 2015-11-14 | J96: 2489 | K96: 0 | L96: 2489
B97: 91 | C97: salaries (Gehälter) | D97: 4181 | E97: P | F97: 180 | G97: November | H97: 2015-11-15 | J97: 3000 | K97: 0 | L97: 3000
B98: 92 | C98: social costs (Sozialkosten) | D98: 4101 | E98: P | F98: 100 | G98: November | H98: 2015-11-16 | J98: 2548 | K98: 0 | L98: 2548
B99: 93 | C99: energy (Energie) | D99: 4201 | E99: S | F99: 200 | G99: November | H99: 2015-11-17 | I99: 0.19 | J99: 3545 | K99: 673.55 | L99: 4218.55
B100: 94 | C100: material (Material) | D100: 4101 | E100: P | F100: 100 | G100: November | H100: 2015-11-18 | I100: 0.19 | J100: 2234 | K100: 424.46 | L100: 2658.46
B101: 95 | C101: interests (Zinsen) | D101: 4101 | E101: P | F101: 100 | G101: November | H101: 2015-11-19 | J101: 2548 | K101: 0 | L101: 2548
B102: 96 | C102: salaries (Gehälter) | D102: 4101 | E102: P | F102: 100 | G102: November | H102: 2015-11-23 | J102: 250 | K102: 0 | L102: 250
B103: 97 | C103: other (Sonstiges) | D103: 4191 | E103: S | F103: 190 | G103: December | H103: 2015-12-19 | I103: 0.19 | J103: 2345 | K103: 445.55 | L103: 2790.55
B104: 98 | C104: rents (Mieten) | D104: 4101 | E104: P | F104: 100 | G104: December | H104: 2015-12-21 | J104: 2582 | K104: 0 | L104: 2582
B105: 99 | C105: social costs (Sozialkosten) | D105: 4101 | E105: P | F105: 100 | G105: December | H105: 2015-12-22 | J105: 250 | K105: 0 | L105: 250
B106: 100 | C106: wages (Löhne) | D106: 4101 | E106: P | F106: 100 | G106: December | H106: 2015-12-23 | J106: 250 | K106: 0 | L106: 250
B107: 101 | C107: depreciation of fixed assets (AFA) | D107: 4101 | E107: P | F107: 100 | G107: December | H107: 2015-12-23 | J107: 9022 | K107: 0 | L107: 9022
B108: 102 | C108: material (Material) | D108: 4191 | E108: P | F108: 190 | G108: December | H108: 2015-12-24 | I108: 0.19 | J108: 2489 | K108: 472.91 | L108: 2961.91
B109: 103 | C109: wages (Löhne) | D109: 4101 | E109: P | F109: 100 | G109: December | H109: 2015-12-25 | J109: 5345 | K109: 0 | L109: 5345
B110: 104 | C110: dues (Abgaben) | D110: 4101 | E110: P | F110: 100 | G110: December | H110: 2015-12-26 | J110: 2548 | K110: 0 | L110: 2548
B111: 105 | C111: social costs (Sozialkosten) | D111: 4121 | E111: P | F111: 120 | G111: December | H111: 2015-12-27 | J111: 250 | K111: 0 | L111: 250

Sheet 15 Übungsdaten (2)
N1: 0
A2: 1 | B2: 15 Exercise data (2) | F2: Back to Start
A3: 2 | B3: 15 Übungsdaten (2) | F3: Startseite
A5: 2 | B5: Artikel-Nr. | C5: Artikel- Gruppe | D5: Kunde | E5: Vertreter | F5: Verkaufs-gebiet | G5: Anzahl | H5: Verkaufs-preis | I5: Umsatz | J5: DB pro Einheit | K5: DB gesamt
A6: 1 | B6: article nr. | C6: article group | D6: customer | E6: employee | F6: sales territory | G6: number | H6: sales price | I6: trunover | J6: gross margin per unit | K6: total gross margin
B7: 123 | C7: 1 | D7: Sauer | E7: Schulte | F7: Süd | G7: 10 | H7: 11.95 | I7: 119.5 | J7: 3.28625 | K7: 32.8625
B8: 123 | C8: 1 | D8: Meier | E8: Schulte | F8: Süd | G8: 11 | H8: 11.95 | I8: 131.45 | J8: 2.25855 | K8: 24.84405
A9: 0 | B9: 123 | C9: 1 | D9: Feier | E9: Schulte | F9: Süd | G9: 12 | H9: 11.7 | I9: 140.4 | J9: 3.2175 | K9: 38.61
B10: 123 | C10: 1 | D10: Kader | E10: Hunter | F10: Süd | G10: 25 | H10: 11.7 | I10: 292.5 | J10: 2.2113 | K10: 55.2825
B11: 123 | C11: 1 | D11: Wager | E11: Hunter | F11: Süd | G11: 77 | H11: 12.1 | I11: 931.7 | J11: 3.3275 | K11: 256.2175
B12: 123 | C12: 1 | D12: Loch | E12: Hunter | F12: Süd | G12: 33 | H12: 13.4 | I12: 442.2 | J12: 2.5326 | K12: 83.5758
B13: 123 | C13: 1 | D13: Koch | E13: Hunter | F13: Süd | G13: 10 | H13: 12.1 | I13: 121 | J13: 3.3275 | K13: 33.275
B14: 123 | C14: 1 | D14: Block | E14: Hunter | F14: Süd | G14: 11 | H14: 9.99 | I14: 109.89 | J14: 1.88811 | K14: 20.76921
B15: 125 | C15: 1 | D15: Bunt | E15: Hunter | F15: Süd | G15: 12 | H15: 12.95 | I15: 155.4 | J15: 3.56125 | K15: 42.735
B16: 125 | C16: 1 | D16: Meier | E16: Hunter | F16: Süd | G16: 25 | H16: 14.95 | I16: 373.75 | J16: 2.82555 | K16: 70.63875
B17: 126 | C17: 1 | D17: Müller | E17: Voss | F17: Süd | G17: 77 | H17: 14.95 | I17: 1151.15 | J17: 4.11125 | K17: 316.56625
B18: 123 | C18: 1 | D18: Rot | E18: Voss | F18: Süd | G18: 33 | H18: 11.95 | I18: 394.35 | J18: 2.25855 | K18: 74.53215
B19: 123 | C19: 1 | D19: Rot | E19: Voss | F19: Süd | G19: 10 | H19: 15.95 | I19: 159.5 | J19: 4.38625 | K19: 43.8625
B20: 142 | C20: 1 | D20: Bauer | E20: Seiler | F20: Nord | G20: 10 | H20: 12.95 | I20: 129.5 | J20: 2.44755 | K20: 24.4755
B21: 142 | C21: 1 | D21: Müller | E21: Voss | F21: Nord | G21: 10 | H21: 16.95 | I21: 169.5 | J21: 4.66125 | K21: 46.6125
B22: 143 | C22: 1 | D22: Rot | E22: Wefler | F22: Nord | G22: 10 | H22: 13.95 | I22: 139.5 | J22: 2.63655 | K22: 26.3655
B23: 144 | C23: 1 | D23: Rot | E23: Wefler | F23: Nord | G23: 11 | H23: 17.95 | I23: 197.45 | J23: 4.93625 | K23: 54.29875
B24: 145 | C24: 1 | D24: Bauer | E24: Wefler | F24: Nord | G24: 12 | H24: 14.95 | I24: 179.4 | J24: 2.82555 | K24: 33.9066
B25: 146 | C25: 1 | D25: Müller | E25: Wefler | F25: Nord | G25: 25 | H25: 18.95 | I25: 473.75 | J25: 5.21125 | K25: 130.28125
B26: 146 | C26: 1 | D26: Rot | E26: Wefler | F26: Nord | G26: 77 | H26: 15.95 | I26: 1228.15 | J26: 3.01455 | K26: 232.12035
B27: 255 | C27: 2 | D27: Rot | E27: Seiler | F27: Nord | G27: 33 | H27: 19.95 | I27: 658.35 | J27: 5.48625 | K27: 181.04625
B28: 255 | C28: 2 | D28: Bauer | E28: Seiler | F28: Nord | G28: 20 | H28: 16.95 | I28: 339 | J28: 3.20355 | K28: 64.071
B29: 255 | C29: 2 | D29: Müller | E29: Seiler | F29: Nord | G29: 20 | H29: 20.95 | I29: 419 | J29: 5.76125 | K29: 115.225
B30: 255 | C30: 2 | D30: Rot | E30: Voss | F30: Nord | G30: 20 | H30: 17.95 | I30: 359 | J30: 3.39255 | K30: 67.851
B31: 323 | C31: 3 | D31: Sauer | E31: Schulte | F31: Süd | G31: 20 | H31: 21.95 | I31: 439 | J31: 6.03625 | K31: 120.725
B32: 323 | C32: 3 | D32: Meier | E32: Schulte | F32: Süd | G32: 20 | H32: 11.95 | I32: 239 | J32: 2.25855 | K32: 45.171
B33: 323 | C33: 3 | D33: Feier | E33: Schulte | F33: Süd | G33: 20 | H33: 11.95 | I33: 239 | J33: 3.28625 | K33: 65.725
B34: 323 | C34: 3 | D34: Kader | E34: Hunter | F34: Süd | G34: 20 | H34: 11.7 | I34: 234 | J34: 2.2113 | K34: 44.226
B35: 323 | C35: 3 | D35: Wager | E35: Hunter | F35: Süd | G35: 17 | H35: 11.7 | I35: 198.9 | J35: 3.2175 | K35: 54.6975
B36: 323 | C36: 3 | D36: Loch | E36: Hunter | F36: Süd | G36: 18 | H36: 12.1 | I36: 217.8 | J36: 2.2869 | K36: 41.1642
B37: 323 | C37: 3 | D37: Koch | E37: Hunter | F37: Süd | G37: 19 | H37: 13.4 | I37: 254.6 | J37: 3.685 | K37: 70.015
B38: 323 | C38: 3 | D38: Block | E38: Hunter | F38: Süd | G38: 20 | H38: 12.1 | I38: 242 | J38: 2.2869 | K38: 45.738
B39: 325 | C39: 3 | D39: Bunt | E39: Hunter | F39: Süd | G39: 21 | H39: 9.99 | I39: 209.79 | J39: 2.74725 | K39: 57.69225
B40: 325 | C40: 3 | D40: Meier | E40: Hunter | F40: Süd | G40: 22 | H40: 12.95 | I40: 284.9 | J40: 2.44755 | K40: 53.8461
B41: 326 | C41: 3 | D41: Müller | E41: Voss | F41: Süd | G41: 23 | H41: 14.95 | I41: 343.85 | J41: 4.11125 | K41: 94.55875
B42: 323 | C42: 3 | D42: Rot | E42: Voss | F42: Süd | G42: 24 | H42: 14.95 | I42: 358.8 | J42: 2.82555 | K42: 67.8132
B43: 323 | C43: 3 | D43: Rot | E43: Voss | F43: Süd | G43: 25 | H43: 14.7 | I43: 367.5 | J43: 4.0425 | K43: 101.0625
B44: 442 | C44: 4 | D44: Bauer | E44: Seiler | F44: Nord | G44: 10 | H44: 14.7 | I44: 147 | J44: 2.7783 | K44: 27.783
B45: 442 | C45: 4 | D45: Müller | E45: Voss | F45: Nord | G45: 10 | H45: 15.1 | I45: 151 | J45: 4.1525 | K45: 41.525
B46: 443 | C46: 4 | D46: Rot | E46: Wefler | F46: Nord | G46: 10 | H46: 16.4 | I46: 164 | J46: 3.0996 | K46: 30.996
B47: 444 | C47: 4 | D47: Rot | E47: Wefler | F47: Nord | G47: 11 | H47: 15.1 | I47: 166.1 | J47: 4.1525 | K47: 45.6775
B48: 445 | C48: 4 | D48: Bauer | E48: Wefler | F48: Nord | G48: 12 | H48: 12.99 | I48: 155.88 | J48: 2.45511 | K48: 29.46132
B49: 446 | C49: 4 | D49: Müller | E49: Wefler | F49: Nord | G49: 25 | H49: 15.95 | I49: 398.75 | J49: 4.38625 | K49: 109.65625
B50: 446 | C50: 4 | D50: Rot | E50: Wefler | F50: Nord | G50: 77 | H50: 17.95 | I50: 1382.15 | J50: 3.39255 | K50: 261.22635
B51: 555 | C51: 5 | D51: Rot | E51: Seiler | F51: Nord | G51: 33 | H51: 11.95 | I51: 394.35 | J51: 3.28625 | K51: 108.44625
B52: 555 | C52: 5 | D52: Bauer | E52: Seiler | F52: Nord | G52: 20 | H52: 11.95 | I52: 239 | J52: 2.25855 | K52: 45.171
B53: 556 | C53: 5 | D53: Müller | E53: Seiler | F53: Nord | G53: 20 | H53: 11.95 | I53: 239 | J53: 3.28625 | K53: 65.725
B54: 558 | C54: 5 | D54: Rot | E54: Voss | F54: Nord | G54: 20 | H54: 11.95 | I54: 239 | J54: 2.25855 | K54: 45.171
B55: 623 | C55: 6 | D55: Sauer | E55: Schulte | F55: Süd | G55: 10 | H55: 19.4 | I55: 194 | J55: 5.335 | K55: 53.35
B56: 623 | C56: 6 | D56: Meier | E56: Schulte | F56: Süd | G56: 11 | H56: 18.1 | I56: 199.1 | J56: 3.4209 | K56: 37.6299
B57: 623 | C57: 6 | D57: Feier | E57: Schulte | F57: Süd | G57: 12 | H57: 15.99 | I57: 191.88 | J57: 4.39725 | K57: 52.767
B58: 623 | C58: 6 | D58: Kader | E58: Hunter | F58: Süd | G58: 25 | H58: 18.95 | I58: 473.75 | J58: 3.58155 | K58: 89.53875
B59: 623 | C59: 6 | D59: Wager | E59: Hunter | F59: Süd | G59: 77 | H59: 20.95 | I59: 1613.15 | J59: 5.76125 | K59: 443.61625
B60: 623 | C60: 6 | D60: Loch | E60: Hunter | F60: Süd | G60: 33 | H60: 14.95 | I60: 493.35 | J60: 2.82555 | K60: 93.24315
B61: 623 | C61: 6 | D61: Koch | E61: Hunter | F61: Süd | G61: 10 | H61: 14.95 | I61: 149.5 | J61: 4.11125 | K61: 41.1125
B62: 623 | C62: 6 | D62: Block | E62: Hunter | F62: Süd | G62: 11 | H62: 14.95 | I62: 164.45 | J62: 2.82555 | K62: 31.08105
B63: 625 | C63: 6 | D63: Bunt | E63: Hunter | F63: Süd | G63: 12 | H63: 14.95 | I63: 179.4 | J63: 4.11125 | K63: 49.335
B64: 625 | C64: 6 | D64: Meier | E64: Hunter | F64: Süd | G64: 25 | H64: 22.4 | I64: 560 | J64: 4.2336 | K64: 105.84
B65: 626 | C65: 6 | D65: Müller | E65: Voss | F65: Süd | G65: 18 | H65: 21.1 | I65: 379.8 | J65: 5.8025 | K65: 104.445
B66: 623 | C66: 6 | D66: Rot | E66: Voss | F66: Süd | G66: 33 | H66: 18.99 | I66: 626.67 | J66: 3.58911 | K66: 118.44063
B67: 623 | C67: 6 | D67: Rot | E67: Voss | F67: Süd | G67: 10 | H67: 21.95 | I67: 219.5 | J67: 6.03625 | K67: 60.3625
B68: 642 | C68: 6 | D68: Bauer | E68: Seiler | F68: Nord | G68: 10 | H68: 23.95 | I68: 239.5 | J68: 4.52655 | K68: 45.2655
B69: 642 | C69: 6 | D69: Müller | E69: Voss | F69: Nord | G69: 19 | H69: 17.95 | I69: 341.05 | J69: 4.93625 | K69: 93.78875
B70: 643 | C70: 6 | D70: Rot | E70: Wefler | F70: Nord | G70: 10 | H70: 17.95 | I70: 179.5 | J70: 3.39255 | K70: 33.9255
B71: 644 | C71: 6 | D71: Rot | E71: Wefler | F71: Nord | G71: 11 | H71: 17.95 | I71: 197.45 | J71: 4.93625 | K71: 54.29875
B72: 645 | C72: 6 | D72: Bauer | E72: Wefler | F72: Nord | G72: 88 | H72: 17.95 | I72: 1579.6 | J72: 3.39255 | K72: 298.5444
B73: 646 | C73: 6 | D73: Müller | E73: Wefler | F73: Nord | G73: 25 | H73: 25.4 | I73: 635 | J73: 6.985 | K73: 174.625
B74: 646 | C74: 6 | D74: Rot | E74: Wefler | F74: Nord | G74: 77 | H74: 24.1 | I74: 1855.7 | J74: 4.5549 | K74: 350.7273
B75: 723 | C75: 7 | D75: Sauer | E75: Schulte | F75: Süd | G75: 110 | H75: 21.99 | I75: 2418.9 | J75: 6.04725 | K75: 665.1975
B76: 723 | C76: 7 | D76: Meier | E76: Schulte | F76: Süd | G76: 11 | H76: 24.95 | I76: 274.45 | J76: 4.71555 | K76: 51.87105
B77: 723 | C77: 7 | D77: Feier | E77: Schulte | F77: Süd | G77: 12 | H77: 26.95 | I77: 323.4 | J77: 7.41125 | K77: 88.935
B78: 723 | C78: 7 | D78: Kader | E78: Hunter | F78: Süd | G78: 25 | H78: 20.95 | I78: 523.75 | J78: 3.95955 | K78: 98.98875
B79: 723 | C79: 7 | D79: Wager | E79: Hunter | F79: Süd | G79: 77 | H79: 20.95 | I79: 1613.15 | J79: 5.76125 | K79: 443.61625
B80: 723 | C80: 7 | D80: Loch | E80: Hunter | F80: Süd | G80: 100 | H80: 20.95 | I80: 2095 | J80: 3.95955 | K80: 395.955
B81: 723 | C81: 7 | D81: Koch | E81: Hunter | F81: Süd | G81: 10 | H81: 20.95 | I81: 209.5 | J81: 5.76125 | K81: 57.6125
B82: 723 | C82: 7 | D82: Block | E82: Hunter | F82: Süd | G82: 11 | H82: 28.4 | I82: 312.4 | J82: 5.3676 | K82: 59.0436
B83: 725 | C83: 7 | D83: Bunt | E83: Hunter | F83: Süd | G83: 12 | H83: 27.1 | I83: 325.2 | J83: 7.4525 | K83: 89.43
B84: 725 | C84: 7 | D84: Meier | E84: Hunter | F84: Süd | G84: 25 | H84: 24.99 | I84: 624.75 | J84: 4.72311 | K84: 118.07775
B85: 726 | C85: 7 | D85: Müller | E85: Voss | F85: Süd | G85: 77 | H85: 27.95 | I85: 2152.15 | J85: 7.68625 | K85: 591.84125
B86: 723 | C86: 7 | D86: Rot | E86: Voss | F86: Süd | G86: 50 | H86: 29.95 | I86: 1497.5 | J86: 5.66055 | K86: 283.0275
B87: 723 | C87: 7 | D87: Rot | E87: Voss | F87: Süd | G87: 10 | H87: 23.95 | I87: 239.5 | J87: 6.58625 | K87: 65.8625
B88: 742 | C88: 7 | D88: Bauer | E88: Seiler | F88: Nord | G88: 10 | H88: 23.95 | I88: 239.5 | J88: 4.52655 | K88: 45.2655
B89: 742 | C89: 7 | D89: Müller | E89: Voss | F89: Nord | G89: 10 | H89: 23.95 | I89: 239.5 | J89: 6.58625 | K89: 65.8625
B90: 743 | C90: 7 | D90: Rot | E90: Wefler | F90: Nord | G90: 70 | H90: 23.95 | I90: 1676.5 | J90: 4.52655 | K90: 316.8585
B91: 744 | C91: 7 | D91: Rot | E91: Wefler | F91: Nord | G91: 11 | H91: 31.4 | I91: 345.4 | J91: 8.635 | K91: 94.985
B92: 845 | C92: 8 | D92: Bauer | E92: Wefler | F92: Nord | G92: 12 | H92: 30.1 | I92: 361.2 | J92: 5.6889 | K92: 68.2668
B93: 846 | C93: 8 | D93: Müller | E93: Wefler | F93: Nord | G93: 25 | H93: 27.99 | I93: 699.75 | J93: 7.69725 | K93: 192.43125
B94: 846 | C94: 8 | D94: Rot | E94: Wefler | F94: Nord | G94: 77 | H94: 30.95 | I94: 2383.15 | J94: 5.84955 | K94: 450.41535
B95: 823 | C95: 8 | D95: Sauer | E95: Schulte | F95: Süd | G95: 30 | H95: 32.95 | I95: 988.5 | J95: 9.06125 | K95: 271.8375
B96: 823 | C96: 8 | D96: Meier | E96: Schulte | F96: Süd | G96: 11 | H96: 26.95 | I96: 296.45 | J96: 5.09355 | K96: 56.02905
B97: 823 | C97: 8 | D97: Feier | E97: Schulte | F97: Süd | G97: 12 | H97: 26.95 | I97: 323.4 | J97: 7.41125 | K97: 88.935
B98: 823 | C98: 8 | D98: Kader | E98: Hunter | F98: Süd | G98: 25 | H98: 11.7 | I98: 292.5 | J98: 2.2113 | K98: 55.2825
B99: 823 | C99: 8 | D99: Wager | E99: Hunter | F99: Süd | G99: 77 | H99: 12.1 | I99: 931.7 | J99: 3.3275 | K99: 256.2175
B100: 823 | C100: 8 | D100: Loch | E100: Hunter | F100: Süd | G100: 33 | H100: 13.4 | I100: 442.2 | J100: 2.5326 | K100: 83.5758
B101: 823 | C101: 8 | D101: Koch | E101: Hunter | F101: Süd | G101: 10 | H101: 12.1 | I101: 121 | J101: 3.3275 | K101: 33.275
B102: 823 | C102: 8 | D102: Block | E102: Hunter | F102: Süd | G102: 11 | H102: 11.95 | I102: 131.45 | J102: 2.25855 | K102: 24.84405
B103: 825 | C103: 8 | D103: Bunt | E103: Hunter | F103: Süd | G103: 12 | H103: 11.95 | I103: 143.4 | J103: 3.28625 | K103: 39.435
B104: 825 | C104: 8 | D104: Meier | E104: Hunter | F104: Süd | G104: 25 | H104: 35.95 | I104: 898.75 | J104: 6.79455 | K104: 169.86375
B105: 826 | C105: 8 | D105: Müller | E105: Voss | F105: Süd | G105: 77 | H105: 29.95 | I105: 2306.15 | J105: 8.23625 | K105: 634.19125
B106: 823 | C106: 8 | D106: Rot | E106: Voss | F106: Süd | G106: 33 | H106: 29.95 | I106: 988.35 | J106: 5.66055 | K106: 186.79815
B107: 823 | C107: 8 | D107: Rot | E107: Voss | F107: Süd | G107: 10 | H107: 14.7 | I107: 147 | J107: 4.0425 | K107: 40.425
B108: 842 | C108: 8 | D108: Bauer | E108: Seiler | F108: Nord | G108: 10 | H108: 15.1 | I108: 151 | J108: 2.8539 | K108: 28.539
B109: 842 | C109: 8 | D109: Müller | E109: Voss | F109: Nord | G109: 10 | H109: 16.4 | I109: 164 | J109: 4.51 | K109: 45.1
B110: 843 | C110: 8 | D110: Rot | E110: Wefler | F110: Nord | G110: 10 | H110: 15.1 | I110: 151 | J110: 2.8539 | K110: 28.539
B111: 844 | C111: 8 | D111: Rot | E111: Wefler | F111: Nord | G111: 11 | H111: 14.95 | I111: 164.45 | J111: 4.11125 | K111: 45.22375
B112: 845 | C112: 8 | D112: Bauer | E112: Wefler | F112: Nord | G112: 12 | H112: 11.95 | I112: 143.4 | J112: 2.25855 | K112: 27.1026
B113: 846 | C113: 8 | D113: Müller | E113: Wefler | F113: Nord | G113: 25 | H113: 11.95 | I113: 298.75 | J113: 3.28625 | K113: 82.15625
B114: 846 | C114: 8 | D114: Rot | E114: Wefler | F114: Nord | G114: 77 | H114: 32.95 | I114: 2537.15 | J114: 6.22755 | K114: 479.52135
B115: 823 | C115: 8 | D115: Sauer | E115: Schulte | F115: Süd | G115: 10 | H115: 32.95 | I115: 329.5 | J115: 9.06125 | K115: 90.6125
B116: 823 | C116: 8 | D116: Meier | E116: Schulte | F116: Süd | G116: 11 | H116: 17.7 | I116: 194.7 | J116: 3.3453 | K116: 36.7983
B117: 823 | C117: 8 | D117: Feier | E117: Schulte | F117: Süd | G117: 12 | H117: 18.1 | I117: 217.2 | J117: 4.9775 | K117: 59.73
B118: 823 | C118: 8 | D118: Kader | E118: Hunter | F118: Süd | G118: 25 | H118: 19.4 | I118: 485 | J118: 3.6666 | K118: 91.665
B119: 823 | C119: 8 | D119: Wager | E119: Hunter | F119: Süd | G119: 77 | H119: 18.1 | I119: 1393.7 | J119: 4.9775 | K119: 383.2675
B120: 823 | C120: 8 | D120: Loch | E120: Hunter | F120: Süd | G120: 33 | H120: 17.95 | I120: 592.35 | J120: 3.39255 | K120: 111.95415
B121: 823 | C121: 8 | D121: Koch | E121: Hunter | F121: Süd | G121: 10 | H121: 14.95 | I121: 149.5 | J121: 4.11125 | K121: 41.1125
B122: 823 | C122: 8 | D122: Block | E122: Hunter | F122: Süd | G122: 11 | H122: 11.95 | I122: 131.45 | J122: 2.25855 | K122: 24.84405
B123: 825 | C123: 8 | D123: Bunt | E123: Hunter | F123: Süd | G123: 12 | H123: 11.95 | I123: 143.4 | J123: 3.28625 | K123: 39.435
B124: 825 | C124: 8 | D124: Meier | E124: Hunter | F124: Süd | G124: 25 | H124: 35.95 | I124: 898.75 | J124: 6.79455 | K124: 169.86375
B125: 826 | C125: 8 | D125: Müller | E125: Voss | F125: Süd | G125: 77 | H125: 20.7 | I125: 1593.9 | J125: 5.6925 | K125: 438.3225
B126: 823 | C126: 8 | D126: Rot | E126: Voss | F126: Süd | G126: 33 | H126: 21.1 | I126: 696.3 | J126: 3.9879 | K126: 131.6007
B127: 823 | C127: 8 | D127: Rot | E127: Voss | F127: Süd | G127: 10 | H127: 22.4 | I127: 224 | J127: 6.16 | K127: 61.6
B128: 942 | C128: 9 | D128: Bauer | E128: Seiler | F128: Nord | G128: 10 | H128: 21.1 | I128: 211 | J128: 3.9879 | K128: 39.879
B129: 942 | C129: 9 | D129: Müller | E129: Voss | F129: Nord | G129: 10 | H129: 20.95 | I129: 209.5 | J129: 5.76125 | K129: 57.6125
B130: 943 | C130: 9 | D130: Rot | E130: Wefler | F130: Nord | G130: 10 | H130: 17.95 | I130: 179.5 | J130: 3.39255 | K130: 33.9255
B131: 944 | C131: 9 | D131: Rot | E131: Wefler | F131: Nord | G131: 11 | H131: 14.95 | I131: 164.45 | J131: 4.11125 | K131: 45.22375
B132: 945 | C132: 9 | D132: Bauer | E132: Wefler | F132: Nord | G132: 12 | H132: 11.95 | I132: 143.4 | J132: 2.25855 | K132: 27.1026
B133: 946 | C133: 9 | D133: Müller | E133: Wefler | F133: Nord | G133: 25 | H133: 12.99 | I133: 324.75 | J133: 3.57225 | K133: 89.30625
B134: 946 | C134: 9 | D134: Rot | E134: Wefler | F134: Nord | G134: 77 | H134: 13.05 | I134: 1004.85 | J134: 2.46645 | K134: 189.91665
B135: 223 | C135: 2 | D135: Sauer | E135: Schulte | F135: Süd | G135: 20 | H135: 22.95 | I135: 494 | J135: 6.31125 | K135: 126.225
B136: 223 | C136: 2 | D136: Meier | E136: Schulte | F136: Süd | G136: 22 | H136: 22.95 | I136: 528 | J136: 4.33755 | K136: 95.4261
B137: 223 | C137: 2 | D137: Feier | E137: Schulte | F137: Süd | G137: 22 | H137: 22.7 | I137: 528 | J137: 6.2425 | K137: 137.335
B138: 223 | C138: 2 | D138: Kader | E138: Hunter | F138: Süd | G138: 25 | H138: 22.7 | I138: 504 | J138: 4.2903 | K138: 107.2575
B139: 223 | C139: 2 | D139: Wager | E139: Hunter | F139: Süd | G139: 77 | H139: 22.2 | I139: 548.9 | J139: 6.105 | K139: 470.085
B140: 223 | C140: 2 | D140: Loch | E140: Hunter | F140: Süd | G140: 33 | H140: 23.4 | I140: 504.9 | J140: 4.4226 | K140: 145.9458
B141: 223 | C141: 2 | D141: Koch | E141: Hunter | F141: Süd | G141: 20 | H141: 22.2 | I141: 573.75 | J141: 6.105 | K141: 122.1
B142: 223 | C142: 2 | D142: Block | E142: Hunter | F142: Süd | G142: 22 | H142: 9.99 | I142: 2537.15 | J142: 1.88811 | K142: 41.53842
B143: 225 | C143: 2 | D143: Bunt | E143: Hunter | F143: Süd | G143: 22 | H143: 22.95 | I143: 659 | J143: 6.31125 | K143: 138.8475
B144: 225 | C144: 2 | D144: Meier | E144: Hunter | F144: Süd | G144: 25 | H144: 24.95 | I144: 609.4 | J144: 4.71555 | K144: 117.88875
B145: 226 | C145: 2 | D145: Müller | E145: Voss | F145: Süd | G145: 77 | H145: 24.95 | I145: 620.4 | J145: 6.86125 | K145: 528.31625
B146: 223 | C146: 2 | D146: Rot | E146: Voss | F146: Süd | G146: 33 | H146: 22.95 | I146: 2171.4 | J146: 4.33755 | K146: 143.13915
B147: 223 | C147: 2 | D147: Rot | E147: Voss | F147: Süd | G147: 20 | H147: 25.95 | I147: 2171.4 | J147: 7.13625 | K147: 142.725
B148: 242 | C148: 2 | D148: Bauer | E148: Seiler | F148: Nord | G148: 20 | H148: 22.95 | I148: 922.35 | J148: 4.33755 | K148: 86.751
B149: 242 | C149: 2 | D149: Müller | E149: Voss | F149: Nord | G149: 20 | H149: 26.95 | I149: 499 | J149: 7.41125 | K149: 148.225
B150: 243 | C150: 2 | D150: Rot | E150: Wefler | F150: Nord | G150: 20 | H150: 23.95 | I150: 504.9 | J150: 4.52655 | K150: 90.531
B151: 244 | C151: 2 | D151: Rot | E151: Wefler | F151: Nord | G151: 22 | H151: 27.95 | I151: 504.9 | J151: 7.68625 | K151: 169.0975
B152: 245 | C152: 2 | D152: Bauer | E152: Wefler | F152: Nord | G152: 22 | H152: 24.95 | I152: 898.75 | J152: 4.71555 | K152: 103.7421
B153: 246 | C153: 2 | D153: Müller | E153: Wefler | F153: Nord | G153: 25 | H153: 28.95 | I153: 1593.9 | J153: 7.96125 | K153: 199.03125
B154: 246 | C154: 2 | D154: Rot | E154: Wefler | F154: Nord | G154: 77 | H154: 25.95 | I154: 732.6 | J154: 4.90455 | K154: 377.65035
B155: 255 | C155: 2 | D155: Rot | E155: Seiler | F155: Nord | G155: 33 | H155: 29.95 | I155: 448 | J155: 8.23625 | K155: 271.79625
B156: 255 | C156: 2 | D156: Bauer | E156: Seiler | F156: Nord | G156: 20 | H156: 26.95 | I156: 419 | J156: 5.09355 | K156: 101.871
B157: 255 | C157: 2 | D157: Müller | E157: Seiler | F157: Nord | G157: 20 | H157: 20.95 | I157: 419 | J157: 5.76125 | K157: 115.225
B158: 255 | C158: 2 | D158: Rot | E158: Voss | F158: Nord | G158: 20 | H158: 27.95 | I158: 559 | J158: 5.28255 | K158: 105.651
B159: 323 | C159: 3 | D159: Sauer | E159: Schulte | F159: Süd | G159: 20 | H159: 22.95 | I159: 548.9 | J159: 6.31125 | K159: 126.225
B160: 323 | C160: 3 | D160: Meier | E160: Schulte | F160: Süd | G160: 20 | H160: 22.95 | I160: 504.9 | J160: 4.33755 | K160: 86.751
B161: 323 | C161: 3 | D161: Feier | E161: Schulte | F161: Süd | G161: 20 | H161: 22.95 | I161: 574.75 | J161: 6.31125 | K161: 126.225
B162: 323 | C162: 3 | D162: Kader | E162: Hunter | F162: Süd | G162: 20 | H162: 22.7 | I162: 1774.85 | J162: 4.2903 | K162: 85.806
B163: 323 | C163: 3 | D163: Wager | E163: Hunter | F163: Süd | G163: 27 | H163: 22.7 | I163: 612.9 | J163: 6.2425 | K163: 168.5475
B164: 323 | C164: 3 | D164: Loch | E164: Hunter | F164: Süd | G164: 28 | H164: 22.2 | I164: 621.6 | J164: 4.1958 | K164: 117.4824
B165: 323 | C165: 3 | D165: Koch | E165: Hunter | F165: Süd | G165: 29 | H165: 23.4 | I165: 678.6 | J165: 6.435 | K165: 186.615
B166: 323 | C166: 3 | D166: Block | E166: Hunter | F166: Süd | G166: 20 | H166: 22.2 | I166: 444 | J166: 4.1958 | K166: 83.916
B167: 325 | C167: 3 | D167: Bunt | E167: Hunter | F167: Süd | G167: 22 | H167: 9.99 | I167: 219.78 | J167: 2.74725 | K167: 60.4395
B168: 325 | C168: 3 | D168: Meier | E168: Hunter | F168: Süd | G168: 22 | H168: 22.95 | I168: 504.9 | J168: 4.33755 | K168: 95.4261
B169: 326 | C169: 3 | D169: Müller | E169: Voss | F169: Süd | G169: 23 | H169: 24.95 | I169: 573.85 | J169: 6.86125 | K169: 157.80875
B170: 323 | C170: 3 | D170: Rot | E170: Voss | F170: Süd | G170: 24 | H170: 24.95 | I170: 598.8 | J170: 4.71555 | K170: 113.1732
B171: 323 | C171: 3 | D171: Rot | E171: Voss | F171: Süd | G171: 25 | H171: 24.7 | I171: 617.5 | J171: 6.7925 | K171: 169.8125
B172: 442 | C172: 4 | D172: Bauer | E172: Seiler | F172: Nord | G172: 20 | H172: 24.7 | I172: 494 | J172: 4.6683 | K172: 93.366
B173: 442 | C173: 4 | D173: Müller | E173: Voss | F173: Nord | G173: 20 | H173: 25.2 | I173: 504 | J173: 6.93 | K173: 138.6
B174: 443 | C174: 4 | D174: Rot | E174: Wefler | F174: Nord | G174: 20 | H174: 26.4 | I174: 528 | J174: 4.9896 | K174: 99.792
B175: 444 | C175: 4 | D175: Rot | E175: Wefler | F175: Nord | G175: 22 | H175: 25.2 | I175: 554.4 | J175: 6.93 | K175: 152.46
B176: 445 | C176: 4 | D176: Bauer | E176: Wefler | F176: Nord | G176: 22 | H176: 22.99 | I176: 505.78 | J176: 4.34511 | K176: 95.59242
B177: 446 | C177: 4 | D177: Müller | E177: Wefler | F177: Nord | G177: 25 | H177: 25.95 | I177: 648.75 | J177: 7.13625 | K177: 178.40625
B178: 446 | C178: 4 | D178: Rot | E178: Wefler | F178: Nord | G178: 77 | H178: 27.95 | I178: 2152.15 | J178: 5.28255 | K178: 406.75635
B179: 555 | C179: 5 | D179: Rot | E179: Seiler | F179: Nord | G179: 33 | H179: 22.95 | I179: 757.35 | J179: 6.31125 | K179: 208.27125
B180: 555 | C180: 5 | D180: Bauer | E180: Seiler | F180: Nord | G180: 20 | H180: 22.95 | I180: 459 | J180: 4.33755 | K180: 86.751
B181: 556 | C181: 5 | D181: Müller | E181: Seiler | F181: Nord | G181: 20 | H181: 22.95 | I181: 459 | J181: 6.31125 | K181: 126.225
B182: 558 | C182: 5 | D182: Rot | E182: Voss | F182: Nord | G182: 20 | H182: 22.95 | I182: 459 | J182: 4.33755 | K182: 86.751
B183: 623 | C183: 6 | D183: Sauer | E183: Schulte | F183: Süd | G183: 20 | H183: 29.4 | I183: 588 | J183: 8.085 | K183: 161.7
B184: 623 | C184: 6 | D184: Meier | E184: Schulte | F184: Süd | G184: 22 | H184: 28.2 | I184: 620.4 | J184: 5.3298 | K184: 117.2556
B185: 623 | C185: 6 | D185: Feier | E185: Schulte | F185: Süd | G185: 22 | H185: 25.99 | I185: 571.78 | J185: 7.14725 | K185: 157.2395
B186: 623 | C186: 6 | D186: Kader | E186: Hunter | F186: Süd | G186: 25 | H186: 28.95 | I186: 723.75 | J186: 5.47155 | K186: 136.78875
B187: 623 | C187: 6 | D187: Wager | E187: Hunter | F187: Süd | G187: 77 | H187: 20.95 | I187: 1613.15 | J187: 5.76125 | K187: 443.61625
B188: 623 | C188: 6 | D188: Loch | E188: Hunter | F188: Süd | G188: 33 | H188: 24.95 | I188: 823.35 | J188: 4.71555 | K188: 155.61315
B189: 623 | C189: 6 | D189: Koch | E189: Hunter | F189: Süd | G189: 20 | H189: 24.95 | I189: 499 | J189: 6.86125 | K189: 137.225
B190: 623 | C190: 6 | D190: Block | E190: Hunter | F190: Süd | G190: 22 | H190: 24.95 | I190: 548.9 | J190: 4.71555 | K190: 103.7421
B191: 625 | C191: 6 | D191: Bunt | E191: Hunter | F191: Süd | G191: 22 | H191: 24.95 | I191: 548.9 | J191: 6.86125 | K191: 150.9475
B192: 625 | C192: 6 | D192: Meier | E192: Hunter | F192: Süd | G192: 25 | H192: 22.4 | I192: 560 | J192: 4.2336 | K192: 105.84
B193: 626 | C193: 6 | D193: Müller | E193: Voss | F193: Süd | G193: 28 | H193: 22.2 | I193: 621.6 | J193: 6.105 | K193: 170.94
B194: 623 | C194: 6 | D194: Rot | E194: Voss | F194: Süd | G194: 33 | H194: 28.99 | I194: 956.67 | J194: 5.47911 | K194: 180.81063
B195: 623 | C195: 6 | D195: Rot | E195: Voss | F195: Süd | G195: 20 | H195: 22.95 | I195: 459 | J195: 6.31125 | K195: 126.225
B196: 642 | C196: 6 | D196: Bauer | E196: Seiler | F196: Nord | G196: 20 | H196: 23.95 | I196: 479 | J196: 4.52655 | K196: 90.531
B197: 642 | C197: 6 | D197: Müller | E197: Voss | F197: Nord | G197: 29 | H197: 27.95 | I197: 810.55 | J197: 7.68625 | K197: 222.90125
B198: 643 | C198: 6 | D198: Rot | E198: Wefler | F198: Nord | G198: 20 | H198: 27.95 | I198: 559 | J198: 5.28255 | K198: 105.651
B199: 644 | C199: 6 | D199: Rot | E199: Wefler | F199: Nord | G199: 22 | H199: 27.95 | I199: 614.9 | J199: 7.68625 | K199: 169.0975
B200: 645 | C200: 6 | D200: Bauer | E200: Wefler | F200: Nord | G200: 88 | H200: 27.95 | I200: 2459.6 | J200: 5.28255 | K200: 464.8644
B201: 646 | C201: 6 | D201: Müller | E201: Wefler | F201: Nord | G201: 25 | H201: 25.4 | I201: 635 | J201: 6.985 | K201: 174.625
... 1305 more rows

Sheet 16 Zahlen als Text
F1: 0
A2: 1 | B2: 16 Numbers as text | F2: Back to Start
A3: 2 | B3: 16 Zahlen als Text | F3: Startseite
A5: 2 | C5: "In einigen Fällen werden Zahlen auf einem Arbeitsblatt als Text in Zellen formatiert und gespeichert, was zu Problemen bei Berechnungen oder zu einer verwirrenden Sortierreihenfolge führen kann. Dieses Problem tritt manchmal auf, nachdem Sie Daten aus einer Datenbank oder einer anderen externen Datenquelle importiert oder kopiert haben. Als Text formatierte Zahlen sind links- und nicht rechtsbündig in der Zelle ausgerichtet und häufig mit einem Fehlerindikator markiert."
A6: 2
A7: 2
A8: 2
A9: 2
A10: 2
A11: 2
A12: 2
A13: 2 | C13: https://support.office.com/de-de/article/Korrigieren-als-Text-formatierter-Zahlen-durch-Anwenden-eines-Zahlenformats-6599c03a-954d-4d83-b78a-23af2c8845d0
A15: 1 | C15: In some cases, numbers in a worksheet are actually formatted and stored in cells as text, which can cause problems with calculations or produce confusing sort orders. This issue sometimes occurs after you import or copy data from a database or other external data source. Numbers that are formatted as text are left-aligned instead of right-aligned in the cell, and are often marked with an error indicator.
A16: 1
A17: 1
A18: 1
A19: 1
A20: 1
A21: 1
A22: 1
A23: 1 | C23: https://support.office.com/en-US/article/Fix-text-formatted-numbers-by-applying-a-number-format-6599C03A-954D-4D83-B78A-23AF2C8845D0
A25: 2 | C25: Die folgende Listenauswertung zeigt ein Beispiel für diesen merkwürdigen Effekt. Es sollte ermittelt werden, wie lange und mit welcher Standardabweichung sich Container eines bestimmten Operators, eines bestimmten Typs und eines bestimmten Alters im Depot aufgehalten haben. Eine entsprechende Liste mit Daten wurde in Excel importiert. Beachten Sie die Spalte "container type"! Dabei kann es sich um reine Zahlen handeln - aber auch um Mischungen aus Zahlen und Buchstaben. Daher gibt Excel der Spalte nach dem Import den Typ "Text" und weist mit dem kleinen grünen Dreieck in der linken oberen Zellecke auf dieses Problem hin. Das sollten Sie nicht ignorieren! Die für die Berechnung der Standardabweichung in G54 erforderliche Formel in Spalte Z lautet nämlich: =WENN(UND(J61=$D$52;T61=$D$54);(Y61-$F$54)^2;"") Beachten Sie, dass die Bedingung T61 = $D$54 nicht "Wahr" liefert, obwohl in beiden Zellen "4210" steht!! Sie müssen daher entweder die als Text gespeicherten Zahlen in Spalte T in Zahlen umwandeln (Klick auf das Fehlersymbol mit dem Ausrufezeichen) oder eine andere Formel benutzen: =WENN(UND(J61=$D$52;WENNFEHLER(WERT(T61);T61)=$D$54);(Y61-$F$54)^2;"")
A26: 2
A27: 2
A28: 2
A29: 2
A30: 2
A31: 2
A32: 2
A33: 2 | J33: =T61=$D$54 -> FALSE | K33: =_xlfn.FORMULATEXT(J33) -> =T61=$D$54
A34: 2
A35: 2
A36: 2
A38: 1 | C38: The following list analysis shows an example for this strange effect. The task was to find out how long and with which standard deviation the containers of a certain operator, of a certain type and of a certain age stayed in a depot. A corresponding data list was imported into Excel. Please notice the column "container type"! This may be pure numbers or a mixture of numbers and characters. Therefore Excel defines this column as "Text" and indicates this problem with a little green triangle in the upper left corner of the cells. You shouldn't ignore this! The formula in column Z, which is needed for the calculation of the standard deviation in G54 is: =IF(AND(J61=$D$52;T61=$D$54);(Y61-$F$54)^2;"") Please notice, that the condition T61 = $D$54 doesn't give "True" - although there is "4210" in both cells!! Therefore you must either convert the number in column T which was stored as a text into a number (click on the error indicator with the exclamation mark) or use another formula (see column AC): =IF(AND(J61=$D$52;IFERROR(VALUE(T61);T61)=$D$54);(Y61-$F$54)^2;"")
A39: 1
A40: 1
A41: 1
A42: 1
A43: 1
A44: 1
A45: 1 | J45: =T61=$D$54 -> FALSE | K45: =_xlfn.FORMULATEXT(J45) -> =T61=$D$54
A46: 1
A47: 1
A48: 1
A49: 1
B51: for the example select: | E51: number | F51: mean stay time (in days) | G51: standard deviation (in days) | H51: variation coefficient
A52: 0 | B52: OP7 | C52: operator | D52: OP07 | E52: =COUNTIF(J:J,D52) -> 46 | F52: =IFERROR(AVERAGEIFS(Y:Y,J:J,D52),"no data") -> 7.347826087 | G52: =IFERROR(SQRT(AVERAGE(AB:AB)),"no data") -> 6.471399927 | H52: =IFERROR(G52/F52,"no data") -> 0.880723067
B54: 4210 | C54: container type | D54: 4210 | E54: =COUNTIFS(J:J,D52,T:T,D54) -> 10 | F54: =IFERROR(AVERAGEIFS(Y:Y,J:J,D52,T:T,D54),"no data") -> 8.8 | G54: =IFERROR(SQRT(AVERAGE(AC:AC)),"no data") -> 5.54616985 | H54: =IFERROR(G54/F54,"no data") -> 0.6302465738
B56: 10 to 12 years | C56: container age | D56: 10 to 12 years | E56: =COUNTIFS(J:J,D52,T:T,D54,O:O,D56) -> 3 | F56: =IFERROR(AVERAGEIFS(Y:Y,J:J,D52,T:T,D54,O:O,D56),"no data") -> 6.666666667 | G56: =IFERROR(SQRT(AVERAGE(AD:AD)),"no data") -> 6.018490028 | H56: =IFERROR(G56/F56,"no data") -> 0.9027735043
J58: operator | K58: container nr | L58: status | M58: date built | N58: age | O58: age class | P58: gate in | Q58: delivery | R58: gate out | S58: distribution | T58: container type | U58: yard position | V58: arrival | W58: departure | X58: container status | Y58: stay time (in days) | Z58: doesn't work! | AA58: doesn't work! | AB58: works! | AC58: works! | AD58: works! | AG58: operator | AH58: container type | AI58: age | AJ58: interval
J59: OP07 | K59: IMTU3053084 | L59: OK | M59: 2007-04-01 | N59: 9 | O59: =IF(N59="not spec.",N59,IF((N59<=3),"0 to 3 years",IF((N59>=4)*(N59<=6),"4 to 6 years",IF((N59>=7)*(N59<=9),"7 to 9 years",IF((N59>=10)*(N59<=12),"10 to 12 years",IF((N59>=13)*(N59<=15),"13 to 15 years",IF((N59>=16)*(N59<=18),"16 to 18 years",IF((N59>=19)*(N59<=21),"19 to 21 years",IF((N59>=13)*(N59<=15),"22 to 24 years",IF((N59>=22)*(N59<=24),"22 to 24 years",IF((N59>=25)*(N59<=27),"25 to 27 years",IF((N59>=28)*(N59<=30),"28 to 30 years")))))))))))) -> 7 to 9 years | P59: 2016-10-18T20:31:06 | Q59: transfer area | R59: 2016-10-20T18:19:28 | S59: empty cont. depot | T59: 2210 | U59: E02 | V59: 2016-10-19T09:54:10 | W59: 2016-10-20T07:31:26 | X59: OFF_TERMINAL | Y59: =ROUNDUP(W59-V59,0) -> 1 | Z59: =IF(AND(J59=$D$52,T59=$D$54),(Y59-$F$54)^2,"") ->  | AA59: =IF(AND(J59=$D$52,T59=$D$54,O59=$D$56),(Y59-$F$56)^2,"") ->  | AB59: =IF(J59=$D$52,(Y59-$F$52)^2,"") -> 40.29489603 | AC59: =IF(AND(J59=$D$52,IFERROR(VALUE(T59),T59)=$D$54),(Y59-$F$54)^2,"") ->  | AD59: =IF(AND(J59=$D$52,IFERROR(VALUE(T59),T59)=$D$54,O59=$D$56),(Y59-$F$56)^2,"") ->  | AG59: OP07 | AH59: 2210 | AI59: not spec. | AJ59: =AI59 -> not spec.
J60: OP07 | K60: EISU2147120 | L60: OK | N60: not spec. | O60: =IF(N60="not spec.",N60,IF((N60<=3),"0 to 3 years",IF((N60>=4)*(N60<=6),"4 to 6 years",IF((N60>=7)*(N60<=9),"7 to 9 years",IF((N60>=10)*(N60<=12),"10 to 12 years",IF((N60>=13)*(N60<=15),"13 to 15 years",IF((N60>=16)*(N60<=18),"16 to 18 years",IF((N60>=19)*(N60<=21),"19 to 21 years",IF((N60>=13)*(N60<=15),"22 to 24 years",IF((N60>=22)*(N60<=24),"22 to 24 years",IF((N60>=25)*(N60<=27),"25 to 27 years",IF((N60>=28)*(N60<=30),"28 to 30 years")))))))))))) -> not spec. | P60: 2016-10-25T11:13:21 | Q60: transfer area | R60: 2016-10-27T18:38:35 | S60: empty cont. depot | T60: 2210 | U60: E01 | V60: 2016-10-25T15:23:35 | W60: 2016-10-26T18:24:31 | X60: OFF_TERMINAL | Y60: 2 | AB60: 28.59924386 | AG60: OP08 | AH60: 22G1 | AI60: 3 | AJ60: ="0"&" to "&AI60&" years" -> 0 to 3 years
J61: OP07 | K61: EMCU1321321 | L61: OK | M61: 2006-07-01 | N61: 10 | O61: 10 to 12 years | P61: 2016-09-26T07:16:25 | Q61: transfer area | R61: 2016-10-07T11:04:01 | S61: empty cont. depot | T61: 4210 | U61: E14 | V61: 2016-09-26T14:07:03 | W61: 2016-09-29T16:35:00 | X61: OFF_TERMINAL | Y61: 4 | AB61: 11.20793951 | AC61: 23.04 | AD61: 7.111111111 | AG61: OP09 | AH61: 22P3 | AI61: 6 | AJ61: =AI60+1&" to "&AI61&" years" -> 4 to 6 years
J62: OP07 | K62: BMOU3021565 | L62: DAMAGED | N62: not spec. | O62: not spec. | P62: 2016-10-07T12:38:55 | Q62: transfer area | R62: 2016-10-25T09:24:29 | S62: empty cont. depot | T62: 4210 | U62: E08 | V62: 2016-10-10T20:42:30 | W62: 2016-10-18T17:00:16 | X62: OFF_TERMINAL | Y62: 8 | AB62: 0.4253308129 | AC62: 0.64 | AG62: OP10 | AH62: 22U1 | AI62: 9 | AJ62: =AI61+1&" to "&AI62&" years" -> 7 to 9 years
J63: OP07 | K63: EMCU1443166 | L63: OK | M63: 2008-10-01 | N63: 8 | O63: 7 to 9 years | P63: 2016-10-10T20:54:35 | Q63: transfer area | R63: 2016-10-21T06:46:37 | S63: empty cont. depot | T63: 4210 | U63: E16 | V63: 2016-10-11T13:27:23 | W63: 2016-10-14T19:43:18 | X63: OFF_TERMINAL | Y63: 4 | AB63: 11.20793951 | AC63: 23.04 | AG63: OP11 | AH63: 4210 | AI63: 12 | AJ63: 10 to 12 years
J64: OP07 | K64: TCLU4393990 | L64: OK | N64: not spec. | O64: not spec. | P64: 2016-12-01T09:44:19 | Q64: transfer area | R64: 2016-12-08T14:55:22 | S64: empty cont. depot | T64: 4210 | U64: D02 | V64: 2016-12-01T18:26:09 | W64: 2016-12-07T13:38:50 | X64: OFF_TERMINAL | Y64: 6 | AB64: 1.816635161 | AC64: 7.84 | AH64: 4310 | AI64: 15 | AJ64: 13 to 15 years
J65: OP07 | K65: IMTU1089236 | L65: OK | N65: not spec. | O65: not spec. | P65: 2016-12-13T13:53:40 | Q65: truck | R65: 2017-01-03T14:58:33 | S65: empty cont. depot | T65: 4210 | U65: E08 | V65: 2016-12-14T11:50:18 | W65: 2017-01-02T15:10:16 | X65: OFF_TERMINAL | Y65: 20 | AB65: 160.0775047 | AC65: 125.44 | AH65: 4510 | AI65: 18 | AJ65: 16 to 18 years
J66: OP07 | K66: IMTU1101856 | L66: OK | N66: not spec. | O66: not spec. | P66: 2016-12-14T15:48:35 | Q66: transfer area | R66: 2016-12-20T13:56:37 | S66: empty cont. depot | T66: 4210 | U66: E06 | V66: 2016-12-14T18:30:33 | W66: 2016-12-19T20:40:06 | X66: OFF_TERMINAL | Y66: 6 | AB66: 1.816635161 | AC66: 7.84 | AI66: 21 | AJ66: 19 to 21 years
J67: OP07 | K67: XINU4019807 | L67: OK | M67: 2006-09-01 | N67: 10 | O67: 10 to 12 years | P67: 2017-02-06T14:44:28 | Q67: truck | R67: 2017-02-28T18:15:39 | S67: empty cont. depot | T67: 4210 | U67: E12 | V67: 2017-02-07T10:56:56 | W67: 2017-02-21T21:22:52 | X67: OFF_TERMINAL | Y67: 15 | AB67: 58.5557656 | AC67: 38.44 | AD67: 69.44444444 | AI67: 24 | AJ67: 22 to 24 years
J68: OP07 | K68: EMCU1277300 | L68: DAMAGED | M68: 2006-03-01 | N68: 11 | O68: 10 to 12 years | P68: 2017-02-13T09:59:41 | Q68: transfer area | R68: 2017-02-14T21:19:57 | S68: transfer area | T68: 4210 | U68: E18 | V68: 2017-02-13T20:11:05 | W68: 2017-02-14T17:05:09 | X68: OFF_TERMINAL | Y68: 1 | AB68: 40.29489603 | AC68: 60.84 | AD68: 32.11111111 | AI68: 27 | AJ68: 25 to 27 years
J69: OP07 | K69: SEGU4003769 | L69: DAMAGED | M69: 2012-04-01 | N69: 4 | O69: 4 to 6 years | P69: 2017-03-10T07:40:34 | Q69: transfer area | R69: 2017-03-22T07:31:21 | S69: transfer area | T69: 4210 | U69: E14 | V69: 2017-03-10T10:44:19 | W69: 2017-03-22T07:18:19 | X69: OFF_TERMINAL | Y69: 12 | AB69: 21.64272212 | AC69: 10.24 | AI69: 30 | AJ69: 28 to 30 years
J70: OP07 | K70: TCLU4352857 | L70: DAMAGED | N70: not spec. | O70: not spec. | P70: 2017-03-10T07:41:53 | Q70: transfer area | R70: 2017-03-22T07:48:43 | S70: transfer area | T70: 4210 | U70: E14 | V70: 2017-03-10T10:39:35 | W70: 2017-03-22T07:31:04 | X70: OFF_TERMINAL | Y70: 12 | AB70: 21.64272212 | AC70: 10.24
J71: OP07 | K71: EGHU1003500 | L71: OK | M71: 2008-05-01 | N71: 8 | O71: 7 to 9 years | P71: 2016-10-24T08:11:19 | Q71: transfer area | R71: 2016-10-25T14:56:15 | S71: transfer area | T71: 4310 | U71: E04 | V71: 2016-10-24T18:19:53 | W71: 2016-10-25T14:48:41 | X71: OFF_TERMINAL | Y71: 1 | AB71: 40.29489603
J72: OP07 | K72: IMTU1038162 | L72: DAMAGED | M72: 2006-11-01 | N72: 10 | O72: 10 to 12 years | P72: 2017-03-01T10:42:41 | Q72: transfer area | S72: empty cont. depot | T72: 4310 | U72: D08 | V72: 2017-03-01T16:39:47 | W72: 2017-03-22T17:46:06 | X72: ON_TERMINAL | Y72: 22 | AB72: 214.6862004
J73: OP07 | K73: EMCU1257217 | L73: DAMAGED | N73: not spec. | O73: not spec. | P73: 2017-03-13T07:56:55 | Q73: transfer area | S73: empty cont. depot | T73: 4310 | U73: D02 | V73: 2017-03-13T09:45:23 | W73: 2017-03-22T17:45:27 | X73: ON_TERMINAL | Y73: 10 | AB73: 7.034026465
J74: OP07 | K74: EISU1828073 | L74: OK | N74: not spec. | O74: not spec. | P74: 2017-03-16T10:06:09 | Q74: transfer area | R74: 2017-03-24T12:50:05 | S74: empty cont. depot | T74: 4310 | U74: E14 | V74: 2017-03-16T13:47:39 | W74: 2017-03-21T21:03:06 | X74: OFF_TERMINAL | Y74: 6 | AB74: 1.816635161
J75: OP07 | K75: EGSU9030044 | L75: OK | N75: not spec. | O75: not spec. | P75: 2017-03-07T11:54:06 | Q75: truck | R75: 2017-03-13T14:56:47 | S75: empty cont. depot | T75: 4510 | U75: E14 | V75: 2017-03-08T13:24:12 | W75: 2017-03-10T15:44:17 | X75: OFF_TERMINAL | Y75: 3 | AB75: 18.90359168
J76: OP07 | K76: EMCU9828800 | L76: DAMAGED | N76: not spec. | O76: not spec. | P76: 2017-03-10T07:06:58 | Q76: truck | S76: empty cont. depot | T76: 4510 | U76: D02 | V76: 2017-03-13T09:53:32 | W76: 2017-03-22T17:41:48 | X76: ON_TERMINAL | Y76: 10 | AB76: 7.034026465
J77: OP07 | K77: GESU6352071 | L77: OK | M77: 2010-09-01 | N77: 6 | O77: 4 to 6 years | P77: 2017-03-10T13:34:22 | Q77: truck | R77: 2017-03-24T18:24:17 | S77: empty cont. depot | T77: 4510 | U77: D02 | V77: 2017-03-17T08:18:30 | W77: 2017-03-22T11:57:47 | X77: OFF_TERMINAL | Y77: 6 | AB77: 1.816635161
J78: OP07 | K78: HMCU9222246 | L78: DAMAGED | M78: 2013-05-01 | N78: 3 | O78: 0 to 3 years | P78: 2017-03-16T10:17:43 | Q78: transfer area | S78: empty cont. depot | T78: 4510 | U78: D02 | V78: 2017-03-17T08:41:31 | W78: 2017-03-22T11:48:34 | X78: ON_TERMINAL | Y78: 6 | AB78: 1.816635161
J79: OP07 | K79: IMTU9073703 | L79: DAMAGED | N79: not spec. | O79: not spec. | P79: 2017-03-17T07:50:47 | Q79: transfer area | R79: 2017-03-22T11:27:09 | S79: transfer area | T79: 4510 | U79: D02 | V79: 2017-03-17T10:57:09 | W79: 2017-03-22T11:14:24 | X79: OFF_TERMINAL | Y79: 6 | AB79: 1.816635161
J80: OP07 | K80: EISU9262260 | L80: DAMAGED | M80: 2013-03-01 | N80: 4 | O80: 4 to 6 years | P80: 2017-03-17T07:55:55 | Q80: transfer area | S80: empty cont. depot | T80: 4510 | U80: D02 | V80: 2017-03-17T10:42:29 | W80: 2017-03-22T11:17:03 | X80: ON_TERMINAL | Y80: 6 | AB80: 1.816635161
J81: OP07 | K81: EISU3803536 | L81: DAMAGED | N81: not spec. | O81: not spec. | P81: 2016-09-13T08:08:59 | Q81: transfer area | R81: 2016-11-24T12:47:54 | S81: empty cont. depot | T81: 22G1 | U81: E02 | V81: 2016-10-24T10:13:53 | W81: 2016-11-24T12:47:54 | X81: OFF_TERMINAL | Y81: 32 | AB81: 607.7296786
J82: OP07 | K82: EMCU3913649 | L82: DAMAGED | M82: 2010-05-01 | N82: 6 | O82: 4 to 6 years | P82: 2016-09-23T11:00:12 | Q82: transfer area | R82: 2016-09-28T16:17:21 | S82: transfer area | T82: 22G1 | U82: E01 | V82: 2016-09-26T21:11:42 | W82: 2016-09-28T14:58:02 | X82: OFF_TERMINAL | Y82: 2 | AB82: 28.59924386
J83: OP07 | K83: DRYU2774966 | L83: OK | M83: 2013-02-01 | N83: 4 | O83: 4 to 6 years | P83: 2016-09-23T15:04:34 | Q83: truck | R83: 2016-10-13T09:56:30 | S83: empty cont. depot | T83: 22G1 | U83: E02 | V83: 2016-09-26T08:27:13 | W83: 2016-09-27T16:52:07 | X83: OFF_TERMINAL | Y83: 2 | AB83: 28.59924386
J84: OP07 | K84: IMTU3073692 | L84: OK | M84: 2007-08-01 | N84: 9 | O84: 7 to 9 years | P84: 2016-09-23T15:34:45 | Q84: truck | R84: 2016-10-05T07:32:08 | S84: empty cont. depot | T84: 22G1 | U84: E02 | V84: 2016-09-26T09:15:30 | W84: 2016-09-27T16:16:20 | X84: OFF_TERMINAL | Y84: 2 | AB84: 28.59924386
J85: OP07 | K85: TGHU0712722 | L85: OK | M85: 2007-06-01 | N85: 9 | O85: 7 to 9 years | P85: 2016-09-26T15:39:01 | Q85: truck | R85: 2016-10-11T12:31:07 | S85: empty cont. depot | T85: 22G1 | U85: E02 | V85: 2016-09-27T12:46:24 | W85: 2016-09-27T15:54:41 | X85: OFF_TERMINAL | Y85: 1 | AB85: 40.29489603
J86: OP07 | K86: EGSU3119237 | L86: OK | N86: not spec. | O86: not spec. | P86: 2016-09-26T17:40:53 | Q86: transfer area | R86: 2016-09-30T19:56:20 | S86: empty cont. depot | T86: 22G1 | U86: E01 | V86: 2016-09-26T20:26:11 | W86: 2016-09-27T15:36:00 | X86: OFF_TERMINAL | Y86: 1 | AB86: 40.29489603
J87: OP07 | K87: EISU7500076 | L87: OK | M87: 2004-06-01 | N87: 12 | O87: 10 to 12 years | P87: 2016-09-28T06:38:55 | Q87: transfer area | R87: 2016-10-19T18:41:17 | S87: transfer area | T87: 22P3 | U87: LA01 | V87: 2016-10-04T08:31:33 | W87: 2016-10-05T21:01:07 | X87: OFF_TERMINAL | Y87: 2 | AB87: 28.59924386
J88: OP07 | K88: EISU7501895 | L88: OK | M88: 2004-06-01 | N88: 12 | O88: 10 to 12 years | P88: 2016-10-11T07:53:20 | Q88: transfer area | R88: 2016-10-19T18:47:35 | S88: transfer area | T88: 22P3 | U88: LA01 | V88: 2016-10-12T13:29:40 | W88: 2016-10-18T21:02:24 | X88: OFF_TERMINAL | Y88: 7 | AB88: 0.1209829868
J89: OP07 | K89: TCLU6800652 | L89: OK | N89: not spec. | O89: not spec. | P89: 2016-10-18T09:08:55 | Q89: truck | R89: 2016-11-04T10:57:57 | S89: transfer area | T89: 22P3 | U89: LA01 | V89: 2016-10-18T16:17:37 | W89: 2016-10-25T19:55:51 | X89: OFF_TERMINAL | Y89: 8 | AB89: 0.4253308129
J90: OP07 | K90: EISU7501447 | L90: OK | N90: not spec. | O90: not spec. | P90: 2016-10-20T10:14:49 | Q90: unknown | R90: 2016-10-31T06:53:59 | S90: transfer area | T90: 22P3 | U90: LA01 | V90: 2016-10-20T20:45:58 | W90: 2016-10-25T20:41:11 | X90: OFF_TERMINAL | Y90: 5 | AB90: 5.512287335
J91: OP07 | K91: EISU7500369 | L91: OK | M91: 2004-05-01 | N91: 12 | O91: 10 to 12 years | P91: 2016-11-04T14:56:32 | Q91: truck | R91: 2016-11-17T06:43:24 | S91: transfer area | T91: 22P3 | U91: LA01 | V91: 2016-11-08T10:43:51 | W91: 2016-11-11T20:54:18 | X91: OFF_TERMINAL | Y91: 4 | AB91: 11.20793951
J92: OP07 | K92: EISU7501236 | L92: OK | M92: 2004-08-01 | N92: 12 | O92: 10 to 12 years | P92: 2016-11-22T06:42:03 | Q92: transfer area | R92: 2016-12-13T15:49:30 | S92: transfer area | T92: 22P3 | U92: LA01 | V92: 2016-11-22T12:49:21 | W92: 2016-12-01T19:58:06 | X92: OFF_TERMINAL | Y92: 10 | AB92: 7.034026465
J93: OP07 | K93: EISU7502886 | L93: OK | M93: 2006-03-01 | N93: 11 | O93: 10 to 12 years | P93: 2016-11-23T10:35:00 | Q93: transfer area | R93: 2016-12-13T15:49:58 | S93: transfer area | T93: 22P3 | U93: LA01 | V93: 2016-11-23T13:43:58 | W93: 2016-12-01T18:42:42 | X93: OFF_TERMINAL | Y93: 9 | AB93: 2.729678639
J94: OP07 | K94: EMCU7605639 | L94: OK | N94: not spec. | O94: not spec. | P94: 2016-11-24T12:30:44 | Q94: transfer area | R94: 2016-12-13T15:49:42 | S94: transfer area | T94: 22P3 | U94: LA01 | V94: 2016-11-28T16:50:33 | W94: 2016-12-01T18:28:20 | X94: OFF_TERMINAL | Y94: 4 | AB94: 11.20793951
J95: OP07 | K95: EISU4602449 | L95: OK | M95: 2005-01-01 | N95: 12 | O95: 10 to 12 years | P95: 2016-09-29T20:24:30 | Q95: transfer area | R95: 2016-10-11T15:37:34 | S95: empty cont. depot | T95: 22U1 | U95: E03 | V95: 2016-09-30T15:54:40 | W95: 2016-10-07T06:46:01 | X95: OFF_TERMINAL | Y95: 7 | AB95: 0.1209829868
J96: OP07 | K96: EISU4600180 | L96: OK | M96: 2005-01-01 | N96: 12 | O96: 10 to 12 years | P96: 2016-10-05T13:46:30 | Q96: transfer area | R96: 2016-11-01T08:20:33 | S96: empty cont. depot | T96: 22U1 | U96: E03 | V96: 2016-10-06T07:52:59 | W96: 2016-10-07T06:32:32 | X96: OFF_TERMINAL | Y96: 1 | AB96: 40.29489603
J97: OP07 | K97: EISU4600657 | L97: OK | M97: 2005-04-01 | N97: 11 | O97: 10 to 12 years | P97: 2016-10-06T09:43:03 | Q97: truck | R97: 2016-11-22T08:38:30 | S97: empty cont. depot | T97: 22U1 | U97: E02 | V97: 2016-10-24T08:16:09 | W97: 2016-10-27T17:17:42 | X97: OFF_TERMINAL | Y97: 4 | AB97: 11.20793951
J98: OP07 | K98: EMCU4606333 | L98: OK | M98: 2014-02-01 | N98: 3 | O98: 0 to 3 years | P98: 2016-10-12T20:45:26 | Q98: transfer area | R98: 2016-10-17T09:16:06 | S98: empty cont. depot | T98: 22U1 | U98: E01 | V98: 2016-10-13T08:03:53 | W98: 2016-10-13T18:57:35 | X98: OFF_TERMINAL | Y98: 1 | AB98: 40.29489603
J99: OP07 | K99: EISU4602984 | L99: OK | M99: 2005-01-01 | N99: 12 | O99: 10 to 12 years | P99: 2016-10-14T17:28:29 | Q99: truck | R99: 2016-11-10T18:32:13 | S99: empty cont. depot | T99: 22U1 | U99: E02 | V99: 2016-10-25T09:55:48 | W99: 2016-11-09T16:00:10 | X99: OFF_TERMINAL | Y99: 16 | AB99: 74.86011342
J100: OP07 | K100: EMCU4606518 | L100: OK | M100: 2014-02-01 | N100: 3 | O100: 0 to 3 years | P100: 2016-10-17T13:58:28 | Q100: truck | R100: 2016-11-01T08:04:15 | S100: empty cont. depot | T100: 22U1 | U100: E01 | V100: 2016-10-25T10:05:33 | W100: 2016-10-31T13:14:49 | X100: OFF_TERMINAL | Y100: 7 | AB100: 0.1209829868
J101: OP07 | K101: EMCU4606626 | L101: OK | N101: not spec. | O101: not spec. | P101: 2016-10-17T13:58:28 | Q101: truck | R101: 2016-11-01T09:44:25 | S101: empty cont. depot | T101: 22U1 | U101: E02 | V101: 2016-10-25T07:08:32 | W101: 2016-10-31T11:18:31 | X101: OFF_TERMINAL | Y101: 7 | AB101: 0.1209829868
J102: OP07 | K102: EISU4600765 | L102: OK | M102: 2005-01-01 | N102: 12 | O102: 10 to 12 years | P102: 2016-10-25T13:58:41 | Q102: truck | R102: 2016-10-31T15:25:32 | S102: empty cont. depot | T102: 22U1 | U102: E01 | V102: 2016-10-26T13:22:07 | W102: 2016-10-31T11:23:56 | X102: OFF_TERMINAL | Y102: 5 | AB102: 5.512287335
J103: OP07 | K103: EMCU4606930 | L103: OK | M103: 2014-02-01 | N103: 3 | O103: 0 to 3 years | P103: 2016-11-01T17:26:33 | Q103: truck | R103: 2016-11-23T08:18:18 | S103: empty cont. depot | T103: 22U1 | U103: E01 | V103: 2016-11-09T08:27:28 | W103: 2016-11-21T16:37:39 | X103: OFF_TERMINAL | Y103: 13 | AB103: 31.94706994
J104: OP07 | K104: EMCU4603761 | L104: OK | N104: not spec. | O104: not spec. | P104: 2016-11-02T07:32:59 | Q104: truck | R104: 2016-12-01T09:33:50 | S104: empty cont. depot | T104: 22U1 | U104: E02 | V104: 2016-11-08T13:39:06 | W104: 2016-11-28T20:54:37 | X104: OFF_TERMINAL | Y104: 21 | AB104: 186.3818526

Sheet 17 BEREICH.VERSCHIEBEN()
P1: 0
A2: 1 | B2: 17 OFFSET() | F2: Back to Start
A3: 2 | B3: 17 BEREICH.VERSCHIEBEN() | F3: Startseite
A5: 2 | B5: Das Problem | C5: Es gibt viele Excel-Funktionen, die als Argument einen Zellbereich benötigen: Wenn Sie eine Pivot-Tabelle erstellen, kommen die Daten dafür aus einem bestimmen Zellbereich, der eine Liste mit Daten enthält. Dieser Zellbereich kann nachträglich über Pivottable-Tools / Analysieren / "Datenquelle ändern" geändert werden. Wenn Sie ein Diagramm erstellen, kommen die Daten dafür aus einem bestimmten Zellbereich, der eine Liste mit Daten enthält. Dieser Zellbereich kann nachträglich mit Rechtsklick / "Daten auswählen" geändert werden. Mit" Daten" / "Datentools" / "Datenüberprüfung" können Sie festlegen, dass in eine bestimmte Zelle nur bestimmte Daten eingegeben werden dürfen. Die erlaubten Daten können dabei auch aus einem Zellbereich mit einer Liste kommen.
A6: 2
A7: 2
A8: 2 | K8: siehe
A9: 2 | K9: ='18 Liste fortschreiben (1)'!B3 -> 18 Liste fortschreiben (1)
A10: 2
A11: 2
A12: 2 | K12: siehe
A13: 2 | K13: ='19 Liste fortschreiben (2)'!B3 -> 19 Liste fortschreiben (2)
A14: 2
A15: 2
A16: 2 | K16: siehe
A17: 2 | K17: ='20 Liste fortschreiben (3)'!B3 -> 20 Liste fortschreiben (3)
A18: 2
A19: 2
A20: 2 | C20: In allen Fällen muss der Zellbereich in der Excel-üblichen Art "Linke obere Ecke - Doppelpunkt - rechte untere Ecke" angegeben werden (z.B. "C5:G32"). Wenn Sie zu den vorhandenen Daten neue Daten (Zeilen oder Spalten) hinzufügen möchten oder einige Daten löschen möchten, müssen Sie die Bereichsangaben entsprechend ändern. Wäre es nicht wunderbar, wenn das automatisch geschehen würde? Und tatsächlich gibt es eine "Zauberformel" dafür: BEREICH.VERSCHIEBEN()
A21: 2
A22: 2
A23: 2
A24: 2
A25: 2
A26: 2
A28: 1 | B28: The Problem | C28: There are many Excel functions, which require a range of cells as an argument: If you create a PivotTable, the data for it come from a range of cells containing a list of data. This range can be changed by "Pivottable-Tools / Analyze / "Change Data Source". If you create a diagram, the data for it come from a range of cells containing a list of data. This range can be changed by a right click an "Select Data". Using "Data" / "Data Tools" / "Data Validation" you can define, that only certain data may be entered in a certain cell. These data may come from a range of cells with a list.
A29: 1
A30: 1 | K30: see
A31: 1 | K31: ='18 Liste fortschreiben (1)'!B2 -> 18 Extend a list (1)
A32: 1
A33: 1 | K33: see
A34: 1 | K34: ='19 Liste fortschreiben (2)'!B2 -> 19 Extend a list (2)
A35: 1
A36: 1 | K36: see
A37: 1 | K37: ='20 Liste fortschreiben (3)'!B2 -> 20 Extend a list (3)
A38: 1
A39: 1
A40: 1
A41: 1 | C41: In all cases the range of cells must be defined as usual in Excel: "Left upper corner - double colon - right lower corner" (e.g. "C5:G32"). If you want to add new data (rows or columns) or to delete some data the range of cells must be changed correspondingly. Wouldn't it be wonderful, if this was done automatically? And indeed there is a "magic formula" for that: OFFSET()
A42: 1
A43: 1
A44: 1
A45: 1
A46: 1
A48: 2 | B48: Die Lösung | C48: BEREICH.VERSCHIEBEN(B2:3;2;5;3)
A49: 2 | D49: Start in B2
A50: 2
A51: 2 | D51: 3 runter
A52: 2 | E52: 2 rüber | G52: Breite: 3
A53: 2
A54: 2 | F54: Höhe: 5
A55: 2
A56: 2
A57: 2
A58: 2 | C58: Die Funktion BEREICH.VERSCHIEBEN liefert als Ergebnis einen Bereich (oben gelb markiert). Dieser Bereich beginnt 3 Zeilen unter der Startzelle in B2 und 2 Spalten rechts davon. Er ist 5 Zeilen hoch und 3 Spalten breit. ACHTUNG: Es macht keinen Sinn, in eine Zelle zu schreiben =BEREICH.VERSCHIEBEN(…). Die Funktion BEREICH.VERSCHIEBEN kann nur als Argument einer anderen Funktion benutzt werden - z.B. =SUMME(BEREICH.VERSCHIEBEN(...))
A59: 2
A60: 2
A61: 2
A62: 2
A63: 2
A64: 2
A65: 2
A66: 2
A67: 2
A68: 2 | C68: Die Formel BEREICH.VERSCHIEBEN wird nun z.B. in folgender Form benutzt, um einen Bereich flexibel zu definieren:
A69: 2
A70: 2
A71: 2 | C71: BEREICH.VERSCHIEBEN(B2;0;0;ANZAHL2(B:B);ANZAHL2(2:2))
A72: 2
A73: 2 | C73: Im obigen Beispiel ist B2 die Startzelle. Der erste Trick besteht dann darin, das zweite und dritte Argument Null zu setzen, d.h. man geht nicht von der Startzelle aus runter und rüber, sondern bleibt in der Startzelle. Der zu definierende Bereich beginnt also in der Startzelle! Der zweite und entscheidende Trick besteht dann darin, dass man für die Höhe und Breite des Bereiches keine festen Zahlen angibt. Stattdessen lässt man Excel mit Hilfe der Funktion ANZAHL2() selber zählen, wie viele Werte es in der Spalte der Startzelle (im Beispiel B) und in der Zeile der Startzelle (im Beispiel 2) gibt. Werden jetzt Zeilen oder Spalten hinzugefügt, passen sich die Höhe und Breite des Bereiches automatisch an. Ist das nicht phantastisch?
A74: 2
A75: 2
A76: 2
A77: 2
A78: 2
A79: 2
A80: 2
A81: 2
A82: 2
A83: 2
A84: 2
A85: 2 | D85: Start in B2 | E85: Breite: ANZAHL2(2:2)
A86: 2
A87: 2 | D87: Höhe: ANZAHL2(B:B)
A88: 2
A89: 2
A90: 2
A91: 2 | B91: Achtung | C91: Zwei Bedingungen müssen erfüllt sein, damit die "Zauberformel" funktioniert: (1) Die erste Spalte und die erste Zeile des Bereiches dürfen keine leeren Zellen enthalten, sonst zählt ANZAHL2() falsch! (2) Die erste Spalte und die erste Zeile des Bereiches dürfen außer den Listendaten keine weiteren Daten enthälten - z.B. noch irgendwo weiter unten oder weiter rechts. Dann würde ANZAHL2() wieder falsch zählen!
A92: 2
A93: 2
A94: 2
A95: 2
A96: 2
A97: 2
A98: 2
A99: 2
A100: 2
A101: 2 | B101: Beispiel | C101: Die einfachste Anwendung der Formel BEREICH.VERSCHIEBEN() ist die Formel SUMME(), die als Argument einen Bereich erwartet. Im Beispiel rechts wird dieser Bereich flexibel definiert. Bitte sehen Sie sich das aufmerksam an! Beachten Sie, dass die gelb markierten Zeilen und Spalten außer den Listenwerten keine weiteren Daten enthalten dürfen, damit ANZAHL2() richtig zählt! Wenn Sie jetzt unterhalb der letzten Datenzeile oder rechts von der letzten Datenspalte weitere Daten hinzufügen, wird die Summe automatisch neu berechnet - WENN Sie obige Bedingung (1) beachtet haben: Die erste Spalte und die erste Zeile des Bereiches dürfen keine Leerzellen enthalten!
A102: 2
A103: 2
A104: 2
A105: 2
A106: 2
A107: 2
A108: 2
A109: 2
A110: 2
A111: 2
A112: 2
A114: 1 | B114: The Solution | C114: OFFSET(B2:3;2;5;3)
A115: 1 | D115: Start in B2
A116: 1
A117: 1 | D117: 3 down
A118: 1 | E118: 2 right | G118: width: 3
A119: 1
A120: 1 | F120: height: 5
A121: 1
A122: 1
A123: 1
A124: 1 | C124: The result of the function OFFSET() is a range (marked in yellow above). This range starts 3 rows below the start cell B2 and 2 columns right to it. It is 5 rows high and has a width of 3 columns. ATTENTION: It doesn't make sense to write =OFFSET() in a cell. The function OFFSET() can only be used as an argument of another function - e.g. =SUM(OFFSET(...))
A125: 1
A126: 1
A127: 1
A128: 1
A129: 1
A130: 1
A131: 1
A132: 1
A133: 1
A134: 1 | C134: The formula OFFSET() is used in the following way make a flexible definition of a range of cells:
A135: 1
A136: 1
A137: 1 | C137: OFFSET(B2;0;0;COUNTA(B:B);COUNTA(2:2))
A138: 1
A139: 1 | C139: In the above example B2 is the start cell. The first trick is to set the second and the third argument to zero. That means, we don't move down and right but stay in the start cell. Consequently, the range starts in the start cell! The second and decisive trick is, that we don't enter fixed numbers for the hight and the width of the range. Instead of, we use the function COUNTA() to let Excel count itself , how many values are there in the column of the start cell (e.g. B) and in the row of the start cell (e.g. 2). If we now add rows or columns the hight and the width of the range is adjusted automatically. Isn't that fantastic?
A140: 1
A141: 1
A142: 1
A143: 1
A144: 1
A145: 1
A146: 1
A147: 1
A148: 1
A149: 1
A150: 1
A151: 1 | D151: Start in B2 | E151: width: COUNTA(2:2)
A152: 1
A153: 1 | D153: hight: COUNTA(B:B)
A154: 1
A155: 1
A156: 1
A157: 1 | B157: Attention | C157: Two requirements must be fulfilled to make the "magic formula" work: (1) The first row and the first column of the range must not contain empty cells - otherwise COUNTA() wouldn't count correctly! (2) The first row and the first column of the range must not contain any other data except the list data - e.g. somewhere down or right to the list range; otherwise COUNTA() wouldn't count correctly!
A158: 1
A159: 1
A160: 1
A161: 1
A162: 1
A163: 1
A164: 1
A165: 1
A166: 1
A167: 1 | B167: Example | C167: The simplest application of OFFSET() is the formula SUM(), which expects a range of data as an argument. In the example (see to the right) this range is defined flexibly. Please have an attentive look at it! Please consider, that the orange row as well as the orange column must not contain any other data except the list data - otherwise COUNTA() wouldn't count correctly! If you now add new data below the last row or right to the last column the sum is recalculated automatically - IF you have considered the requirement (1) from above: The first row and the first column of the list must not contain empty cells!
A168: 1
A169: 1
A170: 1
A171: 1
A172: 1
A173: 1
A174: 1
A175: 1
A176: 1
A177: 1
L178: 2 | M178: 1
L179: 3 | M179: 2
L180: 1 | M180: 3
L181: 1 | M181: 1
A185: 2 | O185: Summe= | P185: =SUM(OFFSET(L178,0,0,COUNTA(L:L),COUNTA(178:178))) -> 14
A186: 2 | O186: Formel: | P186: =_xlfn.FORMULATEXT(P185) -> =SUM(OFFSET(L178,0,0,COUNTA(L:L),COUNTA(178:178)))
A187: 1 | O187: Sum= | P187: =SUM(OFFSET(L178,0,0,COUNTA(L:L),COUNTA(178:178))) -> 14
A188: 1 | O188: Formula: | P188: =_xlfn.FORMULATEXT(P187) -> =SUM(OFFSET(L178,0,0,COUNTA(L:L),COUNTA(178:178)))
A190: 2 | B190: Die totale | C190: Wir haben jetzt den Bereich, auf den eine Formel - im Beispiel SUMME() - angewendet werden soll, flexibel definiert. Der Nutzer kann am Ende der Liste Zeilen oder Spalten hinzufügen bzw. Zeilen oder Spalten löschen. ABER: In der Formel BEREICH.VERSCHIEBEN werden einige feste Werte benutzt: - die Adresse der linken oberen Ecke der Liste = L178 = erstes Argument von BEREICH.VERSCHIEBEN() - der Spaltenbuchstabe und die Zeilennummer der linken oberen Ecke der Liste = L:L und 178:178 = Argumente von ANZAHL2() Das hat einen großen Nachteil: Wenn sich die linke obere Ecke der Liste verschiebt - z.B. wenn darüber oder links davon Zeilen oder Spalten eingefügt oder gelöscht werdden - stimmt die Bereichsdefinition nicht mehr. | O190: mit dem Namen der linken oberen Ecke der Liste:
A191: 2 | B191: Flexibilität
A192: 2 | O192: Summe= | P192: =SUM(OFFSET(SumStartCell,0,0,COUNTA(OFFSET(SumStartCell,0,0,1000000,1)),COUNTA(OFFSET(SumStartCell,0,0,1,16000)))) -> 14
A193: 2 | O193: Formel: | P193: =_xlfn.FORMULATEXT(P192) -> =SUM(OFFSET(SumStartCell,0,0,COUNTA(OFFSET(SumStartCell,0,0,1000000,1)),COUNTA(OFFSET(SumStartCell,0,0,1,16000))))
A194: 2
A195: 2
A196: 2 | O196: mit dem Namen der Bereichsdefinition:
A197: 2
A198: 2 | O198: Summe= | P198: =SUM(SumDataSource) -> 14
A199: 2 | O199: Formel: | P199: =_xlfn.FORMULATEXT(P198) -> =SUM(SumDataSource)
A200: 2
A201: 2 | C201: Wir müssen daher die Lage der linken oberen Ecke der Liste unabhängig vom konkreten Spaltebuchstaben und der konkreten Zeilenummer definieren. Das geht in Excel ganz einfach, indem man der Zelle einen Namen gibt und sie anschließend nicht mehr über Zeile und Spalte adressiert: FORMELN / "Namens-Manager" / "Neu" Anschließend sieht die Bereichsdefinition z.B. so aus:
A202: 2
A203: 2
A204: 2
A205: 2
A206: 2
A207: 2
A208: 2
... 103 more rows

Sheet 18 Liste fortschreiben (1)
A2: 1 | B2: 18 Extend a list (1) | F2: Back to Start
A3: 2 | B3: 18 Liste fortschreiben (1) | F3: Startseite
A5: 2 | D5: Hier wird die Funktion BEREICH.VERSCHIEBEN benutzt, um die Datenquelle einer Pivot-Tabelle flexibel zu definieren.
A6: 2
A7: 2
A8: 2 | B8: Achtung | D8: Spalte C und Zeile 16 (gelb markiert) dürfen außer den Listendaten keine weiteren Daten enthalten, sonst zählt die Funktion ANZAHL2() nicht richtig!
A9: 2
A10: 1 | D10: The function OFFSET() is used here to make a flexible definition of the data source of a PivotTable.
A11: 1
A12: 1
A13: 1 | B13: Attention | D13: Column C and row 16 (marked in yellow) must not contain any data except the list data - otherwise the function COUNTA doesn't count correctly!
A14: 1
C16: branch | D16: customer | E16: quarter | F16: sales | G16: orders
C17: Bremen | D17: Shell | E17: 4 | F17: 66745 | G17: 138
C18: Bremen | D18: Shell | E18: 3 | F18: 72436 | G18: 127
C19: Bremen | D19: Shell | E19: 2 | F19: 78647 | G19: 120
C20: Bremen | D20: Shell | E20: 1 | F20: 80425 | G20: 111
C21: Bremen | D21: Esso | E21: 1 | F21: 112536 | G21: 92
C22: Bremen | D22: Esso | E22: 3 | F22: 111525 | G22: 89
C23: Bremen | D23: Esso | E23: 4 | F23: 124978 | G23: 96
C24: Bremen | D24: Esso | E24: 2 | F24: 131845 | G24: 90
C25: Hamburg | D25: Shell | E25: 1 | F25: 78176 | G25: 66
C26: Hamburg | D26: Shell | E26: 3 | F26: 88111 | G26: 68
C27: Hamburg | D27: Shell | E27: 2 | F27: 82789 | G27: 63
C28: Hamburg | D28: Shell | E28: 4 | F28: 94512 | G28: 59
C29: Hamburg | D29: Esso | E29: 3 | F29: 213999 | G29: 119
C30: Hamburg | D30: Esso | E30: 2 | F30: 224924 | G30: 122
C31: Hamburg | D31: Aral | E31: 3 | F31: 35712 | G31: 19
C32: Hamburg | D32: Esso | E32: 1 | F32: 243890 | G32: 123
C33: Hamburg | D33: Aral | E33: 1 | F33: 38523 | G33: 19
C34: Hamburg | D34: Aral | E34: 4 | F34: 32677 | G34: 15
C35: Hamburg | D35: Aral | E35: 2 | F35: 39467 | G35: 17
C36: Oldenburg | D36: Shell | E36: 2 | F36: 112967 | G36: 92
C37: Oldenburg | D37: Shell | E37: 3 | F37: 121210 | G37: 98
C38: Oldenburg | D38: Aral | E38: 1 | F38: 31243 | G38: 25
C39: Oldenburg | D39: Shell | E39: 4 | F39: 119891 | G39: 94
C40: Oldenburg | D40: Shell | E40: 1 | F40: 123124 | G40: 88
C41: Oldenburg | D41: Aral | E41: 2 | F41: 33756 | G41: 24
C42: Oldenburg | D42: Aral | E42: 3 | F42: 38299 | G42: 21
C43: Oldenburg | D43: Aral | E43: 4 | F43: 35900 | G43: 19
A55: 2 | B55: Neue Daten | D55: Kopieren Sie die vier Zeilen mit den neuen Daten an das untere Ende der obigen Datenliste, klicken Sie mit der Rechten Maustaste in die Pivot-Tabelle und wählen Sie "Aktualisieren"!
A56: 2
A57: 2
A58: 1 | B58: New data | D58: Copy the four rows with new data below the end of the above data list, right click into the PivotTable and select "Refresh"!
A59: 1
A60: 1
H62: new branche | I62: new customer | J62: 1 | K62: 102312 | L62: 99
H63: new branche | I63: new customer | J63: 2 | K63: 93344 | L63: 102
H64: new branche | I64: new customer | J64: 3 | K64: 89324 | L64: 89
H65: new branche | I65: new customer | J65: 4 | K65: 101234 | L65: 105
A66: 2 | B66: Pivot-Tabelle
A67: 1 | B67: PivotTable
D68: quarter | E68: (All)
D70: total sales | E70: customer
D71: branch | E71: Aral | F71: Esso | G71: Shell | H71: Grand Total
D72: Bremen | F72: 480884 | G72: 298253 | H72: 779137
D73: Hamburg | E73: 146379 | F73: 682813 | G73: 343588 | H73: 1172780
D74: Oldenburg | E74: 139198 | G74: 477192 | H74: 616390
D75: Grand Total | E75: 285577 | F75: 1163697 | G75: 1119033 | H75: 2568307
A78: 0

Sheet 19 Liste fortschreiben (2)
Q1: 0
A2: 1 | B2: 19 Extend a list (2) | F2: Back to Start
A3: 2 | B3: 19 Liste fortschreiben (2) | F3: Startseite
A5: 2 | E5: Hier wird die Funktion BEREICH.VERSCHIEBEN benutzt, um die Datenquelle eines Diagramms flexibel zu definieren. Wieder gilt: Die Spalten C und D und die Zeile 46 (gelb markiert) dürfen außer den Listendaten keine weiteren Daten enthalten, sonst zählt die Funktion ANZAHL2() nicht richtig - ABER:
A6: 2
A7: 2
A8: 2
A9: 2
A10: 2
A11: 2 | B11: Achtung | E11: In diesem speziellen Fall sind einige weitere Besonderheiten zu beachten: Hier müssen für die x-Werte und die y-Werte des Diagramms zwei Bereiche definiert werden. Bei der Definition der Datenquelle für das Diagramm (Rechtsklick / "Daten auswählen") muss zusätzlich zum Bereichsnamen der Dateiname angegeben werden!! Das letzte Argument von BEREICH.VERSCHIEBEN() ist eine 1, weil es sich in diesem speziellen Fall um einspaltige Bereiche handelt!!
A12: 2
A13: 2
A14: 2
A15: 2
A16: 2
A17: 2
A18: 2
A19: 2
A20: 1 | E20: The function OFFSET() is used here to make a flexible definition of the data source of a Diagram. Consider again: Column C and row 46 (marked in yellow) must not contain any data except the list data - otherwise the function COUNTA() doesn't count correctly!
A21: 1
A22: 1
A23: 1
A24: 1
A25: 1
A26: 1 | B26: Attention | E26: In this special case some more peculiarities must be considered: Here you must define two ranges of cells for the x and y values of the diagram, respectively! For the definition of the data source of the diagram (right click / "Select Data") the file name must be entered in addition to the range name!! The last argument of OFFSETT() is a 1, because in this sepcial case the ranges have only one column!!
A27: 1
A28: 1
A29: 1
A30: 1
A31: 1
A32: 1
A33: 1
A34: 1
C45: customer | D45: turnover
C46: A | D46: 3969
C47: B | D47: 3439
C48: C | D48: 4485
C49: D | D49: 3534
C50: E | D50: 4787
L52: F | M52: 2536
L53: G | M53: 4264
L54: H | M54: 3118
A67: 2 | B67: Neue Daten | E67: Wenn Sie die drei Zeilen mit den neuen Daten an das untere Ende der obigen Datenliste kopieren, wird das Diagramm automatisch aktualisiert!
A68: 2
A69: 2
A70: 2
A71: 1 | B71: New Data | E71: If you copy the three rows with new data below the end of the above data list, the chart is updated automatically!
A72: 1
A73: 1
A79: 0

Sheet 20 Liste fortschreiben (3)
K1: 0
A2: 1 | B2: 20 Extend a list (3) | F2: Back to Start
A3: 2 | B3: 20 Liste fortschreiben (3) | F3: Startseite
A5: 2 | C5: Hier wird die Funktion BEREICH.VERSCHIEBEN benutzt, um (1) die Datenquelle einer Datenüberprüfung und (2) den Suchbereich eines SVERWEISes flexibel zu definieren. Bitte sehen Sie sich das an, indem Sie …
A6: 2
A7: 2
A8: 2
A9: 2
A10: 2
A11: 2
A12: 2 | C12: (1) | D12: ... eine der orange gefärbten Zellen anklicken und dann "Daten" / "Datentools" / "Datenüberprüfung" / "Datenüberprüfung" wählen. Dort finden Sie unter "Einstellungen" / "Quelle" den Namen des jeweiligen Datenbereiches ("Companies_names" bzw. "Goods_names"). Klicken Sie anschließend auf "Formeln" / "Definierte Namen" / "Namens-Manager" um sich anzusehen, wie diese Bereiche definiert sind:
A13: 2
A14: 2
A15: 2
A16: 2
A17: 2
A18: 2
A19: 2
A20: 2
A21: 2
A22: 2
A23: 2
A24: 2 | D24: CompaniesStartCell: | F24: =Firmen!$C$7
A25: 2 | D25: Companies_names: | F25: =BEREICH.VERSCHIEBEN(CompaniesStartCell;0;0;ANZAHL2(BEREICH.VERSCHIEBEN(CompaniesStartCell;0;0;1000000;1));1)
A26: 2
A27: 2 | D27: GoodsStartCell: | F27: =Waren!$C$7
A28: 2 | D28: Goods_names: | F28: =BEREICH.VERSCHIEBEN(GoodsStartCell;0;0;ANZAHL2(BEREICH.VERSCHIEBEN(GoodsStartCell;0;0;1000000;1));1)
A29: 2
A30: 2 | B30: Achtung | D30: Das letzte Argument von BEREICH.VERSCHIEBEN() ist eine 1, weil es sich in diesem speziellen Fall um einen einspaltigen Bereich handelt!!
A31: 2
A32: 2
A33: 2 | C33: (2) | D33: ... eine der gelb gefärbten Zellen anklicken und sich die darin enthaltene SVERWEIS-Formel ansehen: (1) z.B. =SVERWEIS(D46;Companies;4;FALSCH) (2) z.B. =WENN(E53<>"";SVERWEIS(E53;Goods;2;FALSCH);"") Klicken Sie anschließend auf FORMELN / "Definierte Namen" / "Namens-Manager" um sich anzusehen, wie diese Bereiche definiert sind
A34: 2
A35: 2
A36: 2
A37: 2
A38: 2
A39: 2
A40: 2
A41: 2
A42: 2
A43: 2
A44: 2
A45: 2
A46: 2 | D46: CompaniesStartCell: | F46: =Firmen!$C$7
A47: 2 | D47: Companies: | F47: =BEREICH.VERSCHIEBEN(CompaniesStartCell;0;0;ANZAHL2(BEREICH.VERSCHIEBEN(CompaniesStartCell;0;0;1000000;1));ANZAHL2(BEREICH.VERSCHIEBEN(CompaniesStartCell;0;0;1;16000)))
A48: 2
A49: 2 | D49: GoodsStartCell: | F49: =Waren!$C$7
A50: 2 | D50: Goods: | F50: =BEREICH.VERSCHIEBEN(GoodsStartCell;0;0;ANZAHL2(BEREICH.VERSCHIEBEN(GoodsStartCell;0;0;1000000;1));ANZAHL2(BEREICH.VERSCHIEBEN(GoodsStartCell;0;0;1;16000)))
A52: 1 | C52: Here the function OFFSET() is used to make a flexible definition of (1) the data source for a data validation and (2) the search range of a VLOOKUP() Please have a look at this by …
A53: 1
A54: 1
A55: 1
A56: 1
A57: 1
A58: 1
A59: 1 | C59: (1) | D59: ... clicking into one of the orange cells and selecting "Data" / "Data Tools" / "Data Validation" / "Data Validation" There you will find the name of the data range ("Companies_names" / "Goods_names") under "Settings" / "Source". Then click to "Formulas" / "Defined Names" / "Name Manager" to see, how these ranges are defined:
A60: 1
A61: 1
A62: 1
A63: 1
A64: 1
A65: 1
A66: 1
A67: 1
A68: 1
A69: 1
A70: 1 | D70: CompaniesStartCell: | F70: =Companies!$C$7
A71: 1 | D71: Companies_names: | F71: =OFFSET(CompaniesStartCell;0;0;COUNTA(OFFSET(CompaniesStartCell;0;0;1000000;1));1)
A72: 1
A73: 1 | D73: GoodsStartCell: | F73: =Goods!$C$7
A74: 1 | D74: Goods_names: | F74: =OFFSET(GoodsStartCell;0;0;COUNTA(OFFSET(GoodsStartCell;0;0;1000000;1));1)
A75: 1
A76: 1 | B76: Attention | D76: The last argument of OFFSET() is a 1, because in this special case the range has only one column!
A77: 1
A78: 1
A79: 1 | C79: (2) | D79: ... clicking into one of the yellow cells and looking at the VLOOKUP formula therein: (1) e.g. =VLOOKUP(D93;Companies;4;FALSE) (2) e.g. =IF(E53<>"";VLOOKUP(E53;Goods;2;FALSE);"") Then click at FORMULAS / "Defined Names" / "Name Manager" to see, how these ranges are defined:
A80: 1
A81: 1
A82: 1
A83: 1
A84: 1
A85: 1
A86: 1
A87: 1
A88: 1
A89: 1
A90: 1
A91: 1 | D91: CompaniesStartCell: | F91: =Companies!$C$7
A92: 1 | D92: Companies: | F92: =OFFSET(CompaniesStartCell;0;0;COUNTA(OFFSET(CompaniesStartCell;0;0;1000000;1));COUNTA(OFFSET(CompaniesStartCell;0;0;1;16000)))
A93: 1
A94: 1 | D94: GoodsStartCell: | F94: =Goods!$C$7
A95: 1 | D95: Goods: | F95: =OFFSET(GoodsStartCell;0;0;COUNTA(OFFSET(GoodsStartCell;0;0;1000000;1));COUNTA(OFFSET(GoodsStartCell;0;0;1;16000)))
D99: Save-a-lot Markets
D100: =VLOOKUP(D99,Companies,2,FALSE)&" "&VLOOKUP(D99,Companies,3,FALSE) -> Ms Isabella Hanson
D101: =VLOOKUP(D99,Companies,4,FALSE) -> East Av. 666
D102: =VLOOKUP(D99,Companies,5,FALSE)&" "&VLOOKUP(D99,Companies,6,FALSE) -> LA9 PX8 Hedge End
D105: Good nr. | E105: Good name | F105: Net price | G105: per | H105: Amount | I105: Total net
D106: =IF(E106<>"",VLOOKUP(E106,Goods,2,FALSE),"") -> 111-001 | E106: Planks | F106: =IF(E106<>"",VLOOKUP(E106,Goods,3,FALSE),"") -> 1.99 | G106: =IF(E106<>"",VLOOKUP(E106,Goods,4,FALSE),"") -> meter | H106: 2 | I106: =IF(H106<>"",F106*H106,"") -> 3.98
D107: 444-001 | E107: Nails, 40 mm | F107: 2.99 | G107: kg | H107: 15 | I107: 44.85
D108: 222-001 | E108: Green color | F108: 4.99 | G108: liter | H108: 8 | I108: 39.92
D109: 222-002 | E109: Red color | F109: 4.99 | G109: liter | H109: 6 | I109: 29.94
D110: 333-001 | E110: Pushcart | F110: 24.99 | G110: item | H110: 1 | I110: 24.99
D111: 444-002 | E111: Nails, 60 mm | F111: 3.49 | G111: kg | H111: 4.5 | I111: 15.705
D112: 111-001 | E112: Planks | F112: 1.99 | G112: meter | H112: 5 | I112: 9.95
D123: Total price net | I123: =SUM(I106:I122) -> 169.335
D124: VAT | I124: =I123*F128 -> 32.17365
D125: Total price gross | I125: =I124+I123 -> 201.50865
E128: VAT: | F128: 0.19
A133: 0

Sheet 21 Liste fortschreiben (4)
F1: 0
A2: 1 | B2: 21 Extend a list (4) | F2: Back to Start
A3: 2 | B3: 21 Liste fortschreiben (4) | F3: Startseite
A5: 1 | C5: Here the OFFSET() function is used for a flexible definition of the data source of two lists, which depend from each other. For example, the first list shall contain the continents and the second list the correspnding countries:
A6: 1
A7: 1
A8: 1
A9: 2 | C9: Hier wird die Funktion BEREICH.VERSCHIEBEN benutzt, um die Datenquellen zweier abhängiger Listen flexibel zu definieren. In der ersten Liste sollen z.B. die Kontinente erscheinen, in der zweiten Liste die jeweils dazugehörigen Länder:
A10: 2
A11: 2
A12: 2
A14: 1 | C14: continent: | E14: country:
A15: 2 | C15: Kontinent: | E15: Land:
C16: America | E16: USA | J16: Europe | K16: Asia | L16: Africa | M16: America | N16: Australia
J17: Germany | K17: Russia | L17: Maroc | M17: Canada | N17: Australia
J18: Great Britain | K18: China | L18: Algeria | M18: USA | N18: New Zeeland
J19: France | K19: India | L19: Tunesia | M19: Mexiko
J20: Spain | K20: Japan | L20: Egypt
J21: Italy | K21: Nepal
J22: Danmark
A24: 1 | C24: The drop down fields are generated with "Data" / "Data Tools" / "Data Validation" / "Data Validation" where "Allow = List" is selected. The list of continents is fixed. But the list of countries depends on the selection made in the list of continents. Therefore the following function is used: =CHOOSE(MATCH(C16;$J$16:$N$16;);Europe;Asia;Africa;America;Australia)
A25: 1
A26: 1
A27: 1
A28: 1
A29: 1
A30: 2 | C30: Die Drop-Down-Felder werden mittels "Daten" / "Datentools" / "Datenüberprüfung" / "Datenüberprüfung" erstellt, indem dort "Zulassen = Liste" ausgewählt wird. Die Liste der Kontinente ist fest definiert. Die Liste der Länder dagegen hängt davon ab, welcher Kontinent in der ersten Liste ausgewählt wurde. Daher wird folgende Funktion benutzt: =WAHL(VERGLEICH(C16;$J$16:$N$16;);Europe;Asia;Africa;America;Australia)
A31: 2
A32: 2
A33: 2
A34: 2
A35: 2
A36: 2
A56: 1 | C56: MATCH() looks for a value in a range and gives the sequential number in the range - for example "4" for "America". CHOOSE() selects the value with this sequential number from a list of values - for example "America" for "4". The value selected by CHOOSE() (e.g. "America") is the name of a range, which was flexibly defined using OFFSET():
A57: 1
A58: 1
A59: 1
A60: 1
A61: 2 | C61: VERGLEICH() sucht einen Wert in einem Bereich und liefert als Ergebnis die laufende Nummer im Bereich - also z.B. "4" für "America". WAHL() wählt dann den Wert mit dieser laufenden Nummer aus einer Werteliste aus - für "4" also "America". Der von WAHL() ausgewählte Wert (z.B. "America") ist der Name eines Bereiches, der mit BEREICH.VERSCHIEBEN() flexibel definiert wurde:
A62: 2
A63: 2
A64: 2
A65: 2
A66: 2
A69: 0

Sheet 22 Liste fortschreiben (5)
F1: 0
A2: 1 | B2: 22 Extend a list (5) | F2: Back to Start
A3: 2 | B3: 22 Liste fortschreiben (5) | F3: Startseite
C5: branch | D5: customer | E5: quarter | F5: sales
C6: Bremen | D6: Shell | E6: 4 | F6: 66745
C7: Bremen | D7: Shell | E7: 3 | F7: 72436
C8: Bremen | D8: Shell | E8: 2 | F8: 78647
C9: Bremen | D9: Shell | E9: 1 | F9: 80425
C10: Bremen | D10: Esso | E10: 1 | F10: 112536
C11: Bremen | D11: Esso | E11: 3 | F11: 111525
C12: Bremen | D12: Esso | E12: 4 | F12: 124978
C13: Bremen | D13: Esso | E13: 2 | F13: 131845
C14: Hamburg | D14: Shell | E14: 1 | F14: 78176
C15: Hamburg | D15: Shell | E15: 3 | F15: 88111
C16: Hamburg | D16: Shell | E16: 2 | F16: 82789
C17: Hamburg | D17: Shell | E17: 4 | F17: 94512
C18: Hamburg | D18: Esso | E18: 3 | F18: 213999
C19: Hamburg | D19: Esso | E19: 2 | F19: 224924
C20: Hamburg | D20: Aral | E20: 3 | F20: 35712
C21: Hamburg | D21: Esso | E21: 1 | F21: 243890
C22: Hamburg | D22: Aral | E22: 1 | F22: 38523
C23: Hamburg | D23: Aral | E23: 4 | F23: 32677
C24: Hamburg | D24: Aral | E24: 2 | F24: 39467
A26: 2 | B26: Definition
A27: 1 | B27: Definition
A29: 2 | B29: Name
A30: 1 | B30: Name
A32: 2 | B32: Zellbezug
A33: 1 | B33: Cell
A34: 1 | B34: reference
A36: 2 | C36: Gesamtumsatz: | E36: =SUM(tabSales[sales]) -> 1951917 | F36: =_xlfn.FORMULATEXT(E36) -> =SUM(tabSales[sales])
A37: 1 | C37: Total sales: | E37: =SUM(tabSales[sales]) -> 1951917 | F37: =_xlfn.FORMULATEXT(E37) -> =SUM(tabSales[sales])
C39: branch | D39: customer | E39: quarter | F39: sales | H39: orders
C40: Bremen | D40: Shell | E40: 4 | F40: 66745 | H40: 138
C41: Bremen | D41: Shell | E41: 3 | F41: 72436 | H41: 127
C42: Bremen | D42: Shell | E42: 2 | F42: 78647 | H42: 120
C43: Bremen | D43: Shell | E43: 1 | F43: 80425 | H43: 111
C44: Bremen | D44: Esso | E44: 1 | F44: 112536 | H44: 92
C45: Bremen | D45: Esso | E45: 3 | F45: 111525 | H45: 89
C46: Bremen | D46: Esso | E46: 4 | F46: 124978 | H46: 96
C47: Bremen | D47: Esso | E47: 2 | F47: 131845 | H47: 90
C48: Hamburg | D48: Shell | E48: 1 | F48: 78176 | H48: 66
C49: Hamburg | D49: Shell | E49: 3 | F49: 88111 | H49: 68
C50: Hamburg | D50: Shell | E50: 2 | F50: 82789 | H50: 63
C51: Hamburg | D51: Shell | E51: 4 | F51: 94512 | H51: 59
C52: Hamburg | D52: Esso | E52: 3 | F52: 213999 | H52: 119
C53: Hamburg | D53: Esso | E53: 2 | F53: 224924 | H53: 122
C54: Hamburg | D54: Aral | E54: 3 | F54: 35712 | H54: 19
C55: Hamburg | D55: Esso | E55: 1 | F55: 243890 | H55: 123
C56: Hamburg | D56: Aral | E56: 1 | F56: 38523 | H56: 19
C57: Hamburg | D57: Aral | E57: 4 | F57: 32677 | H57: 15
C58: Hamburg | D58: Aral | E58: 2 | F58: 39467 | H58: 17
C60: Oldenburg | D60: Shell | E60: 2 | F60: 112967 | H60: 92
C61: Oldenburg | D61: Shell | E61: 3 | F61: 121210 | H61: 98
C62: Oldenburg | D62: Aral | E62: 1 | F62: 31243 | H62: 25
C63: Oldenburg | D63: Shell | E63: 4 | F63: 119891 | H63: 94
C64: Oldenburg | D64: Shell | E64: 1 | F64: 123124 | H64: 88
C65: Oldenburg | D65: Aral | E65: 2 | F65: 33756 | H65: 24
C66: Oldenburg | D66: Aral | E66: 3 | F66: 38299 | H66: 21
C67: Oldenburg | D67: Aral | E67: 4 | F67: 35900 | H67: 19
A70: 2 | B70: Erweitern
A71: 1 | B71: Extend
A73: 2 | B73: ACHTUNG
A74: 1 | B74: ATTENTION
A79: 0

Sheet 22 Liste fortschreiben (5)_ (hidden)
B1: 2 | C1: 2 | D1: 2 | E1: 1 | F1: 1 | G1: 1 | H1: 0
A2: 1 | B2: 22 Extend a list (5)_ | F2: =B2 -> 22 Extend a list (5)_
A3: 2 | B3: 22 Liste fortschreiben (5)_
A4: 0
B5: 1 | C5: Für das Fortschreiben einer Liste gibt es neben der leider ziemlich komplizierten Variante mit BEREICH.VERSCHIEBEN (siehe "Liste fortschreiben (1) bis (4)"!) noch eine sehr einfache und komfortable Variante. Dazu gehen wir von folgender Tabelle aus: | E5: 1 | F5: For updating a list there is a very simple and comfortable variant besides the unfortunately quite complicated variant with OFFSET (see "Extend a list (1) to (4)"!). We start from the following table:
B6: =IF(C6<>"",B5+1,"") -> 2 | C6: DEFINITION: Klicken Sie an einer beliebigen Stelle in die Tabelle und wählen Sie dann "Als Tabelle formatieren" im Menü "Start". Das klingt ziemlich kurios - "eine Tabelle als Tabelle formatieren". Hat sich Microsoft aber so ausgedacht ... Wählen Sie ein Format, bei dem die Zeilen abwechselnd hell und dunkel gefärbt sind (s.u.). Dann sieht man auf Anhieb, welche Tabelle eine "Tabelle" ist. Die "Tabelle" bekommt automatisch einen Standard-Namen (z.B. "Tabelle3"). Da es immer gut ist, Objekten konventionsgerechte, aussagekräftige Namen zu geben, sollten Sie das sofort tun. | E6: =IF(F6<>"",E5+1,"") -> 2 | F6: DEFINITION: Click anywhere in the table, then select "Format as Table" from the "Home" menu. This sounds rather strange - "Format a table as a table". But that's how Microsoft came up with it ... Choose a format in which the rows are alternately colored light and dark (see below). Then you can immediately see which table is a "table". The "table" automatically gets a default name (e.g. "Table3"). Since it is always good to give objects conventionally appropriate, meaningful names, you should do this immediately.
B7: =IF(C7<>"",B6+1,"") -> 3 | C7: NAME: Dazu klicken Sie auf "Formeln / Namens-Manager". In der Liste wählen Sie den Eintrag mit der gerade definierten "Tabelle" aus und klicken dann auf "Bearbeiten...". Dort können Sie dann den Namen der "Tabelle" ändern - z.B. in "tabSales". ACHTUNG: Sie können für eine Tabellendefinition weder den Gültigkeitsbereich noch den Zellbezug ändern. Wenn Sie diese beiden Eigenschaften ändern wollen, müssen Sie die "Tabelle" löschen und eine neue "Tabelle" anlegen. | E7: =IF(F7<>"",E6+1,"") -> 3 | F7: NAME: To do this, click on "Formulas / Name Manager". In the list, select the entry with the currently defined "table" and then click on "Edit...". There you can change the name of the "table" - e.g. in "tabSales". ATTENTION: You can neither change the validity area nor the cell reference for a table definition. If you want to change these two properties, you must delete the "table" and create a new "table".
B8: =IF(C8<>"",B7+1,"") -> 4 | C8: ZELLBEZUG: Und jetzt kommt das spannende an einer "Tabelle": Wir wollen die Daten aus der "Tabelle" für Berechnungen benutzen - zunächst für die einfachste aller Rechnungen - die Summe. Geben Sie in einer beliebigen Zelle ein: =SUMME( Dann markieren Sie mit der Maus die Werte einer Spalte - z.B. "sales" im Beispiel unten. Sie werden sehen, dass Excel zunächst einen normalen Zellbezug generiert: linke obere Ecke - Doppelpunkt - rechte untere Ecke. Wenn Sie aber mit der Maus das Ende der "Tabelle" erreichen, ändert sich das plötzlich zu =SUMME(tabSales[sales]) Die Summe wird also nicht mehr berechnet "von Zelle bis Zelle", sondern "über die Spalte [sales] der Tabelle tabSales"! Sie können auch mehrere Spalten markieren: =SUMME(tabSales[[quarter]:[sales]]) Das ist in diesem Fall natürlich mathematisch sinnlos und soll nur zeigen, wie das dann in der Formel umgesetzt wird. | E8: =IF(F8<>"",E7+1,"") -> 4 | F8: CELL REFERENCE: And now comes the exciting thing about a "table": We want to use the data from the "table" for calculations - first for the simplest of all calculations - the sum. Enter in any cell: =SUM( Then mark the values of a column with the mouse - e.g. "sales" in the example below. You will see that Excel first generates a normal cell reference: upper left corner - colon - lower right corner. But if you reach the end of the "table" with the mouse, this suddenly changes to =SUM(tabSales[sales]) The sum is no longer calculated "from cell to cell", but "over the column [sales] of the table tabSales"! You can also select several columns: =SUM(tabSales[[quarter]:[sales]]) This is of course mathematically meaningless in this case and should only show how this is then implemented in the formula.
B9: 5 | C9: ERWEITERN: Und jetzt kommt der ganz große Vorteil einer "Tabelle": Ihre Erweiterbarkeit! Sie können nämlich an eine vorhandene "Tabelle" sowohl Zeilen als auch Spalten anfügen. Dazu markieren Sie mal im obigen Beispiel die Daten für Oldenburg (ACHTUNG: Nur bis Spalte F!) und ziehen Sie diese eine Zeile hoch. Dann passiert zweierlei: (1) Die neu angefügten Zeilen werden abwechselnd gefärbt. Daran erkennen Sie, dass sie jetzt zur "Tabelle" dazu gehören. Sie können das auch mit "Formeln / Namens-Manager" überprüfen. (2) Die Summe über die Spalte "sales" wird neu berechnet. Es kommen jetzt die Oldenburger Daten hinzu. In derselben Weise können Sie eine zusätzliche Spalte (z.B. "orders") hinzufügen. | E9: 5 | F9: EXPAND: And now comes the very big advantage of a "table": Its expandability! You can add both rows and columns to an existing "table". In the example above, select the data for Oldenburg (ATTENTION: Only up to column F!) and drag this one row up. Then two things happen: (1) The newly added lines are colored alternately. This indicates that they now belong to the "table". You can also check this with "Formulas / Name Manager". (2) The sum for the column "sales" is recalculated. The Oldenburg data are added now. In the same way you can add an additional column (e.g. "orders").
C10: ACHTUNG - ACHTUNG: (1) Sie können die hinzugefügten Daten nicht einfach wieder zurückziehen.Wenn Sie das Hinzufügen rückgängig machen wollen, müssen Sie entweder auf "Rückgängig" klicken oder die hinzugefügten Zeilen bzw. Spalten löschen (Achtung: Die ganzen ZEILEN bzw. SPALTEN - nicht nur die ZELLEN!!) (2) Beim Hinzufügen von ZEILEN dürfen Sie nicht MEHR SPALTEN hinzufügen, als es schon gibt. Dann wird die Tabellendefinition nicht erweitert. Markieren Sie dazu einfach mal die Oldenburger Daten inklusive der Leerzellen rechts daneben und ziehen Sie sie nach oben. Entsprechendes gilt für die Spalten. Auch das können Sie im obigen Beispiel ausprobieren. (3) Beim Hinzufügen von ZEILEN dürfen Sie aber WENIGER SPALTEN hinzufügen als es schon gibt. Dann werden die übrigen Spalten mit Leerzellen aufgefüllt. Entsprechendes gilt für die Spalten. Auch das können Sie im obigen Beispiel ausprobieren. | F10: ATTENTION - ATTENTION: (1) If you want to undo the addition, you must either click on "Undo" or delete the added rows or columns (Attention: The whole ROWS or COLUMNS - not only the CELLS!!). (2) When adding ROWS, do not add MORE COLUMNS than there already are. Then the table definition is not expanded. Simply mark the Oldenburg data including the empty cells to the right and drag them upwards. The same applies to the columns. You can also try this in the example above. (3) When adding ROWS, however, you may add FEWER COLUMNS than there already are. Then the remaining columns are filled with blank cells. The same applies to the columns. You can also try this in the example above.

Sheet Firmen
I1: 0
A2: 1 | B2: Companies | F2: Back to Start
A3: 2 | B3: Firmen | F3: Startseite
C6: Company | D6: Salutation | E6: Contact person | F6: Address | G6: ZIP code | H6: City
C7: Island Trading | D7: Mr | E7: Oliver Young | F7: East Street 111 | G7: EC2 5NT | H7: London
C8: Around the Horn | D8: Ms | E8: Olivia Brewster | F8: West Av. 222 | G8: T2F 8M4 | H8: Tsawassen
C9: Seven Seas Imports | D9: Ms | E9: Jessica Miller | F9: Middle Boulevard 333 | G9: 87110 | H9: Albuquerque
C10: Eastern Connection | D10: Mr | E10: Charlie Nolan | F10: South Place 444 | G10: 97201 | H10: Portland
C11: Consolidated Holdings | D11: Mr | E11: Thomas Sawyer | F11: North Way 555 | G11: H1J 1C3 | H11: Montréal
C12: Save-a-lot Markets | D12: Ms | E12: Isabella Hanson | F12: East Av. 666 | G12: LA9 PX8 | H12: Hedge End
C13: Old World Delicatessen | D13: Mr | E13: Jack Rodriguez | F13: West Str. 777 | G13: 83720 | H13: Boise
C14: The Big Cheese | D14: Mr | E14: Jacob Wayne | F14: South Place 888 | G14: 98128 | H14: Seattle
A21: 2 | I21: Kopieren Sie die drei zusätzlichen Firmen unten ans Ende der Liste. Wechseln Sie dann auf das Arbeitsblatt "Liste fortschreiben (3)" und klappen Sie dort im Adressfeld der Beispielrechnung das Kombinationsfeld mit den Firmennamen auf. Sie werden sehen, dass die drei zusätzliche Firmen dann dort erscheinen. Ebenso verschwinden sie dort wieder, wenn Sie sie hier wieder vom Ende der Liste entfernen.
A22: 2
A23: 2
A24: 2
A25: 1 | I25: Copy the three additional companies to the end of the list. Then switch to the worksheet "Update a list (3)" and open the combo box with the company names in the example invoice. You will see, that the additional companies appear there. They will disappear, if you delete them here!
A26: 1
A27: 1
A28: 1
I30: Split Rail Beer & Ale | J30: Mr | K30: William West | L30: South Avenue 123 | M30: 97403 | N30: Eugene
I31: White Clover Markets | J31: Ms | K31: Sophie Ward | L31: North Street 456 | M31: 94117 | N31: San Francisco
I32: Hungry Coyote Import Store | J32: Mr | K32: James Brown | L32: East Av. 789 | M32: 5022 | N32: San Cristóbal
A33: 0

Sheet Waren
I1: 0
A2: 1 | B2: Goods | F2: Back to Start
A3: 2 | B3: Waren | F3: Startseite
C6: Good name | D6: Good nr. | E6: Net price | F6: per
C7: Planks | D7: 111-001 | E7: 1.99 | F7: meter | H7: meter
C8: Cement | D8: 111-002 | E8: 2.99 | F8: kg | H8: kg
C9: Green color | D9: 222-001 | E9: 4.99 | F9: liter | H9: liter
C10: Red color | D10: 222-002 | E10: 4.99 | F10: liter | H10: item
C11: Pushcart | D11: 333-001 | E11: 24.99 | F11: item
C12: Nails, 40 mm | D12: 444-001 | E12: 2.99 | F12: kg
C13: Nails, 60 mm | D13: 444-002 | E13: 3.49 | F13: kg
